Workbook

Sheet Cover
B3: Attachment 9.04
B4: Stand alone and avoidable cost model
B6: 2025-30 Regulatory Proposal
B8: 2024-01-31

Sheet Checklist
B2: Checklist
B4: Yearly update | H4: Initial set up
B6: Colour codes | D6: Steps | H6: Steps
B8: Key | D8: Step | E8: Tab | F8: Description | H8: Step | I8: Tab | J8: Description
B9: Inputs | D9: 1 | E9: X-factors | F9: From PTRM copy and paste x-factor calculations | H9: 1 | I9: X-factors | J9: From PTRM copy and paste x-factor calculations
B10: Parameter | D10: 2 | E10: Assets | F10: From PTRM, copy paste asset calculations | H10: 2 | I10: Assets | J10: From PTRM, copy paste asset calculations
B11: Calculation | D11: 3 | E11: PTRM inputs | F11: From PTRM inputs, copy paste inputs calculations | H11: 3 | I11: PTRM inputs | J11: From PTRM inputs, copy paste inputs calculations
B12: Outputs | D12: 4 | E12: Allocators | F12: Fill in projected/actual customer numbers for each year and code | H12: 4 | I12: Opex costs | J12: Type in operational cost categories into the red boxes
B13: Text | D13: 5 | E13: Allocators | F13: Fill in projected/actual energy consumed for each year and code | H13: 5 | I13: Opex costs | J13: Assign the percentage of operational costs to each category
H14: 6 | I14: Allocators | J14: Type in customer code, name and voltage level
H15: 7 | I15: Allocators | J15: Fill in projected customer numbers for each year and code
H16: 8 | I16: Allocators | J16: Fill in projected energy consumed for each year and code
H17: 9 | I17: Control panel | J17: For standalone costs, choose the proportion of scalable costs for each customer code
H18: 10 | I18: Control panel | J18: For operational costs, assign the percentage allocated to avoidable costs
H19: 11 | I19: Control panel | J19: For operational costs, assign the percentage allocated to the customer
H20: 12 | I20: Control panel | J20: For operational costs, assign if it is a scalable or non-scalable cost
H21: 13 | I21: Control panel | J21: For return of capex, assign the percentage allocated to avoidable costs
H22: 14 | I22: Control panel | J22: For return of capex, assign the percentage allocated to the customer
H23: 15 | I23: Control panel | J23: For return of capex, assign if it is a scalable or non-scalable cost
H24: 16 | I24: Control panel | J24: For return on capex, assign the percentage allocated to avoidable costs
H25: 17 | I25: Control panel | J25: For return on capex, assign the percentage allocated to the customer
H26: 18 | I26: Control panel | J26: For return on capex, assign if it is a scalable or non-scalable cost
H27: 19 | I27: Control panel | J27: For each operational cost and asset put a 1 or 0. This is to map similar opex to capex categories

Sheet Outputs
B2: Outputs
B4: Final output | P4: Standalone costs | AD4: Avoidable costs
B6: Avoidable costs (per cent of revenue) | I6: Standalone costs (per cent of revenue) | P6: Scalable | W6: Non scalable | AD6: Customer related costs | AK6: Energy related costs
B8: Class | C8: 2025-26 | D8: 2026-27 | E8: 2027-28 | F8: 2028-29 | G8: 2029-30 | I8: Class | J8: 2025-26 | K8: 2026-27 | L8: 2027-28 | M8: 2028-29 | N8: 2029-30 | P8: Type | Q8: 2025-26 | R8: 2026-27 | S8: 2027-28 | T8: 2028-29 | U8: 2029-30 | W8: Type | X8: 2025-26 | Y8: 2026-27 | Z8: 2027-28 | AA8: 2028-29 | AB8: 2029-30 | AD8: Type | AE8: 2025-26 | AF8: 2026-27 | AG8: 2027-28 | AH8: 2028-29 | AI8: 2029-30 | AK8: Type | AL8: 2025-26 | AM8: 2026-27 | AN8: 2027-28 | AO8: 2028-29 | AP8: 2029-30
B9: ICC | C9: =(AE$14*(_xlfn.XLOOKUP($B9,Allocators!$B$7:$B$9,Allocators!F$7:F$9)/Allocators!F$11)+AL$14*(_xlfn.XLOOKUP($B9,Allocators!$B$7:$B$9,Allocators!L$7:L$9)/Allocators!L$11))/'BBM Costs'!C$13 -> 0.04000650968 | D9: =(AF$14*(_xlfn.XLOOKUP($B9,Allocators!$B$7:$B$9,Allocators!G$7:G$9)/Allocators!G$11)+AM$14*(_xlfn.XLOOKUP($B9,Allocators!$B$7:$B$9,Allocators!M$7:M$9)/Allocators!M$11))/'BBM Costs'!D$13 -> 0.03991227554 | E9: =(AG$14*(_xlfn.XLOOKUP($B9,Allocators!$B$7:$B$9,Allocators!H$7:H$9)/Allocators!H$11)+AN$14*(_xlfn.XLOOKUP($B9,Allocators!$B$7:$B$9,Allocators!N$7:N$9)/Allocators!N$11))/'BBM Costs'!E$13 -> 0.03997672639 | F9: =(AH$14*(_xlfn.XLOOKUP($B9,Allocators!$B$7:$B$9,Allocators!I$7:I$9)/Allocators!I$11)+AO$14*(_xlfn.XLOOKUP($B9,Allocators!$B$7:$B$9,Allocators!O$7:O$9)/Allocators!O$11))/'BBM Costs'!F$13 -> 0.0389987354 | G9: =(AI$14*(_xlfn.XLOOKUP($B9,Allocators!$B$7:$B$9,Allocators!J$7:J$9)/Allocators!J$11)+AP$14*(_xlfn.XLOOKUP($B9,Allocators!$B$7:$B$9,Allocators!P$7:P$9)/Allocators!P$11))/'BBM Costs'!G$13 -> 0.03906718201 | I9: ICC | J9: =((X$14+(Q$14*_xlfn.XLOOKUP($I9,'Control panel'!$B$7:$B$9,'Control panel'!$C$7:$C$9)))/'BBM Costs'!C$13)+C9 -> 0.1820959414 | K9: =((Y$14+(R$14*_xlfn.XLOOKUP($I9,'Control panel'!$B$7:$B$9,'Control panel'!$C$7:$C$9)))/'BBM Costs'!D$13)+D9 -> 0.177697645 | L9: =((Z$14+(S$14*_xlfn.XLOOKUP($I9,'Control panel'!$B$7:$B$9,'Control panel'!$C$7:$C$9)))/'BBM Costs'!E$13)+E9 -> 0.179944624 | M9: =((AA$14+(T$14*_xlfn.XLOOKUP($I9,'Control panel'!$B$7:$B$9,'Control panel'!$C$7:$C$9)))/'BBM Costs'!F$13)+F9 -> 0.204175154 | N9: =((AB$14+(U$14*_xlfn.XLOOKUP($I9,'Control panel'!$B$7:$B$9,'Control panel'!$C$7:$C$9)))/'BBM Costs'!G$13)+G9 -> 0.2121809834 | P9: Opex | Q9: =SUMPRODUCT('BBM Costs'!J$7:J$25,'Control panel'!$G$7:$G$25,--('Control panel'!$J$7:$J$25=Outputs!$P$6)) -> 310.401397 | R9: =SUMPRODUCT('BBM Costs'!K$7:K$25,'Control panel'!$G$7:$G$25,--('Control panel'!$J$7:$J$25=Outputs!$P$6)) -> 322.5661643 | S9: =SUMPRODUCT('BBM Costs'!L$7:L$25,'Control panel'!$G$7:$G$25,--('Control panel'!$J$7:$J$25=Outputs!$P$6)) -> 334.1201733 | T9: =SUMPRODUCT('BBM Costs'!M$7:M$25,'Control panel'!$G$7:$G$25,--('Control panel'!$J$7:$J$25=Outputs!$P$6)) -> 339.5401331 | U9: =SUMPRODUCT('BBM Costs'!N$7:N$25,'Control panel'!$G$7:$G$25,--('Control panel'!$J$7:$J$25=Outputs!$P$6)) -> 352.996289 | W9: Opex | X9: =SUMPRODUCT('BBM Costs'!J$7:J$25,'Control panel'!$G$7:$G$25,--('Control panel'!$J$7:$J$25=$W$6)) -> -159.8051796 | Y9: =SUMPRODUCT('BBM Costs'!K$7:K$25,'Control panel'!$G$7:$G$25,--('Control panel'!$J$7:$J$25=$W$6)) -> -173.025023 | Z9: =SUMPRODUCT('BBM Costs'!L$7:L$25,'Control panel'!$G$7:$G$25,--('Control panel'!$J$7:$J$25=$W$6)) -> -177.2739568 | AA9: =SUMPRODUCT('BBM Costs'!M$7:M$25,'Control panel'!$G$7:$G$25,--('Control panel'!$J$7:$J$25=$W$6)) -> -130.0999258 | AB9: =SUMPRODUCT('BBM Costs'!N$7:N$25,'Control panel'!$G$7:$G$25,--('Control panel'!$J$7:$J$25=$W$6)) -> -114.4862884 | AD9: O&M related | AE9: ='Avoidable costs'!J29 -> 52.39995897 | AF9: ='Avoidable costs'!K29 -> 54.45775416 | AG9: ='Avoidable costs'!L29 -> 56.41103595 | AH9: ='Avoidable costs'!M29 -> 57.32289719 | AI9: ='Avoidable costs'!N29 -> 59.59949258 | AK9: Asset related | AL9: =SUMPRODUCT(IF(AL$8='Avoidable costs'!$W$9:$W$161,1,0),'Avoidable costs'!$Y$9:$Y$161,'Avoidable costs'!$AC$9:$AC$161) -> 203.8237854 | AM9: =SUMPRODUCT(IF(AM$8='Avoidable costs'!$W$9:$W$161,1,0),'Avoidable costs'!$Y$9:$Y$161,'Avoidable costs'!$AC$9:$AC$161) -> 219.038076 | AN9: =SUMPRODUCT(IF(AN$8='Avoidable costs'!$W$9:$W$161,1,0),'Avoidable costs'!$Y$9:$Y$161,'Avoidable costs'!$AC$9:$AC$161) -> 236.8713036 | AO9: =SUMPRODUCT(IF(AO$8='Avoidable costs'!$W$9:$W$161,1,0),'Avoidable costs'!$Y$9:$Y$161,'Avoidable costs'!$AC$9:$AC$161) -> 249.3001937 | AP9: =SUMPRODUCT(IF(AP$8='Avoidable costs'!$W$9:$W$161,1,0),'Avoidable costs'!$Y$9:$Y$161,'Avoidable costs'!$AC$9:$AC$161) -> 269.4219369
B10: CAC | C10: =(AE$14*(_xlfn.XLOOKUP($B10,Allocators!$B$7:$B$9,Allocators!F$7:F$9)/Allocators!F$11)+AL$14*(_xlfn.XLOOKUP($B10,Allocators!$B$7:$B$9,Allocators!L$7:L$9)/Allocators!L$11))/'BBM Costs'!C$13 -> 0.01326975301 | D10: =(AF$14*(_xlfn.XLOOKUP($B10,Allocators!$B$7:$B$9,Allocators!G$7:G$9)/Allocators!G$11)+AM$14*(_xlfn.XLOOKUP($B10,Allocators!$B$7:$B$9,Allocators!M$7:M$9)/Allocators!M$11))/'BBM Costs'!D$13 -> 0.01323777756 | E10: =(AG$14*(_xlfn.XLOOKUP($B10,Allocators!$B$7:$B$9,Allocators!H$7:H$9)/Allocators!H$11)+AN$14*(_xlfn.XLOOKUP($B10,Allocators!$B$7:$B$9,Allocators!N$7:N$9)/Allocators!N$11))/'BBM Costs'!E$13 -> 0.01325835829 | F10: =(AH$14*(_xlfn.XLOOKUP($B10,Allocators!$B$7:$B$9,Allocators!I$7:I$9)/Allocators!I$11)+AO$14*(_xlfn.XLOOKUP($B10,Allocators!$B$7:$B$9,Allocators!O$7:O$9)/Allocators!O$11))/'BBM Costs'!F$13 -> 0.01293337612 | G10: =(AI$14*(_xlfn.XLOOKUP($B10,Allocators!$B$7:$B$9,Allocators!J$7:J$9)/Allocators!J$11)+AP$14*(_xlfn.XLOOKUP($B10,Allocators!$B$7:$B$9,Allocators!P$7:P$9)/Allocators!P$11))/'BBM Costs'!G$13 -> 0.01295542547 | I10: CAC | J10: =((X$14+(Q$14*_xlfn.XLOOKUP($I10,'Control panel'!$B$7:$B$9,'Control panel'!$C$7:$C$9)))/'BBM Costs'!C$13)+C10 -> 0.3645149898 | K10: =((Y$14+(R$14*_xlfn.XLOOKUP($I10,'Control panel'!$B$7:$B$9,'Control panel'!$C$7:$C$9)))/'BBM Costs'!D$13)+D10 -> 0.3568553798 | L10: =((Z$14+(S$14*_xlfn.XLOOKUP($I10,'Control panel'!$B$7:$B$9,'Control panel'!$C$7:$C$9)))/'BBM Costs'!E$13)+E10 -> 0.3562375396 | M10: =((AA$14+(T$14*_xlfn.XLOOKUP($I10,'Control panel'!$B$7:$B$9,'Control panel'!$C$7:$C$9)))/'BBM Costs'!F$13)+F10 -> 0.3744707703 | N10: =((AB$14+(U$14*_xlfn.XLOOKUP($I10,'Control panel'!$B$7:$B$9,'Control panel'!$C$7:$C$9)))/'BBM Costs'!G$13)+G10 -> 0.3781890269 | P10: Return on | Q10: =SUMPRODUCT('BBM Costs'!X$7:X$37,'Control panel'!$U$7:$U$37,--('Control panel'!$X$7:$X$37=Outputs!$P$6)) -> 714.8475394 | R10: =SUMPRODUCT('BBM Costs'!Y$7:Y$37,'Control panel'!$U$7:$U$37,--('Control panel'!$X$7:$X$37=Outputs!$P$6)) -> 780.1729917 | S10: =SUMPRODUCT('BBM Costs'!Z$7:Z$37,'Control panel'!$U$7:$U$37,--('Control panel'!$X$7:$X$37=Outputs!$P$6)) -> 846.9551807 | T10: =SUMPRODUCT('BBM Costs'!AA$7:AA$37,'Control panel'!$U$7:$U$37,--('Control panel'!$X$7:$X$37=Outputs!$P$6)) -> 889.3556455 | U10: =SUMPRODUCT('BBM Costs'!AB$7:AB$37,'Control panel'!$U$7:$U$37,--('Control panel'!$X$7:$X$37=Outputs!$P$6)) -> 961.3221679 | W10: Return on | X10: =SUMPRODUCT('BBM Costs'!X$7:X$37,'Control panel'!$U$7:$U$37,--('Control panel'!$X$7:$X$37=$W$6)) -> 0 | Y10: =SUMPRODUCT('BBM Costs'!Y$7:Y$37,'Control panel'!$U$7:$U$37,--('Control panel'!$X$7:$X$37=$W$6)) -> 0 | Z10: =SUMPRODUCT('BBM Costs'!Z$7:Z$37,'Control panel'!$U$7:$U$37,--('Control panel'!$X$7:$X$37=$W$6)) -> 0 | AA10: =SUMPRODUCT('BBM Costs'!AA$7:AA$37,'Control panel'!$U$7:$U$37,--('Control panel'!$X$7:$X$37=$W$6)) -> 0 | AB10: =SUMPRODUCT('BBM Costs'!AB$7:AB$37,'Control panel'!$U$7:$U$37,--('Control panel'!$X$7:$X$37=$W$6)) -> 0 | AD10: Asset related | AE10: ='Avoidable costs'!Q29 -> 74.303133 | AF10: ='Avoidable costs'!R29 -> 77.22108623 | AG10: ='Avoidable costs'!S29 -> 79.99083949 | AH10: ='Avoidable costs'!T29 -> 81.28385858 | AI10: ='Avoidable costs'!U29 -> 84.51207045
B11: SAC | C11: =(AE$14*(_xlfn.XLOOKUP($B11,Allocators!$B$7:$B$9,Allocators!F$7:F$9)/Allocators!F$11)+AL$14*(_xlfn.XLOOKUP($B11,Allocators!$B$7:$B$9,Allocators!L$7:L$9)/Allocators!L$11))/'BBM Costs'!C$13 -> 0.171957751 | D11: =(AF$14*(_xlfn.XLOOKUP($B11,Allocators!$B$7:$B$9,Allocators!G$7:G$9)/Allocators!G$11)+AM$14*(_xlfn.XLOOKUP($B11,Allocators!$B$7:$B$9,Allocators!M$7:M$9)/Allocators!M$11))/'BBM Costs'!D$13 -> 0.1682222929 | E11: =(AG$14*(_xlfn.XLOOKUP($B11,Allocators!$B$7:$B$9,Allocators!H$7:H$9)/Allocators!H$11)+AN$14*(_xlfn.XLOOKUP($B11,Allocators!$B$7:$B$9,Allocators!N$7:N$9)/Allocators!N$11))/'BBM Costs'!E$13 -> 0.1650041837 | F11: =(AH$14*(_xlfn.XLOOKUP($B11,Allocators!$B$7:$B$9,Allocators!I$7:I$9)/Allocators!I$11)+AO$14*(_xlfn.XLOOKUP($B11,Allocators!$B$7:$B$9,Allocators!O$7:O$9)/Allocators!O$11))/'BBM Costs'!F$13 -> 0.1581422876 | G11: =(AI$14*(_xlfn.XLOOKUP($B11,Allocators!$B$7:$B$9,Allocators!J$7:J$9)/Allocators!J$11)+AP$14*(_xlfn.XLOOKUP($B11,Allocators!$B$7:$B$9,Allocators!P$7:P$9)/Allocators!P$11))/'BBM Costs'!G$13 -> 0.1554189311 | I11: SAC | J11: =((X$14+(Q$14*_xlfn.XLOOKUP($I11,'Control panel'!$B$7:$B$9,'Control panel'!$C$7:$C$9)))/'BBM Costs'!C$13)+C11 -> 0.899683437 | K11: =((Y$14+(R$14*_xlfn.XLOOKUP($I11,'Control panel'!$B$7:$B$9,'Control panel'!$C$7:$C$9)))/'BBM Costs'!D$13)+D11 -> 0.882337914 | L11: =((Z$14+(S$14*_xlfn.XLOOKUP($I11,'Control panel'!$B$7:$B$9,'Control panel'!$C$7:$C$9)))/'BBM Costs'!E$13)+E11 -> 0.8734036758 | M11: =((AA$14+(T$14*_xlfn.XLOOKUP($I11,'Control panel'!$B$7:$B$9,'Control panel'!$C$7:$C$9)))/'BBM Costs'!F$13)+F11 -> 0.8731294377 | N11: =((AB$14+(U$14*_xlfn.XLOOKUP($I11,'Control panel'!$B$7:$B$9,'Control panel'!$C$7:$C$9)))/'BBM Costs'!G$13)+G11 -> 0.8664681727 | P11: Return of | Q11: =SUMPRODUCT('BBM Costs'!Q$7:Q$37,'Control panel'!$N$7:$N$37,--('Control panel'!$Q$7:$Q$37=Outputs!$P$6)) -> 202.4806418 | R11: =SUMPRODUCT('BBM Costs'!R$7:R$37,'Control panel'!$N$7:$N$37,--('Control panel'!$Q$7:$Q$37=Outputs!$P$6)) -> 201.648628 | S11: =SUMPRODUCT('BBM Costs'!S$7:S$37,'Control panel'!$N$7:$N$37,--('Control panel'!$Q$7:$Q$37=Outputs!$P$6)) -> 207.8344937 | T11: =SUMPRODUCT('BBM Costs'!T$7:T$37,'Control panel'!$N$7:$N$37,--('Control panel'!$Q$7:$Q$37=Outputs!$P$6)) -> 221.443479 | U11: =SUMPRODUCT('BBM Costs'!U$7:U$37,'Control panel'!$N$7:$N$37,--('Control panel'!$Q$7:$Q$37=Outputs!$P$6)) -> 217.6403562 | W11: Return of | X11: =SUMPRODUCT('BBM Costs'!Q$7:Q$37,'Control panel'!$N$7:$N$37,--('Control panel'!$Q$7:$Q$37=$W$6)) -> 0 | Y11: =SUMPRODUCT('BBM Costs'!R$7:R$37,'Control panel'!$N$7:$N$37,--('Control panel'!$Q$7:$Q$37=$W$6)) -> 0 | Z11: =SUMPRODUCT('BBM Costs'!S$7:S$37,'Control panel'!$N$7:$N$37,--('Control panel'!$Q$7:$Q$37=$W$6)) -> 0 | AA11: =SUMPRODUCT('BBM Costs'!T$7:T$37,'Control panel'!$N$7:$N$37,--('Control panel'!$Q$7:$Q$37=$W$6)) -> 0 | AB11: =SUMPRODUCT('BBM Costs'!U$7:U$37,'Control panel'!$N$7:$N$37,--('Control panel'!$Q$7:$Q$37=$W$6)) -> 0
P14: Total | Q14: =SUM(Q9:Q11) -> 1227.729578 | R14: =SUM(R9:R11) -> 1304.387784 | S14: 1388.909848 | T14: 1450.339258 | U14: 1531.958813 | W14: Total | X14: =SUM(X9:X11) -> -159.8051796 | Y14: =SUM(Y9:Y11) -> -173.025023 | Z14: -177.2739568 | AA14: -130.0999258 | AB14: -114.4862884 | AD14: Total | AE14: =SUM(AE9:AE11) -> 126.703092 | AF14: =SUM(AF9:AF11) -> 131.6788404 | AG14: 136.4018754 | AH14: 138.6067558 | AI14: 144.111563 | AK14: Total | AL14: =SUM(AL9:AL11) -> 203.8237854 | AM14: =SUM(AM9:AM11) -> 219.038076 | AN14: 236.8713036 | AO14: 249.3001937 | AP14: 269.4219369

Sheet Avoidable costs
B2: Avoidable costs
B4: Customer related costs | W4: Energy related costs
B6: Total costs | I6: Operational expenditure | P6: Asset related costs | W6: Energy related costs | AE6: Matching | AZ6: Asset values
B8: Category | C8: 2025-26 | D8: 2026-27 | E8: 2027-28 | F8: 2028-29 | G8: 2029-30 | I8: Category | J8: 2025-26 | K8: 2026-27 | L8: 2027-28 | M8: 2028-29 | N8: 2029-30 | P8: Category | Q8: 2025-26 | R8: 2026-27 | S8: 2027-28 | T8: 2028-29 | U8: 2029-30 | W8: Year | X8: Category | Y8: Asset related helper column | Z8: Opex | AA8: Return of capex | AB8: Return on capex | AC8: Total | AE8: Category | AF8: =$B$9 -> Preventative Maintenance | AG8: =$B$10 -> Corrective Maintenance | AH8: =$B$11 -> Forced Maintenance | AI8: =$B$12 -> Vegetation Management | AJ8: =$B$13 -> Other Network Maintenance | AK8: =$B$14 -> Network Operating Costs | AL8: =$B$15 -> Meter Reading | AM8: =$B$16 -> Customer Service (incl Call Centre) | AN8: =$B$17 -> Other Operating Costs | AO8: =$B$18 -> Training | AP8: =$B$19 -> Debt raising costs | AQ8: =$B$20 -> Non-network Alternatives | AR8: =$B$21 -> Corporate Restructuring | AS8: =$B$22 -> Corporate Allocations | AT8: EBSS | AU8: CESS | AV8: Control period carryover | AW8: Shared asset decrements | AX8: DMIA | AZ8: Year | BA8: =$B$9 -> Preventative Maintenance | BB8: =$B$10 -> Corrective Maintenance | BC8: =$B$11 -> Forced Maintenance | BD8: =$B$12 -> Vegetation Management | BE8: =$B$13 -> Other Network Maintenance | BF8: =$B$14 -> Network Operating Costs | BG8: =$B$15 -> Meter Reading | BH8: =$B$16 -> Customer Service (incl Call Centre) | BI8: =$B$17 -> Other Operating Costs | BJ8: =$B$18 -> Training | BK8: =$B$19 -> Debt raising costs | BL8: =$B$20 -> Non-network Alternatives | BM8: =$B$21 -> Corporate Restructuring | BN8: =$B$22 -> Corporate Allocations | BO8: EBSS | BP8: CESS | BQ8: Control period carryover | BR8: Shared asset decrements | BS8: DMIA
B9: ='Opex costs'!B7 -> Preventative Maintenance | C9: =_xlfn.XLOOKUP($B9,'BBM Costs'!$I$7:$I$25,'BBM Costs'!J$7:J$25)*_xlfn.XLOOKUP($B9,'Control panel'!$E$7:$E$25,'Control panel'!$F$7:$F$25) -> 44.73889333 | D9: =_xlfn.XLOOKUP($B9,'BBM Costs'!$I$7:$I$25,'BBM Costs'!K$7:K$25)*_xlfn.XLOOKUP($B9,'Control panel'!$E$7:$E$25,'Control panel'!$F$7:$F$25) -> 46.49583134 | E9: =_xlfn.XLOOKUP($B9,'BBM Costs'!$I$7:$I$25,'BBM Costs'!L$7:L$25)*_xlfn.XLOOKUP($B9,'Control panel'!$E$7:$E$25,'Control panel'!$F$7:$F$25) -> 48.16353619 | F9: =_xlfn.XLOOKUP($B9,'BBM Costs'!$I$7:$I$25,'BBM Costs'!M$7:M$25)*_xlfn.XLOOKUP($B9,'Control panel'!$E$7:$E$25,'Control panel'!$F$7:$F$25) -> 48.94207999 | G9: =_xlfn.XLOOKUP($B9,'BBM Costs'!$I$7:$I$25,'BBM Costs'!N$7:N$25)*_xlfn.XLOOKUP($B9,'Control panel'!$E$7:$E$25,'Control panel'!$F$7:$F$25) -> 50.8858288 | I9: =B9 -> Preventative Maintenance | J9: =C9*_xlfn.XLOOKUP($I9,'Control panel'!$E$7:$E$25,'Control panel'!$H$7:$H$25) -> 19.23772413 | K9: =D9*_xlfn.XLOOKUP($I9,'Control panel'!$E$7:$E$25,'Control panel'!$H$7:$H$25) -> 19.99320748 | L9: =E9*_xlfn.XLOOKUP($I9,'Control panel'!$E$7:$E$25,'Control panel'!$H$7:$H$25) -> 20.71032056 | M9: =F9*_xlfn.XLOOKUP($I9,'Control panel'!$E$7:$E$25,'Control panel'!$H$7:$H$25) -> 21.04509439 | N9: =G9*_xlfn.XLOOKUP($I9,'Control panel'!$E$7:$E$25,'Control panel'!$H$7:$H$25) -> 21.88090638 | P9: =B9 -> Preventative Maintenance | Q9: =C9*_xlfn.XLOOKUP($P9,'Control panel'!$E$7:$E$25,'Control panel'!$I$7:$I$25) -> 25.5011692 | R9: =D9*_xlfn.XLOOKUP($P9,'Control panel'!$E$7:$E$25,'Control panel'!$I$7:$I$25) -> 26.50262386 | S9: =E9*_xlfn.XLOOKUP($P9,'Control panel'!$E$7:$E$25,'Control panel'!$I$7:$I$25) -> 27.45321563 | T9: =F9*_xlfn.XLOOKUP($P9,'Control panel'!$E$7:$E$25,'Control panel'!$I$7:$I$25) -> 27.89698559 | U9: =G9*_xlfn.XLOOKUP($P9,'Control panel'!$E$7:$E$25,'Control panel'!$I$7:$I$25) -> 29.00492241 | W9: 2025-26 | X9: ='PTRM Data'!B7 -> Overhead Sub-Transmission Lines | Y9: =_xlfn.XLOOKUP(X9,'Control panel'!$L$7:$L$37,'Control panel'!$P$7:$P$37) -> 1 | Z9: =SUMPRODUCT(_xlfn.XLOOKUP(W9,$AZ$9:$AZ$13,$BA$9:$BS$13),_xlfn.XLOOKUP(X9,$AE$9:$AE$39,$AF$9:$AX$39)) -> 7.774586995 | AA9: =_xlfn.XLOOKUP(W9,'BBM Costs'!$Q$6:$U$6,_xlfn.XLOOKUP(X9,'BBM Costs'!$P$7:$P$37,'BBM Costs'!$Q$7:$U$37))*_xlfn.XLOOKUP(X9,'Control panel'!$L$7:$L$37,'Control panel'!$M$7:$M$37) -> 0 | AB9: =_xlfn.XLOOKUP(W9,'BBM Costs'!$X$6:$AB$6,_xlfn.XLOOKUP(X9,'BBM Costs'!$W$7:$W$37,'BBM Costs'!$X$7:$AB$37))*_xlfn.XLOOKUP(X9,'Control panel'!$S$7:$S$37,'Control panel'!$T$7:$T$37) -> 0 | AC9: =SUM(Z9:AB9) -> 7.774586995 | AE9: ='PTRM Data'!B7 -> Overhead Sub-Transmission Lines | AF9: ='Control panel'!$AA7/SUMPRODUCT('Control panel'!$AA$7:$AA$37,'Control panel'!AB$7:AB$37)*'Control panel'!AB7 -> 0.1053863327 | AG9: ='Control panel'!$AA7/SUMPRODUCT('Control panel'!$AA$7:$AA$37,'Control panel'!AC$7:AC$37)*'Control panel'!AC7 -> 0.106382359 | AH9: ='Control panel'!$AA7/SUMPRODUCT('Control panel'!$AA$7:$AA$37,'Control panel'!AD$7:AD$37)*'Control panel'!AD7 -> 0.1063728022 | AI9: ='Control panel'!$AA7/SUMPRODUCT('Control panel'!$AA$7:$AA$37,'Control panel'!AE$7:AE$37)*'Control panel'!AE7 -> 0.1831968741 | AJ9: ='Control panel'!$AA7/SUMPRODUCT('Control panel'!$AA$7:$AA$37,'Control panel'!AF$7:AF$37)*'Control panel'!AF7 -> 0 | AK9: ='Control panel'!$AA7/SUMPRODUCT('Control panel'!$AA$7:$AA$37,'Control panel'!AG$7:AG$37)*'Control panel'!AG7 -> 0.1064534174 | AL9: ='Control panel'!$AA7/SUMPRODUCT('Control panel'!$AA$7:$AA$37,'Control panel'!AH$7:AH$37)*'Control panel'!AH7 -> 0 | AM9: ='Control panel'!$AA7/SUMPRODUCT('Control panel'!$AA$7:$AA$37,'Control panel'!AI$7:AI$37)*'Control panel'!AI7 -> 0.09598162753 | AN9: ='Control panel'!$AA7/SUMPRODUCT('Control panel'!$AA$7:$AA$37,'Control panel'!AJ$7:AJ$37)*'Control panel'!AJ7 -> 0.1061772987 | AO9: ='Control panel'!$AA7/SUMPRODUCT('Control panel'!$AA$7:$AA$37,'Control panel'!AK$7:AK$37)*'Control panel'!AK7 -> 0.1053166912 | AP9: ='Control panel'!$AA7/SUMPRODUCT('Control panel'!$AA$7:$AA$37,'Control panel'!AL$7:AL$37)*'Control panel'!AL7 -> 0.09598162753 | AQ9: ='Control panel'!$AA7/SUMPRODUCT('Control panel'!$AA$7:$AA$37,'Control panel'!AM$7:AM$37)*'Control panel'!AM7 -> 0 | AR9: ='Control panel'!$AA7/SUMPRODUCT('Control panel'!$AA$7:$AA$37,'Control panel'!AN$7:AN$37)*'Control panel'!AN7 -> 0.1061772987 | AS9: ='Control panel'!$AA7/SUMPRODUCT('Control panel'!$AA$7:$AA$37,'Control panel'!AO$7:AO$37)*'Control panel'!AO7 -> 0.1061772987 | AT9: ='Control panel'!$AA7/SUMPRODUCT('Control panel'!$AA$7:$AA$37,'Control panel'!AP$7:AP$37)*'Control panel'!AP7 -> 0.09598162753 | AU9: ='Control panel'!$AA7/SUMPRODUCT('Control panel'!$AA$7:$AA$37,'Control panel'!AQ$7:AQ$37)*'Control panel'!AQ7 -> 0.09598162753 | AV9: ='Control panel'!$AA7/SUMPRODUCT('Control panel'!$AA$7:$AA$37,'Control panel'!AR$7:AR$37)*'Control panel'!AR7 -> 0.09598162753 | AW9: ='Control panel'!$AA7/SUMPRODUCT('Control panel'!$AA$7:$AA$37,'Control panel'!AS$7:AS$37)*'Control panel'!AS7 -> 0.09598162753 | AX9: ='Control panel'!$AA7/SUMPRODUCT('Control panel'!$AA$7:$AA$37,'Control panel'!AT$7:AT$37)*'Control panel'!AT7 -> 0.09598162753 | AZ9: 2025-26 | BA9: =_xlfn.XLOOKUP($AZ9,$Q$8:$U$8,_xlfn.XLOOKUP(BA$8,$P$9:$P$27,$Q$9:$U$27)) -> 25.5011692 | BB9: =_xlfn.XLOOKUP($AZ9,$Q$8:$U$8,_xlfn.XLOOKUP(BB$8,$P$9:$P$27,$Q$9:$U$27)) -> 13.77784674 | BC9: =_xlfn.XLOOKUP($AZ9,$Q$8:$U$8,_xlfn.XLOOKUP(BC$8,$P$9:$P$27,$Q$9:$U$27)) -> 0 | BD9: =_xlfn.XLOOKUP($AZ9,$Q$8:$U$8,_xlfn.XLOOKUP(BD$8,$P$9:$P$27,$Q$9:$U$27)) -> 0 | BE9: =_xlfn.XLOOKUP($AZ9,$Q$8:$U$8,_xlfn.XLOOKUP(BE$8,$P$9:$P$27,$Q$9:$U$27)) -> 0 | BF9: =_xlfn.XLOOKUP($AZ9,$Q$8:$U$8,_xlfn.XLOOKUP(BF$8,$P$9:$P$27,$Q$9:$U$27)) -> 0 | BG9: =_xlfn.XLOOKUP($AZ9,$Q$8:$U$8,_xlfn.XLOOKUP(BG$8,$P$9:$P$27,$Q$9:$U$27)) -> 0 | BH9: =_xlfn.XLOOKUP($AZ9,$Q$8:$U$8,_xlfn.XLOOKUP(BH$8,$P$9:$P$27,$Q$9:$U$27)) -> 0 | BI9: =_xlfn.XLOOKUP($AZ9,$Q$8:$U$8,_xlfn.XLOOKUP(BI$8,$P$9:$P$27,$Q$9:$U$27)) -> 25.50032897 | BJ9: =_xlfn.XLOOKUP($AZ9,$Q$8:$U$8,_xlfn.XLOOKUP(BJ$8,$P$9:$P$27,$Q$9:$U$27)) -> 8.677033041 | BK9: =_xlfn.XLOOKUP($AZ9,$Q$8:$U$8,_xlfn.XLOOKUP(BK$8,$P$9:$P$27,$Q$9:$U$27)) -> 0 | BL9: =_xlfn.XLOOKUP($AZ9,$Q$8:$U$8,_xlfn.XLOOKUP(BL$8,$P$9:$P$27,$Q$9:$U$27)) -> 0.846755055 | BM9: =_xlfn.XLOOKUP($AZ9,$Q$8:$U$8,_xlfn.XLOOKUP(BM$8,$P$9:$P$27,$Q$9:$U$27)) -> 0 | BN9: =_xlfn.XLOOKUP($AZ9,$Q$8:$U$8,_xlfn.XLOOKUP(BN$8,$P$9:$P$27,$Q$9:$U$27)) -> 0 | BO9: =_xlfn.XLOOKUP($AZ9,$Q$8:$U$8,_xlfn.XLOOKUP(BO$8,$P$9:$P$27,$Q$9:$U$27)) -> 0 | BP9: =_xlfn.XLOOKUP($AZ9,$Q$8:$U$8,_xlfn.XLOOKUP(BP$8,$P$9:$P$27,$Q$9:$U$27)) -> 0 | BQ9: =_xlfn.XLOOKUP($AZ9,$Q$8:$U$8,_xlfn.XLOOKUP(BQ$8,$P$9:$P$27,$Q$9:$U$27)) -> 0 | BR9: =_xlfn.XLOOKUP($AZ9,$Q$8:$U$8,_xlfn.XLOOKUP(BR$8,$P$9:$P$27,$Q$9:$U$27)) -> 0 | BS9: =_xlfn.XLOOKUP($AZ9,$Q$8:$U$8,_xlfn.XLOOKUP(BS$8,$P$9:$P$27,$Q$9:$U$27)) -> 0
B10: ='Opex costs'!B8 -> Corrective Maintenance | C10: =_xlfn.XLOOKUP($B10,'BBM Costs'!$I$7:$I$25,'BBM Costs'!J$7:J$25)*_xlfn.XLOOKUP($B10,'Control panel'!$E$7:$E$25,'Control panel'!$F$7:$F$25) -> 24.17166095 | D10: =_xlfn.XLOOKUP($B10,'BBM Costs'!$I$7:$I$25,'BBM Costs'!K$7:K$25)*_xlfn.XLOOKUP($B10,'Control panel'!$E$7:$E$25,'Control panel'!$F$7:$F$25) -> 25.12090458 | E10: =_xlfn.XLOOKUP($B10,'BBM Costs'!$I$7:$I$25,'BBM Costs'!L$7:L$25)*_xlfn.XLOOKUP($B10,'Control panel'!$E$7:$E$25,'Control panel'!$F$7:$F$25) -> 26.02193707 | F10: =_xlfn.XLOOKUP($B10,'BBM Costs'!$I$7:$I$25,'BBM Costs'!M$7:M$25)*_xlfn.XLOOKUP($B10,'Control panel'!$E$7:$E$25,'Control panel'!$F$7:$F$25) -> 26.442571 | G10: =_xlfn.XLOOKUP($B10,'BBM Costs'!$I$7:$I$25,'BBM Costs'!N$7:N$25)*_xlfn.XLOOKUP($B10,'Control panel'!$E$7:$E$25,'Control panel'!$F$7:$F$25) -> 27.49274533 | I10: =B10 -> Corrective Maintenance | J10: =C10*_xlfn.XLOOKUP($I10,'Control panel'!$E$7:$E$25,'Control panel'!$H$7:$H$25) -> 10.39381421 | K10: =D10*_xlfn.XLOOKUP($I10,'Control panel'!$E$7:$E$25,'Control panel'!$H$7:$H$25) -> 10.80198897 | L10: =E10*_xlfn.XLOOKUP($I10,'Control panel'!$E$7:$E$25,'Control panel'!$H$7:$H$25) -> 11.18943294 | M10: =F10*_xlfn.XLOOKUP($I10,'Control panel'!$E$7:$E$25,'Control panel'!$H$7:$H$25) -> 11.37030553 | N10: =G10*_xlfn.XLOOKUP($I10,'Control panel'!$E$7:$E$25,'Control panel'!$H$7:$H$25) -> 11.82188049 | P10: =B10 -> Corrective Maintenance | Q10: =C10*_xlfn.XLOOKUP($P10,'Control panel'!$E$7:$E$25,'Control panel'!$I$7:$I$25) -> 13.77784674 | R10: =D10*_xlfn.XLOOKUP($P10,'Control panel'!$E$7:$E$25,'Control panel'!$I$7:$I$25) -> 14.31891561 | S10: =E10*_xlfn.XLOOKUP($P10,'Control panel'!$E$7:$E$25,'Control panel'!$I$7:$I$25) -> 14.83250413 | T10: =F10*_xlfn.XLOOKUP($P10,'Control panel'!$E$7:$E$25,'Control panel'!$I$7:$I$25) -> 15.07226547 | U10: =G10*_xlfn.XLOOKUP($P10,'Control panel'!$E$7:$E$25,'Control panel'!$I$7:$I$25) -> 15.67086484 | W10: 2025-26 | X10: ='PTRM Data'!B8 -> Underground Sub-Transmission Cables | Y10: =_xlfn.XLOOKUP(X10,'Control panel'!$L$7:$L$37,'Control panel'!$P$7:$P$37) -> 1 | Z10: =SUMPRODUCT(_xlfn.XLOOKUP(W10,$AZ$9:$AZ$13,$BA$9:$BS$13),_xlfn.XLOOKUP(X10,$AE$9:$AE$39,$AF$9:$AX$39)) -> 0.3427975738 | AA10: =_xlfn.XLOOKUP(W10,'BBM Costs'!$Q$6:$U$6,_xlfn.XLOOKUP(X10,'BBM Costs'!$P$7:$P$37,'BBM Costs'!$Q$7:$U$37))*_xlfn.XLOOKUP(X10,'Control panel'!$L$7:$L$37,'Control panel'!$M$7:$M$37) -> 0 | AB10: =_xlfn.XLOOKUP(W10,'BBM Costs'!$X$6:$AB$6,_xlfn.XLOOKUP(X10,'BBM Costs'!$W$7:$W$37,'BBM Costs'!$X$7:$AB$37))*_xlfn.XLOOKUP(X10,'Control panel'!$S$7:$S$37,'Control panel'!$T$7:$T$37) -> 0 | AC10: =SUM(Z10:AB10) -> 0.3427975738 | AE10: ='PTRM Data'!B8 -> Underground Sub-Transmission Cables | AF10: ='Control panel'!$AA8/SUMPRODUCT('Control panel'!$AA$7:$AA$37,'Control panel'!AB$7:AB$37)*'Control panel'!AB8 -> 0.004646700743 | AG10: ='Control panel'!$AA8/SUMPRODUCT('Control panel'!$AA$7:$AA$37,'Control panel'!AC$7:AC$37)*'Control panel'!AC8 -> 0.004690617594 | AH10: ='Control panel'!$AA8/SUMPRODUCT('Control panel'!$AA$7:$AA$37,'Control panel'!AD$7:AD$37)*'Control panel'!AD8 -> 0.004690196216 | AI10: ='Control panel'!$AA8/SUMPRODUCT('Control panel'!$AA$7:$AA$37,'Control panel'!AE$7:AE$37)*'Control panel'!AE8 -> 0 | AJ10: ='Control panel'!$AA8/SUMPRODUCT('Control panel'!$AA$7:$AA$37,'Control panel'!AF$7:AF$37)*'Control panel'!AF8 -> 0 | AK10: ='Control panel'!$AA8/SUMPRODUCT('Control panel'!$AA$7:$AA$37,'Control panel'!AG$7:AG$37)*'Control panel'!AG8 -> 0.004693750708 | AL10: ='Control panel'!$AA8/SUMPRODUCT('Control panel'!$AA$7:$AA$37,'Control panel'!AH$7:AH$37)*'Control panel'!AH8 -> 0 | AM10: ='Control panel'!$AA8/SUMPRODUCT('Control panel'!$AA$7:$AA$37,'Control panel'!AI$7:AI$37)*'Control panel'!AI8 -> 0.004232027897 | AN10: ='Control panel'!$AA8/SUMPRODUCT('Control panel'!$AA$7:$AA$37,'Control panel'!AJ$7:AJ$37)*'Control panel'!AJ8 -> 0.004681576066 | AO10: ='Control panel'!$AA8/SUMPRODUCT('Control panel'!$AA$7:$AA$37,'Control panel'!AK$7:AK$37)*'Control panel'!AK8 -> 0.004643630107 | AP10: ='Control panel'!$AA8/SUMPRODUCT('Control panel'!$AA$7:$AA$37,'Control panel'!AL$7:AL$37)*'Control panel'!AL8 -> 0.004232027897 | AQ10: ='Control panel'!$AA8/SUMPRODUCT('Control panel'!$AA$7:$AA$37,'Control panel'!AM$7:AM$37)*'Control panel'!AM8 -> 0 | AR10: ='Control panel'!$AA8/SUMPRODUCT('Control panel'!$AA$7:$AA$37,'Control panel'!AN$7:AN$37)*'Control panel'!AN8 -> 0.004681576066 | AS10: ='Control panel'!$AA8/SUMPRODUCT('Control panel'!$AA$7:$AA$37,'Control panel'!AO$7:AO$37)*'Control panel'!AO8 -> 0.004681576066 | AT10: ='Control panel'!$AA8/SUMPRODUCT('Control panel'!$AA$7:$AA$37,'Control panel'!AP$7:AP$37)*'Control panel'!AP8 -> 0.004232027897 | AU10: ='Control panel'!$AA8/SUMPRODUCT('Control panel'!$AA$7:$AA$37,'Control panel'!AQ$7:AQ$37)*'Control panel'!AQ8 -> 0.004232027897 | AV10: ='Control panel'!$AA8/SUMPRODUCT('Control panel'!$AA$7:$AA$37,'Control panel'!AR$7:AR$37)*'Control panel'!AR8 -> 0.004232027897 | AW10: ='Control panel'!$AA8/SUMPRODUCT('Control panel'!$AA$7:$AA$37,'Control panel'!AS$7:AS$37)*'Control panel'!AS8 -> 0.004232027897 | AX10: ='Control panel'!$AA8/SUMPRODUCT('Control panel'!$AA$7:$AA$37,'Control panel'!AT$7:AT$37)*'Control panel'!AT8 -> 0.004232027897 | AZ10: 2026-27 | BA10: =_xlfn.XLOOKUP($AZ10,$Q$8:$U$8,_xlfn.XLOOKUP(BA$8,$P$9:$P$27,$Q$9:$U$27)) -> 26.50262386 | BB10: =_xlfn.XLOOKUP($AZ10,$Q$8:$U$8,_xlfn.XLOOKUP(BB$8,$P$9:$P$27,$Q$9:$U$27)) -> 14.31891561 | BC10: =_xlfn.XLOOKUP($AZ10,$Q$8:$U$8,_xlfn.XLOOKUP(BC$8,$P$9:$P$27,$Q$9:$U$27)) -> 0 | BD10: =_xlfn.XLOOKUP($AZ10,$Q$8:$U$8,_xlfn.XLOOKUP(BD$8,$P$9:$P$27,$Q$9:$U$27)) -> 0 | BE10: =_xlfn.XLOOKUP($AZ10,$Q$8:$U$8,_xlfn.XLOOKUP(BE$8,$P$9:$P$27,$Q$9:$U$27)) -> 0 | BF10: =_xlfn.XLOOKUP($AZ10,$Q$8:$U$8,_xlfn.XLOOKUP(BF$8,$P$9:$P$27,$Q$9:$U$27)) -> 0 | BG10: =_xlfn.XLOOKUP($AZ10,$Q$8:$U$8,_xlfn.XLOOKUP(BG$8,$P$9:$P$27,$Q$9:$U$27)) -> 0 | BH10: =_xlfn.XLOOKUP($AZ10,$Q$8:$U$8,_xlfn.XLOOKUP(BH$8,$P$9:$P$27,$Q$9:$U$27)) -> 0 | BI10: =_xlfn.XLOOKUP($AZ10,$Q$8:$U$8,_xlfn.XLOOKUP(BI$8,$P$9:$P$27,$Q$9:$U$27)) -> 26.50175063 | BJ10: =_xlfn.XLOOKUP($AZ10,$Q$8:$U$8,_xlfn.XLOOKUP(BJ$8,$P$9:$P$27,$Q$9:$U$27)) -> 9.017788209 | BK10: =_xlfn.XLOOKUP($AZ10,$Q$8:$U$8,_xlfn.XLOOKUP(BK$8,$P$9:$P$27,$Q$9:$U$27)) -> 0 | BL10: =_xlfn.XLOOKUP($AZ10,$Q$8:$U$8,_xlfn.XLOOKUP(BL$8,$P$9:$P$27,$Q$9:$U$27)) -> 0.8800079146 | BM10: =_xlfn.XLOOKUP($AZ10,$Q$8:$U$8,_xlfn.XLOOKUP(BM$8,$P$9:$P$27,$Q$9:$U$27)) -> 0 | BN10: =_xlfn.XLOOKUP($AZ10,$Q$8:$U$8,_xlfn.XLOOKUP(BN$8,$P$9:$P$27,$Q$9:$U$27)) -> 0 | BO10: =_xlfn.XLOOKUP($AZ10,$Q$8:$U$8,_xlfn.XLOOKUP(BO$8,$P$9:$P$27,$Q$9:$U$27)) -> 0 | BP10: =_xlfn.XLOOKUP($AZ10,$Q$8:$U$8,_xlfn.XLOOKUP(BP$8,$P$9:$P$27,$Q$9:$U$27)) -> 0 | BQ10: =_xlfn.XLOOKUP($AZ10,$Q$8:$U$8,_xlfn.XLOOKUP(BQ$8,$P$9:$P$27,$Q$9:$U$27)) -> 0 | BR10: =_xlfn.XLOOKUP($AZ10,$Q$8:$U$8,_xlfn.XLOOKUP(BR$8,$P$9:$P$27,$Q$9:$U$27)) -> 0 | BS10: =_xlfn.XLOOKUP($AZ10,$Q$8:$U$8,_xlfn.XLOOKUP(BS$8,$P$9:$P$27,$Q$9:$U$27)) -> 0
B11: ='Opex costs'!B9 -> Forced Maintenance | C11: =_xlfn.XLOOKUP($B11,'BBM Costs'!$I$7:$I$25,'BBM Costs'!J$7:J$25)*_xlfn.XLOOKUP($B11,'Control panel'!$E$7:$E$25,'Control panel'!$F$7:$F$25) -> 0 | D11: =_xlfn.XLOOKUP($B11,'BBM Costs'!$I$7:$I$25,'BBM Costs'!K$7:K$25)*_xlfn.XLOOKUP($B11,'Control panel'!$E$7:$E$25,'Control panel'!$F$7:$F$25) -> 0 | E11: =_xlfn.XLOOKUP($B11,'BBM Costs'!$I$7:$I$25,'BBM Costs'!L$7:L$25)*_xlfn.XLOOKUP($B11,'Control panel'!$E$7:$E$25,'Control panel'!$F$7:$F$25) -> 0 | F11: =_xlfn.XLOOKUP($B11,'BBM Costs'!$I$7:$I$25,'BBM Costs'!M$7:M$25)*_xlfn.XLOOKUP($B11,'Control panel'!$E$7:$E$25,'Control panel'!$F$7:$F$25) -> 0 | G11: =_xlfn.XLOOKUP($B11,'BBM Costs'!$I$7:$I$25,'BBM Costs'!N$7:N$25)*_xlfn.XLOOKUP($B11,'Control panel'!$E$7:$E$25,'Control panel'!$F$7:$F$25) -> 0 | I11: Forced Maintenance | J11: =C11*_xlfn.XLOOKUP($I11,'Control panel'!$E$7:$E$25,'Control panel'!$H$7:$H$25) -> 0 | K11: =D11*_xlfn.XLOOKUP($I11,'Control panel'!$E$7:$E$25,'Control panel'!$H$7:$H$25) -> 0 | L11: =E11*_xlfn.XLOOKUP($I11,'Control panel'!$E$7:$E$25,'Control panel'!$H$7:$H$25) -> 0 | M11: =F11*_xlfn.XLOOKUP($I11,'Control panel'!$E$7:$E$25,'Control panel'!$H$7:$H$25) -> 0 | N11: =G11*_xlfn.XLOOKUP($I11,'Control panel'!$E$7:$E$25,'Control panel'!$H$7:$H$25) -> 0 | P11: Forced Maintenance | Q11: =C11*_xlfn.XLOOKUP($P11,'Control panel'!$E$7:$E$25,'Control panel'!$I$7:$I$25) -> 0 | R11: =D11*_xlfn.XLOOKUP($P11,'Control panel'!$E$7:$E$25,'Control panel'!$I$7:$I$25) -> 0 | S11: =E11*_xlfn.XLOOKUP($P11,'Control panel'!$E$7:$E$25,'Control panel'!$I$7:$I$25) -> 0 | T11: =F11*_xlfn.XLOOKUP($P11,'Control panel'!$E$7:$E$25,'Control panel'!$I$7:$I$25) -> 0 | U11: =G11*_xlfn.XLOOKUP($P11,'Control panel'!$E$7:$E$25,'Control panel'!$I$7:$I$25) -> 0 | W11: 2025-26 | X11: ='PTRM Data'!B9 -> Overhead Distribution Lines | Y11: =_xlfn.XLOOKUP(X11,'Control panel'!$L$7:$L$37,'Control panel'!$P$7:$P$37) -> 0.57 | Z11: 31.87567675 | AA11: =_xlfn.XLOOKUP(W11,'BBM Costs'!$Q$6:$U$6,_xlfn.XLOOKUP(X11,'BBM Costs'!$P$7:$P$37,'BBM Costs'!$Q$7:$U$37))*_xlfn.XLOOKUP(X11,'Control panel'!$L$7:$L$37,'Control panel'!$M$7:$M$37) -> 5.876780796 | AB11: =_xlfn.XLOOKUP(W11,'BBM Costs'!$X$6:$AB$6,_xlfn.XLOOKUP(X11,'BBM Costs'!$W$7:$W$37,'BBM Costs'!$X$7:$AB$37))*_xlfn.XLOOKUP(X11,'Control panel'!$S$7:$S$37,'Control panel'!$T$7:$T$37) -> 163.9091954 | AC11: 201.6616529 | AE11: ='PTRM Data'!B9 -> Overhead Distribution Lines | AF11: ='Control panel'!$AA9/SUMPRODUCT('Control panel'!$AA$7:$AA$37,'Control panel'!AB$7:AB$37)*'Control panel'!AB9 -> 0.4320822028 | AG11: ='Control panel'!$AA9/SUMPRODUCT('Control panel'!$AA$7:$AA$37,'Control panel'!AC$7:AC$37)*'Control panel'!AC9 -> 0.4361658938 | AH11: ='Control panel'!$AA9/SUMPRODUCT('Control panel'!$AA$7:$AA$37,'Control panel'!AD$7:AD$37)*'Control panel'!AD9 -> 0.4361267111 | AI11: ='Control panel'!$AA9/SUMPRODUCT('Control panel'!$AA$7:$AA$37,'Control panel'!AE$7:AE$37)*'Control panel'!AE9 -> 0.7511041222 | AJ11: ='Control panel'!$AA9/SUMPRODUCT('Control panel'!$AA$7:$AA$37,'Control panel'!AF$7:AF$37)*'Control panel'!AF9 -> 0 | AK11: ='Control panel'!$AA9/SUMPRODUCT('Control panel'!$AA$7:$AA$37,'Control panel'!AG$7:AG$37)*'Control panel'!AG9 -> 0.4364572322 | AL11: ='Control panel'!$AA9/SUMPRODUCT('Control panel'!$AA$7:$AA$37,'Control panel'!AH$7:AH$37)*'Control panel'!AH9 -> 0 | AM11: ='Control panel'!$AA9/SUMPRODUCT('Control panel'!$AA$7:$AA$37,'Control panel'!AI$7:AI$37)*'Control panel'!AI9 -> 0.3935230688 | AN11: ='Control panel'!$AA9/SUMPRODUCT('Control panel'!$AA$7:$AA$37,'Control panel'!AJ$7:AJ$37)*'Control panel'!AJ9 -> 0.4353251503 | AO11: ='Control panel'!$AA9/SUMPRODUCT('Control panel'!$AA$7:$AA$37,'Control panel'!AK$7:AK$37)*'Control panel'!AK9 -> 0.4317966739 | AP11: ='Control panel'!$AA9/SUMPRODUCT('Control panel'!$AA$7:$AA$37,'Control panel'!AL$7:AL$37)*'Control panel'!AL9 -> 0.3935230688 | AQ11: ='Control panel'!$AA9/SUMPRODUCT('Control panel'!$AA$7:$AA$37,'Control panel'!AM$7:AM$37)*'Control panel'!AM9 -> 0 | AR11: ='Control panel'!$AA9/SUMPRODUCT('Control panel'!$AA$7:$AA$37,'Control panel'!AN$7:AN$37)*'Control panel'!AN9 -> 0.4353251503 | AS11: ='Control panel'!$AA9/SUMPRODUCT('Control panel'!$AA$7:$AA$37,'Control panel'!AO$7:AO$37)*'Control panel'!AO9 -> 0.4353251503 | AT11: ='Control panel'!$AA9/SUMPRODUCT('Control panel'!$AA$7:$AA$37,'Control panel'!AP$7:AP$37)*'Control panel'!AP9 -> 0.3935230688 | AU11: ='Control panel'!$AA9/SUMPRODUCT('Control panel'!$AA$7:$AA$37,'Control panel'!AQ$7:AQ$37)*'Control panel'!AQ9 -> 0.3935230688 | AV11: ='Control panel'!$AA9/SUMPRODUCT('Control panel'!$AA$7:$AA$37,'Control panel'!AR$7:AR$37)*'Control panel'!AR9 -> 0.3935230688 | AW11: ='Control panel'!$AA9/SUMPRODUCT('Control panel'!$AA$7:$AA$37,'Control panel'!AS$7:AS$37)*'Control panel'!AS9 -> 0.3935230688 | AX11: ='Control panel'!$AA9/SUMPRODUCT('Control panel'!$AA$7:$AA$37,'Control panel'!AT$7:AT$37)*'Control panel'!AT9 -> 0.3935230688 | AZ11: 2027-28 | BA11: =_xlfn.XLOOKUP($AZ11,$Q$8:$U$8,_xlfn.XLOOKUP(BA$8,$P$9:$P$27,$Q$9:$U$27)) -> 27.45321563 | BB11: =_xlfn.XLOOKUP($AZ11,$Q$8:$U$8,_xlfn.XLOOKUP(BB$8,$P$9:$P$27,$Q$9:$U$27)) -> 14.83250413 | BC11: =_xlfn.XLOOKUP($AZ11,$Q$8:$U$8,_xlfn.XLOOKUP(BC$8,$P$9:$P$27,$Q$9:$U$27)) -> 0 | BD11: =_xlfn.XLOOKUP($AZ11,$Q$8:$U$8,_xlfn.XLOOKUP(BD$8,$P$9:$P$27,$Q$9:$U$27)) -> 0 | BE11: =_xlfn.XLOOKUP($AZ11,$Q$8:$U$8,_xlfn.XLOOKUP(BE$8,$P$9:$P$27,$Q$9:$U$27)) -> 0 | BF11: =_xlfn.XLOOKUP($AZ11,$Q$8:$U$8,_xlfn.XLOOKUP(BF$8,$P$9:$P$27,$Q$9:$U$27)) -> 0 | BG11: =_xlfn.XLOOKUP($AZ11,$Q$8:$U$8,_xlfn.XLOOKUP(BG$8,$P$9:$P$27,$Q$9:$U$27)) -> 0 | BH11: =_xlfn.XLOOKUP($AZ11,$Q$8:$U$8,_xlfn.XLOOKUP(BH$8,$P$9:$P$27,$Q$9:$U$27)) -> 0 | BI11: =_xlfn.XLOOKUP($AZ11,$Q$8:$U$8,_xlfn.XLOOKUP(BI$8,$P$9:$P$27,$Q$9:$U$27)) -> 27.45231108 | BJ11: =_xlfn.XLOOKUP($AZ11,$Q$8:$U$8,_xlfn.XLOOKUP(BJ$8,$P$9:$P$27,$Q$9:$U$27)) -> 9.341236757 | BK11: =_xlfn.XLOOKUP($AZ11,$Q$8:$U$8,_xlfn.XLOOKUP(BK$8,$P$9:$P$27,$Q$9:$U$27)) -> 0 | BL11: =_xlfn.XLOOKUP($AZ11,$Q$8:$U$8,_xlfn.XLOOKUP(BL$8,$P$9:$P$27,$Q$9:$U$27)) -> 0.9115718941 | BM11: =_xlfn.XLOOKUP($AZ11,$Q$8:$U$8,_xlfn.XLOOKUP(BM$8,$P$9:$P$27,$Q$9:$U$27)) -> 0 | BN11: =_xlfn.XLOOKUP($AZ11,$Q$8:$U$8,_xlfn.XLOOKUP(BN$8,$P$9:$P$27,$Q$9:$U$27)) -> 0 | BO11: =_xlfn.XLOOKUP($AZ11,$Q$8:$U$8,_xlfn.XLOOKUP(BO$8,$P$9:$P$27,$Q$9:$U$27)) -> 0 | BP11: =_xlfn.XLOOKUP($AZ11,$Q$8:$U$8,_xlfn.XLOOKUP(BP$8,$P$9:$P$27,$Q$9:$U$27)) -> 0 | BQ11: =_xlfn.XLOOKUP($AZ11,$Q$8:$U$8,_xlfn.XLOOKUP(BQ$8,$P$9:$P$27,$Q$9:$U$27)) -> 0 | BR11: =_xlfn.XLOOKUP($AZ11,$Q$8:$U$8,_xlfn.XLOOKUP(BR$8,$P$9:$P$27,$Q$9:$U$27)) -> 0 | BS11: =_xlfn.XLOOKUP($AZ11,$Q$8:$U$8,_xlfn.XLOOKUP(BS$8,$P$9:$P$27,$Q$9:$U$27)) -> 0
B12: ='Opex costs'!B10 -> Vegetation Management | C12: =_xlfn.XLOOKUP($B12,'BBM Costs'!$I$7:$I$25,'BBM Costs'!J$7:J$25)*_xlfn.XLOOKUP($B12,'Control panel'!$E$7:$E$25,'Control panel'!$F$7:$F$25) -> 0 | D12: =_xlfn.XLOOKUP($B12,'BBM Costs'!$I$7:$I$25,'BBM Costs'!K$7:K$25)*_xlfn.XLOOKUP($B12,'Control panel'!$E$7:$E$25,'Control panel'!$F$7:$F$25) -> 0 | E12: =_xlfn.XLOOKUP($B12,'BBM Costs'!$I$7:$I$25,'BBM Costs'!L$7:L$25)*_xlfn.XLOOKUP($B12,'Control panel'!$E$7:$E$25,'Control panel'!$F$7:$F$25) -> 0 | F12: =_xlfn.XLOOKUP($B12,'BBM Costs'!$I$7:$I$25,'BBM Costs'!M$7:M$25)*_xlfn.XLOOKUP($B12,'Control panel'!$E$7:$E$25,'Control panel'!$F$7:$F$25) -> 0 | G12: =_xlfn.XLOOKUP($B12,'BBM Costs'!$I$7:$I$25,'BBM Costs'!N$7:N$25)*_xlfn.XLOOKUP($B12,'Control panel'!$E$7:$E$25,'Control panel'!$F$7:$F$25) -> 0 | I12: Vegetation Management | J12: =C12*_xlfn.XLOOKUP($I12,'Control panel'!$E$7:$E$25,'Control panel'!$H$7:$H$25) -> 0 | K12: =D12*_xlfn.XLOOKUP($I12,'Control panel'!$E$7:$E$25,'Control panel'!$H$7:$H$25) -> 0 | L12: =E12*_xlfn.XLOOKUP($I12,'Control panel'!$E$7:$E$25,'Control panel'!$H$7:$H$25) -> 0 | M12: =F12*_xlfn.XLOOKUP($I12,'Control panel'!$E$7:$E$25,'Control panel'!$H$7:$H$25) -> 0 | N12: =G12*_xlfn.XLOOKUP($I12,'Control panel'!$E$7:$E$25,'Control panel'!$H$7:$H$25) -> 0 | P12: Vegetation Management | Q12: =C12*_xlfn.XLOOKUP($P12,'Control panel'!$E$7:$E$25,'Control panel'!$I$7:$I$25) -> 0 | R12: =D12*_xlfn.XLOOKUP($P12,'Control panel'!$E$7:$E$25,'Control panel'!$I$7:$I$25) -> 0 | S12: =E12*_xlfn.XLOOKUP($P12,'Control panel'!$E$7:$E$25,'Control panel'!$I$7:$I$25) -> 0 | T12: =F12*_xlfn.XLOOKUP($P12,'Control panel'!$E$7:$E$25,'Control panel'!$I$7:$I$25) -> 0 | U12: =G12*_xlfn.XLOOKUP($P12,'Control panel'!$E$7:$E$25,'Control panel'!$I$7:$I$25) -> 0 | W12: 2025-26 | X12: ='PTRM Data'!B10 -> Underground Distribution Cables | Y12: =_xlfn.XLOOKUP(X12,'Control panel'!$L$7:$L$37,'Control panel'!$P$7:$P$37) -> 0.57 | Z12: 5.63639805 | AA12: =_xlfn.XLOOKUP(W12,'BBM Costs'!$Q$6:$U$6,_xlfn.XLOOKUP(X12,'BBM Costs'!$P$7:$P$37,'BBM Costs'!$Q$7:$U$37))*_xlfn.XLOOKUP(X12,'Control panel'!$L$7:$L$37,'Control panel'!$M$7:$M$37) -> -1.115742874 | AB12: =_xlfn.XLOOKUP(W12,'BBM Costs'!$X$6:$AB$6,_xlfn.XLOOKUP(X12,'BBM Costs'!$W$7:$W$37,'BBM Costs'!$X$7:$AB$37))*_xlfn.XLOOKUP(X12,'Control panel'!$S$7:$S$37,'Control panel'!$T$7:$T$37) -> 28.98314839 | AC12: 33.50380357 | AE12: ='PTRM Data'!B10 -> Underground Distribution Cables | AF12: ='Control panel'!$AA10/SUMPRODUCT('Control panel'!$AA$7:$AA$37,'Control panel'!AB$7:AB$37)*'Control panel'!AB10 -> 0.07640268487 | AG12: ='Control panel'!$AA10/SUMPRODUCT('Control panel'!$AA$7:$AA$37,'Control panel'!AC$7:AC$37)*'Control panel'!AC10 -> 0.07712478116 | AH12: ='Control panel'!$AA10/SUMPRODUCT('Control panel'!$AA$7:$AA$37,'Control panel'!AD$7:AD$37)*'Control panel'!AD10 -> 0.07711785272 | AI12: ='Control panel'!$AA10/SUMPRODUCT('Control panel'!$AA$7:$AA$37,'Control panel'!AE$7:AE$37)*'Control panel'!AE10 -> 0 | AJ12: ='Control panel'!$AA10/SUMPRODUCT('Control panel'!$AA$7:$AA$37,'Control panel'!AF$7:AF$37)*'Control panel'!AF10 -> 0 | AK12: ='Control panel'!$AA10/SUMPRODUCT('Control panel'!$AA$7:$AA$37,'Control panel'!AG$7:AG$37)*'Control panel'!AG10 -> 0.07717629691 | AL12: ='Control panel'!$AA10/SUMPRODUCT('Control panel'!$AA$7:$AA$37,'Control panel'!AH$7:AH$37)*'Control panel'!AH10 -> 0 | AM12: ='Control panel'!$AA10/SUMPRODUCT('Control panel'!$AA$7:$AA$37,'Control panel'!AI$7:AI$37)*'Control panel'!AI10 -> 0.06958448837 | AN12: ='Control panel'!$AA10/SUMPRODUCT('Control panel'!$AA$7:$AA$37,'Control panel'!AJ$7:AJ$37)*'Control panel'!AJ10 -> 0.07697611718 | AO12: ='Control panel'!$AA10/SUMPRODUCT('Control panel'!$AA$7:$AA$37,'Control panel'!AK$7:AK$37)*'Control panel'!AK10 -> 0.07635219639 | AP12: ='Control panel'!$AA10/SUMPRODUCT('Control panel'!$AA$7:$AA$37,'Control panel'!AL$7:AL$37)*'Control panel'!AL10 -> 0.06958448837 | AQ12: ='Control panel'!$AA10/SUMPRODUCT('Control panel'!$AA$7:$AA$37,'Control panel'!AM$7:AM$37)*'Control panel'!AM10 -> 0 | AR12: ='Control panel'!$AA10/SUMPRODUCT('Control panel'!$AA$7:$AA$37,'Control panel'!AN$7:AN$37)*'Control panel'!AN10 -> 0.07697611718 | AS12: ='Control panel'!$AA10/SUMPRODUCT('Control panel'!$AA$7:$AA$37,'Control panel'!AO$7:AO$37)*'Control panel'!AO10 -> 0.07697611718 | AT12: ='Control panel'!$AA10/SUMPRODUCT('Control panel'!$AA$7:$AA$37,'Control panel'!AP$7:AP$37)*'Control panel'!AP10 -> 0.06958448837 | AU12: ='Control panel'!$AA10/SUMPRODUCT('Control panel'!$AA$7:$AA$37,'Control panel'!AQ$7:AQ$37)*'Control panel'!AQ10 -> 0.06958448837 | AV12: ='Control panel'!$AA10/SUMPRODUCT('Control panel'!$AA$7:$AA$37,'Control panel'!AR$7:AR$37)*'Control panel'!AR10 -> 0.06958448837 | AW12: ='Control panel'!$AA10/SUMPRODUCT('Control panel'!$AA$7:$AA$37,'Control panel'!AS$7:AS$37)*'Control panel'!AS10 -> 0.06958448837 | AX12: ='Control panel'!$AA10/SUMPRODUCT('Control panel'!$AA$7:$AA$37,'Control panel'!AT$7:AT$37)*'Control panel'!AT10 -> 0.06958448837 | AZ12: 2028-29 | BA12: =_xlfn.XLOOKUP($AZ12,$Q$8:$U$8,_xlfn.XLOOKUP(BA$8,$P$9:$P$27,$Q$9:$U$27)) -> 27.89698559 | BB12: =_xlfn.XLOOKUP($AZ12,$Q$8:$U$8,_xlfn.XLOOKUP(BB$8,$P$9:$P$27,$Q$9:$U$27)) -> 15.07226547 | BC12: =_xlfn.XLOOKUP($AZ12,$Q$8:$U$8,_xlfn.XLOOKUP(BC$8,$P$9:$P$27,$Q$9:$U$27)) -> 0 | BD12: =_xlfn.XLOOKUP($AZ12,$Q$8:$U$8,_xlfn.XLOOKUP(BD$8,$P$9:$P$27,$Q$9:$U$27)) -> 0 | BE12: =_xlfn.XLOOKUP($AZ12,$Q$8:$U$8,_xlfn.XLOOKUP(BE$8,$P$9:$P$27,$Q$9:$U$27)) -> 0 | BF12: =_xlfn.XLOOKUP($AZ12,$Q$8:$U$8,_xlfn.XLOOKUP(BF$8,$P$9:$P$27,$Q$9:$U$27)) -> 0 | BG12: =_xlfn.XLOOKUP($AZ12,$Q$8:$U$8,_xlfn.XLOOKUP(BG$8,$P$9:$P$27,$Q$9:$U$27)) -> 0 | BH12: =_xlfn.XLOOKUP($AZ12,$Q$8:$U$8,_xlfn.XLOOKUP(BH$8,$P$9:$P$27,$Q$9:$U$27)) -> 0 | BI12: =_xlfn.XLOOKUP($AZ12,$Q$8:$U$8,_xlfn.XLOOKUP(BI$8,$P$9:$P$27,$Q$9:$U$27)) -> 27.89606642 | BJ12: =_xlfn.XLOOKUP($AZ12,$Q$8:$U$8,_xlfn.XLOOKUP(BJ$8,$P$9:$P$27,$Q$9:$U$27)) -> 9.492234015 | BK12: =_xlfn.XLOOKUP($AZ12,$Q$8:$U$8,_xlfn.XLOOKUP(BK$8,$P$9:$P$27,$Q$9:$U$27)) -> 0 | BL12: =_xlfn.XLOOKUP($AZ12,$Q$8:$U$8,_xlfn.XLOOKUP(BL$8,$P$9:$P$27,$Q$9:$U$27)) -> 0.9263070796 | BM12: =_xlfn.XLOOKUP($AZ12,$Q$8:$U$8,_xlfn.XLOOKUP(BM$8,$P$9:$P$27,$Q$9:$U$27)) -> 0 | BN12: =_xlfn.XLOOKUP($AZ12,$Q$8:$U$8,_xlfn.XLOOKUP(BN$8,$P$9:$P$27,$Q$9:$U$27)) -> 0 | BO12: =_xlfn.XLOOKUP($AZ12,$Q$8:$U$8,_xlfn.XLOOKUP(BO$8,$P$9:$P$27,$Q$9:$U$27)) -> 0 | BP12: =_xlfn.XLOOKUP($AZ12,$Q$8:$U$8,_xlfn.XLOOKUP(BP$8,$P$9:$P$27,$Q$9:$U$27)) -> 0 | BQ12: =_xlfn.XLOOKUP($AZ12,$Q$8:$U$8,_xlfn.XLOOKUP(BQ$8,$P$9:$P$27,$Q$9:$U$27)) -> 0 | BR12: =_xlfn.XLOOKUP($AZ12,$Q$8:$U$8,_xlfn.XLOOKUP(BR$8,$P$9:$P$27,$Q$9:$U$27)) -> 0 | BS12: =_xlfn.XLOOKUP($AZ12,$Q$8:$U$8,_xlfn.XLOOKUP(BS$8,$P$9:$P$27,$Q$9:$U$27)) -> 0
B13: ='Opex costs'!B11 -> Other Network Maintenance | C13: =_xlfn.XLOOKUP($B13,'BBM Costs'!$I$7:$I$25,'BBM Costs'!J$7:J$25)*_xlfn.XLOOKUP($B13,'Control panel'!$E$7:$E$25,'Control panel'!$F$7:$F$25) -> 0 | D13: =_xlfn.XLOOKUP($B13,'BBM Costs'!$I$7:$I$25,'BBM Costs'!K$7:K$25)*_xlfn.XLOOKUP($B13,'Control panel'!$E$7:$E$25,'Control panel'!$F$7:$F$25) -> 0 | E13: =_xlfn.XLOOKUP($B13,'BBM Costs'!$I$7:$I$25,'BBM Costs'!L$7:L$25)*_xlfn.XLOOKUP($B13,'Control panel'!$E$7:$E$25,'Control panel'!$F$7:$F$25) -> 0 | F13: =_xlfn.XLOOKUP($B13,'BBM Costs'!$I$7:$I$25,'BBM Costs'!M$7:M$25)*_xlfn.XLOOKUP($B13,'Control panel'!$E$7:$E$25,'Control panel'!$F$7:$F$25) -> 0 | G13: =_xlfn.XLOOKUP($B13,'BBM Costs'!$I$7:$I$25,'BBM Costs'!N$7:N$25)*_xlfn.XLOOKUP($B13,'Control panel'!$E$7:$E$25,'Control panel'!$F$7:$F$25) -> 0 | I13: Other Network Maintenance | J13: =C13*_xlfn.XLOOKUP($I13,'Control panel'!$E$7:$E$25,'Control panel'!$H$7:$H$25) -> 0 | K13: =D13*_xlfn.XLOOKUP($I13,'Control panel'!$E$7:$E$25,'Control panel'!$H$7:$H$25) -> 0 | L13: =E13*_xlfn.XLOOKUP($I13,'Control panel'!$E$7:$E$25,'Control panel'!$H$7:$H$25) -> 0 | M13: =F13*_xlfn.XLOOKUP($I13,'Control panel'!$E$7:$E$25,'Control panel'!$H$7:$H$25) -> 0 | N13: =G13*_xlfn.XLOOKUP($I13,'Control panel'!$E$7:$E$25,'Control panel'!$H$7:$H$25) -> 0 | P13: Other Network Maintenance | Q13: =C13*_xlfn.XLOOKUP($P13,'Control panel'!$E$7:$E$25,'Control panel'!$I$7:$I$25) -> 0 | R13: =D13*_xlfn.XLOOKUP($P13,'Control panel'!$E$7:$E$25,'Control panel'!$I$7:$I$25) -> 0 | S13: =E13*_xlfn.XLOOKUP($P13,'Control panel'!$E$7:$E$25,'Control panel'!$I$7:$I$25) -> 0 | T13: =F13*_xlfn.XLOOKUP($P13,'Control panel'!$E$7:$E$25,'Control panel'!$I$7:$I$25) -> 0 | U13: =G13*_xlfn.XLOOKUP($P13,'Control panel'!$E$7:$E$25,'Control panel'!$I$7:$I$25) -> 0 | W13: 2025-26 | X13: ='PTRM Data'!B11 -> Distribution Equipment | Y13: =_xlfn.XLOOKUP(X13,'Control panel'!$L$7:$L$37,'Control panel'!$P$7:$P$37) -> 0.57 | Z13: 0.1192257796 | AA13: =_xlfn.XLOOKUP(W13,'BBM Costs'!$Q$6:$U$6,_xlfn.XLOOKUP(X13,'BBM Costs'!$P$7:$P$37,'BBM Costs'!$Q$7:$U$37))*_xlfn.XLOOKUP(X13,'Control panel'!$L$7:$L$37,'Control panel'!$M$7:$M$37) -> 0.6223299067 | AB13: =_xlfn.XLOOKUP(W13,'BBM Costs'!$X$6:$AB$6,_xlfn.XLOOKUP(X13,'BBM Costs'!$W$7:$W$37,'BBM Costs'!$X$7:$AB$37))*_xlfn.XLOOKUP(X13,'Control panel'!$S$7:$S$37,'Control panel'!$T$7:$T$37) -> 0.6130756614 | AC13: 1.354631348 | AE13: ='PTRM Data'!B11 -> Distribution Equipment | AF13: ='Control panel'!$AA11/SUMPRODUCT('Control panel'!$AA$7:$AA$37,'Control panel'!AB$7:AB$37)*'Control panel'!AB11 -> 0.001616133138 | AG13: ='Control panel'!$AA11/SUMPRODUCT('Control panel'!$AA$7:$AA$37,'Control panel'!AC$7:AC$37)*'Control panel'!AC11 -> 0.001631407519 | AH13: ='Control panel'!$AA11/SUMPRODUCT('Control panel'!$AA$7:$AA$37,'Control panel'!AD$7:AD$37)*'Control panel'!AD11 -> 0.001631260963 | AI13: ='Control panel'!$AA11/SUMPRODUCT('Control panel'!$AA$7:$AA$37,'Control panel'!AE$7:AE$37)*'Control panel'!AE11 -> 0 | AJ13: ='Control panel'!$AA11/SUMPRODUCT('Control panel'!$AA$7:$AA$37,'Control panel'!AF$7:AF$37)*'Control panel'!AF11 -> 0 | AK13: ='Control panel'!$AA11/SUMPRODUCT('Control panel'!$AA$7:$AA$37,'Control panel'!AG$7:AG$37)*'Control panel'!AG11 -> 0.001632497223 | AL13: ='Control panel'!$AA11/SUMPRODUCT('Control panel'!$AA$7:$AA$37,'Control panel'!AH$7:AH$37)*'Control panel'!AH11 -> 0 | AM13: ='Control panel'!$AA11/SUMPRODUCT('Control panel'!$AA$7:$AA$37,'Control panel'!AI$7:AI$37)*'Control panel'!AI11 -> 0.001471908974 | AN13: ='Control panel'!$AA11/SUMPRODUCT('Control panel'!$AA$7:$AA$37,'Control panel'!AJ$7:AJ$37)*'Control panel'!AJ11 -> 0.001628262855 | AO13: ='Control panel'!$AA11/SUMPRODUCT('Control panel'!$AA$7:$AA$37,'Control panel'!AK$7:AK$37)*'Control panel'!AK11 -> 0.001615065164 | AP13: ='Control panel'!$AA11/SUMPRODUCT('Control panel'!$AA$7:$AA$37,'Control panel'!AL$7:AL$37)*'Control panel'!AL11 -> 0.001471908974 | AQ13: ='Control panel'!$AA11/SUMPRODUCT('Control panel'!$AA$7:$AA$37,'Control panel'!AM$7:AM$37)*'Control panel'!AM11 -> 0 | AR13: ='Control panel'!$AA11/SUMPRODUCT('Control panel'!$AA$7:$AA$37,'Control panel'!AN$7:AN$37)*'Control panel'!AN11 -> 0.001628262855 | AS13: ='Control panel'!$AA11/SUMPRODUCT('Control panel'!$AA$7:$AA$37,'Control panel'!AO$7:AO$37)*'Control panel'!AO11 -> 0.001628262855 | AT13: ='Control panel'!$AA11/SUMPRODUCT('Control panel'!$AA$7:$AA$37,'Control panel'!AP$7:AP$37)*'Control panel'!AP11 -> 0.001471908974 | AU13: ='Control panel'!$AA11/SUMPRODUCT('Control panel'!$AA$7:$AA$37,'Control panel'!AQ$7:AQ$37)*'Control panel'!AQ11 -> 0.001471908974 | AV13: ='Control panel'!$AA11/SUMPRODUCT('Control panel'!$AA$7:$AA$37,'Control panel'!AR$7:AR$37)*'Control panel'!AR11 -> 0.001471908974 | AW13: ='Control panel'!$AA11/SUMPRODUCT('Control panel'!$AA$7:$AA$37,'Control panel'!AS$7:AS$37)*'Control panel'!AS11 -> 0.001471908974 | AX13: ='Control panel'!$AA11/SUMPRODUCT('Control panel'!$AA$7:$AA$37,'Control panel'!AT$7:AT$37)*'Control panel'!AT11 -> 0.001471908974 | AZ13: 2029-30 | BA13: =_xlfn.XLOOKUP($AZ13,$Q$8:$U$8,_xlfn.XLOOKUP(BA$8,$P$9:$P$27,$Q$9:$U$27)) -> 29.00492241 | BB13: =_xlfn.XLOOKUP($AZ13,$Q$8:$U$8,_xlfn.XLOOKUP(BB$8,$P$9:$P$27,$Q$9:$U$27)) -> 15.67086484 | BC13: =_xlfn.XLOOKUP($AZ13,$Q$8:$U$8,_xlfn.XLOOKUP(BC$8,$P$9:$P$27,$Q$9:$U$27)) -> 0 | BD13: =_xlfn.XLOOKUP($AZ13,$Q$8:$U$8,_xlfn.XLOOKUP(BD$8,$P$9:$P$27,$Q$9:$U$27)) -> 0 | BE13: =_xlfn.XLOOKUP($AZ13,$Q$8:$U$8,_xlfn.XLOOKUP(BE$8,$P$9:$P$27,$Q$9:$U$27)) -> 0 | BF13: =_xlfn.XLOOKUP($AZ13,$Q$8:$U$8,_xlfn.XLOOKUP(BF$8,$P$9:$P$27,$Q$9:$U$27)) -> 0 | BG13: =_xlfn.XLOOKUP($AZ13,$Q$8:$U$8,_xlfn.XLOOKUP(BG$8,$P$9:$P$27,$Q$9:$U$27)) -> 0 | BH13: =_xlfn.XLOOKUP($AZ13,$Q$8:$U$8,_xlfn.XLOOKUP(BH$8,$P$9:$P$27,$Q$9:$U$27)) -> 0 | BI13: =_xlfn.XLOOKUP($AZ13,$Q$8:$U$8,_xlfn.XLOOKUP(BI$8,$P$9:$P$27,$Q$9:$U$27)) -> 29.00396674 | BJ13: =_xlfn.XLOOKUP($AZ13,$Q$8:$U$8,_xlfn.XLOOKUP(BJ$8,$P$9:$P$27,$Q$9:$U$27)) -> 9.869220825 | BK13: =_xlfn.XLOOKUP($AZ13,$Q$8:$U$8,_xlfn.XLOOKUP(BK$8,$P$9:$P$27,$Q$9:$U$27)) -> 0 | BL13: =_xlfn.XLOOKUP($AZ13,$Q$8:$U$8,_xlfn.XLOOKUP(BL$8,$P$9:$P$27,$Q$9:$U$27)) -> 0.9630956323 | BM13: =_xlfn.XLOOKUP($AZ13,$Q$8:$U$8,_xlfn.XLOOKUP(BM$8,$P$9:$P$27,$Q$9:$U$27)) -> 0 | BN13: =_xlfn.XLOOKUP($AZ13,$Q$8:$U$8,_xlfn.XLOOKUP(BN$8,$P$9:$P$27,$Q$9:$U$27)) -> 0 | BO13: =_xlfn.XLOOKUP($AZ13,$Q$8:$U$8,_xlfn.XLOOKUP(BO$8,$P$9:$P$27,$Q$9:$U$27)) -> 0 | BP13: =_xlfn.XLOOKUP($AZ13,$Q$8:$U$8,_xlfn.XLOOKUP(BP$8,$P$9:$P$27,$Q$9:$U$27)) -> 0 | BQ13: =_xlfn.XLOOKUP($AZ13,$Q$8:$U$8,_xlfn.XLOOKUP(BQ$8,$P$9:$P$27,$Q$9:$U$27)) -> 0 | BR13: =_xlfn.XLOOKUP($AZ13,$Q$8:$U$8,_xlfn.XLOOKUP(BR$8,$P$9:$P$27,$Q$9:$U$27)) -> 0 | BS13: =_xlfn.XLOOKUP($AZ13,$Q$8:$U$8,_xlfn.XLOOKUP(BS$8,$P$9:$P$27,$Q$9:$U$27)) -> 0
B14: ='Opex costs'!B12 -> Network Operating Costs | C14: =_xlfn.XLOOKUP($B14,'BBM Costs'!$I$7:$I$25,'BBM Costs'!J$7:J$25)*_xlfn.XLOOKUP($B14,'Control panel'!$E$7:$E$25,'Control panel'!$F$7:$F$25) -> 0 | D14: =_xlfn.XLOOKUP($B14,'BBM Costs'!$I$7:$I$25,'BBM Costs'!K$7:K$25)*_xlfn.XLOOKUP($B14,'Control panel'!$E$7:$E$25,'Control panel'!$F$7:$F$25) -> 0 | E14: =_xlfn.XLOOKUP($B14,'BBM Costs'!$I$7:$I$25,'BBM Costs'!L$7:L$25)*_xlfn.XLOOKUP($B14,'Control panel'!$E$7:$E$25,'Control panel'!$F$7:$F$25) -> 0 | F14: =_xlfn.XLOOKUP($B14,'BBM Costs'!$I$7:$I$25,'BBM Costs'!M$7:M$25)*_xlfn.XLOOKUP($B14,'Control panel'!$E$7:$E$25,'Control panel'!$F$7:$F$25) -> 0 | G14: =_xlfn.XLOOKUP($B14,'BBM Costs'!$I$7:$I$25,'BBM Costs'!N$7:N$25)*_xlfn.XLOOKUP($B14,'Control panel'!$E$7:$E$25,'Control panel'!$F$7:$F$25) -> 0 | I14: Network Operating Costs | J14: =C14*_xlfn.XLOOKUP($I14,'Control panel'!$E$7:$E$25,'Control panel'!$H$7:$H$25) -> 0 | K14: =D14*_xlfn.XLOOKUP($I14,'Control panel'!$E$7:$E$25,'Control panel'!$H$7:$H$25) -> 0 | L14: =E14*_xlfn.XLOOKUP($I14,'Control panel'!$E$7:$E$25,'Control panel'!$H$7:$H$25) -> 0 | M14: =F14*_xlfn.XLOOKUP($I14,'Control panel'!$E$7:$E$25,'Control panel'!$H$7:$H$25) -> 0 | N14: =G14*_xlfn.XLOOKUP($I14,'Control panel'!$E$7:$E$25,'Control panel'!$H$7:$H$25) -> 0 | P14: Network Operating Costs | Q14: =C14*_xlfn.XLOOKUP($P14,'Control panel'!$E$7:$E$25,'Control panel'!$I$7:$I$25) -> 0 | R14: =D14*_xlfn.XLOOKUP($P14,'Control panel'!$E$7:$E$25,'Control panel'!$I$7:$I$25) -> 0 | S14: =E14*_xlfn.XLOOKUP($P14,'Control panel'!$E$7:$E$25,'Control panel'!$I$7:$I$25) -> 0 | T14: =F14*_xlfn.XLOOKUP($P14,'Control panel'!$E$7:$E$25,'Control panel'!$I$7:$I$25) -> 0 | U14: =G14*_xlfn.XLOOKUP($P14,'Control panel'!$E$7:$E$25,'Control panel'!$I$7:$I$25) -> 0 | W14: 2025-26 | X14: ='PTRM Data'!B12 -> Substation Bays | Y14: =_xlfn.XLOOKUP(X14,'Control panel'!$L$7:$L$37,'Control panel'!$P$7:$P$37) -> 1 | Z14: 8.67539065 | AA14: =_xlfn.XLOOKUP(W14,'BBM Costs'!$Q$6:$U$6,_xlfn.XLOOKUP(X14,'BBM Costs'!$P$7:$P$37,'BBM Costs'!$Q$7:$U$37))*_xlfn.XLOOKUP(X14,'Control panel'!$L$7:$L$37,'Control panel'!$M$7:$M$37) -> 0 | AB14: =_xlfn.XLOOKUP(W14,'BBM Costs'!$X$6:$AB$6,_xlfn.XLOOKUP(X14,'BBM Costs'!$W$7:$W$37,'BBM Costs'!$X$7:$AB$37))*_xlfn.XLOOKUP(X14,'Control panel'!$S$7:$S$37,'Control panel'!$T$7:$T$37) -> 0 | AC14: 8.67539065 | AE14: ='PTRM Data'!B12 -> Substation Bays | AF14: ='Control panel'!$AA12/SUMPRODUCT('Control panel'!$AA$7:$AA$37,'Control panel'!AB$7:AB$37)*'Control panel'!AB12 -> 0.1175969355 | AG14: ='Control panel'!$AA12/SUMPRODUCT('Control panel'!$AA$7:$AA$37,'Control panel'!AC$7:AC$37)*'Control panel'!AC12 -> 0.1187083665 | AH14: ='Control panel'!$AA12/SUMPRODUCT('Control panel'!$AA$7:$AA$37,'Control panel'!AD$7:AD$37)*'Control panel'!AD12 -> 0.1186977024 | AI14: ='Control panel'!$AA12/SUMPRODUCT('Control panel'!$AA$7:$AA$37,'Control panel'!AE$7:AE$37)*'Control panel'!AE12 -> 0 | AJ14: ='Control panel'!$AA12/SUMPRODUCT('Control panel'!$AA$7:$AA$37,'Control panel'!AF$7:AF$37)*'Control panel'!AF12 -> 0 | AK14: ='Control panel'!$AA12/SUMPRODUCT('Control panel'!$AA$7:$AA$37,'Control panel'!AG$7:AG$37)*'Control panel'!AG12 -> 0.1187876581 | AL14: ='Control panel'!$AA12/SUMPRODUCT('Control panel'!$AA$7:$AA$37,'Control panel'!AH$7:AH$37)*'Control panel'!AH12 -> 0.7232788129 | AM14: ='Control panel'!$AA12/SUMPRODUCT('Control panel'!$AA$7:$AA$37,'Control panel'!AI$7:AI$37)*'Control panel'!AI12 -> 0.1071025528 | AN14: ='Control panel'!$AA12/SUMPRODUCT('Control panel'!$AA$7:$AA$37,'Control panel'!AJ$7:AJ$37)*'Control panel'!AJ12 -> 0.1184795469 | AO14: ='Control panel'!$AA12/SUMPRODUCT('Control panel'!$AA$7:$AA$37,'Control panel'!AK$7:AK$37)*'Control panel'!AK12 -> 0.117519225 | AP14: ='Control panel'!$AA12/SUMPRODUCT('Control panel'!$AA$7:$AA$37,'Control panel'!AL$7:AL$37)*'Control panel'!AL12 -> 0.1071025528 | AQ14: ='Control panel'!$AA12/SUMPRODUCT('Control panel'!$AA$7:$AA$37,'Control panel'!AM$7:AM$37)*'Control panel'!AM12 -> 0 | AR14: ='Control panel'!$AA12/SUMPRODUCT('Control panel'!$AA$7:$AA$37,'Control panel'!AN$7:AN$37)*'Control panel'!AN12 -> 0.1184795469 | AS14: ='Control panel'!$AA12/SUMPRODUCT('Control panel'!$AA$7:$AA$37,'Control panel'!AO$7:AO$37)*'Control panel'!AO12 -> 0.1184795469 | AT14: ='Control panel'!$AA12/SUMPRODUCT('Control panel'!$AA$7:$AA$37,'Control panel'!AP$7:AP$37)*'Control panel'!AP12 -> 0.1071025528 | AU14: ='Control panel'!$AA12/SUMPRODUCT('Control panel'!$AA$7:$AA$37,'Control panel'!AQ$7:AQ$37)*'Control panel'!AQ12 -> 0.1071025528 | AV14: ='Control panel'!$AA12/SUMPRODUCT('Control panel'!$AA$7:$AA$37,'Control panel'!AR$7:AR$37)*'Control panel'!AR12 -> 0.1071025528 | AW14: ='Control panel'!$AA12/SUMPRODUCT('Control panel'!$AA$7:$AA$37,'Control panel'!AS$7:AS$37)*'Control panel'!AS12 -> 0.1071025528 | AX14: ='Control panel'!$AA12/SUMPRODUCT('Control panel'!$AA$7:$AA$37,'Control panel'!AT$7:AT$37)*'Control panel'!AT12 -> 0.1071025528
B15: ='Opex costs'!B13 -> Meter Reading | C15: =_xlfn.XLOOKUP($B15,'BBM Costs'!$I$7:$I$25,'BBM Costs'!J$7:J$25)*_xlfn.XLOOKUP($B15,'Control panel'!$E$7:$E$25,'Control panel'!$F$7:$F$25) -> 0 | D15: =_xlfn.XLOOKUP($B15,'BBM Costs'!$I$7:$I$25,'BBM Costs'!K$7:K$25)*_xlfn.XLOOKUP($B15,'Control panel'!$E$7:$E$25,'Control panel'!$F$7:$F$25) -> 0 | E15: =_xlfn.XLOOKUP($B15,'BBM Costs'!$I$7:$I$25,'BBM Costs'!L$7:L$25)*_xlfn.XLOOKUP($B15,'Control panel'!$E$7:$E$25,'Control panel'!$F$7:$F$25) -> 0 | F15: =_xlfn.XLOOKUP($B15,'BBM Costs'!$I$7:$I$25,'BBM Costs'!M$7:M$25)*_xlfn.XLOOKUP($B15,'Control panel'!$E$7:$E$25,'Control panel'!$F$7:$F$25) -> 0 | G15: =_xlfn.XLOOKUP($B15,'BBM Costs'!$I$7:$I$25,'BBM Costs'!N$7:N$25)*_xlfn.XLOOKUP($B15,'Control panel'!$E$7:$E$25,'Control panel'!$F$7:$F$25) -> 0 | I15: Meter Reading | J15: =C15*_xlfn.XLOOKUP($I15,'Control panel'!$E$7:$E$25,'Control panel'!$H$7:$H$25) -> 0 | K15: =D15*_xlfn.XLOOKUP($I15,'Control panel'!$E$7:$E$25,'Control panel'!$H$7:$H$25) -> 0 | L15: =E15*_xlfn.XLOOKUP($I15,'Control panel'!$E$7:$E$25,'Control panel'!$H$7:$H$25) -> 0 | M15: =F15*_xlfn.XLOOKUP($I15,'Control panel'!$E$7:$E$25,'Control panel'!$H$7:$H$25) -> 0 | N15: =G15*_xlfn.XLOOKUP($I15,'Control panel'!$E$7:$E$25,'Control panel'!$H$7:$H$25) -> 0 | P15: Meter Reading | Q15: =C15*_xlfn.XLOOKUP($P15,'Control panel'!$E$7:$E$25,'Control panel'!$I$7:$I$25) -> 0 | R15: =D15*_xlfn.XLOOKUP($P15,'Control panel'!$E$7:$E$25,'Control panel'!$I$7:$I$25) -> 0 | S15: =E15*_xlfn.XLOOKUP($P15,'Control panel'!$E$7:$E$25,'Control panel'!$I$7:$I$25) -> 0 | T15: =F15*_xlfn.XLOOKUP($P15,'Control panel'!$E$7:$E$25,'Control panel'!$I$7:$I$25) -> 0 | U15: =G15*_xlfn.XLOOKUP($P15,'Control panel'!$E$7:$E$25,'Control panel'!$I$7:$I$25) -> 0 | W15: 2025-26 | X15: ='PTRM Data'!B13 -> Substation Establishment | Y15: =_xlfn.XLOOKUP(X15,'Control panel'!$L$7:$L$37,'Control panel'!$P$7:$P$37) -> 1 | Z15: 2.189814672 | AA15: =_xlfn.XLOOKUP(W15,'BBM Costs'!$Q$6:$U$6,_xlfn.XLOOKUP(X15,'BBM Costs'!$P$7:$P$37,'BBM Costs'!$Q$7:$U$37))*_xlfn.XLOOKUP(X15,'Control panel'!$L$7:$L$37,'Control panel'!$M$7:$M$37) -> 0 | AB15: =_xlfn.XLOOKUP(W15,'BBM Costs'!$X$6:$AB$6,_xlfn.XLOOKUP(X15,'BBM Costs'!$W$7:$W$37,'BBM Costs'!$X$7:$AB$37))*_xlfn.XLOOKUP(X15,'Control panel'!$S$7:$S$37,'Control panel'!$T$7:$T$37) -> 0 | AC15: 2.189814672 | AE15: ='PTRM Data'!B13 -> Substation Establishment | AF15: ='Control panel'!$AA13/SUMPRODUCT('Control panel'!$AA$7:$AA$37,'Control panel'!AB$7:AB$37)*'Control panel'!AB13 -> 0.02968344655 | AG15: ='Control panel'!$AA13/SUMPRODUCT('Control panel'!$AA$7:$AA$37,'Control panel'!AC$7:AC$37)*'Control panel'!AC13 -> 0.02996399045 | AH15: ='Control panel'!$AA13/SUMPRODUCT('Control panel'!$AA$7:$AA$37,'Control panel'!AD$7:AD$37)*'Control panel'!AD13 -> 0.02996129865 | AI15: ='Control panel'!$AA13/SUMPRODUCT('Control panel'!$AA$7:$AA$37,'Control panel'!AE$7:AE$37)*'Control panel'!AE13 -> 0.05159980884 | AJ15: ='Control panel'!$AA13/SUMPRODUCT('Control panel'!$AA$7:$AA$37,'Control panel'!AF$7:AF$37)*'Control panel'!AF13 -> 0 | AK15: ='Control panel'!$AA13/SUMPRODUCT('Control panel'!$AA$7:$AA$37,'Control panel'!AG$7:AG$37)*'Control panel'!AG13 -> 0.02998400499 | AL15: ='Control panel'!$AA13/SUMPRODUCT('Control panel'!$AA$7:$AA$37,'Control panel'!AH$7:AH$37)*'Control panel'!AH13 -> 0 | AM15: ='Control panel'!$AA13/SUMPRODUCT('Control panel'!$AA$7:$AA$37,'Control panel'!AI$7:AI$37)*'Control panel'!AI13 -> 0.02703448766 | AN15: ='Control panel'!$AA13/SUMPRODUCT('Control panel'!$AA$7:$AA$37,'Control panel'!AJ$7:AJ$37)*'Control panel'!AJ13 -> 0.02990623254 | AO15: ='Control panel'!$AA13/SUMPRODUCT('Control panel'!$AA$7:$AA$37,'Control panel'!AK$7:AK$37)*'Control panel'!AK13 -> 0.02966383112 | AP15: ='Control panel'!$AA13/SUMPRODUCT('Control panel'!$AA$7:$AA$37,'Control panel'!AL$7:AL$37)*'Control panel'!AL13 -> 0.02703448766 | AQ15: ='Control panel'!$AA13/SUMPRODUCT('Control panel'!$AA$7:$AA$37,'Control panel'!AM$7:AM$37)*'Control panel'!AM13 -> 0 | AR15: ='Control panel'!$AA13/SUMPRODUCT('Control panel'!$AA$7:$AA$37,'Control panel'!AN$7:AN$37)*'Control panel'!AN13 -> 0.02990623254 | AS15: ='Control panel'!$AA13/SUMPRODUCT('Control panel'!$AA$7:$AA$37,'Control panel'!AO$7:AO$37)*'Control panel'!AO13 -> 0.02990623254 | AT15: ='Control panel'!$AA13/SUMPRODUCT('Control panel'!$AA$7:$AA$37,'Control panel'!AP$7:AP$37)*'Control panel'!AP13 -> 0.02703448766 | AU15: ='Control panel'!$AA13/SUMPRODUCT('Control panel'!$AA$7:$AA$37,'Control panel'!AQ$7:AQ$37)*'Control panel'!AQ13 -> 0.02703448766 | AV15: ='Control panel'!$AA13/SUMPRODUCT('Control panel'!$AA$7:$AA$37,'Control panel'!AR$7:AR$37)*'Control panel'!AR13 -> 0.02703448766 | AW15: ='Control panel'!$AA13/SUMPRODUCT('Control panel'!$AA$7:$AA$37,'Control panel'!AS$7:AS$37)*'Control panel'!AS13 -> 0.02703448766 | AX15: ='Control panel'!$AA13/SUMPRODUCT('Control panel'!$AA$7:$AA$37,'Control panel'!AT$7:AT$37)*'Control panel'!AT13 -> 0.02703448766
B16: ='Opex costs'!B14 -> Customer Service (incl Call Centre) | C16: =_xlfn.XLOOKUP($B16,'BBM Costs'!$I$7:$I$25,'BBM Costs'!J$7:J$25)*_xlfn.XLOOKUP($B16,'Control panel'!$E$7:$E$25,'Control panel'!$F$7:$F$25) -> 12.83556846 | D16: =_xlfn.XLOOKUP($B16,'BBM Costs'!$I$7:$I$25,'BBM Costs'!K$7:K$25)*_xlfn.XLOOKUP($B16,'Control panel'!$E$7:$E$25,'Control panel'!$F$7:$F$25) -> 13.33963319 | E16: =_xlfn.XLOOKUP($B16,'BBM Costs'!$I$7:$I$25,'BBM Costs'!L$7:L$25)*_xlfn.XLOOKUP($B16,'Control panel'!$E$7:$E$25,'Control panel'!$F$7:$F$25) -> 13.81809697 | F16: =_xlfn.XLOOKUP($B16,'BBM Costs'!$I$7:$I$25,'BBM Costs'!M$7:M$25)*_xlfn.XLOOKUP($B16,'Control panel'!$E$7:$E$25,'Control panel'!$F$7:$F$25) -> 14.04146083 | G16: =_xlfn.XLOOKUP($B16,'BBM Costs'!$I$7:$I$25,'BBM Costs'!N$7:N$25)*_xlfn.XLOOKUP($B16,'Control panel'!$E$7:$E$25,'Control panel'!$F$7:$F$25) -> 14.5991215 | I16: Customer Service (incl Call Centre) | J16: =C16*_xlfn.XLOOKUP($I16,'Control panel'!$E$7:$E$25,'Control panel'!$H$7:$H$25) -> 12.83556846 | K16: =D16*_xlfn.XLOOKUP($I16,'Control panel'!$E$7:$E$25,'Control panel'!$H$7:$H$25) -> 13.33963319 | L16: =E16*_xlfn.XLOOKUP($I16,'Control panel'!$E$7:$E$25,'Control panel'!$H$7:$H$25) -> 13.81809697 | M16: =F16*_xlfn.XLOOKUP($I16,'Control panel'!$E$7:$E$25,'Control panel'!$H$7:$H$25) -> 14.04146083 | N16: =G16*_xlfn.XLOOKUP($I16,'Control panel'!$E$7:$E$25,'Control panel'!$H$7:$H$25) -> 14.5991215 | P16: Customer Service (incl Call Centre) | Q16: =C16*_xlfn.XLOOKUP($P16,'Control panel'!$E$7:$E$25,'Control panel'!$I$7:$I$25) -> 0 | R16: =D16*_xlfn.XLOOKUP($P16,'Control panel'!$E$7:$E$25,'Control panel'!$I$7:$I$25) -> 0 | S16: =E16*_xlfn.XLOOKUP($P16,'Control panel'!$E$7:$E$25,'Control panel'!$I$7:$I$25) -> 0 | T16: =F16*_xlfn.XLOOKUP($P16,'Control panel'!$E$7:$E$25,'Control panel'!$I$7:$I$25) -> 0 | U16: =G16*_xlfn.XLOOKUP($P16,'Control panel'!$E$7:$E$25,'Control panel'!$I$7:$I$25) -> 0 | W16: 2025-26 | X16: ='PTRM Data'!B14 -> Distribution Substation Switchgear | Y16: =_xlfn.XLOOKUP(X16,'Control panel'!$L$7:$L$37,'Control panel'!$P$7:$P$37) -> 0.57 | Z16: 3.296237549 | AA16: =_xlfn.XLOOKUP(W16,'BBM Costs'!$Q$6:$U$6,_xlfn.XLOOKUP(X16,'BBM Costs'!$P$7:$P$37,'BBM Costs'!$Q$7:$U$37))*_xlfn.XLOOKUP(X16,'Control panel'!$L$7:$L$37,'Control panel'!$M$7:$M$37) -> 0.7987923293 | AB16: =_xlfn.XLOOKUP(W16,'BBM Costs'!$X$6:$AB$6,_xlfn.XLOOKUP(X16,'BBM Costs'!$W$7:$W$37,'BBM Costs'!$X$7:$AB$37))*_xlfn.XLOOKUP(X16,'Control panel'!$S$7:$S$37,'Control panel'!$T$7:$T$37) -> 16.94971526 | AC16: 21.04474514 | AE16: ='PTRM Data'!B14 -> Distribution Substation Switchgear | AF16: ='Control panel'!$AA14/SUMPRODUCT('Control panel'!$AA$7:$AA$37,'Control panel'!AB$7:AB$37)*'Control panel'!AB14 -> 0.04468126567 | AG16: ='Control panel'!$AA14/SUMPRODUCT('Control panel'!$AA$7:$AA$37,'Control panel'!AC$7:AC$37)*'Control panel'!AC14 -> 0.04510355681 | AH16: ='Control panel'!$AA14/SUMPRODUCT('Control panel'!$AA$7:$AA$37,'Control panel'!AD$7:AD$37)*'Control panel'!AD14 -> 0.04509950496 | AI16: ='Control panel'!$AA14/SUMPRODUCT('Control panel'!$AA$7:$AA$37,'Control panel'!AE$7:AE$37)*'Control panel'!AE14 -> 0 | AJ16: ='Control panel'!$AA14/SUMPRODUCT('Control panel'!$AA$7:$AA$37,'Control panel'!AF$7:AF$37)*'Control panel'!AF14 -> 0 | AK16: ='Control panel'!$AA14/SUMPRODUCT('Control panel'!$AA$7:$AA$37,'Control panel'!AG$7:AG$37)*'Control panel'!AG14 -> 0.04513368387 | AL16: ='Control panel'!$AA14/SUMPRODUCT('Control panel'!$AA$7:$AA$37,'Control panel'!AH$7:AH$37)*'Control panel'!AH14 -> 0 | AM16: ='Control panel'!$AA14/SUMPRODUCT('Control panel'!$AA$7:$AA$37,'Control panel'!AI$7:AI$37)*'Control panel'!AI14 -> 0.0406938973 | AN16: ='Control panel'!$AA14/SUMPRODUCT('Control panel'!$AA$7:$AA$37,'Control panel'!AJ$7:AJ$37)*'Control panel'!AJ14 -> 0.04501661621 | AO16: ='Control panel'!$AA14/SUMPRODUCT('Control panel'!$AA$7:$AA$37,'Control panel'!AK$7:AK$37)*'Control panel'!AK14 -> 0.04465173937 | AP16: ='Control panel'!$AA14/SUMPRODUCT('Control panel'!$AA$7:$AA$37,'Control panel'!AL$7:AL$37)*'Control panel'!AL14 -> 0.0406938973 | AQ16: ='Control panel'!$AA14/SUMPRODUCT('Control panel'!$AA$7:$AA$37,'Control panel'!AM$7:AM$37)*'Control panel'!AM14 -> 0 | AR16: ='Control panel'!$AA14/SUMPRODUCT('Control panel'!$AA$7:$AA$37,'Control panel'!AN$7:AN$37)*'Control panel'!AN14 -> 0.04501661621 | AS16: ='Control panel'!$AA14/SUMPRODUCT('Control panel'!$AA$7:$AA$37,'Control panel'!AO$7:AO$37)*'Control panel'!AO14 -> 0.04501661621 | AT16: ='Control panel'!$AA14/SUMPRODUCT('Control panel'!$AA$7:$AA$37,'Control panel'!AP$7:AP$37)*'Control panel'!AP14 -> 0.0406938973 | AU16: ='Control panel'!$AA14/SUMPRODUCT('Control panel'!$AA$7:$AA$37,'Control panel'!AQ$7:AQ$37)*'Control panel'!AQ14 -> 0.0406938973 | AV16: ='Control panel'!$AA14/SUMPRODUCT('Control panel'!$AA$7:$AA$37,'Control panel'!AR$7:AR$37)*'Control panel'!AR14 -> 0.0406938973 | AW16: ='Control panel'!$AA14/SUMPRODUCT('Control panel'!$AA$7:$AA$37,'Control panel'!AS$7:AS$37)*'Control panel'!AS14 -> 0.0406938973 | AX16: ='Control panel'!$AA14/SUMPRODUCT('Control panel'!$AA$7:$AA$37,'Control panel'!AT$7:AT$37)*'Control panel'!AT14 -> 0.0406938973
B17: ='Opex costs'!B15 -> Other Operating Costs | C17: =_xlfn.XLOOKUP($B17,'BBM Costs'!$I$7:$I$25,'BBM Costs'!J$7:J$25)*_xlfn.XLOOKUP($B17,'Control panel'!$E$7:$E$25,'Control panel'!$F$7:$F$25) -> 25.50032897 | D17: =_xlfn.XLOOKUP($B17,'BBM Costs'!$I$7:$I$25,'BBM Costs'!K$7:K$25)*_xlfn.XLOOKUP($B17,'Control panel'!$E$7:$E$25,'Control panel'!$F$7:$F$25) -> 26.50175063 | E17: =_xlfn.XLOOKUP($B17,'BBM Costs'!$I$7:$I$25,'BBM Costs'!L$7:L$25)*_xlfn.XLOOKUP($B17,'Control panel'!$E$7:$E$25,'Control panel'!$F$7:$F$25) -> 27.45231108 | F17: =_xlfn.XLOOKUP($B17,'BBM Costs'!$I$7:$I$25,'BBM Costs'!M$7:M$25)*_xlfn.XLOOKUP($B17,'Control panel'!$E$7:$E$25,'Control panel'!$F$7:$F$25) -> 27.89606642 | G17: =_xlfn.XLOOKUP($B17,'BBM Costs'!$I$7:$I$25,'BBM Costs'!N$7:N$25)*_xlfn.XLOOKUP($B17,'Control panel'!$E$7:$E$25,'Control panel'!$F$7:$F$25) -> 29.00396674 | I17: Other Operating Costs | J17: =C17*_xlfn.XLOOKUP($I17,'Control panel'!$E$7:$E$25,'Control panel'!$H$7:$H$25) -> 0 | K17: =D17*_xlfn.XLOOKUP($I17,'Control panel'!$E$7:$E$25,'Control panel'!$H$7:$H$25) -> 0 | L17: =E17*_xlfn.XLOOKUP($I17,'Control panel'!$E$7:$E$25,'Control panel'!$H$7:$H$25) -> 0 | M17: =F17*_xlfn.XLOOKUP($I17,'Control panel'!$E$7:$E$25,'Control panel'!$H$7:$H$25) -> 0 | N17: =G17*_xlfn.XLOOKUP($I17,'Control panel'!$E$7:$E$25,'Control panel'!$H$7:$H$25) -> 0 | P17: Other Operating Costs | Q17: =C17*_xlfn.XLOOKUP($P17,'Control panel'!$E$7:$E$25,'Control panel'!$I$7:$I$25) -> 25.50032897 | R17: =D17*_xlfn.XLOOKUP($P17,'Control panel'!$E$7:$E$25,'Control panel'!$I$7:$I$25) -> 26.50175063 | S17: =E17*_xlfn.XLOOKUP($P17,'Control panel'!$E$7:$E$25,'Control panel'!$I$7:$I$25) -> 27.45231108 | T17: =F17*_xlfn.XLOOKUP($P17,'Control panel'!$E$7:$E$25,'Control panel'!$I$7:$I$25) -> 27.89606642 | U17: =G17*_xlfn.XLOOKUP($P17,'Control panel'!$E$7:$E$25,'Control panel'!$I$7:$I$25) -> 29.00396674 | W17: 2025-26 | X17: ='PTRM Data'!B15 -> Zone Transformers | Y17: =_xlfn.XLOOKUP(X17,'Control panel'!$L$7:$L$37,'Control panel'!$P$7:$P$37) -> 1 | Z17: 1.767221485 | AA17: =_xlfn.XLOOKUP(W17,'BBM Costs'!$Q$6:$U$6,_xlfn.XLOOKUP(X17,'BBM Costs'!$P$7:$P$37,'BBM Costs'!$Q$7:$U$37))*_xlfn.XLOOKUP(X17,'Control panel'!$L$7:$L$37,'Control panel'!$M$7:$M$37) -> 0 | AB17: =_xlfn.XLOOKUP(W17,'BBM Costs'!$X$6:$AB$6,_xlfn.XLOOKUP(X17,'BBM Costs'!$W$7:$W$37,'BBM Costs'!$X$7:$AB$37))*_xlfn.XLOOKUP(X17,'Control panel'!$S$7:$S$37,'Control panel'!$T$7:$T$37) -> 0 | AC17: 1.767221485 | AE17: ='PTRM Data'!B15 -> Zone Transformers | AF17: ='Control panel'!$AA15/SUMPRODUCT('Control panel'!$AA$7:$AA$37,'Control panel'!AB$7:AB$37)*'Control panel'!AB15 -> 0.02395509774 | AG17: ='Control panel'!$AA15/SUMPRODUCT('Control panel'!$AA$7:$AA$37,'Control panel'!AC$7:AC$37)*'Control panel'!AC15 -> 0.02418150192 | AH17: ='Control panel'!$AA15/SUMPRODUCT('Control panel'!$AA$7:$AA$37,'Control panel'!AD$7:AD$37)*'Control panel'!AD15 -> 0.02417932959 | AI17: ='Control panel'!$AA15/SUMPRODUCT('Control panel'!$AA$7:$AA$37,'Control panel'!AE$7:AE$37)*'Control panel'!AE15 -> 0 | AJ17: ='Control panel'!$AA15/SUMPRODUCT('Control panel'!$AA$7:$AA$37,'Control panel'!AF$7:AF$37)*'Control panel'!AF15 -> 0 | AK17: ='Control panel'!$AA15/SUMPRODUCT('Control panel'!$AA$7:$AA$37,'Control panel'!AG$7:AG$37)*'Control panel'!AG15 -> 0.02419765403 | AL17: ='Control panel'!$AA15/SUMPRODUCT('Control panel'!$AA$7:$AA$37,'Control panel'!AH$7:AH$37)*'Control panel'!AH15 -> 0 | AM17: ='Control panel'!$AA15/SUMPRODUCT('Control panel'!$AA$7:$AA$37,'Control panel'!AI$7:AI$37)*'Control panel'!AI15 -> 0.02181733826 | AN17: ='Control panel'!$AA15/SUMPRODUCT('Control panel'!$AA$7:$AA$37,'Control panel'!AJ$7:AJ$37)*'Control panel'!AJ15 -> 0.02413489021 | AO17: ='Control panel'!$AA15/SUMPRODUCT('Control panel'!$AA$7:$AA$37,'Control panel'!AK$7:AK$37)*'Control panel'!AK15 -> 0.02393926771 | AP17: ='Control panel'!$AA15/SUMPRODUCT('Control panel'!$AA$7:$AA$37,'Control panel'!AL$7:AL$37)*'Control panel'!AL15 -> 0.02181733826 | AQ17: ='Control panel'!$AA15/SUMPRODUCT('Control panel'!$AA$7:$AA$37,'Control panel'!AM$7:AM$37)*'Control panel'!AM15 -> 0 | AR17: ='Control panel'!$AA15/SUMPRODUCT('Control panel'!$AA$7:$AA$37,'Control panel'!AN$7:AN$37)*'Control panel'!AN15 -> 0.02413489021 | AS17: ='Control panel'!$AA15/SUMPRODUCT('Control panel'!$AA$7:$AA$37,'Control panel'!AO$7:AO$37)*'Control panel'!AO15 -> 0.02413489021 | AT17: ='Control panel'!$AA15/SUMPRODUCT('Control panel'!$AA$7:$AA$37,'Control panel'!AP$7:AP$37)*'Control panel'!AP15 -> 0.02181733826 | AU17: ='Control panel'!$AA15/SUMPRODUCT('Control panel'!$AA$7:$AA$37,'Control panel'!AQ$7:AQ$37)*'Control panel'!AQ15 -> 0.02181733826 | AV17: ='Control panel'!$AA15/SUMPRODUCT('Control panel'!$AA$7:$AA$37,'Control panel'!AR$7:AR$37)*'Control panel'!AR15 -> 0.02181733826 | AW17: ='Control panel'!$AA15/SUMPRODUCT('Control panel'!$AA$7:$AA$37,'Control panel'!AS$7:AS$37)*'Control panel'!AS15 -> 0.02181733826 | AX17: ='Control panel'!$AA15/SUMPRODUCT('Control panel'!$AA$7:$AA$37,'Control panel'!AT$7:AT$37)*'Control panel'!AT15 -> 0.02181733826
B18: ='Opex costs'!B16 -> Training | C18: =_xlfn.XLOOKUP($B18,'BBM Costs'!$I$7:$I$25,'BBM Costs'!J$7:J$25)*_xlfn.XLOOKUP($B18,'Control panel'!$E$7:$E$25,'Control panel'!$F$7:$F$25) -> 15.22286498 | D18: =_xlfn.XLOOKUP($B18,'BBM Costs'!$I$7:$I$25,'BBM Costs'!K$7:K$25)*_xlfn.XLOOKUP($B18,'Control panel'!$E$7:$E$25,'Control panel'!$F$7:$F$25) -> 15.82068107 | E18: =_xlfn.XLOOKUP($B18,'BBM Costs'!$I$7:$I$25,'BBM Costs'!L$7:L$25)*_xlfn.XLOOKUP($B18,'Control panel'!$E$7:$E$25,'Control panel'!$F$7:$F$25) -> 16.38813466 | F18: =_xlfn.XLOOKUP($B18,'BBM Costs'!$I$7:$I$25,'BBM Costs'!M$7:M$25)*_xlfn.XLOOKUP($B18,'Control panel'!$E$7:$E$25,'Control panel'!$F$7:$F$25) -> 16.65304213 | G18: =_xlfn.XLOOKUP($B18,'BBM Costs'!$I$7:$I$25,'BBM Costs'!N$7:N$25)*_xlfn.XLOOKUP($B18,'Control panel'!$E$7:$E$25,'Control panel'!$F$7:$F$25) -> 17.3144225 | I18: Training | J18: =C18*_xlfn.XLOOKUP($I18,'Control panel'!$E$7:$E$25,'Control panel'!$H$7:$H$25) -> 6.545831943 | K18: =D18*_xlfn.XLOOKUP($I18,'Control panel'!$E$7:$E$25,'Control panel'!$H$7:$H$25) -> 6.802892859 | L18: =E18*_xlfn.XLOOKUP($I18,'Control panel'!$E$7:$E$25,'Control panel'!$H$7:$H$25) -> 7.046897905 | M18: =F18*_xlfn.XLOOKUP($I18,'Control panel'!$E$7:$E$25,'Control panel'!$H$7:$H$25) -> 7.160808117 | N18: =G18*_xlfn.XLOOKUP($I18,'Control panel'!$E$7:$E$25,'Control panel'!$H$7:$H$25) -> 7.445201675 | P18: Training | Q18: =C18*_xlfn.XLOOKUP($P18,'Control panel'!$E$7:$E$25,'Control panel'!$I$7:$I$25) -> 8.677033041 | R18: =D18*_xlfn.XLOOKUP($P18,'Control panel'!$E$7:$E$25,'Control panel'!$I$7:$I$25) -> 9.017788209 | S18: =E18*_xlfn.XLOOKUP($P18,'Control panel'!$E$7:$E$25,'Control panel'!$I$7:$I$25) -> 9.341236757 | T18: =F18*_xlfn.XLOOKUP($P18,'Control panel'!$E$7:$E$25,'Control panel'!$I$7:$I$25) -> 9.492234015 | U18: =G18*_xlfn.XLOOKUP($P18,'Control panel'!$E$7:$E$25,'Control panel'!$I$7:$I$25) -> 9.869220825 | W18: 2025-26 | X18: ='PTRM Data'!B16 -> Distribution Transformers | Y18: =_xlfn.XLOOKUP(X18,'Control panel'!$L$7:$L$37,'Control panel'!$P$7:$P$37) -> 0.57 | Z18: 8.428860727 | AA18: =_xlfn.XLOOKUP(W18,'BBM Costs'!$Q$6:$U$6,_xlfn.XLOOKUP(X18,'BBM Costs'!$P$7:$P$37,'BBM Costs'!$Q$7:$U$37))*_xlfn.XLOOKUP(X18,'Control panel'!$L$7:$L$37,'Control panel'!$M$7:$M$37) -> 11.00489486 | AB18: =_xlfn.XLOOKUP(W18,'BBM Costs'!$X$6:$AB$6,_xlfn.XLOOKUP(X18,'BBM Costs'!$W$7:$W$37,'BBM Costs'!$X$7:$AB$37))*_xlfn.XLOOKUP(X18,'Control panel'!$S$7:$S$37,'Control panel'!$T$7:$T$37) -> 43.34238268 | AC18: 62.77613827 | AE18: ='PTRM Data'!B16 -> Distribution Transformers | AF18: ='Control panel'!$AA16/SUMPRODUCT('Control panel'!$AA$7:$AA$37,'Control panel'!AB$7:AB$37)*'Control panel'!AB16 -> 0.1142551651 | AG18: ='Control panel'!$AA16/SUMPRODUCT('Control panel'!$AA$7:$AA$37,'Control panel'!AC$7:AC$37)*'Control panel'!AC16 -> 0.1153350124 | AH18: ='Control panel'!$AA16/SUMPRODUCT('Control panel'!$AA$7:$AA$37,'Control panel'!AD$7:AD$37)*'Control panel'!AD16 -> 0.1153246514 | AI18: ='Control panel'!$AA16/SUMPRODUCT('Control panel'!$AA$7:$AA$37,'Control panel'!AE$7:AE$37)*'Control panel'!AE16 -> 0 | AJ18: ='Control panel'!$AA16/SUMPRODUCT('Control panel'!$AA$7:$AA$37,'Control panel'!AF$7:AF$37)*'Control panel'!AF16 -> 0 | AK18: ='Control panel'!$AA16/SUMPRODUCT('Control panel'!$AA$7:$AA$37,'Control panel'!AG$7:AG$37)*'Control panel'!AG16 -> 0.1154120508 | AL18: ='Control panel'!$AA16/SUMPRODUCT('Control panel'!$AA$7:$AA$37,'Control panel'!AH$7:AH$37)*'Control panel'!AH16 -> 0 | AM18: ='Control panel'!$AA16/SUMPRODUCT('Control panel'!$AA$7:$AA$37,'Control panel'!AI$7:AI$37)*'Control panel'!AI16 -> 0.1040590029 | AN18: ='Control panel'!$AA16/SUMPRODUCT('Control panel'!$AA$7:$AA$37,'Control panel'!AJ$7:AJ$37)*'Control panel'!AJ16 -> 0.1151126952 | AO18: ='Control panel'!$AA16/SUMPRODUCT('Control panel'!$AA$7:$AA$37,'Control panel'!AK$7:AK$37)*'Control panel'!AK16 -> 0.1141796629 | AP18: ='Control panel'!$AA16/SUMPRODUCT('Control panel'!$AA$7:$AA$37,'Control panel'!AL$7:AL$37)*'Control panel'!AL16 -> 0.1040590029 | AQ18: ='Control panel'!$AA16/SUMPRODUCT('Control panel'!$AA$7:$AA$37,'Control panel'!AM$7:AM$37)*'Control panel'!AM16 -> 0 | AR18: ='Control panel'!$AA16/SUMPRODUCT('Control panel'!$AA$7:$AA$37,'Control panel'!AN$7:AN$37)*'Control panel'!AN16 -> 0.1151126952 | AS18: ='Control panel'!$AA16/SUMPRODUCT('Control panel'!$AA$7:$AA$37,'Control panel'!AO$7:AO$37)*'Control panel'!AO16 -> 0.1151126952 | AT18: ='Control panel'!$AA16/SUMPRODUCT('Control panel'!$AA$7:$AA$37,'Control panel'!AP$7:AP$37)*'Control panel'!AP16 -> 0.1040590029 | AU18: ='Control panel'!$AA16/SUMPRODUCT('Control panel'!$AA$7:$AA$37,'Control panel'!AQ$7:AQ$37)*'Control panel'!AQ16 -> 0.1040590029 | AV18: ='Control panel'!$AA16/SUMPRODUCT('Control panel'!$AA$7:$AA$37,'Control panel'!AR$7:AR$37)*'Control panel'!AR16 -> 0.1040590029 | AW18: ='Control panel'!$AA16/SUMPRODUCT('Control panel'!$AA$7:$AA$37,'Control panel'!AS$7:AS$37)*'Control panel'!AS16 -> 0.1040590029 | AX18: ='Control panel'!$AA16/SUMPRODUCT('Control panel'!$AA$7:$AA$37,'Control panel'!AT$7:AT$37)*'Control panel'!AT16 -> 0.1040590029
B19: ='Opex costs'!B17 -> Debt raising costs | C19: =_xlfn.XLOOKUP($B19,'BBM Costs'!$I$7:$I$25,'BBM Costs'!J$7:J$25)*_xlfn.XLOOKUP($B19,'Control panel'!$E$7:$E$25,'Control panel'!$F$7:$F$25) -> 0 | D19: =_xlfn.XLOOKUP($B19,'BBM Costs'!$I$7:$I$25,'BBM Costs'!K$7:K$25)*_xlfn.XLOOKUP($B19,'Control panel'!$E$7:$E$25,'Control panel'!$F$7:$F$25) -> 0 | E19: =_xlfn.XLOOKUP($B19,'BBM Costs'!$I$7:$I$25,'BBM Costs'!L$7:L$25)*_xlfn.XLOOKUP($B19,'Control panel'!$E$7:$E$25,'Control panel'!$F$7:$F$25) -> 0 | F19: =_xlfn.XLOOKUP($B19,'BBM Costs'!$I$7:$I$25,'BBM Costs'!M$7:M$25)*_xlfn.XLOOKUP($B19,'Control panel'!$E$7:$E$25,'Control panel'!$F$7:$F$25) -> 0 | G19: =_xlfn.XLOOKUP($B19,'BBM Costs'!$I$7:$I$25,'BBM Costs'!N$7:N$25)*_xlfn.XLOOKUP($B19,'Control panel'!$E$7:$E$25,'Control panel'!$F$7:$F$25) -> 0 | I19: Debt raising costs | J19: =C19*_xlfn.XLOOKUP($I19,'Control panel'!$E$7:$E$25,'Control panel'!$H$7:$H$25) -> 0 | K19: =D19*_xlfn.XLOOKUP($I19,'Control panel'!$E$7:$E$25,'Control panel'!$H$7:$H$25) -> 0 | L19: =E19*_xlfn.XLOOKUP($I19,'Control panel'!$E$7:$E$25,'Control panel'!$H$7:$H$25) -> 0 | M19: =F19*_xlfn.XLOOKUP($I19,'Control panel'!$E$7:$E$25,'Control panel'!$H$7:$H$25) -> 0 | N19: =G19*_xlfn.XLOOKUP($I19,'Control panel'!$E$7:$E$25,'Control panel'!$H$7:$H$25) -> 0 | P19: Debt raising costs | Q19: =C19*_xlfn.XLOOKUP($P19,'Control panel'!$E$7:$E$25,'Control panel'!$I$7:$I$25) -> 0 | R19: =D19*_xlfn.XLOOKUP($P19,'Control panel'!$E$7:$E$25,'Control panel'!$I$7:$I$25) -> 0 | S19: =E19*_xlfn.XLOOKUP($P19,'Control panel'!$E$7:$E$25,'Control panel'!$I$7:$I$25) -> 0 | T19: =F19*_xlfn.XLOOKUP($P19,'Control panel'!$E$7:$E$25,'Control panel'!$I$7:$I$25) -> 0 | U19: =G19*_xlfn.XLOOKUP($P19,'Control panel'!$E$7:$E$25,'Control panel'!$I$7:$I$25) -> 0 | W19: 2025-26 | X19: ='PTRM Data'!B17 -> Low Voltage Services | Y19: =_xlfn.XLOOKUP(X19,'Control panel'!$L$7:$L$37,'Control panel'!$P$7:$P$37) -> 0 | Z19: 2.74845222 | AA19: =_xlfn.XLOOKUP(W19,'BBM Costs'!$Q$6:$U$6,_xlfn.XLOOKUP(X19,'BBM Costs'!$P$7:$P$37,'BBM Costs'!$Q$7:$U$37))*_xlfn.XLOOKUP(X19,'Control panel'!$L$7:$L$37,'Control panel'!$M$7:$M$37) -> 0 | AB19: =_xlfn.XLOOKUP(W19,'BBM Costs'!$X$6:$AB$6,_xlfn.XLOOKUP(X19,'BBM Costs'!$W$7:$W$37,'BBM Costs'!$X$7:$AB$37))*_xlfn.XLOOKUP(X19,'Control panel'!$S$7:$S$37,'Control panel'!$T$7:$T$37) -> 0 | AC19: 2.74845222 | AE19: ='PTRM Data'!B17 -> Low Voltage Services | AF19: ='Control panel'!$AA17/SUMPRODUCT('Control panel'!$AA$7:$AA$37,'Control panel'!AB$7:AB$37)*'Control panel'!AB17 -> 0.02622486255 | AG19: ='Control panel'!$AA17/SUMPRODUCT('Control panel'!$AA$7:$AA$37,'Control panel'!AC$7:AC$37)*'Control panel'!AC17 -> 0.02647271871 | AH19: ='Control panel'!$AA17/SUMPRODUCT('Control panel'!$AA$7:$AA$37,'Control panel'!AD$7:AD$37)*'Control panel'!AD17 -> 0.02647034056 | AI19: ='Control panel'!$AA17/SUMPRODUCT('Control panel'!$AA$7:$AA$37,'Control panel'!AE$7:AE$37)*'Control panel'!AE17 -> 0 | AJ19: ='Control panel'!$AA17/SUMPRODUCT('Control panel'!$AA$7:$AA$37,'Control panel'!AF$7:AF$37)*'Control panel'!AF17 -> 0 | AK19: ='Control panel'!$AA17/SUMPRODUCT('Control panel'!$AA$7:$AA$37,'Control panel'!AG$7:AG$37)*'Control panel'!AG17 -> 0.02649040125 | AL19: ='Control panel'!$AA17/SUMPRODUCT('Control panel'!$AA$7:$AA$37,'Control panel'!AH$7:AH$37)*'Control panel'!AH17 -> 0.1612957632 | AM19: ='Control panel'!$AA17/SUMPRODUCT('Control panel'!$AA$7:$AA$37,'Control panel'!AI$7:AI$37)*'Control panel'!AI17 -> 0.02388454864 | AN19: ='Control panel'!$AA17/SUMPRODUCT('Control panel'!$AA$7:$AA$37,'Control panel'!AJ$7:AJ$37)*'Control panel'!AJ17 -> 0.0264216905 | AO19: ='Control panel'!$AA17/SUMPRODUCT('Control panel'!$AA$7:$AA$37,'Control panel'!AK$7:AK$37)*'Control panel'!AK17 -> 0.02620753262 | AP19: ='Control panel'!$AA17/SUMPRODUCT('Control panel'!$AA$7:$AA$37,'Control panel'!AL$7:AL$37)*'Control panel'!AL17 -> 0.02388454864 | AQ19: ='Control panel'!$AA17/SUMPRODUCT('Control panel'!$AA$7:$AA$37,'Control panel'!AM$7:AM$37)*'Control panel'!AM17 -> 0.9610631436 | AR19: ='Control panel'!$AA17/SUMPRODUCT('Control panel'!$AA$7:$AA$37,'Control panel'!AN$7:AN$37)*'Control panel'!AN17 -> 0.0264216905 | AS19: ='Control panel'!$AA17/SUMPRODUCT('Control panel'!$AA$7:$AA$37,'Control panel'!AO$7:AO$37)*'Control panel'!AO17 -> 0.0264216905 | AT19: ='Control panel'!$AA17/SUMPRODUCT('Control panel'!$AA$7:$AA$37,'Control panel'!AP$7:AP$37)*'Control panel'!AP17 -> 0.02388454864 | AU19: ='Control panel'!$AA17/SUMPRODUCT('Control panel'!$AA$7:$AA$37,'Control panel'!AQ$7:AQ$37)*'Control panel'!AQ17 -> 0.02388454864 | AV19: ='Control panel'!$AA17/SUMPRODUCT('Control panel'!$AA$7:$AA$37,'Control panel'!AR$7:AR$37)*'Control panel'!AR17 -> 0.02388454864 | AW19: ='Control panel'!$AA17/SUMPRODUCT('Control panel'!$AA$7:$AA$37,'Control panel'!AS$7:AS$37)*'Control panel'!AS17 -> 0.02388454864 | AX19: ='Control panel'!$AA17/SUMPRODUCT('Control panel'!$AA$7:$AA$37,'Control panel'!AT$7:AT$37)*'Control panel'!AT17 -> 0.02388454864
B20: ='Opex costs'!B18 -> Non-network Alternatives | C20: =_xlfn.XLOOKUP($B20,'BBM Costs'!$I$7:$I$25,'BBM Costs'!J$7:J$25)*_xlfn.XLOOKUP($B20,'Control panel'!$E$7:$E$25,'Control panel'!$F$7:$F$25) -> 4.233775275 | D20: =_xlfn.XLOOKUP($B20,'BBM Costs'!$I$7:$I$25,'BBM Costs'!K$7:K$25)*_xlfn.XLOOKUP($B20,'Control panel'!$E$7:$E$25,'Control panel'!$F$7:$F$25) -> 4.400039573 | E20: =_xlfn.XLOOKUP($B20,'BBM Costs'!$I$7:$I$25,'BBM Costs'!L$7:L$25)*_xlfn.XLOOKUP($B20,'Control panel'!$E$7:$E$25,'Control panel'!$F$7:$F$25) -> 4.557859471 | F20: =_xlfn.XLOOKUP($B20,'BBM Costs'!$I$7:$I$25,'BBM Costs'!M$7:M$25)*_xlfn.XLOOKUP($B20,'Control panel'!$E$7:$E$25,'Control panel'!$F$7:$F$25) -> 4.631535398 | G20: =_xlfn.XLOOKUP($B20,'BBM Costs'!$I$7:$I$25,'BBM Costs'!N$7:N$25)*_xlfn.XLOOKUP($B20,'Control panel'!$E$7:$E$25,'Control panel'!$F$7:$F$25) -> 4.815478161 | I20: Non-network Alternatives | J20: =C20*_xlfn.XLOOKUP($I20,'Control panel'!$E$7:$E$25,'Control panel'!$H$7:$H$25) -> 3.38702022 | K20: =D20*_xlfn.XLOOKUP($I20,'Control panel'!$E$7:$E$25,'Control panel'!$H$7:$H$25) -> 3.520031658 | L20: =E20*_xlfn.XLOOKUP($I20,'Control panel'!$E$7:$E$25,'Control panel'!$H$7:$H$25) -> 3.646287577 | M20: =F20*_xlfn.XLOOKUP($I20,'Control panel'!$E$7:$E$25,'Control panel'!$H$7:$H$25) -> 3.705228319 | N20: =G20*_xlfn.XLOOKUP($I20,'Control panel'!$E$7:$E$25,'Control panel'!$H$7:$H$25) -> 3.852382529 | P20: Non-network Alternatives | Q20: =C20*_xlfn.XLOOKUP($P20,'Control panel'!$E$7:$E$25,'Control panel'!$I$7:$I$25) -> 0.846755055 | R20: =D20*_xlfn.XLOOKUP($P20,'Control panel'!$E$7:$E$25,'Control panel'!$I$7:$I$25) -> 0.8800079146 | S20: =E20*_xlfn.XLOOKUP($P20,'Control panel'!$E$7:$E$25,'Control panel'!$I$7:$I$25) -> 0.9115718941 | T20: =F20*_xlfn.XLOOKUP($P20,'Control panel'!$E$7:$E$25,'Control panel'!$I$7:$I$25) -> 0.9263070796 | U20: =G20*_xlfn.XLOOKUP($P20,'Control panel'!$E$7:$E$25,'Control panel'!$I$7:$I$25) -> 0.9630956323 | W20: 2025-26 | X20: ='PTRM Data'!B18 -> Metering | Y20: =_xlfn.XLOOKUP(X20,'Control panel'!$L$7:$L$37,'Control panel'!$P$7:$P$37) -> 1 | Z20: 0 | AA20: =_xlfn.XLOOKUP(W20,'BBM Costs'!$Q$6:$U$6,_xlfn.XLOOKUP(X20,'BBM Costs'!$P$7:$P$37,'BBM Costs'!$Q$7:$U$37))*_xlfn.XLOOKUP(X20,'Control panel'!$L$7:$L$37,'Control panel'!$M$7:$M$37) -> 0 | AB20: =_xlfn.XLOOKUP(W20,'BBM Costs'!$X$6:$AB$6,_xlfn.XLOOKUP(X20,'BBM Costs'!$W$7:$W$37,'BBM Costs'!$X$7:$AB$37))*_xlfn.XLOOKUP(X20,'Control panel'!$S$7:$S$37,'Control panel'!$T$7:$T$37) -> 0 | AC20: 0 | AE20: ='PTRM Data'!B18 -> Metering | AF20: ='Control panel'!$AA18/SUMPRODUCT('Control panel'!$AA$7:$AA$37,'Control panel'!AB$7:AB$37)*'Control panel'!AB18 -> 0 | AG20: ='Control panel'!$AA18/SUMPRODUCT('Control panel'!$AA$7:$AA$37,'Control panel'!AC$7:AC$37)*'Control panel'!AC18 -> 0 | AH20: ='Control panel'!$AA18/SUMPRODUCT('Control panel'!$AA$7:$AA$37,'Control panel'!AD$7:AD$37)*'Control panel'!AD18 -> 0 | AI20: ='Control panel'!$AA18/SUMPRODUCT('Control panel'!$AA$7:$AA$37,'Control panel'!AE$7:AE$37)*'Control panel'!AE18 -> 0 | AJ20: ='Control panel'!$AA18/SUMPRODUCT('Control panel'!$AA$7:$AA$37,'Control panel'!AF$7:AF$37)*'Control panel'!AF18 -> 1 | AK20: ='Control panel'!$AA18/SUMPRODUCT('Control panel'!$AA$7:$AA$37,'Control panel'!AG$7:AG$37)*'Control panel'!AG18 -> 0 | AL20: ='Control panel'!$AA18/SUMPRODUCT('Control panel'!$AA$7:$AA$37,'Control panel'!AH$7:AH$37)*'Control panel'!AH18 -> 0.02866370873 | AM20: ='Control panel'!$AA18/SUMPRODUCT('Control panel'!$AA$7:$AA$37,'Control panel'!AI$7:AI$37)*'Control panel'!AI18 -> 0.004244499247 | AN20: ='Control panel'!$AA18/SUMPRODUCT('Control panel'!$AA$7:$AA$37,'Control panel'!AJ$7:AJ$37)*'Control panel'!AJ18 -> 0 | AO20: ='Control panel'!$AA18/SUMPRODUCT('Control panel'!$AA$7:$AA$37,'Control panel'!AK$7:AK$37)*'Control panel'!AK18 -> 0 | AP20: ='Control panel'!$AA18/SUMPRODUCT('Control panel'!$AA$7:$AA$37,'Control panel'!AL$7:AL$37)*'Control panel'!AL18 -> 0.004244499247 | AQ20: ='Control panel'!$AA18/SUMPRODUCT('Control panel'!$AA$7:$AA$37,'Control panel'!AM$7:AM$37)*'Control panel'!AM18 -> 0 | AR20: ='Control panel'!$AA18/SUMPRODUCT('Control panel'!$AA$7:$AA$37,'Control panel'!AN$7:AN$37)*'Control panel'!AN18 -> 0 | AS20: ='Control panel'!$AA18/SUMPRODUCT('Control panel'!$AA$7:$AA$37,'Control panel'!AO$7:AO$37)*'Control panel'!AO18 -> 0 | AT20: ='Control panel'!$AA18/SUMPRODUCT('Control panel'!$AA$7:$AA$37,'Control panel'!AP$7:AP$37)*'Control panel'!AP18 -> 0.004244499247 | AU20: ='Control panel'!$AA18/SUMPRODUCT('Control panel'!$AA$7:$AA$37,'Control panel'!AQ$7:AQ$37)*'Control panel'!AQ18 -> 0.004244499247 | AV20: ='Control panel'!$AA18/SUMPRODUCT('Control panel'!$AA$7:$AA$37,'Control panel'!AR$7:AR$37)*'Control panel'!AR18 -> 0.004244499247 | AW20: ='Control panel'!$AA18/SUMPRODUCT('Control panel'!$AA$7:$AA$37,'Control panel'!AS$7:AS$37)*'Control panel'!AS18 -> 0.004244499247 | AX20: ='Control panel'!$AA18/SUMPRODUCT('Control panel'!$AA$7:$AA$37,'Control panel'!AT$7:AT$37)*'Control panel'!AT18 -> 0.004244499247
B21: ='Opex costs'!B19 -> Corporate Restructuring | C21: =_xlfn.XLOOKUP($B21,'BBM Costs'!$I$7:$I$25,'BBM Costs'!J$7:J$25)*_xlfn.XLOOKUP($B21,'Control panel'!$E$7:$E$25,'Control panel'!$F$7:$F$25) -> 0 | D21: =_xlfn.XLOOKUP($B21,'BBM Costs'!$I$7:$I$25,'BBM Costs'!K$7:K$25)*_xlfn.XLOOKUP($B21,'Control panel'!$E$7:$E$25,'Control panel'!$F$7:$F$25) -> 0 | E21: =_xlfn.XLOOKUP($B21,'BBM Costs'!$I$7:$I$25,'BBM Costs'!L$7:L$25)*_xlfn.XLOOKUP($B21,'Control panel'!$E$7:$E$25,'Control panel'!$F$7:$F$25) -> 0 | F21: =_xlfn.XLOOKUP($B21,'BBM Costs'!$I$7:$I$25,'BBM Costs'!M$7:M$25)*_xlfn.XLOOKUP($B21,'Control panel'!$E$7:$E$25,'Control panel'!$F$7:$F$25) -> 0 | G21: =_xlfn.XLOOKUP($B21,'BBM Costs'!$I$7:$I$25,'BBM Costs'!N$7:N$25)*_xlfn.XLOOKUP($B21,'Control panel'!$E$7:$E$25,'Control panel'!$F$7:$F$25) -> 0 | I21: Corporate Restructuring | J21: =C21*_xlfn.XLOOKUP($I21,'Control panel'!$E$7:$E$25,'Control panel'!$H$7:$H$25) -> 0 | K21: =D21*_xlfn.XLOOKUP($I21,'Control panel'!$E$7:$E$25,'Control panel'!$H$7:$H$25) -> 0 | L21: =E21*_xlfn.XLOOKUP($I21,'Control panel'!$E$7:$E$25,'Control panel'!$H$7:$H$25) -> 0 | M21: =F21*_xlfn.XLOOKUP($I21,'Control panel'!$E$7:$E$25,'Control panel'!$H$7:$H$25) -> 0 | N21: =G21*_xlfn.XLOOKUP($I21,'Control panel'!$E$7:$E$25,'Control panel'!$H$7:$H$25) -> 0 | P21: Corporate Restructuring | Q21: =C21*_xlfn.XLOOKUP($P21,'Control panel'!$E$7:$E$25,'Control panel'!$I$7:$I$25) -> 0 | R21: =D21*_xlfn.XLOOKUP($P21,'Control panel'!$E$7:$E$25,'Control panel'!$I$7:$I$25) -> 0 | S21: =E21*_xlfn.XLOOKUP($P21,'Control panel'!$E$7:$E$25,'Control panel'!$I$7:$I$25) -> 0 | T21: =F21*_xlfn.XLOOKUP($P21,'Control panel'!$E$7:$E$25,'Control panel'!$I$7:$I$25) -> 0 | U21: =G21*_xlfn.XLOOKUP($P21,'Control panel'!$E$7:$E$25,'Control panel'!$I$7:$I$25) -> 0 | W21: 2025-26 | X21: ='PTRM Data'!B19 -> Communications – Pilot Wires | Y21: =_xlfn.XLOOKUP(X21,'Control panel'!$L$7:$L$37,'Control panel'!$P$7:$P$37) -> 0 | Z21: 0.9688501597 | AA21: =_xlfn.XLOOKUP(W21,'BBM Costs'!$Q$6:$U$6,_xlfn.XLOOKUP(X21,'BBM Costs'!$P$7:$P$37,'BBM Costs'!$Q$7:$U$37))*_xlfn.XLOOKUP(X21,'Control panel'!$L$7:$L$37,'Control panel'!$M$7:$M$37) -> 0 | AB21: =_xlfn.XLOOKUP(W21,'BBM Costs'!$X$6:$AB$6,_xlfn.XLOOKUP(X21,'BBM Costs'!$W$7:$W$37,'BBM Costs'!$X$7:$AB$37))*_xlfn.XLOOKUP(X21,'Control panel'!$S$7:$S$37,'Control panel'!$T$7:$T$37) -> 0 | AC21: 0.9688501597 | AE21: ='PTRM Data'!B19 -> Communications – Pilot Wires | AF21: ='Control panel'!$AA19/SUMPRODUCT('Control panel'!$AA$7:$AA$37,'Control panel'!AB$7:AB$37)*'Control panel'!AB19 -> 0.01313298897 | AG21: ='Control panel'!$AA19/SUMPRODUCT('Control panel'!$AA$7:$AA$37,'Control panel'!AC$7:AC$37)*'Control panel'!AC19 -> 0.01325711135 | AH21: ='Control panel'!$AA19/SUMPRODUCT('Control panel'!$AA$7:$AA$37,'Control panel'!AD$7:AD$37)*'Control panel'!AD19 -> 0.0132559204 | AI21: ='Control panel'!$AA19/SUMPRODUCT('Control panel'!$AA$7:$AA$37,'Control panel'!AE$7:AE$37)*'Control panel'!AE19 -> 0 | AJ21: ='Control panel'!$AA19/SUMPRODUCT('Control panel'!$AA$7:$AA$37,'Control panel'!AF$7:AF$37)*'Control panel'!AF19 -> 0 | AK21: ='Control panel'!$AA19/SUMPRODUCT('Control panel'!$AA$7:$AA$37,'Control panel'!AG$7:AG$37)*'Control panel'!AG19 -> 0.01326596648 | AL21: ='Control panel'!$AA19/SUMPRODUCT('Control panel'!$AA$7:$AA$37,'Control panel'!AH$7:AH$37)*'Control panel'!AH19 -> 0.08077432149 | AM21: ='Control panel'!$AA19/SUMPRODUCT('Control panel'!$AA$7:$AA$37,'Control panel'!AI$7:AI$37)*'Control panel'!AI19 -> 0.01196099744 | AN21: ='Control panel'!$AA19/SUMPRODUCT('Control panel'!$AA$7:$AA$37,'Control panel'!AJ$7:AJ$37)*'Control panel'!AJ19 -> 0.01323155724 | AO21: ='Control panel'!$AA19/SUMPRODUCT('Control panel'!$AA$7:$AA$37,'Control panel'!AK$7:AK$37)*'Control panel'!AK19 -> 0.01312431042 | AP21: ='Control panel'!$AA19/SUMPRODUCT('Control panel'!$AA$7:$AA$37,'Control panel'!AL$7:AL$37)*'Control panel'!AL19 -> 0.01196099744 | AQ21: ='Control panel'!$AA19/SUMPRODUCT('Control panel'!$AA$7:$AA$37,'Control panel'!AM$7:AM$37)*'Control panel'!AM19 -> 0 | AR21: ='Control panel'!$AA19/SUMPRODUCT('Control panel'!$AA$7:$AA$37,'Control panel'!AN$7:AN$37)*'Control panel'!AN19 -> 0.01323155724 | AS21: ='Control panel'!$AA19/SUMPRODUCT('Control panel'!$AA$7:$AA$37,'Control panel'!AO$7:AO$37)*'Control panel'!AO19 -> 0.01323155724 | AT21: ='Control panel'!$AA19/SUMPRODUCT('Control panel'!$AA$7:$AA$37,'Control panel'!AP$7:AP$37)*'Control panel'!AP19 -> 0.01196099744 | AU21: ='Control panel'!$AA19/SUMPRODUCT('Control panel'!$AA$7:$AA$37,'Control panel'!AQ$7:AQ$37)*'Control panel'!AQ19 -> 0.01196099744 | AV21: ='Control panel'!$AA19/SUMPRODUCT('Control panel'!$AA$7:$AA$37,'Control panel'!AR$7:AR$37)*'Control panel'!AR19 -> 0.01196099744 | AW21: ='Control panel'!$AA19/SUMPRODUCT('Control panel'!$AA$7:$AA$37,'Control panel'!AS$7:AS$37)*'Control panel'!AS19 -> 0.01196099744 | AX21: ='Control panel'!$AA19/SUMPRODUCT('Control panel'!$AA$7:$AA$37,'Control panel'!AT$7:AT$37)*'Control panel'!AT19 -> 0.01196099744
B22: ='Opex costs'!B20 -> Corporate Allocations | C22: =_xlfn.XLOOKUP($B22,'BBM Costs'!$I$7:$I$25,'BBM Costs'!J$7:J$25)*_xlfn.XLOOKUP($B22,'Control panel'!$E$7:$E$25,'Control panel'!$F$7:$F$25) -> 0 | D22: =_xlfn.XLOOKUP($B22,'BBM Costs'!$I$7:$I$25,'BBM Costs'!K$7:K$25)*_xlfn.XLOOKUP($B22,'Control panel'!$E$7:$E$25,'Control panel'!$F$7:$F$25) -> 0 | E22: =_xlfn.XLOOKUP($B22,'BBM Costs'!$I$7:$I$25,'BBM Costs'!L$7:L$25)*_xlfn.XLOOKUP($B22,'Control panel'!$E$7:$E$25,'Control panel'!$F$7:$F$25) -> 0 | F22: =_xlfn.XLOOKUP($B22,'BBM Costs'!$I$7:$I$25,'BBM Costs'!M$7:M$25)*_xlfn.XLOOKUP($B22,'Control panel'!$E$7:$E$25,'Control panel'!$F$7:$F$25) -> 0 | G22: =_xlfn.XLOOKUP($B22,'BBM Costs'!$I$7:$I$25,'BBM Costs'!N$7:N$25)*_xlfn.XLOOKUP($B22,'Control panel'!$E$7:$E$25,'Control panel'!$F$7:$F$25) -> 0 | I22: Corporate Allocations | J22: =C22*_xlfn.XLOOKUP($I22,'Control panel'!$E$7:$E$25,'Control panel'!$H$7:$H$25) -> 0 | K22: =D22*_xlfn.XLOOKUP($I22,'Control panel'!$E$7:$E$25,'Control panel'!$H$7:$H$25) -> 0 | L22: =E22*_xlfn.XLOOKUP($I22,'Control panel'!$E$7:$E$25,'Control panel'!$H$7:$H$25) -> 0 | M22: =F22*_xlfn.XLOOKUP($I22,'Control panel'!$E$7:$E$25,'Control panel'!$H$7:$H$25) -> 0 | N22: =G22*_xlfn.XLOOKUP($I22,'Control panel'!$E$7:$E$25,'Control panel'!$H$7:$H$25) -> 0 | P22: Corporate Allocations | Q22: =C22*_xlfn.XLOOKUP($P22,'Control panel'!$E$7:$E$25,'Control panel'!$I$7:$I$25) -> 0 | R22: =D22*_xlfn.XLOOKUP($P22,'Control panel'!$E$7:$E$25,'Control panel'!$I$7:$I$25) -> 0 | S22: =E22*_xlfn.XLOOKUP($P22,'Control panel'!$E$7:$E$25,'Control panel'!$I$7:$I$25) -> 0 | T22: =F22*_xlfn.XLOOKUP($P22,'Control panel'!$E$7:$E$25,'Control panel'!$I$7:$I$25) -> 0 | U22: =G22*_xlfn.XLOOKUP($P22,'Control panel'!$E$7:$E$25,'Control panel'!$I$7:$I$25) -> 0
B23: EBSS | C23: =_xlfn.XLOOKUP($B23,'BBM Costs'!$I$7:$I$25,'BBM Costs'!J$7:J$25)*_xlfn.XLOOKUP($B23,'Control panel'!$E$7:$E$25,'Control panel'!$F$7:$F$25) -> 0 | D23: =_xlfn.XLOOKUP($B23,'BBM Costs'!$I$7:$I$25,'BBM Costs'!K$7:K$25)*_xlfn.XLOOKUP($B23,'Control panel'!$E$7:$E$25,'Control panel'!$F$7:$F$25) -> 0 | E23: =_xlfn.XLOOKUP($B23,'BBM Costs'!$I$7:$I$25,'BBM Costs'!L$7:L$25)*_xlfn.XLOOKUP($B23,'Control panel'!$E$7:$E$25,'Control panel'!$F$7:$F$25) -> 0 | F23: =_xlfn.XLOOKUP($B23,'BBM Costs'!$I$7:$I$25,'BBM Costs'!M$7:M$25)*_xlfn.XLOOKUP($B23,'Control panel'!$E$7:$E$25,'Control panel'!$F$7:$F$25) -> 0 | G23: =_xlfn.XLOOKUP($B23,'BBM Costs'!$I$7:$I$25,'BBM Costs'!N$7:N$25)*_xlfn.XLOOKUP($B23,'Control panel'!$E$7:$E$25,'Control panel'!$F$7:$F$25) -> 0 | I23: EBSS | J23: =C23*_xlfn.XLOOKUP($I23,'Control panel'!$E$7:$E$25,'Control panel'!$H$7:$H$25) -> 0 | K23: =D23*_xlfn.XLOOKUP($I23,'Control panel'!$E$7:$E$25,'Control panel'!$H$7:$H$25) -> 0 | L23: =E23*_xlfn.XLOOKUP($I23,'Control panel'!$E$7:$E$25,'Control panel'!$H$7:$H$25) -> 0 | M23: =F23*_xlfn.XLOOKUP($I23,'Control panel'!$E$7:$E$25,'Control panel'!$H$7:$H$25) -> 0 | N23: =G23*_xlfn.XLOOKUP($I23,'Control panel'!$E$7:$E$25,'Control panel'!$H$7:$H$25) -> 0 | P23: EBSS | Q23: =C23*_xlfn.XLOOKUP($P23,'Control panel'!$E$7:$E$25,'Control panel'!$I$7:$I$25) -> 0 | R23: =D23*_xlfn.XLOOKUP($P23,'Control panel'!$E$7:$E$25,'Control panel'!$I$7:$I$25) -> 0 | S23: =E23*_xlfn.XLOOKUP($P23,'Control panel'!$E$7:$E$25,'Control panel'!$I$7:$I$25) -> 0 | T23: =F23*_xlfn.XLOOKUP($P23,'Control panel'!$E$7:$E$25,'Control panel'!$I$7:$I$25) -> 0 | U23: =G23*_xlfn.XLOOKUP($P23,'Control panel'!$E$7:$E$25,'Control panel'!$I$7:$I$25) -> 0 | W23: 2025-26 | X23: ='PTRM Data'!B21 -> Land & Easements (System) - combined | Y23: =_xlfn.XLOOKUP(X23,'Control panel'!$L$7:$L$37,'Control panel'!$P$7:$P$37) -> 1 | Z23: 0.2771640472 | AA23: =_xlfn.XLOOKUP(W23,'BBM Costs'!$Q$6:$U$6,_xlfn.XLOOKUP(X23,'BBM Costs'!$P$7:$P$37,'BBM Costs'!$Q$7:$U$37))*_xlfn.XLOOKUP(X23,'Control panel'!$L$7:$L$37,'Control panel'!$M$7:$M$37) -> 0 | AB23: =_xlfn.XLOOKUP(W23,'BBM Costs'!$X$6:$AB$6,_xlfn.XLOOKUP(X23,'BBM Costs'!$W$7:$W$37,'BBM Costs'!$X$7:$AB$37))*_xlfn.XLOOKUP(X23,'Control panel'!$S$7:$S$37,'Control panel'!$T$7:$T$37) -> 0 | AC23: 0.2771640472 | AE23: ='PTRM Data'!B21 -> Land & Easements (System) - combined | AF23: ='Control panel'!$AA21/SUMPRODUCT('Control panel'!$AA$7:$AA$37,'Control panel'!AB$7:AB$37)*'Control panel'!AB21 -> 0.008110741225 | AG23: ='Control panel'!$AA21/SUMPRODUCT('Control panel'!$AA$7:$AA$37,'Control panel'!AC$7:AC$37)*'Control panel'!AC21 -> 0 | AH23: ='Control panel'!$AA21/SUMPRODUCT('Control panel'!$AA$7:$AA$37,'Control panel'!AD$7:AD$37)*'Control panel'!AD21 -> 0 | AI23: ='Control panel'!$AA21/SUMPRODUCT('Control panel'!$AA$7:$AA$37,'Control panel'!AE$7:AE$37)*'Control panel'!AE21 -> 0.01409919485 | AJ23: ='Control panel'!$AA21/SUMPRODUCT('Control panel'!$AA$7:$AA$37,'Control panel'!AF$7:AF$37)*'Control panel'!AF21 -> 0 | AK23: ='Control panel'!$AA21/SUMPRODUCT('Control panel'!$AA$7:$AA$37,'Control panel'!AG$7:AG$37)*'Control panel'!AG21 -> 0 | AL23: ='Control panel'!$AA21/SUMPRODUCT('Control panel'!$AA$7:$AA$37,'Control panel'!AH$7:AH$37)*'Control panel'!AH21 -> 0 | AM23: ='Control panel'!$AA21/SUMPRODUCT('Control panel'!$AA$7:$AA$37,'Control panel'!AI$7:AI$37)*'Control panel'!AI21 -> 0.007386936459 | AN23: ='Control panel'!$AA21/SUMPRODUCT('Control panel'!$AA$7:$AA$37,'Control panel'!AJ$7:AJ$37)*'Control panel'!AJ21 -> 0 | AO23: ='Control panel'!$AA21/SUMPRODUCT('Control panel'!$AA$7:$AA$37,'Control panel'!AK$7:AK$37)*'Control panel'!AK21 -> 0.008105381479 | AP23: ='Control panel'!$AA21/SUMPRODUCT('Control panel'!$AA$7:$AA$37,'Control panel'!AL$7:AL$37)*'Control panel'!AL21 -> 0.007386936459 | AQ23: ='Control panel'!$AA21/SUMPRODUCT('Control panel'!$AA$7:$AA$37,'Control panel'!AM$7:AM$37)*'Control panel'!AM21 -> 0 | AR23: ='Control panel'!$AA21/SUMPRODUCT('Control panel'!$AA$7:$AA$37,'Control panel'!AN$7:AN$37)*'Control panel'!AN21 -> 0 | AS23: ='Control panel'!$AA21/SUMPRODUCT('Control panel'!$AA$7:$AA$37,'Control panel'!AO$7:AO$37)*'Control panel'!AO21 -> 0 | AT23: ='Control panel'!$AA21/SUMPRODUCT('Control panel'!$AA$7:$AA$37,'Control panel'!AP$7:AP$37)*'Control panel'!AP21 -> 0.007386936459 | AU23: ='Control panel'!$AA21/SUMPRODUCT('Control panel'!$AA$7:$AA$37,'Control panel'!AQ$7:AQ$37)*'Control panel'!AQ21 -> 0.007386936459 | AV23: ='Control panel'!$AA21/SUMPRODUCT('Control panel'!$AA$7:$AA$37,'Control panel'!AR$7:AR$37)*'Control panel'!AR21 -> 0.007386936459 | AW23: ='Control panel'!$AA21/SUMPRODUCT('Control panel'!$AA$7:$AA$37,'Control panel'!AS$7:AS$37)*'Control panel'!AS21 -> 0.007386936459 | AX23: ='Control panel'!$AA21/SUMPRODUCT('Control panel'!$AA$7:$AA$37,'Control panel'!AT$7:AT$37)*'Control panel'!AT21 -> 0.007386936459
B24: CESS | C24: =_xlfn.XLOOKUP($B24,'BBM Costs'!$I$7:$I$25,'BBM Costs'!J$7:J$25)*_xlfn.XLOOKUP($B24,'Control panel'!$E$7:$E$25,'Control panel'!$F$7:$F$25) -> 0 | D24: =_xlfn.XLOOKUP($B24,'BBM Costs'!$I$7:$I$25,'BBM Costs'!K$7:K$25)*_xlfn.XLOOKUP($B24,'Control panel'!$E$7:$E$25,'Control panel'!$F$7:$F$25) -> 0 | E24: =_xlfn.XLOOKUP($B24,'BBM Costs'!$I$7:$I$25,'BBM Costs'!L$7:L$25)*_xlfn.XLOOKUP($B24,'Control panel'!$E$7:$E$25,'Control panel'!$F$7:$F$25) -> 0 | F24: =_xlfn.XLOOKUP($B24,'BBM Costs'!$I$7:$I$25,'BBM Costs'!M$7:M$25)*_xlfn.XLOOKUP($B24,'Control panel'!$E$7:$E$25,'Control panel'!$F$7:$F$25) -> 0 | G24: =_xlfn.XLOOKUP($B24,'BBM Costs'!$I$7:$I$25,'BBM Costs'!N$7:N$25)*_xlfn.XLOOKUP($B24,'Control panel'!$E$7:$E$25,'Control panel'!$F$7:$F$25) -> 0 | I24: CESS | J24: =C24*_xlfn.XLOOKUP($I24,'Control panel'!$E$7:$E$25,'Control panel'!$H$7:$H$25) -> 0 | K24: =D24*_xlfn.XLOOKUP($I24,'Control panel'!$E$7:$E$25,'Control panel'!$H$7:$H$25) -> 0 | L24: =E24*_xlfn.XLOOKUP($I24,'Control panel'!$E$7:$E$25,'Control panel'!$H$7:$H$25) -> 0 | M24: =F24*_xlfn.XLOOKUP($I24,'Control panel'!$E$7:$E$25,'Control panel'!$H$7:$H$25) -> 0 | N24: =G24*_xlfn.XLOOKUP($I24,'Control panel'!$E$7:$E$25,'Control panel'!$H$7:$H$25) -> 0 | P24: CESS | Q24: =C24*_xlfn.XLOOKUP($P24,'Control panel'!$E$7:$E$25,'Control panel'!$I$7:$I$25) -> 0 | R24: =D24*_xlfn.XLOOKUP($P24,'Control panel'!$E$7:$E$25,'Control panel'!$I$7:$I$25) -> 0 | S24: =E24*_xlfn.XLOOKUP($P24,'Control panel'!$E$7:$E$25,'Control panel'!$I$7:$I$25) -> 0 | T24: =F24*_xlfn.XLOOKUP($P24,'Control panel'!$E$7:$E$25,'Control panel'!$I$7:$I$25) -> 0 | U24: =G24*_xlfn.XLOOKUP($P24,'Control panel'!$E$7:$E$25,'Control panel'!$I$7:$I$25) -> 0 | W24: 2025-26 | X24: ='PTRM Data'!B22 -> Land Improvements | Y24: =_xlfn.XLOOKUP(X24,'Control panel'!$L$7:$L$37,'Control panel'!$P$7:$P$37) -> 1 | Z24: 0 | AA24: =_xlfn.XLOOKUP(W24,'BBM Costs'!$Q$6:$U$6,_xlfn.XLOOKUP(X24,'BBM Costs'!$P$7:$P$37,'BBM Costs'!$Q$7:$U$37))*_xlfn.XLOOKUP(X24,'Control panel'!$L$7:$L$37,'Control panel'!$M$7:$M$37) -> 0 | AB24: =_xlfn.XLOOKUP(W24,'BBM Costs'!$X$6:$AB$6,_xlfn.XLOOKUP(X24,'BBM Costs'!$W$7:$W$37,'BBM Costs'!$X$7:$AB$37))*_xlfn.XLOOKUP(X24,'Control panel'!$S$7:$S$37,'Control panel'!$T$7:$T$37) -> 0 | AC24: 0 | AE24: ='PTRM Data'!B22 -> Land Improvements | AF24: ='Control panel'!$AA22/SUMPRODUCT('Control panel'!$AA$7:$AA$37,'Control panel'!AB$7:AB$37)*'Control panel'!AB22 -> 0 | AG24: ='Control panel'!$AA22/SUMPRODUCT('Control panel'!$AA$7:$AA$37,'Control panel'!AC$7:AC$37)*'Control panel'!AC22 -> 0 | AH24: ='Control panel'!$AA22/SUMPRODUCT('Control panel'!$AA$7:$AA$37,'Control panel'!AD$7:AD$37)*'Control panel'!AD22 -> 0 | AI24: ='Control panel'!$AA22/SUMPRODUCT('Control panel'!$AA$7:$AA$37,'Control panel'!AE$7:AE$37)*'Control panel'!AE22 -> 0 | AJ24: ='Control panel'!$AA22/SUMPRODUCT('Control panel'!$AA$7:$AA$37,'Control panel'!AF$7:AF$37)*'Control panel'!AF22 -> 0 | AK24: ='Control panel'!$AA22/SUMPRODUCT('Control panel'!$AA$7:$AA$37,'Control panel'!AG$7:AG$37)*'Control panel'!AG22 -> 0 | AL24: ='Control panel'!$AA22/SUMPRODUCT('Control panel'!$AA$7:$AA$37,'Control panel'!AH$7:AH$37)*'Control panel'!AH22 -> 0 | AM24: ='Control panel'!$AA22/SUMPRODUCT('Control panel'!$AA$7:$AA$37,'Control panel'!AI$7:AI$37)*'Control panel'!AI22 -> 0.008477463581 | AN24: ='Control panel'!$AA22/SUMPRODUCT('Control panel'!$AA$7:$AA$37,'Control panel'!AJ$7:AJ$37)*'Control panel'!AJ22 -> 0 | AO24: ='Control panel'!$AA22/SUMPRODUCT('Control panel'!$AA$7:$AA$37,'Control panel'!AK$7:AK$37)*'Control panel'!AK22 -> 0 | AP24: ='Control panel'!$AA22/SUMPRODUCT('Control panel'!$AA$7:$AA$37,'Control panel'!AL$7:AL$37)*'Control panel'!AL22 -> 0.008477463581 | AQ24: ='Control panel'!$AA22/SUMPRODUCT('Control panel'!$AA$7:$AA$37,'Control panel'!AM$7:AM$37)*'Control panel'!AM22 -> 0 | AR24: ='Control panel'!$AA22/SUMPRODUCT('Control panel'!$AA$7:$AA$37,'Control panel'!AN$7:AN$37)*'Control panel'!AN22 -> 0 | AS24: ='Control panel'!$AA22/SUMPRODUCT('Control panel'!$AA$7:$AA$37,'Control panel'!AO$7:AO$37)*'Control panel'!AO22 -> 0 | AT24: ='Control panel'!$AA22/SUMPRODUCT('Control panel'!$AA$7:$AA$37,'Control panel'!AP$7:AP$37)*'Control panel'!AP22 -> 0.008477463581 | AU24: ='Control panel'!$AA22/SUMPRODUCT('Control panel'!$AA$7:$AA$37,'Control panel'!AQ$7:AQ$37)*'Control panel'!AQ22 -> 0.008477463581 | AV24: ='Control panel'!$AA22/SUMPRODUCT('Control panel'!$AA$7:$AA$37,'Control panel'!AR$7:AR$37)*'Control panel'!AR22 -> 0.008477463581 | AW24: ='Control panel'!$AA22/SUMPRODUCT('Control panel'!$AA$7:$AA$37,'Control panel'!AS$7:AS$37)*'Control panel'!AS22 -> 0.008477463581 | AX24: ='Control panel'!$AA22/SUMPRODUCT('Control panel'!$AA$7:$AA$37,'Control panel'!AT$7:AT$37)*'Control panel'!AT22 -> 0.008477463581
B25: Control period carryover | C25: =_xlfn.XLOOKUP($B25,'BBM Costs'!$I$7:$I$25,'BBM Costs'!J$7:J$25)*_xlfn.XLOOKUP($B25,'Control panel'!$E$7:$E$25,'Control panel'!$F$7:$F$25) -> 0 | D25: =_xlfn.XLOOKUP($B25,'BBM Costs'!$I$7:$I$25,'BBM Costs'!K$7:K$25)*_xlfn.XLOOKUP($B25,'Control panel'!$E$7:$E$25,'Control panel'!$F$7:$F$25) -> 0 | E25: =_xlfn.XLOOKUP($B25,'BBM Costs'!$I$7:$I$25,'BBM Costs'!L$7:L$25)*_xlfn.XLOOKUP($B25,'Control panel'!$E$7:$E$25,'Control panel'!$F$7:$F$25) -> 0 | F25: =_xlfn.XLOOKUP($B25,'BBM Costs'!$I$7:$I$25,'BBM Costs'!M$7:M$25)*_xlfn.XLOOKUP($B25,'Control panel'!$E$7:$E$25,'Control panel'!$F$7:$F$25) -> 0 | G25: =_xlfn.XLOOKUP($B25,'BBM Costs'!$I$7:$I$25,'BBM Costs'!N$7:N$25)*_xlfn.XLOOKUP($B25,'Control panel'!$E$7:$E$25,'Control panel'!$F$7:$F$25) -> 0 | I25: Control period carryover | J25: =C25*_xlfn.XLOOKUP($I25,'Control panel'!$E$7:$E$25,'Control panel'!$H$7:$H$25) -> 0 | K25: =D25*_xlfn.XLOOKUP($I25,'Control panel'!$E$7:$E$25,'Control panel'!$H$7:$H$25) -> 0 | L25: =E25*_xlfn.XLOOKUP($I25,'Control panel'!$E$7:$E$25,'Control panel'!$H$7:$H$25) -> 0 | M25: =F25*_xlfn.XLOOKUP($I25,'Control panel'!$E$7:$E$25,'Control panel'!$H$7:$H$25) -> 0 | N25: =G25*_xlfn.XLOOKUP($I25,'Control panel'!$E$7:$E$25,'Control panel'!$H$7:$H$25) -> 0 | P25: Control period carryover | Q25: =C25*_xlfn.XLOOKUP($P25,'Control panel'!$E$7:$E$25,'Control panel'!$I$7:$I$25) -> 0 | R25: =D25*_xlfn.XLOOKUP($P25,'Control panel'!$E$7:$E$25,'Control panel'!$I$7:$I$25) -> 0 | S25: =E25*_xlfn.XLOOKUP($P25,'Control panel'!$E$7:$E$25,'Control panel'!$I$7:$I$25) -> 0 | T25: =F25*_xlfn.XLOOKUP($P25,'Control panel'!$E$7:$E$25,'Control panel'!$I$7:$I$25) -> 0 | U25: =G25*_xlfn.XLOOKUP($P25,'Control panel'!$E$7:$E$25,'Control panel'!$I$7:$I$25) -> 0 | W25: 2025-26 | X25: ='PTRM Data'!B23 -> Control Centre - SCADA | Y25: =_xlfn.XLOOKUP(X25,'Control panel'!$L$7:$L$37,'Control panel'!$P$7:$P$37) -> 1 | Z25: 0.1092052505 | AA25: =_xlfn.XLOOKUP(W25,'BBM Costs'!$Q$6:$U$6,_xlfn.XLOOKUP(X25,'BBM Costs'!$P$7:$P$37,'BBM Costs'!$Q$7:$U$37))*_xlfn.XLOOKUP(X25,'Control panel'!$L$7:$L$37,'Control panel'!$M$7:$M$37) -> 0 | AB25: =_xlfn.XLOOKUP(W25,'BBM Costs'!$X$6:$AB$6,_xlfn.XLOOKUP(X25,'BBM Costs'!$W$7:$W$37,'BBM Costs'!$X$7:$AB$37))*_xlfn.XLOOKUP(X25,'Control panel'!$S$7:$S$37,'Control panel'!$T$7:$T$37) -> 0 | AC25: 0.1092052505 | AE25: ='PTRM Data'!B23 -> Control Centre - SCADA | AF25: ='Control panel'!$AA23/SUMPRODUCT('Control panel'!$AA$7:$AA$37,'Control panel'!AB$7:AB$37)*'Control panel'!AB23 -> 0.001824216706 | AG25: ='Control panel'!$AA23/SUMPRODUCT('Control panel'!$AA$7:$AA$37,'Control panel'!AC$7:AC$37)*'Control panel'!AC23 -> 0 | AH25: ='Control panel'!$AA23/SUMPRODUCT('Control panel'!$AA$7:$AA$37,'Control panel'!AD$7:AD$37)*'Control panel'!AD23 -> 0 | AI25: ='Control panel'!$AA23/SUMPRODUCT('Control panel'!$AA$7:$AA$37,'Control panel'!AE$7:AE$37)*'Control panel'!AE23 -> 0 | AJ25: ='Control panel'!$AA23/SUMPRODUCT('Control panel'!$AA$7:$AA$37,'Control panel'!AF$7:AF$37)*'Control panel'!AF23 -> 0 | AK25: ='Control panel'!$AA23/SUMPRODUCT('Control panel'!$AA$7:$AA$37,'Control panel'!AG$7:AG$37)*'Control panel'!AG23 -> 0 | AL25: ='Control panel'!$AA23/SUMPRODUCT('Control panel'!$AA$7:$AA$37,'Control panel'!AH$7:AH$37)*'Control panel'!AH23 -> 0 | AM25: ='Control panel'!$AA23/SUMPRODUCT('Control panel'!$AA$7:$AA$37,'Control panel'!AI$7:AI$37)*'Control panel'!AI23 -> 0.001661423108 | AN25: ='Control panel'!$AA23/SUMPRODUCT('Control panel'!$AA$7:$AA$37,'Control panel'!AJ$7:AJ$37)*'Control panel'!AJ23 -> 0.001837908173 | AO25: ='Control panel'!$AA23/SUMPRODUCT('Control panel'!$AA$7:$AA$37,'Control panel'!AK$7:AK$37)*'Control panel'!AK23 -> 0.001823011226 | AP25: ='Control panel'!$AA23/SUMPRODUCT('Control panel'!$AA$7:$AA$37,'Control panel'!AL$7:AL$37)*'Control panel'!AL23 -> 0.001661423108 | AQ25: ='Control panel'!$AA23/SUMPRODUCT('Control panel'!$AA$7:$AA$37,'Control panel'!AM$7:AM$37)*'Control panel'!AM23 -> 0 | AR25: ='Control panel'!$AA23/SUMPRODUCT('Control panel'!$AA$7:$AA$37,'Control panel'!AN$7:AN$37)*'Control panel'!AN23 -> 0.001837908173 | AS25: ='Control panel'!$AA23/SUMPRODUCT('Control panel'!$AA$7:$AA$37,'Control panel'!AO$7:AO$37)*'Control panel'!AO23 -> 0.001837908173 | AT25: ='Control panel'!$AA23/SUMPRODUCT('Control panel'!$AA$7:$AA$37,'Control panel'!AP$7:AP$37)*'Control panel'!AP23 -> 0.001661423108 | AU25: ='Control panel'!$AA23/SUMPRODUCT('Control panel'!$AA$7:$AA$37,'Control panel'!AQ$7:AQ$37)*'Control panel'!AQ23 -> 0.001661423108 | AV25: ='Control panel'!$AA23/SUMPRODUCT('Control panel'!$AA$7:$AA$37,'Control panel'!AR$7:AR$37)*'Control panel'!AR23 -> 0.001661423108 | AW25: ='Control panel'!$AA23/SUMPRODUCT('Control panel'!$AA$7:$AA$37,'Control panel'!AS$7:AS$37)*'Control panel'!AS23 -> 0.001661423108 | AX25: ='Control panel'!$AA23/SUMPRODUCT('Control panel'!$AA$7:$AA$37,'Control panel'!AT$7:AT$37)*'Control panel'!AT23 -> 0.001661423108
B26: Shared asset decrements | C26: =_xlfn.XLOOKUP($B26,'BBM Costs'!$I$7:$I$25,'BBM Costs'!J$7:J$25)*_xlfn.XLOOKUP($B26,'Control panel'!$E$7:$E$25,'Control panel'!$F$7:$F$25) -> 0 | D26: =_xlfn.XLOOKUP($B26,'BBM Costs'!$I$7:$I$25,'BBM Costs'!K$7:K$25)*_xlfn.XLOOKUP($B26,'Control panel'!$E$7:$E$25,'Control panel'!$F$7:$F$25) -> 0 | E26: =_xlfn.XLOOKUP($B26,'BBM Costs'!$I$7:$I$25,'BBM Costs'!L$7:L$25)*_xlfn.XLOOKUP($B26,'Control panel'!$E$7:$E$25,'Control panel'!$F$7:$F$25) -> 0 | F26: =_xlfn.XLOOKUP($B26,'BBM Costs'!$I$7:$I$25,'BBM Costs'!M$7:M$25)*_xlfn.XLOOKUP($B26,'Control panel'!$E$7:$E$25,'Control panel'!$F$7:$F$25) -> 0 | G26: =_xlfn.XLOOKUP($B26,'BBM Costs'!$I$7:$I$25,'BBM Costs'!N$7:N$25)*_xlfn.XLOOKUP($B26,'Control panel'!$E$7:$E$25,'Control panel'!$F$7:$F$25) -> 0 | I26: Shared asset decrements | J26: =C26*_xlfn.XLOOKUP($I26,'Control panel'!$E$7:$E$25,'Control panel'!$H$7:$H$25) -> 0 | K26: =D26*_xlfn.XLOOKUP($I26,'Control panel'!$E$7:$E$25,'Control panel'!$H$7:$H$25) -> 0 | L26: =E26*_xlfn.XLOOKUP($I26,'Control panel'!$E$7:$E$25,'Control panel'!$H$7:$H$25) -> 0 | M26: =F26*_xlfn.XLOOKUP($I26,'Control panel'!$E$7:$E$25,'Control panel'!$H$7:$H$25) -> 0 | N26: =G26*_xlfn.XLOOKUP($I26,'Control panel'!$E$7:$E$25,'Control panel'!$H$7:$H$25) -> 0 | P26: Shared asset decrements | Q26: =C26*_xlfn.XLOOKUP($P26,'Control panel'!$E$7:$E$25,'Control panel'!$I$7:$I$25) -> 0 | R26: =D26*_xlfn.XLOOKUP($P26,'Control panel'!$E$7:$E$25,'Control panel'!$I$7:$I$25) -> 0 | S26: =E26*_xlfn.XLOOKUP($P26,'Control panel'!$E$7:$E$25,'Control panel'!$I$7:$I$25) -> 0 | T26: =F26*_xlfn.XLOOKUP($P26,'Control panel'!$E$7:$E$25,'Control panel'!$I$7:$I$25) -> 0 | U26: =G26*_xlfn.XLOOKUP($P26,'Control panel'!$E$7:$E$25,'Control panel'!$I$7:$I$25) -> 0 | W26: 2025-26 | X26: ='PTRM Data'!B24 -> Other Equipment | Y26: =_xlfn.XLOOKUP(X26,'Control panel'!$L$7:$L$37,'Control panel'!$P$7:$P$37) -> 1 | Z26: 0.008089779841 | AA26: =_xlfn.XLOOKUP(W26,'BBM Costs'!$Q$6:$U$6,_xlfn.XLOOKUP(X26,'BBM Costs'!$P$7:$P$37,'BBM Costs'!$Q$7:$U$37))*_xlfn.XLOOKUP(X26,'Control panel'!$L$7:$L$37,'Control panel'!$M$7:$M$37) -> 0 | AB26: =_xlfn.XLOOKUP(W26,'BBM Costs'!$X$6:$AB$6,_xlfn.XLOOKUP(X26,'BBM Costs'!$W$7:$W$37,'BBM Costs'!$X$7:$AB$37))*_xlfn.XLOOKUP(X26,'Control panel'!$S$7:$S$37,'Control panel'!$T$7:$T$37) -> 0 | AC26: 0.008089779841 | AE26: ='PTRM Data'!B24 -> Other Equipment | AF26: ='Control panel'!$AA24/SUMPRODUCT('Control panel'!$AA$7:$AA$37,'Control panel'!AB$7:AB$37)*'Control panel'!AB24 -> 8.900113912e-05 | AG26: ='Control panel'!$AA24/SUMPRODUCT('Control panel'!$AA$7:$AA$37,'Control panel'!AC$7:AC$37)*'Control panel'!AC24 -> 0 | AH26: ='Control panel'!$AA24/SUMPRODUCT('Control panel'!$AA$7:$AA$37,'Control panel'!AD$7:AD$37)*'Control panel'!AD24 -> 8.983423488e-05 | AI26: ='Control panel'!$AA24/SUMPRODUCT('Control panel'!$AA$7:$AA$37,'Control panel'!AE$7:AE$37)*'Control panel'!AE24 -> 0 | AJ26: ='Control panel'!$AA24/SUMPRODUCT('Control panel'!$AA$7:$AA$37,'Control panel'!AF$7:AF$37)*'Control panel'!AF24 -> 0 | AK26: ='Control panel'!$AA24/SUMPRODUCT('Control panel'!$AA$7:$AA$37,'Control panel'!AG$7:AG$37)*'Control panel'!AG24 -> 0 | AL26: ='Control panel'!$AA24/SUMPRODUCT('Control panel'!$AA$7:$AA$37,'Control panel'!AH$7:AH$37)*'Control panel'!AH24 -> 0 | AM26: ='Control panel'!$AA24/SUMPRODUCT('Control panel'!$AA$7:$AA$37,'Control panel'!AI$7:AI$37)*'Control panel'!AI24 -> 8.105865311e-05 | AN26: ='Control panel'!$AA24/SUMPRODUCT('Control panel'!$AA$7:$AA$37,'Control panel'!AJ$7:AJ$37)*'Control panel'!AJ24 -> 8.966912781e-05 | AO26: ='Control panel'!$AA24/SUMPRODUCT('Control panel'!$AA$7:$AA$37,'Control panel'!AK$7:AK$37)*'Control panel'!AK24 -> 8.894232532e-05 | AP26: ='Control panel'!$AA24/SUMPRODUCT('Control panel'!$AA$7:$AA$37,'Control panel'!AL$7:AL$37)*'Control panel'!AL24 -> 8.105865311e-05 | AQ26: ='Control panel'!$AA24/SUMPRODUCT('Control panel'!$AA$7:$AA$37,'Control panel'!AM$7:AM$37)*'Control panel'!AM24 -> 0.0032616268 | AR26: ='Control panel'!$AA24/SUMPRODUCT('Control panel'!$AA$7:$AA$37,'Control panel'!AN$7:AN$37)*'Control panel'!AN24 -> 8.966912781e-05 | AS26: ='Control panel'!$AA24/SUMPRODUCT('Control panel'!$AA$7:$AA$37,'Control panel'!AO$7:AO$37)*'Control panel'!AO24 -> 8.966912781e-05 | AT26: ='Control panel'!$AA24/SUMPRODUCT('Control panel'!$AA$7:$AA$37,'Control panel'!AP$7:AP$37)*'Control panel'!AP24 -> 8.105865311e-05 | AU26: ='Control panel'!$AA24/SUMPRODUCT('Control panel'!$AA$7:$AA$37,'Control panel'!AQ$7:AQ$37)*'Control panel'!AQ24 -> 8.105865311e-05 | AV26: ='Control panel'!$AA24/SUMPRODUCT('Control panel'!$AA$7:$AA$37,'Control panel'!AR$7:AR$37)*'Control panel'!AR24 -> 8.105865311e-05 | AW26: ='Control panel'!$AA24/SUMPRODUCT('Control panel'!$AA$7:$AA$37,'Control panel'!AS$7:AS$37)*'Control panel'!AS24 -> 8.105865311e-05 | AX26: ='Control panel'!$AA24/SUMPRODUCT('Control panel'!$AA$7:$AA$37,'Control panel'!AT$7:AT$37)*'Control panel'!AT24 -> 8.105865311e-05
B27: DMIA | C27: =_xlfn.XLOOKUP($B27,'BBM Costs'!$I$7:$I$25,'BBM Costs'!J$7:J$25)*_xlfn.XLOOKUP($B27,'Control panel'!$E$7:$E$25,'Control panel'!$F$7:$F$25) -> 0 | D27: =_xlfn.XLOOKUP($B27,'BBM Costs'!$I$7:$I$25,'BBM Costs'!K$7:K$25)*_xlfn.XLOOKUP($B27,'Control panel'!$E$7:$E$25,'Control panel'!$F$7:$F$25) -> 0 | E27: =_xlfn.XLOOKUP($B27,'BBM Costs'!$I$7:$I$25,'BBM Costs'!L$7:L$25)*_xlfn.XLOOKUP($B27,'Control panel'!$E$7:$E$25,'Control panel'!$F$7:$F$25) -> 0 | F27: =_xlfn.XLOOKUP($B27,'BBM Costs'!$I$7:$I$25,'BBM Costs'!M$7:M$25)*_xlfn.XLOOKUP($B27,'Control panel'!$E$7:$E$25,'Control panel'!$F$7:$F$25) -> 0 | G27: =_xlfn.XLOOKUP($B27,'BBM Costs'!$I$7:$I$25,'BBM Costs'!N$7:N$25)*_xlfn.XLOOKUP($B27,'Control panel'!$E$7:$E$25,'Control panel'!$F$7:$F$25) -> 0 | I27: DMIA | J27: =C27*_xlfn.XLOOKUP($I27,'Control panel'!$E$7:$E$25,'Control panel'!$H$7:$H$25) -> 0 | K27: =D27*_xlfn.XLOOKUP($I27,'Control panel'!$E$7:$E$25,'Control panel'!$H$7:$H$25) -> 0 | L27: =E27*_xlfn.XLOOKUP($I27,'Control panel'!$E$7:$E$25,'Control panel'!$H$7:$H$25) -> 0 | M27: =F27*_xlfn.XLOOKUP($I27,'Control panel'!$E$7:$E$25,'Control panel'!$H$7:$H$25) -> 0 | N27: =G27*_xlfn.XLOOKUP($I27,'Control panel'!$E$7:$E$25,'Control panel'!$H$7:$H$25) -> 0 | P27: DMIA | Q27: =C27*_xlfn.XLOOKUP($P27,'Control panel'!$E$7:$E$25,'Control panel'!$I$7:$I$25) -> 0 | R27: =D27*_xlfn.XLOOKUP($P27,'Control panel'!$E$7:$E$25,'Control panel'!$I$7:$I$25) -> 0 | S27: =E27*_xlfn.XLOOKUP($P27,'Control panel'!$E$7:$E$25,'Control panel'!$I$7:$I$25) -> 0 | T27: =F27*_xlfn.XLOOKUP($P27,'Control panel'!$E$7:$E$25,'Control panel'!$I$7:$I$25) -> 0 | U27: =G27*_xlfn.XLOOKUP($P27,'Control panel'!$E$7:$E$25,'Control panel'!$I$7:$I$25) -> 0 | W27: 2025-26 | X27: ='PTRM Data'!B25 -> Generation Assets | Y27: =_xlfn.XLOOKUP(X27,'Control panel'!$L$7:$L$37,'Control panel'!$P$7:$P$37) -> 1 | Z27: 0.1020241643 | AA27: =_xlfn.XLOOKUP(W27,'BBM Costs'!$Q$6:$U$6,_xlfn.XLOOKUP(X27,'BBM Costs'!$P$7:$P$37,'BBM Costs'!$Q$7:$U$37))*_xlfn.XLOOKUP(X27,'Control panel'!$L$7:$L$37,'Control panel'!$M$7:$M$37) -> 0 | AB27: =_xlfn.XLOOKUP(W27,'BBM Costs'!$X$6:$AB$6,_xlfn.XLOOKUP(X27,'BBM Costs'!$W$7:$W$37,'BBM Costs'!$X$7:$AB$37))*_xlfn.XLOOKUP(X27,'Control panel'!$S$7:$S$37,'Control panel'!$T$7:$T$37) -> 0 | AC27: 0.1020241643 | AE27: ='PTRM Data'!B25 -> Generation Assets | AF27: ='Control panel'!$AA25/SUMPRODUCT('Control panel'!$AA$7:$AA$37,'Control panel'!AB$7:AB$37)*'Control panel'!AB25 -> 0.0009734823361 | AG27: ='Control panel'!$AA25/SUMPRODUCT('Control panel'!$AA$7:$AA$37,'Control panel'!AC$7:AC$37)*'Control panel'!AC25 -> 0.0009826829026 | AH27: ='Control panel'!$AA25/SUMPRODUCT('Control panel'!$AA$7:$AA$37,'Control panel'!AD$7:AD$37)*'Control panel'!AD25 -> 0.000982594624 | AI27: ='Control panel'!$AA25/SUMPRODUCT('Control panel'!$AA$7:$AA$37,'Control panel'!AE$7:AE$37)*'Control panel'!AE25 -> 0 | AJ27: ='Control panel'!$AA25/SUMPRODUCT('Control panel'!$AA$7:$AA$37,'Control panel'!AF$7:AF$37)*'Control panel'!AF25 -> 0 | AK27: ='Control panel'!$AA25/SUMPRODUCT('Control panel'!$AA$7:$AA$37,'Control panel'!AG$7:AG$37)*'Control panel'!AG25 -> 0.0009833392889 | AL27: ='Control panel'!$AA25/SUMPRODUCT('Control panel'!$AA$7:$AA$37,'Control panel'!AH$7:AH$37)*'Control panel'!AH25 -> 0.005987393681 | AM27: ='Control panel'!$AA25/SUMPRODUCT('Control panel'!$AA$7:$AA$37,'Control panel'!AI$7:AI$37)*'Control panel'!AI25 -> 0.000886608506 | AN27: ='Control panel'!$AA25/SUMPRODUCT('Control panel'!$AA$7:$AA$37,'Control panel'!AJ$7:AJ$37)*'Control panel'!AJ25 -> 0.0009807887053 | AO27: ='Control panel'!$AA25/SUMPRODUCT('Control panel'!$AA$7:$AA$37,'Control panel'!AK$7:AK$37)*'Control panel'!AK25 -> 0.0009728390387 | AP27: ='Control panel'!$AA25/SUMPRODUCT('Control panel'!$AA$7:$AA$37,'Control panel'!AL$7:AL$37)*'Control panel'!AL25 -> 0.000886608506 | AQ27: ='Control panel'!$AA25/SUMPRODUCT('Control panel'!$AA$7:$AA$37,'Control panel'!AM$7:AM$37)*'Control panel'!AM25 -> 0.03567522965 | AR27: ='Control panel'!$AA25/SUMPRODUCT('Control panel'!$AA$7:$AA$37,'Control panel'!AN$7:AN$37)*'Control panel'!AN25 -> 0.0009807887053 | AS27: ='Control panel'!$AA25/SUMPRODUCT('Control panel'!$AA$7:$AA$37,'Control panel'!AO$7:AO$37)*'Control panel'!AO25 -> 0.0009807887053 | AT27: ='Control panel'!$AA25/SUMPRODUCT('Control panel'!$AA$7:$AA$37,'Control panel'!AP$7:AP$37)*'Control panel'!AP25 -> 0.000886608506 | AU27: ='Control panel'!$AA25/SUMPRODUCT('Control panel'!$AA$7:$AA$37,'Control panel'!AQ$7:AQ$37)*'Control panel'!AQ25 -> 0.000886608506 | AV27: ='Control panel'!$AA25/SUMPRODUCT('Control panel'!$AA$7:$AA$37,'Control panel'!AR$7:AR$37)*'Control panel'!AR25 -> 0.000886608506 | AW27: ='Control panel'!$AA25/SUMPRODUCT('Control panel'!$AA$7:$AA$37,'Control panel'!AS$7:AS$37)*'Control panel'!AS25 -> 0.000886608506 | AX27: ='Control panel'!$AA25/SUMPRODUCT('Control panel'!$AA$7:$AA$37,'Control panel'!AT$7:AT$37)*'Control panel'!AT25 -> 0.000886608506
W28: 2025-26 | X28: ='PTRM Data'!B26 -> Motor Vehicles | Y28: =_xlfn.XLOOKUP(X28,'Control panel'!$L$7:$L$37,'Control panel'!$P$7:$P$37) -> 1 | Z28: 0 | AA28: =_xlfn.XLOOKUP(W28,'BBM Costs'!$Q$6:$U$6,_xlfn.XLOOKUP(X28,'BBM Costs'!$P$7:$P$37,'BBM Costs'!$Q$7:$U$37))*_xlfn.XLOOKUP(X28,'Control panel'!$L$7:$L$37,'Control panel'!$M$7:$M$37) -> 0 | AB28: =_xlfn.XLOOKUP(W28,'BBM Costs'!$X$6:$AB$6,_xlfn.XLOOKUP(X28,'BBM Costs'!$W$7:$W$37,'BBM Costs'!$X$7:$AB$37))*_xlfn.XLOOKUP(X28,'Control panel'!$S$7:$S$37,'Control panel'!$T$7:$T$37) -> 0 | AC28: 0 | AE28: ='PTRM Data'!B26 -> Motor Vehicles | AF28: ='Control panel'!$AA26/SUMPRODUCT('Control panel'!$AA$7:$AA$37,'Control panel'!AB$7:AB$37)*'Control panel'!AB26 -> 0 | AG28: ='Control panel'!$AA26/SUMPRODUCT('Control panel'!$AA$7:$AA$37,'Control panel'!AC$7:AC$37)*'Control panel'!AC26 -> 0 | AH28: ='Control panel'!$AA26/SUMPRODUCT('Control panel'!$AA$7:$AA$37,'Control panel'!AD$7:AD$37)*'Control panel'!AD26 -> 0 | AI28: ='Control panel'!$AA26/SUMPRODUCT('Control panel'!$AA$7:$AA$37,'Control panel'!AE$7:AE$37)*'Control panel'!AE26 -> 0 | AJ28: ='Control panel'!$AA26/SUMPRODUCT('Control panel'!$AA$7:$AA$37,'Control panel'!AF$7:AF$37)*'Control panel'!AF26 -> 0 | AK28: ='Control panel'!$AA26/SUMPRODUCT('Control panel'!$AA$7:$AA$37,'Control panel'!AG$7:AG$37)*'Control panel'!AG26 -> 0 | AL28: ='Control panel'!$AA26/SUMPRODUCT('Control panel'!$AA$7:$AA$37,'Control panel'!AH$7:AH$37)*'Control panel'!AH26 -> 0 | AM28: ='Control panel'!$AA26/SUMPRODUCT('Control panel'!$AA$7:$AA$37,'Control panel'!AI$7:AI$37)*'Control panel'!AI26 -> 0.01061083905 | AN28: ='Control panel'!$AA26/SUMPRODUCT('Control panel'!$AA$7:$AA$37,'Control panel'!AJ$7:AJ$37)*'Control panel'!AJ26 -> 0 | AO28: ='Control panel'!$AA26/SUMPRODUCT('Control panel'!$AA$7:$AA$37,'Control panel'!AK$7:AK$37)*'Control panel'!AK26 -> 0 | AP28: ='Control panel'!$AA26/SUMPRODUCT('Control panel'!$AA$7:$AA$37,'Control panel'!AL$7:AL$37)*'Control panel'!AL26 -> 0.01061083905 | AQ28: ='Control panel'!$AA26/SUMPRODUCT('Control panel'!$AA$7:$AA$37,'Control panel'!AM$7:AM$37)*'Control panel'!AM26 -> 0 | AR28: ='Control panel'!$AA26/SUMPRODUCT('Control panel'!$AA$7:$AA$37,'Control panel'!AN$7:AN$37)*'Control panel'!AN26 -> 0 | AS28: ='Control panel'!$AA26/SUMPRODUCT('Control panel'!$AA$7:$AA$37,'Control panel'!AO$7:AO$37)*'Control panel'!AO26 -> 0 | AT28: ='Control panel'!$AA26/SUMPRODUCT('Control panel'!$AA$7:$AA$37,'Control panel'!AP$7:AP$37)*'Control panel'!AP26 -> 0.01061083905 | AU28: ='Control panel'!$AA26/SUMPRODUCT('Control panel'!$AA$7:$AA$37,'Control panel'!AQ$7:AQ$37)*'Control panel'!AQ26 -> 0.01061083905 | AV28: ='Control panel'!$AA26/SUMPRODUCT('Control panel'!$AA$7:$AA$37,'Control panel'!AR$7:AR$37)*'Control panel'!AR26 -> 0.01061083905 | AW28: ='Control panel'!$AA26/SUMPRODUCT('Control panel'!$AA$7:$AA$37,'Control panel'!AS$7:AS$37)*'Control panel'!AS26 -> 0.01061083905 | AX28: ='Control panel'!$AA26/SUMPRODUCT('Control panel'!$AA$7:$AA$37,'Control panel'!AT$7:AT$37)*'Control panel'!AT26 -> 0.01061083905
B29: Total | C29: =SUM(C9:C27) -> 126.703092 | D29: =SUM(D9:D27) -> 131.6788404 | E29: 136.4018754 | F29: 138.6067558 | G29: 144.111563 | I29: Total | J29: =SUM(J9:J27) -> 52.39995897 | K29: =SUM(K9:K27) -> 54.45775416 | L29: 56.41103595 | M29: 57.32289719 | N29: 59.59949258 | P29: Total | Q29: =SUM(Q9:Q27) -> 74.303133 | R29: =SUM(R9:R27) -> 77.22108623 | S29: 79.99083949 | T29: 81.28385858 | U29: 84.51207045 | W29: 2025-26 | X29: ='PTRM Data'!B27 -> Plant & Equipment | Y29: =_xlfn.XLOOKUP(X29,'Control panel'!$L$7:$L$37,'Control panel'!$P$7:$P$37) -> 1 | Z29: 0 | AA29: =_xlfn.XLOOKUP(W29,'BBM Costs'!$Q$6:$U$6,_xlfn.XLOOKUP(X29,'BBM Costs'!$P$7:$P$37,'BBM Costs'!$Q$7:$U$37))*_xlfn.XLOOKUP(X29,'Control panel'!$L$7:$L$37,'Control panel'!$M$7:$M$37) -> 0 | AB29: =_xlfn.XLOOKUP(W29,'BBM Costs'!$X$6:$AB$6,_xlfn.XLOOKUP(X29,'BBM Costs'!$W$7:$W$37,'BBM Costs'!$X$7:$AB$37))*_xlfn.XLOOKUP(X29,'Control panel'!$S$7:$S$37,'Control panel'!$T$7:$T$37) -> 0 | AC29: 0 | AE29: ='PTRM Data'!B27 -> Plant & Equipment | AF29: ='Control panel'!$AA27/SUMPRODUCT('Control panel'!$AA$7:$AA$37,'Control panel'!AB$7:AB$37)*'Control panel'!AB27 -> 0 | AG29: ='Control panel'!$AA27/SUMPRODUCT('Control panel'!$AA$7:$AA$37,'Control panel'!AC$7:AC$37)*'Control panel'!AC27 -> 0 | AH29: ='Control panel'!$AA27/SUMPRODUCT('Control panel'!$AA$7:$AA$37,'Control panel'!AD$7:AD$37)*'Control panel'!AD27 -> 0 | AI29: ='Control panel'!$AA27/SUMPRODUCT('Control panel'!$AA$7:$AA$37,'Control panel'!AE$7:AE$37)*'Control panel'!AE27 -> 0 | AJ29: ='Control panel'!$AA27/SUMPRODUCT('Control panel'!$AA$7:$AA$37,'Control panel'!AF$7:AF$37)*'Control panel'!AF27 -> 0 | AK29: ='Control panel'!$AA27/SUMPRODUCT('Control panel'!$AA$7:$AA$37,'Control panel'!AG$7:AG$37)*'Control panel'!AG27 -> 0 | AL29: ='Control panel'!$AA27/SUMPRODUCT('Control panel'!$AA$7:$AA$37,'Control panel'!AH$7:AH$37)*'Control panel'!AH27 -> 0 | AM29: ='Control panel'!$AA27/SUMPRODUCT('Control panel'!$AA$7:$AA$37,'Control panel'!AI$7:AI$37)*'Control panel'!AI27 -> 0.002547954875 | AN29: ='Control panel'!$AA27/SUMPRODUCT('Control panel'!$AA$7:$AA$37,'Control panel'!AJ$7:AJ$37)*'Control panel'!AJ27 -> 0 | AO29: ='Control panel'!$AA27/SUMPRODUCT('Control panel'!$AA$7:$AA$37,'Control panel'!AK$7:AK$37)*'Control panel'!AK27 -> 0 | AP29: ='Control panel'!$AA27/SUMPRODUCT('Control panel'!$AA$7:$AA$37,'Control panel'!AL$7:AL$37)*'Control panel'!AL27 -> 0.002547954875 | AQ29: ='Control panel'!$AA27/SUMPRODUCT('Control panel'!$AA$7:$AA$37,'Control panel'!AM$7:AM$37)*'Control panel'!AM27 -> 0 | AR29: ='Control panel'!$AA27/SUMPRODUCT('Control panel'!$AA$7:$AA$37,'Control panel'!AN$7:AN$37)*'Control panel'!AN27 -> 0 | AS29: ='Control panel'!$AA27/SUMPRODUCT('Control panel'!$AA$7:$AA$37,'Control panel'!AO$7:AO$37)*'Control panel'!AO27 -> 0 | AT29: ='Control panel'!$AA27/SUMPRODUCT('Control panel'!$AA$7:$AA$37,'Control panel'!AP$7:AP$37)*'Control panel'!AP27 -> 0.002547954875 | AU29: ='Control panel'!$AA27/SUMPRODUCT('Control panel'!$AA$7:$AA$37,'Control panel'!AQ$7:AQ$37)*'Control panel'!AQ27 -> 0.002547954875 | AV29: ='Control panel'!$AA27/SUMPRODUCT('Control panel'!$AA$7:$AA$37,'Control panel'!AR$7:AR$37)*'Control panel'!AR27 -> 0.002547954875 | AW29: ='Control panel'!$AA27/SUMPRODUCT('Control panel'!$AA$7:$AA$37,'Control panel'!AS$7:AS$37)*'Control panel'!AS27 -> 0.002547954875 | AX29: ='Control panel'!$AA27/SUMPRODUCT('Control panel'!$AA$7:$AA$37,'Control panel'!AT$7:AT$37)*'Control panel'!AT27 -> 0.002547954875
W30: 2025-26 | X30: ='PTRM Data'!B28 -> Buildings | Y30: =_xlfn.XLOOKUP(X30,'Control panel'!$L$7:$L$37,'Control panel'!$P$7:$P$37) -> 1 | Z30: 0 | AA30: =_xlfn.XLOOKUP(W30,'BBM Costs'!$Q$6:$U$6,_xlfn.XLOOKUP(X30,'BBM Costs'!$P$7:$P$37,'BBM Costs'!$Q$7:$U$37))*_xlfn.XLOOKUP(X30,'Control panel'!$L$7:$L$37,'Control panel'!$M$7:$M$37) -> 0 | AB30: =_xlfn.XLOOKUP(W30,'BBM Costs'!$X$6:$AB$6,_xlfn.XLOOKUP(X30,'BBM Costs'!$W$7:$W$37,'BBM Costs'!$X$7:$AB$37))*_xlfn.XLOOKUP(X30,'Control panel'!$S$7:$S$37,'Control panel'!$T$7:$T$37) -> 0 | AC30: 0 | AE30: ='PTRM Data'!B28 -> Buildings | AF30: ='Control panel'!$AA28/SUMPRODUCT('Control panel'!$AA$7:$AA$37,'Control panel'!AB$7:AB$37)*'Control panel'!AB28 -> 0 | AG30: ='Control panel'!$AA28/SUMPRODUCT('Control panel'!$AA$7:$AA$37,'Control panel'!AC$7:AC$37)*'Control panel'!AC28 -> 0 | AH30: ='Control panel'!$AA28/SUMPRODUCT('Control panel'!$AA$7:$AA$37,'Control panel'!AD$7:AD$37)*'Control panel'!AD28 -> 0 | AI30: ='Control panel'!$AA28/SUMPRODUCT('Control panel'!$AA$7:$AA$37,'Control panel'!AE$7:AE$37)*'Control panel'!AE28 -> 0 | AJ30: ='Control panel'!$AA28/SUMPRODUCT('Control panel'!$AA$7:$AA$37,'Control panel'!AF$7:AF$37)*'Control panel'!AF28 -> 0 | AK30: ='Control panel'!$AA28/SUMPRODUCT('Control panel'!$AA$7:$AA$37,'Control panel'!AG$7:AG$37)*'Control panel'!AG28 -> 0 | AL30: ='Control panel'!$AA28/SUMPRODUCT('Control panel'!$AA$7:$AA$37,'Control panel'!AH$7:AH$37)*'Control panel'!AH28 -> 0 | AM30: ='Control panel'!$AA28/SUMPRODUCT('Control panel'!$AA$7:$AA$37,'Control panel'!AI$7:AI$37)*'Control panel'!AI28 -> 0.02535035294 | AN30: ='Control panel'!$AA28/SUMPRODUCT('Control panel'!$AA$7:$AA$37,'Control panel'!AJ$7:AJ$37)*'Control panel'!AJ28 -> 0 | AO30: ='Control panel'!$AA28/SUMPRODUCT('Control panel'!$AA$7:$AA$37,'Control panel'!AK$7:AK$37)*'Control panel'!AK28 -> 0 | AP30: ='Control panel'!$AA28/SUMPRODUCT('Control panel'!$AA$7:$AA$37,'Control panel'!AL$7:AL$37)*'Control panel'!AL28 -> 0.02535035294 | AQ30: ='Control panel'!$AA28/SUMPRODUCT('Control panel'!$AA$7:$AA$37,'Control panel'!AM$7:AM$37)*'Control panel'!AM28 -> 0 | AR30: ='Control panel'!$AA28/SUMPRODUCT('Control panel'!$AA$7:$AA$37,'Control panel'!AN$7:AN$37)*'Control panel'!AN28 -> 0 | AS30: ='Control panel'!$AA28/SUMPRODUCT('Control panel'!$AA$7:$AA$37,'Control panel'!AO$7:AO$37)*'Control panel'!AO28 -> 0 | AT30: ='Control panel'!$AA28/SUMPRODUCT('Control panel'!$AA$7:$AA$37,'Control panel'!AP$7:AP$37)*'Control panel'!AP28 -> 0.02535035294 | AU30: ='Control panel'!$AA28/SUMPRODUCT('Control panel'!$AA$7:$AA$37,'Control panel'!AQ$7:AQ$37)*'Control panel'!AQ28 -> 0.02535035294 | AV30: ='Control panel'!$AA28/SUMPRODUCT('Control panel'!$AA$7:$AA$37,'Control panel'!AR$7:AR$37)*'Control panel'!AR28 -> 0.02535035294 | AW30: ='Control panel'!$AA28/SUMPRODUCT('Control panel'!$AA$7:$AA$37,'Control panel'!AS$7:AS$37)*'Control panel'!AS28 -> 0.02535035294 | AX30: ='Control panel'!$AA28/SUMPRODUCT('Control panel'!$AA$7:$AA$37,'Control panel'!AT$7:AT$37)*'Control panel'!AT28 -> 0.02535035294
W31: 2025-26 | X31: ='PTRM Data'!B29 -> Office Equipment & Furniture | Y31: =_xlfn.XLOOKUP(X31,'Control panel'!$L$7:$L$37,'Control panel'!$P$7:$P$37) -> 1 | Z31: -0.01686284518 | AA31: =_xlfn.XLOOKUP(W31,'BBM Costs'!$Q$6:$U$6,_xlfn.XLOOKUP(X31,'BBM Costs'!$P$7:$P$37,'BBM Costs'!$Q$7:$U$37))*_xlfn.XLOOKUP(X31,'Control panel'!$L$7:$L$37,'Control panel'!$M$7:$M$37) -> 0 | AB31: =_xlfn.XLOOKUP(W31,'BBM Costs'!$X$6:$AB$6,_xlfn.XLOOKUP(X31,'BBM Costs'!$W$7:$W$37,'BBM Costs'!$X$7:$AB$37))*_xlfn.XLOOKUP(X31,'Control panel'!$S$7:$S$37,'Control panel'!$T$7:$T$37) -> 0 | AC31: -0.01686284518 | AE31: ='PTRM Data'!B29 -> Office Equipment & Furniture | AF31: ='Control panel'!$AA29/SUMPRODUCT('Control panel'!$AA$7:$AA$37,'Control panel'!AB$7:AB$37)*'Control panel'!AB29 -> -0.000661257727 | AG31: ='Control panel'!$AA29/SUMPRODUCT('Control panel'!$AA$7:$AA$37,'Control panel'!AC$7:AC$37)*'Control panel'!AC29 -> 0 | AH31: ='Control panel'!$AA29/SUMPRODUCT('Control panel'!$AA$7:$AA$37,'Control panel'!AD$7:AD$37)*'Control panel'!AD29 -> 0 | AI31: ='Control panel'!$AA29/SUMPRODUCT('Control panel'!$AA$7:$AA$37,'Control panel'!AE$7:AE$37)*'Control panel'!AE29 -> 0 | AJ31: ='Control panel'!$AA29/SUMPRODUCT('Control panel'!$AA$7:$AA$37,'Control panel'!AF$7:AF$37)*'Control panel'!AF29 -> 0 | AK31: ='Control panel'!$AA29/SUMPRODUCT('Control panel'!$AA$7:$AA$37,'Control panel'!AG$7:AG$37)*'Control panel'!AG29 -> -0.0006679532632 | AL31: ='Control panel'!$AA29/SUMPRODUCT('Control panel'!$AA$7:$AA$37,'Control panel'!AH$7:AH$37)*'Control panel'!AH29 -> 0 | AM31: ='Control panel'!$AA29/SUMPRODUCT('Control panel'!$AA$7:$AA$37,'Control panel'!AI$7:AI$37)*'Control panel'!AI29 -> -0.0006022469065 | AN31: ='Control panel'!$AA29/SUMPRODUCT('Control panel'!$AA$7:$AA$37,'Control panel'!AJ$7:AJ$37)*'Control panel'!AJ29 -> 0 | AO31: ='Control panel'!$AA29/SUMPRODUCT('Control panel'!$AA$7:$AA$37,'Control panel'!AK$7:AK$37)*'Control panel'!AK29 -> 0 | AP31: ='Control panel'!$AA29/SUMPRODUCT('Control panel'!$AA$7:$AA$37,'Control panel'!AL$7:AL$37)*'Control panel'!AL29 -> -0.0006022469065 | AQ31: ='Control panel'!$AA29/SUMPRODUCT('Control panel'!$AA$7:$AA$37,'Control panel'!AM$7:AM$37)*'Control panel'!AM29 -> 0 | AR31: ='Control panel'!$AA29/SUMPRODUCT('Control panel'!$AA$7:$AA$37,'Control panel'!AN$7:AN$37)*'Control panel'!AN29 -> 0 | AS31: ='Control panel'!$AA29/SUMPRODUCT('Control panel'!$AA$7:$AA$37,'Control panel'!AO$7:AO$37)*'Control panel'!AO29 -> 0 | AT31: ='Control panel'!$AA29/SUMPRODUCT('Control panel'!$AA$7:$AA$37,'Control panel'!AP$7:AP$37)*'Control panel'!AP29 -> -0.0006022469065 | AU31: ='Control panel'!$AA29/SUMPRODUCT('Control panel'!$AA$7:$AA$37,'Control panel'!AQ$7:AQ$37)*'Control panel'!AQ29 -> -0.0006022469065 | AV31: ='Control panel'!$AA29/SUMPRODUCT('Control panel'!$AA$7:$AA$37,'Control panel'!AR$7:AR$37)*'Control panel'!AR29 -> -0.0006022469065 | AW31: ='Control panel'!$AA29/SUMPRODUCT('Control panel'!$AA$7:$AA$37,'Control panel'!AS$7:AS$37)*'Control panel'!AS29 -> -0.0006022469065 | AX31: ='Control panel'!$AA29/SUMPRODUCT('Control panel'!$AA$7:$AA$37,'Control panel'!AT$7:AT$37)*'Control panel'!AT29 -> -0.0006022469065
W32: 2025-26 | X32: ='PTRM Data'!B30 -> Initial Leases (10 yr life) | Y32: =_xlfn.XLOOKUP(X32,'Control panel'!$L$7:$L$37,'Control panel'!$P$7:$P$37) -> 1 | Z32: 0 | AA32: =_xlfn.XLOOKUP(W32,'BBM Costs'!$Q$6:$U$6,_xlfn.XLOOKUP(X32,'BBM Costs'!$P$7:$P$37,'BBM Costs'!$Q$7:$U$37))*_xlfn.XLOOKUP(X32,'Control panel'!$L$7:$L$37,'Control panel'!$M$7:$M$37) -> 0 | AB32: =_xlfn.XLOOKUP(W32,'BBM Costs'!$X$6:$AB$6,_xlfn.XLOOKUP(X32,'BBM Costs'!$W$7:$W$37,'BBM Costs'!$X$7:$AB$37))*_xlfn.XLOOKUP(X32,'Control panel'!$S$7:$S$37,'Control panel'!$T$7:$T$37) -> 0 | AC32: 0 | AE32: ='PTRM Data'!B30 -> Initial Leases (10 yr life) | AF32: ='Control panel'!$AA30/SUMPRODUCT('Control panel'!$AA$7:$AA$37,'Control panel'!AB$7:AB$37)*'Control panel'!AB30 -> 0 | AG32: ='Control panel'!$AA30/SUMPRODUCT('Control panel'!$AA$7:$AA$37,'Control panel'!AC$7:AC$37)*'Control panel'!AC30 -> 0 | AH32: ='Control panel'!$AA30/SUMPRODUCT('Control panel'!$AA$7:$AA$37,'Control panel'!AD$7:AD$37)*'Control panel'!AD30 -> 0 | AI32: ='Control panel'!$AA30/SUMPRODUCT('Control panel'!$AA$7:$AA$37,'Control panel'!AE$7:AE$37)*'Control panel'!AE30 -> 0 | AJ32: ='Control panel'!$AA30/SUMPRODUCT('Control panel'!$AA$7:$AA$37,'Control panel'!AF$7:AF$37)*'Control panel'!AF30 -> 0 | AK32: ='Control panel'!$AA30/SUMPRODUCT('Control panel'!$AA$7:$AA$37,'Control panel'!AG$7:AG$37)*'Control panel'!AG30 -> 0 | AL32: ='Control panel'!$AA30/SUMPRODUCT('Control panel'!$AA$7:$AA$37,'Control panel'!AH$7:AH$37)*'Control panel'!AH30 -> 0 | AM32: ='Control panel'!$AA30/SUMPRODUCT('Control panel'!$AA$7:$AA$37,'Control panel'!AI$7:AI$37)*'Control panel'!AI30 -> 0.003300123517 | AN32: ='Control panel'!$AA30/SUMPRODUCT('Control panel'!$AA$7:$AA$37,'Control panel'!AJ$7:AJ$37)*'Control panel'!AJ30 -> 0 | AO32: ='Control panel'!$AA30/SUMPRODUCT('Control panel'!$AA$7:$AA$37,'Control panel'!AK$7:AK$37)*'Control panel'!AK30 -> 0 | AP32: ='Control panel'!$AA30/SUMPRODUCT('Control panel'!$AA$7:$AA$37,'Control panel'!AL$7:AL$37)*'Control panel'!AL30 -> 0.003300123517 | AQ32: ='Control panel'!$AA30/SUMPRODUCT('Control panel'!$AA$7:$AA$37,'Control panel'!AM$7:AM$37)*'Control panel'!AM30 -> 0 | AR32: ='Control panel'!$AA30/SUMPRODUCT('Control panel'!$AA$7:$AA$37,'Control panel'!AN$7:AN$37)*'Control panel'!AN30 -> 0 | AS32: ='Control panel'!$AA30/SUMPRODUCT('Control panel'!$AA$7:$AA$37,'Control panel'!AO$7:AO$37)*'Control panel'!AO30 -> 0 | AT32: ='Control panel'!$AA30/SUMPRODUCT('Control panel'!$AA$7:$AA$37,'Control panel'!AP$7:AP$37)*'Control panel'!AP30 -> 0.003300123517 | AU32: ='Control panel'!$AA30/SUMPRODUCT('Control panel'!$AA$7:$AA$37,'Control panel'!AQ$7:AQ$37)*'Control panel'!AQ30 -> 0.003300123517 | AV32: ='Control panel'!$AA30/SUMPRODUCT('Control panel'!$AA$7:$AA$37,'Control panel'!AR$7:AR$37)*'Control panel'!AR30 -> 0.003300123517 | AW32: ='Control panel'!$AA30/SUMPRODUCT('Control panel'!$AA$7:$AA$37,'Control panel'!AS$7:AS$37)*'Control panel'!AS30 -> 0.003300123517 | AX32: ='Control panel'!$AA30/SUMPRODUCT('Control panel'!$AA$7:$AA$37,'Control panel'!AT$7:AT$37)*'Control panel'!AT30 -> 0.003300123517
W33: 2025-26 | X33: ='PTRM Data'!B31 -> Lease Extensions (5yr Life) | Y33: =_xlfn.XLOOKUP(X33,'Control panel'!$L$7:$L$37,'Control panel'!$P$7:$P$37) -> 1 | Z33: 0 | AA33: =_xlfn.XLOOKUP(W33,'BBM Costs'!$Q$6:$U$6,_xlfn.XLOOKUP(X33,'BBM Costs'!$P$7:$P$37,'BBM Costs'!$Q$7:$U$37))*_xlfn.XLOOKUP(X33,'Control panel'!$L$7:$L$37,'Control panel'!$M$7:$M$37) -> 0 | AB33: =_xlfn.XLOOKUP(W33,'BBM Costs'!$X$6:$AB$6,_xlfn.XLOOKUP(X33,'BBM Costs'!$W$7:$W$37,'BBM Costs'!$X$7:$AB$37))*_xlfn.XLOOKUP(X33,'Control panel'!$S$7:$S$37,'Control panel'!$T$7:$T$37) -> 0 | AC33: 0 | AE33: ='PTRM Data'!B31 -> Lease Extensions (5yr Life) | AF33: ='Control panel'!$AA31/SUMPRODUCT('Control panel'!$AA$7:$AA$37,'Control panel'!AB$7:AB$37)*'Control panel'!AB31 -> 0 | AG33: ='Control panel'!$AA31/SUMPRODUCT('Control panel'!$AA$7:$AA$37,'Control panel'!AC$7:AC$37)*'Control panel'!AC31 -> 0 | AH33: ='Control panel'!$AA31/SUMPRODUCT('Control panel'!$AA$7:$AA$37,'Control panel'!AD$7:AD$37)*'Control panel'!AD31 -> 0 | AI33: ='Control panel'!$AA31/SUMPRODUCT('Control panel'!$AA$7:$AA$37,'Control panel'!AE$7:AE$37)*'Control panel'!AE31 -> 0 | AJ33: ='Control panel'!$AA31/SUMPRODUCT('Control panel'!$AA$7:$AA$37,'Control panel'!AF$7:AF$37)*'Control panel'!AF31 -> 0 | AK33: ='Control panel'!$AA31/SUMPRODUCT('Control panel'!$AA$7:$AA$37,'Control panel'!AG$7:AG$37)*'Control panel'!AG31 -> 0 | AL33: ='Control panel'!$AA31/SUMPRODUCT('Control panel'!$AA$7:$AA$37,'Control panel'!AH$7:AH$37)*'Control panel'!AH31 -> 0 | AM33: ='Control panel'!$AA31/SUMPRODUCT('Control panel'!$AA$7:$AA$37,'Control panel'!AI$7:AI$37)*'Control panel'!AI31 -> 0 | AN33: ='Control panel'!$AA31/SUMPRODUCT('Control panel'!$AA$7:$AA$37,'Control panel'!AJ$7:AJ$37)*'Control panel'!AJ31 -> 0 | AO33: ='Control panel'!$AA31/SUMPRODUCT('Control panel'!$AA$7:$AA$37,'Control panel'!AK$7:AK$37)*'Control panel'!AK31 -> 0 | AP33: ='Control panel'!$AA31/SUMPRODUCT('Control panel'!$AA$7:$AA$37,'Control panel'!AL$7:AL$37)*'Control panel'!AL31 -> 0 | AQ33: ='Control panel'!$AA31/SUMPRODUCT('Control panel'!$AA$7:$AA$37,'Control panel'!AM$7:AM$37)*'Control panel'!AM31 -> 0 | AR33: ='Control panel'!$AA31/SUMPRODUCT('Control panel'!$AA$7:$AA$37,'Control panel'!AN$7:AN$37)*'Control panel'!AN31 -> 0 | AS33: ='Control panel'!$AA31/SUMPRODUCT('Control panel'!$AA$7:$AA$37,'Control panel'!AO$7:AO$37)*'Control panel'!AO31 -> 0 | AT33: ='Control panel'!$AA31/SUMPRODUCT('Control panel'!$AA$7:$AA$37,'Control panel'!AP$7:AP$37)*'Control panel'!AP31 -> 0 | AU33: ='Control panel'!$AA31/SUMPRODUCT('Control panel'!$AA$7:$AA$37,'Control panel'!AQ$7:AQ$37)*'Control panel'!AQ31 -> 0 | AV33: ='Control panel'!$AA31/SUMPRODUCT('Control panel'!$AA$7:$AA$37,'Control panel'!AR$7:AR$37)*'Control panel'!AR31 -> 0 | AW33: ='Control panel'!$AA31/SUMPRODUCT('Control panel'!$AA$7:$AA$37,'Control panel'!AS$7:AS$37)*'Control panel'!AS31 -> 0 | AX33: ='Control panel'!$AA31/SUMPRODUCT('Control panel'!$AA$7:$AA$37,'Control panel'!AT$7:AT$37)*'Control panel'!AT31 -> 0
W34: 2025-26 | X34: ='PTRM Data'!B32 -> Land & Easements - combined | Y34: =_xlfn.XLOOKUP(X34,'Control panel'!$L$7:$L$37,'Control panel'!$P$7:$P$37) -> 1 | Z34: 0 | AA34: =_xlfn.XLOOKUP(W34,'BBM Costs'!$Q$6:$U$6,_xlfn.XLOOKUP(X34,'BBM Costs'!$P$7:$P$37,'BBM Costs'!$Q$7:$U$37))*_xlfn.XLOOKUP(X34,'Control panel'!$L$7:$L$37,'Control panel'!$M$7:$M$37) -> 0 | AB34: =_xlfn.XLOOKUP(W34,'BBM Costs'!$X$6:$AB$6,_xlfn.XLOOKUP(X34,'BBM Costs'!$W$7:$W$37,'BBM Costs'!$X$7:$AB$37))*_xlfn.XLOOKUP(X34,'Control panel'!$S$7:$S$37,'Control panel'!$T$7:$T$37) -> 0 | AC34: 0 | AE34: ='PTRM Data'!B32 -> Land & Easements - combined | AF34: ='Control panel'!$AA32/SUMPRODUCT('Control panel'!$AA$7:$AA$37,'Control panel'!AB$7:AB$37)*'Control panel'!AB32 -> 0 | AG34: ='Control panel'!$AA32/SUMPRODUCT('Control panel'!$AA$7:$AA$37,'Control panel'!AC$7:AC$37)*'Control panel'!AC32 -> 0 | AH34: ='Control panel'!$AA32/SUMPRODUCT('Control panel'!$AA$7:$AA$37,'Control panel'!AD$7:AD$37)*'Control panel'!AD32 -> 0 | AI34: ='Control panel'!$AA32/SUMPRODUCT('Control panel'!$AA$7:$AA$37,'Control panel'!AE$7:AE$37)*'Control panel'!AE32 -> 0 | AJ34: ='Control panel'!$AA32/SUMPRODUCT('Control panel'!$AA$7:$AA$37,'Control panel'!AF$7:AF$37)*'Control panel'!AF32 -> 0 | AK34: ='Control panel'!$AA32/SUMPRODUCT('Control panel'!$AA$7:$AA$37,'Control panel'!AG$7:AG$37)*'Control panel'!AG32 -> 0 | AL34: ='Control panel'!$AA32/SUMPRODUCT('Control panel'!$AA$7:$AA$37,'Control panel'!AH$7:AH$37)*'Control panel'!AH32 -> 0 | AM34: ='Control panel'!$AA32/SUMPRODUCT('Control panel'!$AA$7:$AA$37,'Control panel'!AI$7:AI$37)*'Control panel'!AI32 -> 0.002084078239 | AN34: ='Control panel'!$AA32/SUMPRODUCT('Control panel'!$AA$7:$AA$37,'Control panel'!AJ$7:AJ$37)*'Control panel'!AJ32 -> 0 | AO34: ='Control panel'!$AA32/SUMPRODUCT('Control panel'!$AA$7:$AA$37,'Control panel'!AK$7:AK$37)*'Control panel'!AK32 -> 0 | AP34: ='Control panel'!$AA32/SUMPRODUCT('Control panel'!$AA$7:$AA$37,'Control panel'!AL$7:AL$37)*'Control panel'!AL32 -> 0.002084078239 | AQ34: ='Control panel'!$AA32/SUMPRODUCT('Control panel'!$AA$7:$AA$37,'Control panel'!AM$7:AM$37)*'Control panel'!AM32 -> 0 | AR34: ='Control panel'!$AA32/SUMPRODUCT('Control panel'!$AA$7:$AA$37,'Control panel'!AN$7:AN$37)*'Control panel'!AN32 -> 0 | AS34: ='Control panel'!$AA32/SUMPRODUCT('Control panel'!$AA$7:$AA$37,'Control panel'!AO$7:AO$37)*'Control panel'!AO32 -> 0 | AT34: ='Control panel'!$AA32/SUMPRODUCT('Control panel'!$AA$7:$AA$37,'Control panel'!AP$7:AP$37)*'Control panel'!AP32 -> 0.002084078239 | AU34: ='Control panel'!$AA32/SUMPRODUCT('Control panel'!$AA$7:$AA$37,'Control panel'!AQ$7:AQ$37)*'Control panel'!AQ32 -> 0.002084078239 | AV34: ='Control panel'!$AA32/SUMPRODUCT('Control panel'!$AA$7:$AA$37,'Control panel'!AR$7:AR$37)*'Control panel'!AR32 -> 0.002084078239 | AW34: ='Control panel'!$AA32/SUMPRODUCT('Control panel'!$AA$7:$AA$37,'Control panel'!AS$7:AS$37)*'Control panel'!AS32 -> 0.002084078239 | AX34: ='Control panel'!$AA32/SUMPRODUCT('Control panel'!$AA$7:$AA$37,'Control panel'!AT$7:AT$37)*'Control panel'!AT32 -> 0.002084078239
W35: 2025-26 | X35: ='PTRM Data'!B33 -> Communications | Y35: =_xlfn.XLOOKUP(X35,'Control panel'!$L$7:$L$37,'Control panel'!$P$7:$P$37) -> 1 | Z35: 0 | AA35: =_xlfn.XLOOKUP(W35,'BBM Costs'!$Q$6:$U$6,_xlfn.XLOOKUP(X35,'BBM Costs'!$P$7:$P$37,'BBM Costs'!$Q$7:$U$37))*_xlfn.XLOOKUP(X35,'Control panel'!$L$7:$L$37,'Control panel'!$M$7:$M$37) -> 0 | AB35: =_xlfn.XLOOKUP(W35,'BBM Costs'!$X$6:$AB$6,_xlfn.XLOOKUP(X35,'BBM Costs'!$W$7:$W$37,'BBM Costs'!$X$7:$AB$37))*_xlfn.XLOOKUP(X35,'Control panel'!$S$7:$S$37,'Control panel'!$T$7:$T$37) -> 0 | AC35: 0 | AE35: ='PTRM Data'!B33 -> Communications | AF35: ='Control panel'!$AA33/SUMPRODUCT('Control panel'!$AA$7:$AA$37,'Control panel'!AB$7:AB$37)*'Control panel'!AB33 -> 0 | AG35: ='Control panel'!$AA33/SUMPRODUCT('Control panel'!$AA$7:$AA$37,'Control panel'!AC$7:AC$37)*'Control panel'!AC33 -> 0 | AH35: ='Control panel'!$AA33/SUMPRODUCT('Control panel'!$AA$7:$AA$37,'Control panel'!AD$7:AD$37)*'Control panel'!AD33 -> 0 | AI35: ='Control panel'!$AA33/SUMPRODUCT('Control panel'!$AA$7:$AA$37,'Control panel'!AE$7:AE$37)*'Control panel'!AE33 -> 0 | AJ35: ='Control panel'!$AA33/SUMPRODUCT('Control panel'!$AA$7:$AA$37,'Control panel'!AF$7:AF$37)*'Control panel'!AF33 -> 0 | AK35: ='Control panel'!$AA33/SUMPRODUCT('Control panel'!$AA$7:$AA$37,'Control panel'!AG$7:AG$37)*'Control panel'!AG33 -> 0 | AL35: ='Control panel'!$AA33/SUMPRODUCT('Control panel'!$AA$7:$AA$37,'Control panel'!AH$7:AH$37)*'Control panel'!AH33 -> 0 | AM35: ='Control panel'!$AA33/SUMPRODUCT('Control panel'!$AA$7:$AA$37,'Control panel'!AI$7:AI$37)*'Control panel'!AI33 -> 0.01038739747 | AN35: ='Control panel'!$AA33/SUMPRODUCT('Control panel'!$AA$7:$AA$37,'Control panel'!AJ$7:AJ$37)*'Control panel'!AJ33 -> 0 | AO35: ='Control panel'!$AA33/SUMPRODUCT('Control panel'!$AA$7:$AA$37,'Control panel'!AK$7:AK$37)*'Control panel'!AK33 -> 0 | AP35: ='Control panel'!$AA33/SUMPRODUCT('Control panel'!$AA$7:$AA$37,'Control panel'!AL$7:AL$37)*'Control panel'!AL33 -> 0.01038739747 | AQ35: ='Control panel'!$AA33/SUMPRODUCT('Control panel'!$AA$7:$AA$37,'Control panel'!AM$7:AM$37)*'Control panel'!AM33 -> 0 | AR35: ='Control panel'!$AA33/SUMPRODUCT('Control panel'!$AA$7:$AA$37,'Control panel'!AN$7:AN$37)*'Control panel'!AN33 -> 0 | AS35: ='Control panel'!$AA33/SUMPRODUCT('Control panel'!$AA$7:$AA$37,'Control panel'!AO$7:AO$37)*'Control panel'!AO33 -> 0 | AT35: ='Control panel'!$AA33/SUMPRODUCT('Control panel'!$AA$7:$AA$37,'Control panel'!AP$7:AP$37)*'Control panel'!AP33 -> 0.01038739747 | AU35: ='Control panel'!$AA33/SUMPRODUCT('Control panel'!$AA$7:$AA$37,'Control panel'!AQ$7:AQ$37)*'Control panel'!AQ33 -> 0.01038739747 | AV35: ='Control panel'!$AA33/SUMPRODUCT('Control panel'!$AA$7:$AA$37,'Control panel'!AR$7:AR$37)*'Control panel'!AR33 -> 0.01038739747 | AW35: ='Control panel'!$AA33/SUMPRODUCT('Control panel'!$AA$7:$AA$37,'Control panel'!AS$7:AS$37)*'Control panel'!AS33 -> 0.01038739747 | AX35: ='Control panel'!$AA33/SUMPRODUCT('Control panel'!$AA$7:$AA$37,'Control panel'!AT$7:AT$37)*'Control panel'!AT33 -> 0.01038739747
W36: 2025-26 | X36: ='PTRM Data'!B34 -> In-house software | Y36: =_xlfn.XLOOKUP(X36,'Control panel'!$L$7:$L$37,'Control panel'!$P$7:$P$37) -> 1 | Z36: 0 | AA36: =_xlfn.XLOOKUP(W36,'BBM Costs'!$Q$6:$U$6,_xlfn.XLOOKUP(X36,'BBM Costs'!$P$7:$P$37,'BBM Costs'!$Q$7:$U$37))*_xlfn.XLOOKUP(X36,'Control panel'!$L$7:$L$37,'Control panel'!$M$7:$M$37) -> 0 | AB36: =_xlfn.XLOOKUP(W36,'BBM Costs'!$X$6:$AB$6,_xlfn.XLOOKUP(X36,'BBM Costs'!$W$7:$W$37,'BBM Costs'!$X$7:$AB$37))*_xlfn.XLOOKUP(X36,'Control panel'!$S$7:$S$37,'Control panel'!$T$7:$T$37) -> 0 | AC36: 0 | AE36: ='PTRM Data'!B34 -> In-house software | AF36: ='Control panel'!$AA34/SUMPRODUCT('Control panel'!$AA$7:$AA$37,'Control panel'!AB$7:AB$37)*'Control panel'!AB34 -> 0 | AG36: ='Control panel'!$AA34/SUMPRODUCT('Control panel'!$AA$7:$AA$37,'Control panel'!AC$7:AC$37)*'Control panel'!AC34 -> 0 | AH36: ='Control panel'!$AA34/SUMPRODUCT('Control panel'!$AA$7:$AA$37,'Control panel'!AD$7:AD$37)*'Control panel'!AD34 -> 0 | AI36: ='Control panel'!$AA34/SUMPRODUCT('Control panel'!$AA$7:$AA$37,'Control panel'!AE$7:AE$37)*'Control panel'!AE34 -> 0 | AJ36: ='Control panel'!$AA34/SUMPRODUCT('Control panel'!$AA$7:$AA$37,'Control panel'!AF$7:AF$37)*'Control panel'!AF34 -> 0 | AK36: ='Control panel'!$AA34/SUMPRODUCT('Control panel'!$AA$7:$AA$37,'Control panel'!AG$7:AG$37)*'Control panel'!AG34 -> 0 | AL36: ='Control panel'!$AA34/SUMPRODUCT('Control panel'!$AA$7:$AA$37,'Control panel'!AH$7:AH$37)*'Control panel'!AH34 -> 0 | AM36: ='Control panel'!$AA34/SUMPRODUCT('Control panel'!$AA$7:$AA$37,'Control panel'!AI$7:AI$37)*'Control panel'!AI34 -> 0.01162878645 | AN36: ='Control panel'!$AA34/SUMPRODUCT('Control panel'!$AA$7:$AA$37,'Control panel'!AJ$7:AJ$37)*'Control panel'!AJ34 -> 0 | AO36: ='Control panel'!$AA34/SUMPRODUCT('Control panel'!$AA$7:$AA$37,'Control panel'!AK$7:AK$37)*'Control panel'!AK34 -> 0 | AP36: ='Control panel'!$AA34/SUMPRODUCT('Control panel'!$AA$7:$AA$37,'Control panel'!AL$7:AL$37)*'Control panel'!AL34 -> 0.01162878645 | AQ36: ='Control panel'!$AA34/SUMPRODUCT('Control panel'!$AA$7:$AA$37,'Control panel'!AM$7:AM$37)*'Control panel'!AM34 -> 0 | AR36: ='Control panel'!$AA34/SUMPRODUCT('Control panel'!$AA$7:$AA$37,'Control panel'!AN$7:AN$37)*'Control panel'!AN34 -> 0 | AS36: ='Control panel'!$AA34/SUMPRODUCT('Control panel'!$AA$7:$AA$37,'Control panel'!AO$7:AO$37)*'Control panel'!AO34 -> 0 | AT36: ='Control panel'!$AA34/SUMPRODUCT('Control panel'!$AA$7:$AA$37,'Control panel'!AP$7:AP$37)*'Control panel'!AP34 -> 0.01162878645 | AU36: ='Control panel'!$AA34/SUMPRODUCT('Control panel'!$AA$7:$AA$37,'Control panel'!AQ$7:AQ$37)*'Control panel'!AQ34 -> 0.01162878645 | AV36: ='Control panel'!$AA34/SUMPRODUCT('Control panel'!$AA$7:$AA$37,'Control panel'!AR$7:AR$37)*'Control panel'!AR34 -> 0.01162878645 | AW36: ='Control panel'!$AA34/SUMPRODUCT('Control panel'!$AA$7:$AA$37,'Control panel'!AS$7:AS$37)*'Control panel'!AS34 -> 0.01162878645 | AX36: ='Control panel'!$AA34/SUMPRODUCT('Control panel'!$AA$7:$AA$37,'Control panel'!AT$7:AT$37)*'Control panel'!AT34 -> 0.01162878645
W37: 2025-26 | X37: ='PTRM Data'!B35 -> IT Systems | Y37: =_xlfn.XLOOKUP(X37,'Control panel'!$L$7:$L$37,'Control panel'!$P$7:$P$37) -> 1 | Z37: 0 | AA37: =_xlfn.XLOOKUP(W37,'BBM Costs'!$Q$6:$U$6,_xlfn.XLOOKUP(X37,'BBM Costs'!$P$7:$P$37,'BBM Costs'!$Q$7:$U$37))*_xlfn.XLOOKUP(X37,'Control panel'!$L$7:$L$37,'Control panel'!$M$7:$M$37) -> 0 | AB37: =_xlfn.XLOOKUP(W37,'BBM Costs'!$X$6:$AB$6,_xlfn.XLOOKUP(X37,'BBM Costs'!$W$7:$W$37,'BBM Costs'!$X$7:$AB$37))*_xlfn.XLOOKUP(X37,'Control panel'!$S$7:$S$37,'Control panel'!$T$7:$T$37) -> 0 | AC37: 0 | AE37: ='PTRM Data'!B35 -> IT Systems | AF37: ='Control panel'!$AA35/SUMPRODUCT('Control panel'!$AA$7:$AA$37,'Control panel'!AB$7:AB$37)*'Control panel'!AB35 -> 0 | AG37: ='Control panel'!$AA35/SUMPRODUCT('Control panel'!$AA$7:$AA$37,'Control panel'!AC$7:AC$37)*'Control panel'!AC35 -> 0 | AH37: ='Control panel'!$AA35/SUMPRODUCT('Control panel'!$AA$7:$AA$37,'Control panel'!AD$7:AD$37)*'Control panel'!AD35 -> 0 | AI37: ='Control panel'!$AA35/SUMPRODUCT('Control panel'!$AA$7:$AA$37,'Control panel'!AE$7:AE$37)*'Control panel'!AE35 -> 0 | AJ37: ='Control panel'!$AA35/SUMPRODUCT('Control panel'!$AA$7:$AA$37,'Control panel'!AF$7:AF$37)*'Control panel'!AF35 -> 0 | AK37: ='Control panel'!$AA35/SUMPRODUCT('Control panel'!$AA$7:$AA$37,'Control panel'!AG$7:AG$37)*'Control panel'!AG35 -> 0 | AL37: ='Control panel'!$AA35/SUMPRODUCT('Control panel'!$AA$7:$AA$37,'Control panel'!AH$7:AH$37)*'Control panel'!AH35 -> 0 | AM37: ='Control panel'!$AA35/SUMPRODUCT('Control panel'!$AA$7:$AA$37,'Control panel'!AI$7:AI$37)*'Control panel'!AI35 -> 0.0004556433372 | AN37: ='Control panel'!$AA35/SUMPRODUCT('Control panel'!$AA$7:$AA$37,'Control panel'!AJ$7:AJ$37)*'Control panel'!AJ35 -> 0 | AO37: ='Control panel'!$AA35/SUMPRODUCT('Control panel'!$AA$7:$AA$37,'Control panel'!AK$7:AK$37)*'Control panel'!AK35 -> 0 | AP37: ='Control panel'!$AA35/SUMPRODUCT('Control panel'!$AA$7:$AA$37,'Control panel'!AL$7:AL$37)*'Control panel'!AL35 -> 0.0004556433372 | AQ37: ='Control panel'!$AA35/SUMPRODUCT('Control panel'!$AA$7:$AA$37,'Control panel'!AM$7:AM$37)*'Control panel'!AM35 -> 0 | AR37: ='Control panel'!$AA35/SUMPRODUCT('Control panel'!$AA$7:$AA$37,'Control panel'!AN$7:AN$37)*'Control panel'!AN35 -> 0 | AS37: ='Control panel'!$AA35/SUMPRODUCT('Control panel'!$AA$7:$AA$37,'Control panel'!AO$7:AO$37)*'Control panel'!AO35 -> 0 | AT37: ='Control panel'!$AA35/SUMPRODUCT('Control panel'!$AA$7:$AA$37,'Control panel'!AP$7:AP$37)*'Control panel'!AP35 -> 0.0004556433372 | AU37: ='Control panel'!$AA35/SUMPRODUCT('Control panel'!$AA$7:$AA$37,'Control panel'!AQ$7:AQ$37)*'Control panel'!AQ35 -> 0.0004556433372 | AV37: ='Control panel'!$AA35/SUMPRODUCT('Control panel'!$AA$7:$AA$37,'Control panel'!AR$7:AR$37)*'Control panel'!AR35 -> 0.0004556433372 | AW37: ='Control panel'!$AA35/SUMPRODUCT('Control panel'!$AA$7:$AA$37,'Control panel'!AS$7:AS$37)*'Control panel'!AS35 -> 0.0004556433372 | AX37: ='Control panel'!$AA35/SUMPRODUCT('Control panel'!$AA$7:$AA$37,'Control panel'!AT$7:AT$37)*'Control panel'!AT35 -> 0.0004556433372
W38: 2025-26 | X38: ='PTRM Data'!B36 -> Legacy ICT Assets | Y38: =_xlfn.XLOOKUP(X38,'Control panel'!$L$7:$L$37,'Control panel'!$P$7:$P$37) -> 1 | Z38: 0 | AA38: =_xlfn.XLOOKUP(W38,'BBM Costs'!$Q$6:$U$6,_xlfn.XLOOKUP(X38,'BBM Costs'!$P$7:$P$37,'BBM Costs'!$Q$7:$U$37))*_xlfn.XLOOKUP(X38,'Control panel'!$L$7:$L$37,'Control panel'!$M$7:$M$37) -> 0 | AB38: =_xlfn.XLOOKUP(W38,'BBM Costs'!$X$6:$AB$6,_xlfn.XLOOKUP(X38,'BBM Costs'!$W$7:$W$37,'BBM Costs'!$X$7:$AB$37))*_xlfn.XLOOKUP(X38,'Control panel'!$S$7:$S$37,'Control panel'!$T$7:$T$37) -> 0 | AC38: 0 | AE38: ='PTRM Data'!B36 -> Legacy ICT Assets | AF38: ='Control panel'!$AA36/SUMPRODUCT('Control panel'!$AA$7:$AA$37,'Control panel'!AB$7:AB$37)*'Control panel'!AB36 -> 0 | AG38: ='Control panel'!$AA36/SUMPRODUCT('Control panel'!$AA$7:$AA$37,'Control panel'!AC$7:AC$37)*'Control panel'!AC36 -> 0 | AH38: ='Control panel'!$AA36/SUMPRODUCT('Control panel'!$AA$7:$AA$37,'Control panel'!AD$7:AD$37)*'Control panel'!AD36 -> 0 | AI38: ='Control panel'!$AA36/SUMPRODUCT('Control panel'!$AA$7:$AA$37,'Control panel'!AE$7:AE$37)*'Control panel'!AE36 -> 0 | AJ38: ='Control panel'!$AA36/SUMPRODUCT('Control panel'!$AA$7:$AA$37,'Control panel'!AF$7:AF$37)*'Control panel'!AF36 -> 0 | AK38: ='Control panel'!$AA36/SUMPRODUCT('Control panel'!$AA$7:$AA$37,'Control panel'!AG$7:AG$37)*'Control panel'!AG36 -> 0 | AL38: ='Control panel'!$AA36/SUMPRODUCT('Control panel'!$AA$7:$AA$37,'Control panel'!AH$7:AH$37)*'Control panel'!AH36 -> 0 | AM38: ='Control panel'!$AA36/SUMPRODUCT('Control panel'!$AA$7:$AA$37,'Control panel'!AI$7:AI$37)*'Control panel'!AI36 -> 0.004944898371 | AN38: ='Control panel'!$AA36/SUMPRODUCT('Control panel'!$AA$7:$AA$37,'Control panel'!AJ$7:AJ$37)*'Control panel'!AJ36 -> 0 | AO38: ='Control panel'!$AA36/SUMPRODUCT('Control panel'!$AA$7:$AA$37,'Control panel'!AK$7:AK$37)*'Control panel'!AK36 -> 0 | AP38: ='Control panel'!$AA36/SUMPRODUCT('Control panel'!$AA$7:$AA$37,'Control panel'!AL$7:AL$37)*'Control panel'!AL36 -> 0.004944898371 | AQ38: ='Control panel'!$AA36/SUMPRODUCT('Control panel'!$AA$7:$AA$37,'Control panel'!AM$7:AM$37)*'Control panel'!AM36 -> 0 | AR38: ='Control panel'!$AA36/SUMPRODUCT('Control panel'!$AA$7:$AA$37,'Control panel'!AN$7:AN$37)*'Control panel'!AN36 -> 0 | AS38: ='Control panel'!$AA36/SUMPRODUCT('Control panel'!$AA$7:$AA$37,'Control panel'!AO$7:AO$37)*'Control panel'!AO36 -> 0 | AT38: ='Control panel'!$AA36/SUMPRODUCT('Control panel'!$AA$7:$AA$37,'Control panel'!AP$7:AP$37)*'Control panel'!AP36 -> 0.004944898371 | AU38: ='Control panel'!$AA36/SUMPRODUCT('Control panel'!$AA$7:$AA$37,'Control panel'!AQ$7:AQ$37)*'Control panel'!AQ36 -> 0.004944898371 | AV38: ='Control panel'!$AA36/SUMPRODUCT('Control panel'!$AA$7:$AA$37,'Control panel'!AR$7:AR$37)*'Control panel'!AR36 -> 0.004944898371 | AW38: ='Control panel'!$AA36/SUMPRODUCT('Control panel'!$AA$7:$AA$37,'Control panel'!AS$7:AS$37)*'Control panel'!AS36 -> 0.004944898371 | AX38: ='Control panel'!$AA36/SUMPRODUCT('Control panel'!$AA$7:$AA$37,'Control panel'!AT$7:AT$37)*'Control panel'!AT36 -> 0.004944898371
W39: 2025-26 | X39: ='PTRM Data'!B37 -> Buildings - capital works | Y39: =_xlfn.XLOOKUP(X39,'Control panel'!$L$7:$L$37,'Control panel'!$P$7:$P$37) -> 1 | Z39: 0 | AA39: =_xlfn.XLOOKUP(W39,'BBM Costs'!$Q$6:$U$6,_xlfn.XLOOKUP(X39,'BBM Costs'!$P$7:$P$37,'BBM Costs'!$Q$7:$U$37))*_xlfn.XLOOKUP(X39,'Control panel'!$L$7:$L$37,'Control panel'!$M$7:$M$37) -> 0 | AB39: =_xlfn.XLOOKUP(W39,'BBM Costs'!$X$6:$AB$6,_xlfn.XLOOKUP(X39,'BBM Costs'!$W$7:$W$37,'BBM Costs'!$X$7:$AB$37))*_xlfn.XLOOKUP(X39,'Control panel'!$S$7:$S$37,'Control panel'!$T$7:$T$37) -> 0 | AC39: =SUM(Z39:AB39) -> 0 | AE39: ='PTRM Data'!B37 -> Buildings - capital works | AF39: ='Control panel'!$AA37/SUMPRODUCT('Control panel'!$AA$7:$AA$37,'Control panel'!AB$7:AB$37)*'Control panel'!AB37 -> 0 | AG39: ='Control panel'!$AA37/SUMPRODUCT('Control panel'!$AA$7:$AA$37,'Control panel'!AC$7:AC$37)*'Control panel'!AC37 -> 0 | AH39: ='Control panel'!$AA37/SUMPRODUCT('Control panel'!$AA$7:$AA$37,'Control panel'!AD$7:AD$37)*'Control panel'!AD37 -> 0 | AI39: ='Control panel'!$AA37/SUMPRODUCT('Control panel'!$AA$7:$AA$37,'Control panel'!AE$7:AE$37)*'Control panel'!AE37 -> 0 | AJ39: ='Control panel'!$AA37/SUMPRODUCT('Control panel'!$AA$7:$AA$37,'Control panel'!AF$7:AF$37)*'Control panel'!AF37 -> 0 | AK39: ='Control panel'!$AA37/SUMPRODUCT('Control panel'!$AA$7:$AA$37,'Control panel'!AG$7:AG$37)*'Control panel'!AG37 -> 0 | AL39: ='Control panel'!$AA37/SUMPRODUCT('Control panel'!$AA$7:$AA$37,'Control panel'!AH$7:AH$37)*'Control panel'!AH37 -> 0 | AM39: ='Control panel'!$AA37/SUMPRODUCT('Control panel'!$AA$7:$AA$37,'Control panel'!AI$7:AI$37)*'Control panel'!AI37 -> 0.005208236555 | AN39: ='Control panel'!$AA37/SUMPRODUCT('Control panel'!$AA$7:$AA$37,'Control panel'!AJ$7:AJ$37)*'Control panel'!AJ37 -> 0 | AO39: ='Control panel'!$AA37/SUMPRODUCT('Control panel'!$AA$7:$AA$37,'Control panel'!AK$7:AK$37)*'Control panel'!AK37 -> 0 | AP39: ='Control panel'!$AA37/SUMPRODUCT('Control panel'!$AA$7:$AA$37,'Control panel'!AL$7:AL$37)*'Control panel'!AL37 -> 0.005208236555 | AQ39: ='Control panel'!$AA37/SUMPRODUCT('Control panel'!$AA$7:$AA$37,'Control panel'!AM$7:AM$37)*'Control panel'!AM37 -> 0 | AR39: ='Control panel'!$AA37/SUMPRODUCT('Control panel'!$AA$7:$AA$37,'Control panel'!AN$7:AN$37)*'Control panel'!AN37 -> 0 | AS39: ='Control panel'!$AA37/SUMPRODUCT('Control panel'!$AA$7:$AA$37,'Control panel'!AO$7:AO$37)*'Control panel'!AO37 -> 0 | AT39: ='Control panel'!$AA37/SUMPRODUCT('Control panel'!$AA$7:$AA$37,'Control panel'!AP$7:AP$37)*'Control panel'!AP37 -> 0.005208236555 | AU39: ='Control panel'!$AA37/SUMPRODUCT('Control panel'!$AA$7:$AA$37,'Control panel'!AQ$7:AQ$37)*'Control panel'!AQ37 -> 0.005208236555 | AV39: ='Control panel'!$AA37/SUMPRODUCT('Control panel'!$AA$7:$AA$37,'Control panel'!AR$7:AR$37)*'Control panel'!AR37 -> 0.005208236555 | AW39: ='Control panel'!$AA37/SUMPRODUCT('Control panel'!$AA$7:$AA$37,'Control panel'!AS$7:AS$37)*'Control panel'!AS37 -> 0.005208236555 | AX39: ='Control panel'!$AA37/SUMPRODUCT('Control panel'!$AA$7:$AA$37,'Control panel'!AT$7:AT$37)*'Control panel'!AT37 -> 0.005208236555
W40: 2026-27 | X40: ='PTRM Data'!B7 -> Overhead Sub-Transmission Lines | Y40: =_xlfn.XLOOKUP(X40,'Control panel'!$L$7:$L$37,'Control panel'!$P$7:$P$37) -> 1 | Z40: 8.079902266 | AA40: =_xlfn.XLOOKUP(W40,'BBM Costs'!$Q$6:$U$6,_xlfn.XLOOKUP(X40,'BBM Costs'!$P$7:$P$37,'BBM Costs'!$Q$7:$U$37))*_xlfn.XLOOKUP(X40,'Control panel'!$L$7:$L$37,'Control panel'!$M$7:$M$37) -> 0 | AB40: =_xlfn.XLOOKUP(W40,'BBM Costs'!$X$6:$AB$6,_xlfn.XLOOKUP(X40,'BBM Costs'!$W$7:$W$37,'BBM Costs'!$X$7:$AB$37))*_xlfn.XLOOKUP(X40,'Control panel'!$S$7:$S$37,'Control panel'!$T$7:$T$37) -> 0 | AC40: 8.079902266
W41: 2026-27 | X41: ='PTRM Data'!B8 -> Underground Sub-Transmission Cables | Y41: =_xlfn.XLOOKUP(X41,'Control panel'!$L$7:$L$37,'Control panel'!$P$7:$P$37) -> 1 | Z41: 0.3562595538 | AA41: =_xlfn.XLOOKUP(W41,'BBM Costs'!$Q$6:$U$6,_xlfn.XLOOKUP(X41,'BBM Costs'!$P$7:$P$37,'BBM Costs'!$Q$7:$U$37))*_xlfn.XLOOKUP(X41,'Control panel'!$L$7:$L$37,'Control panel'!$M$7:$M$37) -> 0 | AB41: =_xlfn.XLOOKUP(W41,'BBM Costs'!$X$6:$AB$6,_xlfn.XLOOKUP(X41,'BBM Costs'!$W$7:$W$37,'BBM Costs'!$X$7:$AB$37))*_xlfn.XLOOKUP(X41,'Control panel'!$S$7:$S$37,'Control panel'!$T$7:$T$37) -> 0 | AC41: 0.3562595538
W42: 2026-27 | X42: ='PTRM Data'!B9 -> Overhead Distribution Lines | Y42: =_xlfn.XLOOKUP(X42,'Control panel'!$L$7:$L$37,'Control panel'!$P$7:$P$37) -> 0.57 | Z42: 33.12746426 | AA42: =_xlfn.XLOOKUP(W42,'BBM Costs'!$Q$6:$U$6,_xlfn.XLOOKUP(X42,'BBM Costs'!$P$7:$P$37,'BBM Costs'!$Q$7:$U$37))*_xlfn.XLOOKUP(X42,'Control panel'!$L$7:$L$37,'Control panel'!$M$7:$M$37) -> 4.406487272 | AB42: =_xlfn.XLOOKUP(W42,'BBM Costs'!$X$6:$AB$6,_xlfn.XLOOKUP(X42,'BBM Costs'!$W$7:$W$37,'BBM Costs'!$X$7:$AB$37))*_xlfn.XLOOKUP(X42,'Control panel'!$S$7:$S$37,'Control panel'!$T$7:$T$37) -> 181.5990306 | AC42: 219.1329821
W43: 2026-27 | X43: ='PTRM Data'!B10 -> Underground Distribution Cables | Y43: =_xlfn.XLOOKUP(X43,'Control panel'!$L$7:$L$37,'Control panel'!$P$7:$P$37) -> 0.57 | Z43: 5.857744651 | AA43: =_xlfn.XLOOKUP(W43,'BBM Costs'!$Q$6:$U$6,_xlfn.XLOOKUP(X43,'BBM Costs'!$P$7:$P$37,'BBM Costs'!$Q$7:$U$37))*_xlfn.XLOOKUP(X43,'Control panel'!$L$7:$L$37,'Control panel'!$M$7:$M$37) -> -1.289641062 | AB43: =_xlfn.XLOOKUP(W43,'BBM Costs'!$X$6:$AB$6,_xlfn.XLOOKUP(X43,'BBM Costs'!$W$7:$W$37,'BBM Costs'!$X$7:$AB$37))*_xlfn.XLOOKUP(X43,'Control panel'!$S$7:$S$37,'Control panel'!$T$7:$T$37) -> 30.79245536 | AC43: 35.36055895
W44: 2026-27 | X44: ='PTRM Data'!B11 -> Distribution Equipment | Y44: =_xlfn.XLOOKUP(X44,'Control panel'!$L$7:$L$37,'Control panel'!$P$7:$P$37) -> 0.57 | Z44: 0.123907887 | AA44: =_xlfn.XLOOKUP(W44,'BBM Costs'!$Q$6:$U$6,_xlfn.XLOOKUP(X44,'BBM Costs'!$P$7:$P$37,'BBM Costs'!$Q$7:$U$37))*_xlfn.XLOOKUP(X44,'Control panel'!$L$7:$L$37,'Control panel'!$M$7:$M$37) -> 0.6406013667 | AB44: =_xlfn.XLOOKUP(W44,'BBM Costs'!$X$6:$AB$6,_xlfn.XLOOKUP(X44,'BBM Costs'!$W$7:$W$37,'BBM Costs'!$X$7:$AB$37))*_xlfn.XLOOKUP(X44,'Control panel'!$S$7:$S$37,'Control panel'!$T$7:$T$37) -> 0.68618661 | AC44: 1.450695864
W45: 2026-27 | X45: ='PTRM Data'!B12 -> Substation Bays | Y45: =_xlfn.XLOOKUP(X45,'Control panel'!$L$7:$L$37,'Control panel'!$P$7:$P$37) -> 1 | Z45: 9.01608132 | AA45: =_xlfn.XLOOKUP(W45,'BBM Costs'!$Q$6:$U$6,_xlfn.XLOOKUP(X45,'BBM Costs'!$P$7:$P$37,'BBM Costs'!$Q$7:$U$37))*_xlfn.XLOOKUP(X45,'Control panel'!$L$7:$L$37,'Control panel'!$M$7:$M$37) -> 0 | AB45: =_xlfn.XLOOKUP(W45,'BBM Costs'!$X$6:$AB$6,_xlfn.XLOOKUP(X45,'BBM Costs'!$W$7:$W$37,'BBM Costs'!$X$7:$AB$37))*_xlfn.XLOOKUP(X45,'Control panel'!$S$7:$S$37,'Control panel'!$T$7:$T$37) -> 0 | AC45: 9.01608132
W46: 2026-27 | X46: ='PTRM Data'!B13 -> Substation Establishment | Y46: =_xlfn.XLOOKUP(X46,'Control panel'!$L$7:$L$37,'Control panel'!$P$7:$P$37) -> 1 | Z46: 2.275810733 | AA46: =_xlfn.XLOOKUP(W46,'BBM Costs'!$Q$6:$U$6,_xlfn.XLOOKUP(X46,'BBM Costs'!$P$7:$P$37,'BBM Costs'!$Q$7:$U$37))*_xlfn.XLOOKUP(X46,'Control panel'!$L$7:$L$37,'Control panel'!$M$7:$M$37) -> 0 | AB46: =_xlfn.XLOOKUP(W46,'BBM Costs'!$X$6:$AB$6,_xlfn.XLOOKUP(X46,'BBM Costs'!$W$7:$W$37,'BBM Costs'!$X$7:$AB$37))*_xlfn.XLOOKUP(X46,'Control panel'!$S$7:$S$37,'Control panel'!$T$7:$T$37) -> 0 | AC46: 2.275810733
W47: 2026-27 | X47: ='PTRM Data'!B14 -> Distribution Substation Switchgear | Y47: =_xlfn.XLOOKUP(X47,'Control panel'!$L$7:$L$37,'Control panel'!$P$7:$P$37) -> 0.57 | Z47: 3.425683868 | AA47: =_xlfn.XLOOKUP(W47,'BBM Costs'!$Q$6:$U$6,_xlfn.XLOOKUP(X47,'BBM Costs'!$P$7:$P$37,'BBM Costs'!$Q$7:$U$37))*_xlfn.XLOOKUP(X47,'Control panel'!$L$7:$L$37,'Control panel'!$M$7:$M$37) -> 0.6908457962 | AB47: =_xlfn.XLOOKUP(W47,'BBM Costs'!$X$6:$AB$6,_xlfn.XLOOKUP(X47,'BBM Costs'!$W$7:$W$37,'BBM Costs'!$X$7:$AB$37))*_xlfn.XLOOKUP(X47,'Control panel'!$S$7:$S$37,'Control panel'!$T$7:$T$37) -> 18.85501386 | AC47: 22.97154352
W48: 2026-27 | X48: ='PTRM Data'!B15 -> Zone Transformers | Y48: =_xlfn.XLOOKUP(X48,'Control panel'!$L$7:$L$37,'Control panel'!$P$7:$P$37) -> 1 | Z48: 1.836621918 | AA48: =_xlfn.XLOOKUP(W48,'BBM Costs'!$Q$6:$U$6,_xlfn.XLOOKUP(X48,'BBM Costs'!$P$7:$P$37,'BBM Costs'!$Q$7:$U$37))*_xlfn.XLOOKUP(X48,'Control panel'!$L$7:$L$37,'Control panel'!$M$7:$M$37) -> 0 | AB48: =_xlfn.XLOOKUP(W48,'BBM Costs'!$X$6:$AB$6,_xlfn.XLOOKUP(X48,'BBM Costs'!$W$7:$W$37,'BBM Costs'!$X$7:$AB$37))*_xlfn.XLOOKUP(X48,'Control panel'!$S$7:$S$37,'Control panel'!$T$7:$T$37) -> 0 | AC48: 1.836621918
W49: 2026-27 | X49: ='PTRM Data'!B16 -> Distribution Transformers | Y49: =_xlfn.XLOOKUP(X49,'Control panel'!$L$7:$L$37,'Control panel'!$P$7:$P$37) -> 0.57 | Z49: 8.759869937 | AA49: =_xlfn.XLOOKUP(W49,'BBM Costs'!$Q$6:$U$6,_xlfn.XLOOKUP(X49,'BBM Costs'!$P$7:$P$37,'BBM Costs'!$Q$7:$U$37))*_xlfn.XLOOKUP(X49,'Control panel'!$L$7:$L$37,'Control panel'!$M$7:$M$37) -> 11.05709753 | AB49: =_xlfn.XLOOKUP(W49,'BBM Costs'!$X$6:$AB$6,_xlfn.XLOOKUP(X49,'BBM Costs'!$W$7:$W$37,'BBM Costs'!$X$7:$AB$37))*_xlfn.XLOOKUP(X49,'Control panel'!$S$7:$S$37,'Control panel'!$T$7:$T$37) -> 46.8373304 | AC49: 66.65429787
W50: 2026-27 | X50: ='PTRM Data'!B17 -> Low Voltage Services | Y50: =_xlfn.XLOOKUP(X50,'Control panel'!$L$7:$L$37,'Control panel'!$P$7:$P$37) -> 0 | Z50: 2.856386498 | AA50: =_xlfn.XLOOKUP(W50,'BBM Costs'!$Q$6:$U$6,_xlfn.XLOOKUP(X50,'BBM Costs'!$P$7:$P$37,'BBM Costs'!$Q$7:$U$37))*_xlfn.XLOOKUP(X50,'Control panel'!$L$7:$L$37,'Control panel'!$M$7:$M$37) -> 0 | AB50: =_xlfn.XLOOKUP(W50,'BBM Costs'!$X$6:$AB$6,_xlfn.XLOOKUP(X50,'BBM Costs'!$W$7:$W$37,'BBM Costs'!$X$7:$AB$37))*_xlfn.XLOOKUP(X50,'Control panel'!$S$7:$S$37,'Control panel'!$T$7:$T$37) -> 0 | AC50: 2.856386498
W51: 2026-27 | X51: ='PTRM Data'!B18 -> Metering | Y51: =_xlfn.XLOOKUP(X51,'Control panel'!$L$7:$L$37,'Control panel'!$P$7:$P$37) -> 1 | Z51: 0 | AA51: =_xlfn.XLOOKUP(W51,'BBM Costs'!$Q$6:$U$6,_xlfn.XLOOKUP(X51,'BBM Costs'!$P$7:$P$37,'BBM Costs'!$Q$7:$U$37))*_xlfn.XLOOKUP(X51,'Control panel'!$L$7:$L$37,'Control panel'!$M$7:$M$37) -> 0 | AB51: =_xlfn.XLOOKUP(W51,'BBM Costs'!$X$6:$AB$6,_xlfn.XLOOKUP(X51,'BBM Costs'!$W$7:$W$37,'BBM Costs'!$X$7:$AB$37))*_xlfn.XLOOKUP(X51,'Control panel'!$S$7:$S$37,'Control panel'!$T$7:$T$37) -> 0 | AC51: 0
W52: 2026-27 | X52: ='PTRM Data'!B19 -> Communications – Pilot Wires | Y52: =_xlfn.XLOOKUP(X52,'Control panel'!$L$7:$L$37,'Control panel'!$P$7:$P$37) -> 0 | Z52: 1.006897808 | AA52: =_xlfn.XLOOKUP(W52,'BBM Costs'!$Q$6:$U$6,_xlfn.XLOOKUP(X52,'BBM Costs'!$P$7:$P$37,'BBM Costs'!$Q$7:$U$37))*_xlfn.XLOOKUP(X52,'Control panel'!$L$7:$L$37,'Control panel'!$M$7:$M$37) -> 0 | AB52: =_xlfn.XLOOKUP(W52,'BBM Costs'!$X$6:$AB$6,_xlfn.XLOOKUP(X52,'BBM Costs'!$W$7:$W$37,'BBM Costs'!$X$7:$AB$37))*_xlfn.XLOOKUP(X52,'Control panel'!$S$7:$S$37,'Control panel'!$T$7:$T$37) -> 0 | AC52: 1.006897808
W54: 2026-27 | X54: ='PTRM Data'!B21 -> Land & Easements (System) - combined | Y54: =_xlfn.XLOOKUP(X54,'Control panel'!$L$7:$L$37,'Control panel'!$P$7:$P$37) -> 1 | Z54: 0.2880485375 | AA54: =_xlfn.XLOOKUP(W54,'BBM Costs'!$Q$6:$U$6,_xlfn.XLOOKUP(X54,'BBM Costs'!$P$7:$P$37,'BBM Costs'!$Q$7:$U$37))*_xlfn.XLOOKUP(X54,'Control panel'!$L$7:$L$37,'Control panel'!$M$7:$M$37) -> 0 | AB54: =_xlfn.XLOOKUP(W54,'BBM Costs'!$X$6:$AB$6,_xlfn.XLOOKUP(X54,'BBM Costs'!$W$7:$W$37,'BBM Costs'!$X$7:$AB$37))*_xlfn.XLOOKUP(X54,'Control panel'!$S$7:$S$37,'Control panel'!$T$7:$T$37) -> 0 | AC54: 0.2880485375
W55: 2026-27 | X55: ='PTRM Data'!B22 -> Land Improvements | Y55: =_xlfn.XLOOKUP(X55,'Control panel'!$L$7:$L$37,'Control panel'!$P$7:$P$37) -> 1 | Z55: 0 | AA55: =_xlfn.XLOOKUP(W55,'BBM Costs'!$Q$6:$U$6,_xlfn.XLOOKUP(X55,'BBM Costs'!$P$7:$P$37,'BBM Costs'!$Q$7:$U$37))*_xlfn.XLOOKUP(X55,'Control panel'!$L$7:$L$37,'Control panel'!$M$7:$M$37) -> 0 | AB55: =_xlfn.XLOOKUP(W55,'BBM Costs'!$X$6:$AB$6,_xlfn.XLOOKUP(X55,'BBM Costs'!$W$7:$W$37,'BBM Costs'!$X$7:$AB$37))*_xlfn.XLOOKUP(X55,'Control panel'!$S$7:$S$37,'Control panel'!$T$7:$T$37) -> 0 | AC55: 0
W56: 2026-27 | X56: ='PTRM Data'!B23 -> Control Centre - SCADA | Y56: =_xlfn.XLOOKUP(X56,'Control panel'!$L$7:$L$37,'Control panel'!$P$7:$P$37) -> 1 | Z56: 0.1134938424 | AA56: =_xlfn.XLOOKUP(W56,'BBM Costs'!$Q$6:$U$6,_xlfn.XLOOKUP(X56,'BBM Costs'!$P$7:$P$37,'BBM Costs'!$Q$7:$U$37))*_xlfn.XLOOKUP(X56,'Control panel'!$L$7:$L$37,'Control panel'!$M$7:$M$37) -> 0 | AB56: =_xlfn.XLOOKUP(W56,'BBM Costs'!$X$6:$AB$6,_xlfn.XLOOKUP(X56,'BBM Costs'!$W$7:$W$37,'BBM Costs'!$X$7:$AB$37))*_xlfn.XLOOKUP(X56,'Control panel'!$S$7:$S$37,'Control panel'!$T$7:$T$37) -> 0 | AC56: 0.1134938424
W57: 2026-27 | X57: ='PTRM Data'!B24 -> Other Equipment | Y57: =_xlfn.XLOOKUP(X57,'Control panel'!$L$7:$L$37,'Control panel'!$P$7:$P$37) -> 1 | Z57: 0.00840747303 | AA57: =_xlfn.XLOOKUP(W57,'BBM Costs'!$Q$6:$U$6,_xlfn.XLOOKUP(X57,'BBM Costs'!$P$7:$P$37,'BBM Costs'!$Q$7:$U$37))*_xlfn.XLOOKUP(X57,'Control panel'!$L$7:$L$37,'Control panel'!$M$7:$M$37) -> 0 | AB57: =_xlfn.XLOOKUP(W57,'BBM Costs'!$X$6:$AB$6,_xlfn.XLOOKUP(X57,'BBM Costs'!$W$7:$W$37,'BBM Costs'!$X$7:$AB$37))*_xlfn.XLOOKUP(X57,'Control panel'!$S$7:$S$37,'Control panel'!$T$7:$T$37) -> 0 | AC57: 0.00840747303
W58: 2026-27 | X58: ='PTRM Data'!B25 -> Generation Assets | Y58: =_xlfn.XLOOKUP(X58,'Control panel'!$L$7:$L$37,'Control panel'!$P$7:$P$37) -> 1 | Z58: 0.1060307483 | AA58: =_xlfn.XLOOKUP(W58,'BBM Costs'!$Q$6:$U$6,_xlfn.XLOOKUP(X58,'BBM Costs'!$P$7:$P$37,'BBM Costs'!$Q$7:$U$37))*_xlfn.XLOOKUP(X58,'Control panel'!$L$7:$L$37,'Control panel'!$M$7:$M$37) -> 0 | AB58: =_xlfn.XLOOKUP(W58,'BBM Costs'!$X$6:$AB$6,_xlfn.XLOOKUP(X58,'BBM Costs'!$W$7:$W$37,'BBM Costs'!$X$7:$AB$37))*_xlfn.XLOOKUP(X58,'Control panel'!$S$7:$S$37,'Control panel'!$T$7:$T$37) -> 0 | AC58: 0.1060307483
W59: 2026-27 | X59: ='PTRM Data'!B26 -> Motor Vehicles | Y59: =_xlfn.XLOOKUP(X59,'Control panel'!$L$7:$L$37,'Control panel'!$P$7:$P$37) -> 1 | Z59: 0 | AA59: =_xlfn.XLOOKUP(W59,'BBM Costs'!$Q$6:$U$6,_xlfn.XLOOKUP(X59,'BBM Costs'!$P$7:$P$37,'BBM Costs'!$Q$7:$U$37))*_xlfn.XLOOKUP(X59,'Control panel'!$L$7:$L$37,'Control panel'!$M$7:$M$37) -> 0 | AB59: =_xlfn.XLOOKUP(W59,'BBM Costs'!$X$6:$AB$6,_xlfn.XLOOKUP(X59,'BBM Costs'!$W$7:$W$37,'BBM Costs'!$X$7:$AB$37))*_xlfn.XLOOKUP(X59,'Control panel'!$S$7:$S$37,'Control panel'!$T$7:$T$37) -> 0 | AC59: 0
W60: 2026-27 | X60: ='PTRM Data'!B27 -> Plant & Equipment | Y60: =_xlfn.XLOOKUP(X60,'Control panel'!$L$7:$L$37,'Control panel'!$P$7:$P$37) -> 1 | Z60: 0 | AA60: =_xlfn.XLOOKUP(W60,'BBM Costs'!$Q$6:$U$6,_xlfn.XLOOKUP(X60,'BBM Costs'!$P$7:$P$37,'BBM Costs'!$Q$7:$U$37))*_xlfn.XLOOKUP(X60,'Control panel'!$L$7:$L$37,'Control panel'!$M$7:$M$37) -> 0 | AB60: =_xlfn.XLOOKUP(W60,'BBM Costs'!$X$6:$AB$6,_xlfn.XLOOKUP(X60,'BBM Costs'!$W$7:$W$37,'BBM Costs'!$X$7:$AB$37))*_xlfn.XLOOKUP(X60,'Control panel'!$S$7:$S$37,'Control panel'!$T$7:$T$37) -> 0 | AC60: 0
W61: 2026-27 | X61: ='PTRM Data'!B28 -> Buildings | Y61: =_xlfn.XLOOKUP(X61,'Control panel'!$L$7:$L$37,'Control panel'!$P$7:$P$37) -> 1 | Z61: 0 | AA61: =_xlfn.XLOOKUP(W61,'BBM Costs'!$Q$6:$U$6,_xlfn.XLOOKUP(X61,'BBM Costs'!$P$7:$P$37,'BBM Costs'!$Q$7:$U$37))*_xlfn.XLOOKUP(X61,'Control panel'!$L$7:$L$37,'Control panel'!$M$7:$M$37) -> 0 | AB61: =_xlfn.XLOOKUP(W61,'BBM Costs'!$X$6:$AB$6,_xlfn.XLOOKUP(X61,'BBM Costs'!$W$7:$W$37,'BBM Costs'!$X$7:$AB$37))*_xlfn.XLOOKUP(X61,'Control panel'!$S$7:$S$37,'Control panel'!$T$7:$T$37) -> 0 | AC61: 0
W62: 2026-27 | X62: ='PTRM Data'!B29 -> Office Equipment & Furniture | Y62: =_xlfn.XLOOKUP(X62,'Control panel'!$L$7:$L$37,'Control panel'!$P$7:$P$37) -> 1 | Z62: -0.01752506482 | AA62: =_xlfn.XLOOKUP(W62,'BBM Costs'!$Q$6:$U$6,_xlfn.XLOOKUP(X62,'BBM Costs'!$P$7:$P$37,'BBM Costs'!$Q$7:$U$37))*_xlfn.XLOOKUP(X62,'Control panel'!$L$7:$L$37,'Control panel'!$M$7:$M$37) -> 0 | AB62: =_xlfn.XLOOKUP(W62,'BBM Costs'!$X$6:$AB$6,_xlfn.XLOOKUP(X62,'BBM Costs'!$W$7:$W$37,'BBM Costs'!$X$7:$AB$37))*_xlfn.XLOOKUP(X62,'Control panel'!$S$7:$S$37,'Control panel'!$T$7:$T$37) -> 0 | AC62: -0.01752506482
W63: 2026-27 | X63: ='PTRM Data'!B30 -> Initial Leases (10 yr life) | Y63: =_xlfn.XLOOKUP(X63,'Control panel'!$L$7:$L$37,'Control panel'!$P$7:$P$37) -> 1 | Z63: 0 | AA63: =_xlfn.XLOOKUP(W63,'BBM Costs'!$Q$6:$U$6,_xlfn.XLOOKUP(X63,'BBM Costs'!$P$7:$P$37,'BBM Costs'!$Q$7:$U$37))*_xlfn.XLOOKUP(X63,'Control panel'!$L$7:$L$37,'Control panel'!$M$7:$M$37) -> 0 | AB63: =_xlfn.XLOOKUP(W63,'BBM Costs'!$X$6:$AB$6,_xlfn.XLOOKUP(X63,'BBM Costs'!$W$7:$W$37,'BBM Costs'!$X$7:$AB$37))*_xlfn.XLOOKUP(X63,'Control panel'!$S$7:$S$37,'Control panel'!$T$7:$T$37) -> 0 | AC63: 0
W64: 2026-27 | X64: ='PTRM Data'!B31 -> Lease Extensions (5yr Life) | Y64: =_xlfn.XLOOKUP(X64,'Control panel'!$L$7:$L$37,'Control panel'!$P$7:$P$37) -> 1 | Z64: 0 | AA64: =_xlfn.XLOOKUP(W64,'BBM Costs'!$Q$6:$U$6,_xlfn.XLOOKUP(X64,'BBM Costs'!$P$7:$P$37,'BBM Costs'!$Q$7:$U$37))*_xlfn.XLOOKUP(X64,'Control panel'!$L$7:$L$37,'Control panel'!$M$7:$M$37) -> 0 | AB64: =_xlfn.XLOOKUP(W64,'BBM Costs'!$X$6:$AB$6,_xlfn.XLOOKUP(X64,'BBM Costs'!$W$7:$W$37,'BBM Costs'!$X$7:$AB$37))*_xlfn.XLOOKUP(X64,'Control panel'!$S$7:$S$37,'Control panel'!$T$7:$T$37) -> 0 | AC64: 0
W65: 2026-27 | X65: ='PTRM Data'!B32 -> Land & Easements - combined | Y65: =_xlfn.XLOOKUP(X65,'Control panel'!$L$7:$L$37,'Control panel'!$P$7:$P$37) -> 1 | Z65: 0 | AA65: =_xlfn.XLOOKUP(W65,'BBM Costs'!$Q$6:$U$6,_xlfn.XLOOKUP(X65,'BBM Costs'!$P$7:$P$37,'BBM Costs'!$Q$7:$U$37))*_xlfn.XLOOKUP(X65,'Control panel'!$L$7:$L$37,'Control panel'!$M$7:$M$37) -> 0 | AB65: =_xlfn.XLOOKUP(W65,'BBM Costs'!$X$6:$AB$6,_xlfn.XLOOKUP(X65,'BBM Costs'!$W$7:$W$37,'BBM Costs'!$X$7:$AB$37))*_xlfn.XLOOKUP(X65,'Control panel'!$S$7:$S$37,'Control panel'!$T$7:$T$37) -> 0 | AC65: 0
W66: 2026-27 | X66: ='PTRM Data'!B33 -> Communications | Y66: =_xlfn.XLOOKUP(X66,'Control panel'!$L$7:$L$37,'Control panel'!$P$7:$P$37) -> 1 | Z66: 0 | AA66: =_xlfn.XLOOKUP(W66,'BBM Costs'!$Q$6:$U$6,_xlfn.XLOOKUP(X66,'BBM Costs'!$P$7:$P$37,'BBM Costs'!$Q$7:$U$37))*_xlfn.XLOOKUP(X66,'Control panel'!$L$7:$L$37,'Control panel'!$M$7:$M$37) -> 0 | AB66: =_xlfn.XLOOKUP(W66,'BBM Costs'!$X$6:$AB$6,_xlfn.XLOOKUP(X66,'BBM Costs'!$W$7:$W$37,'BBM Costs'!$X$7:$AB$37))*_xlfn.XLOOKUP(X66,'Control panel'!$S$7:$S$37,'Control panel'!$T$7:$T$37) -> 0 | AC66: 0
W67: 2026-27 | X67: ='PTRM Data'!B34 -> In-house software | Y67: =_xlfn.XLOOKUP(X67,'Control panel'!$L$7:$L$37,'Control panel'!$P$7:$P$37) -> 1 | Z67: 0 | AA67: =_xlfn.XLOOKUP(W67,'BBM Costs'!$Q$6:$U$6,_xlfn.XLOOKUP(X67,'BBM Costs'!$P$7:$P$37,'BBM Costs'!$Q$7:$U$37))*_xlfn.XLOOKUP(X67,'Control panel'!$L$7:$L$37,'Control panel'!$M$7:$M$37) -> 0 | AB67: =_xlfn.XLOOKUP(W67,'BBM Costs'!$X$6:$AB$6,_xlfn.XLOOKUP(X67,'BBM Costs'!$W$7:$W$37,'BBM Costs'!$X$7:$AB$37))*_xlfn.XLOOKUP(X67,'Control panel'!$S$7:$S$37,'Control panel'!$T$7:$T$37) -> 0 | AC67: 0
W68: 2026-27 | X68: ='PTRM Data'!B35 -> IT Systems | Y68: =_xlfn.XLOOKUP(X68,'Control panel'!$L$7:$L$37,'Control panel'!$P$7:$P$37) -> 1 | Z68: 0 | AA68: =_xlfn.XLOOKUP(W68,'BBM Costs'!$Q$6:$U$6,_xlfn.XLOOKUP(X68,'BBM Costs'!$P$7:$P$37,'BBM Costs'!$Q$7:$U$37))*_xlfn.XLOOKUP(X68,'Control panel'!$L$7:$L$37,'Control panel'!$M$7:$M$37) -> 0 | AB68: =_xlfn.XLOOKUP(W68,'BBM Costs'!$X$6:$AB$6,_xlfn.XLOOKUP(X68,'BBM Costs'!$W$7:$W$37,'BBM Costs'!$X$7:$AB$37))*_xlfn.XLOOKUP(X68,'Control panel'!$S$7:$S$37,'Control panel'!$T$7:$T$37) -> 0 | AC68: 0
W69: 2026-27 | X69: ='PTRM Data'!B36 -> Legacy ICT Assets | Y69: =_xlfn.XLOOKUP(X69,'Control panel'!$L$7:$L$37,'Control panel'!$P$7:$P$37) -> 1 | Z69: 0 | AA69: =_xlfn.XLOOKUP(W69,'BBM Costs'!$Q$6:$U$6,_xlfn.XLOOKUP(X69,'BBM Costs'!$P$7:$P$37,'BBM Costs'!$Q$7:$U$37))*_xlfn.XLOOKUP(X69,'Control panel'!$L$7:$L$37,'Control panel'!$M$7:$M$37) -> 0 | AB69: =_xlfn.XLOOKUP(W69,'BBM Costs'!$X$6:$AB$6,_xlfn.XLOOKUP(X69,'BBM Costs'!$W$7:$W$37,'BBM Costs'!$X$7:$AB$37))*_xlfn.XLOOKUP(X69,'Control panel'!$S$7:$S$37,'Control panel'!$T$7:$T$37) -> 0 | AC69: 0
W70: 2026-27 | X70: ='PTRM Data'!B37 -> Buildings - capital works | Y70: =_xlfn.XLOOKUP(X70,'Control panel'!$L$7:$L$37,'Control panel'!$P$7:$P$37) -> 1 | Z70: 0 | AA70: =_xlfn.XLOOKUP(W70,'BBM Costs'!$Q$6:$U$6,_xlfn.XLOOKUP(X70,'BBM Costs'!$P$7:$P$37,'BBM Costs'!$Q$7:$U$37))*_xlfn.XLOOKUP(X70,'Control panel'!$L$7:$L$37,'Control panel'!$M$7:$M$37) -> 0 | AB70: =_xlfn.XLOOKUP(W70,'BBM Costs'!$X$6:$AB$6,_xlfn.XLOOKUP(X70,'BBM Costs'!$W$7:$W$37,'BBM Costs'!$X$7:$AB$37))*_xlfn.XLOOKUP(X70,'Control panel'!$S$7:$S$37,'Control panel'!$T$7:$T$37) -> 0 | AC70: 0
W71: 2027-28 | X71: ='PTRM Data'!B7 -> Overhead Sub-Transmission Lines | Y71: =_xlfn.XLOOKUP(X71,'Control panel'!$L$7:$L$37,'Control panel'!$P$7:$P$37) -> 1 | Z71: 8.369710876 | AA71: =_xlfn.XLOOKUP(W71,'BBM Costs'!$Q$6:$U$6,_xlfn.XLOOKUP(X71,'BBM Costs'!$P$7:$P$37,'BBM Costs'!$Q$7:$U$37))*_xlfn.XLOOKUP(X71,'Control panel'!$L$7:$L$37,'Control panel'!$M$7:$M$37) -> 0 | AB71: =_xlfn.XLOOKUP(W71,'BBM Costs'!$X$6:$AB$6,_xlfn.XLOOKUP(X71,'BBM Costs'!$W$7:$W$37,'BBM Costs'!$X$7:$AB$37))*_xlfn.XLOOKUP(X71,'Control panel'!$S$7:$S$37,'Control panel'!$T$7:$T$37) -> 0 | AC71: 8.369710876
W72: 2027-28 | X72: ='PTRM Data'!B8 -> Underground Sub-Transmission Cables | Y72: =_xlfn.XLOOKUP(X72,'Control panel'!$L$7:$L$37,'Control panel'!$P$7:$P$37) -> 1 | Z72: 0.3690378131 | AA72: =_xlfn.XLOOKUP(W72,'BBM Costs'!$Q$6:$U$6,_xlfn.XLOOKUP(X72,'BBM Costs'!$P$7:$P$37,'BBM Costs'!$Q$7:$U$37))*_xlfn.XLOOKUP(X72,'Control panel'!$L$7:$L$37,'Control panel'!$M$7:$M$37) -> 0 | AB72: =_xlfn.XLOOKUP(W72,'BBM Costs'!$X$6:$AB$6,_xlfn.XLOOKUP(X72,'BBM Costs'!$W$7:$W$37,'BBM Costs'!$X$7:$AB$37))*_xlfn.XLOOKUP(X72,'Control panel'!$S$7:$S$37,'Control panel'!$T$7:$T$37) -> 0 | AC72: 0.3690378131
W73: 2027-28 | X73: ='PTRM Data'!B9 -> Overhead Distribution Lines | Y73: =_xlfn.XLOOKUP(X73,'Control panel'!$L$7:$L$37,'Control panel'!$P$7:$P$37) -> 0.57 | Z73: 34.31567471 | AA73: =_xlfn.XLOOKUP(W73,'BBM Costs'!$Q$6:$U$6,_xlfn.XLOOKUP(X73,'BBM Costs'!$P$7:$P$37,'BBM Costs'!$Q$7:$U$37))*_xlfn.XLOOKUP(X73,'Control panel'!$L$7:$L$37,'Control panel'!$M$7:$M$37) -> 5.168554346 | AB73: =_xlfn.XLOOKUP(W73,'BBM Costs'!$X$6:$AB$6,_xlfn.XLOOKUP(X73,'BBM Costs'!$W$7:$W$37,'BBM Costs'!$X$7:$AB$37))*_xlfn.XLOOKUP(X73,'Control panel'!$S$7:$S$37,'Control panel'!$T$7:$T$37) -> 200.3109992 | AC73: 239.7952282
W74: 2027-28 | X74: ='PTRM Data'!B10 -> Underground Distribution Cables | Y74: =_xlfn.XLOOKUP(X74,'Control panel'!$L$7:$L$37,'Control panel'!$P$7:$P$37) -> 0.57 | Z74: =SUMPRODUCT(_xlfn.XLOOKUP(W74,$AZ$9:$AZ$13,$BA$9:$BS$13),_xlfn.XLOOKUP(X74,$AE$9:$AE$39,$AF$9:$AX$39)) -> 6.067849275 | AA74: =_xlfn.XLOOKUP(W74,'BBM Costs'!$Q$6:$U$6,_xlfn.XLOOKUP(X74,'BBM Costs'!$P$7:$P$37,'BBM Costs'!$Q$7:$U$37))*_xlfn.XLOOKUP(X74,'Control panel'!$L$7:$L$37,'Control panel'!$M$7:$M$37) -> -1.081360324 | AB74: =_xlfn.XLOOKUP(W74,'BBM Costs'!$X$6:$AB$6,_xlfn.XLOOKUP(X74,'BBM Costs'!$W$7:$W$37,'BBM Costs'!$X$7:$AB$37))*_xlfn.XLOOKUP(X74,'Control panel'!$S$7:$S$37,'Control panel'!$T$7:$T$37) -> 32.63400699 | AC74: =SUM(Z74:AB74) -> 37.62049594
W75: 2027-28 | X75: ='PTRM Data'!B11 -> Distribution Equipment | Y75: =_xlfn.XLOOKUP(X75,'Control panel'!$L$7:$L$37,'Control panel'!$P$7:$P$37) -> 0.57 | Z75: 0.1283521948 | AA75: =_xlfn.XLOOKUP(W75,'BBM Costs'!$Q$6:$U$6,_xlfn.XLOOKUP(X75,'BBM Costs'!$P$7:$P$37,'BBM Costs'!$Q$7:$U$37))*_xlfn.XLOOKUP(X75,'Control panel'!$L$7:$L$37,'Control panel'!$M$7:$M$37) -> 0.6681444076 | AB75: =_xlfn.XLOOKUP(W75,'BBM Costs'!$X$6:$AB$6,_xlfn.XLOOKUP(X75,'BBM Costs'!$W$7:$W$37,'BBM Costs'!$X$7:$AB$37))*_xlfn.XLOOKUP(X75,'Control panel'!$S$7:$S$37,'Control panel'!$T$7:$T$37) -> 0.7646196287 | AC75: 1.561116231
W76: 2027-28 | X76: ='PTRM Data'!B12 -> Substation Bays | Y76: =_xlfn.XLOOKUP(X76,'Control panel'!$L$7:$L$37,'Control panel'!$P$7:$P$37) -> 1 | Z76: 9.339468646 | AA76: =_xlfn.XLOOKUP(W76,'BBM Costs'!$Q$6:$U$6,_xlfn.XLOOKUP(X76,'BBM Costs'!$P$7:$P$37,'BBM Costs'!$Q$7:$U$37))*_xlfn.XLOOKUP(X76,'Control panel'!$L$7:$L$37,'Control panel'!$M$7:$M$37) -> 0 | AB76: =_xlfn.XLOOKUP(W76,'BBM Costs'!$X$6:$AB$6,_xlfn.XLOOKUP(X76,'BBM Costs'!$W$7:$W$37,'BBM Costs'!$X$7:$AB$37))*_xlfn.XLOOKUP(X76,'Control panel'!$S$7:$S$37,'Control panel'!$T$7:$T$37) -> 0 | AC76: 9.339468646
W77: 2027-28 | X77: ='PTRM Data'!B13 -> Substation Establishment | Y77: =_xlfn.XLOOKUP(X77,'Control panel'!$L$7:$L$37,'Control panel'!$P$7:$P$37) -> 1 | Z77: 2.357439139 | AA77: =_xlfn.XLOOKUP(W77,'BBM Costs'!$Q$6:$U$6,_xlfn.XLOOKUP(X77,'BBM Costs'!$P$7:$P$37,'BBM Costs'!$Q$7:$U$37))*_xlfn.XLOOKUP(X77,'Control panel'!$L$7:$L$37,'Control panel'!$M$7:$M$37) -> 0 | AB77: =_xlfn.XLOOKUP(W77,'BBM Costs'!$X$6:$AB$6,_xlfn.XLOOKUP(X77,'BBM Costs'!$W$7:$W$37,'BBM Costs'!$X$7:$AB$37))*_xlfn.XLOOKUP(X77,'Control panel'!$S$7:$S$37,'Control panel'!$T$7:$T$37) -> 0 | AC77: 2.357439139
W78: 2027-28 | X78: ='PTRM Data'!B14 -> Distribution Substation Switchgear | Y78: =_xlfn.XLOOKUP(X78,'Control panel'!$L$7:$L$37,'Control panel'!$P$7:$P$37) -> 0.57 | Z78: 3.548555735 | AA78: =_xlfn.XLOOKUP(W78,'BBM Costs'!$Q$6:$U$6,_xlfn.XLOOKUP(X78,'BBM Costs'!$P$7:$P$37,'BBM Costs'!$Q$7:$U$37))*_xlfn.XLOOKUP(X78,'Control panel'!$L$7:$L$37,'Control panel'!$M$7:$M$37) -> 0.8155314789 | AB78: =_xlfn.XLOOKUP(W78,'BBM Costs'!$X$6:$AB$6,_xlfn.XLOOKUP(X78,'BBM Costs'!$W$7:$W$37,'BBM Costs'!$X$7:$AB$37))*_xlfn.XLOOKUP(X78,'Control panel'!$S$7:$S$37,'Control panel'!$T$7:$T$37) -> 20.88644054 | AC78: 25.25052775
W79: 2027-28 | X79: ='PTRM Data'!B15 -> Zone Transformers | Y79: =_xlfn.XLOOKUP(X79,'Control panel'!$L$7:$L$37,'Control panel'!$P$7:$P$37) -> 1 | Z79: 1.902497572 | AA79: =_xlfn.XLOOKUP(W79,'BBM Costs'!$Q$6:$U$6,_xlfn.XLOOKUP(X79,'BBM Costs'!$P$7:$P$37,'BBM Costs'!$Q$7:$U$37))*_xlfn.XLOOKUP(X79,'Control panel'!$L$7:$L$37,'Control panel'!$M$7:$M$37) -> 0 | AB79: =_xlfn.XLOOKUP(W79,'BBM Costs'!$X$6:$AB$6,_xlfn.XLOOKUP(X79,'BBM Costs'!$W$7:$W$37,'BBM Costs'!$X$7:$AB$37))*_xlfn.XLOOKUP(X79,'Control panel'!$S$7:$S$37,'Control panel'!$T$7:$T$37) -> 0 | AC79: 1.902497572
W80: 2027-28 | X80: ='PTRM Data'!B16 -> Distribution Transformers | Y80: =_xlfn.XLOOKUP(X80,'Control panel'!$L$7:$L$37,'Control panel'!$P$7:$P$37) -> 0.57 | Z80: 9.074067516 | AA80: =_xlfn.XLOOKUP(W80,'BBM Costs'!$Q$6:$U$6,_xlfn.XLOOKUP(X80,'BBM Costs'!$P$7:$P$37,'BBM Costs'!$Q$7:$U$37))*_xlfn.XLOOKUP(X80,'Control panel'!$L$7:$L$37,'Control panel'!$M$7:$M$37) -> 11.69976431 | AB80: =_xlfn.XLOOKUP(W80,'BBM Costs'!$X$6:$AB$6,_xlfn.XLOOKUP(X80,'BBM Costs'!$W$7:$W$37,'BBM Costs'!$X$7:$AB$37))*_xlfn.XLOOKUP(X80,'Control panel'!$S$7:$S$37,'Control panel'!$T$7:$T$37) -> 50.4668974 | AC80: 71.24072923
W81: 2027-28 | X81: ='PTRM Data'!B17 -> Low Voltage Services | Y81: =_xlfn.XLOOKUP(X81,'Control panel'!$L$7:$L$37,'Control panel'!$P$7:$P$37) -> 0 | Z81: 2.9588389 | AA81: =_xlfn.XLOOKUP(W81,'BBM Costs'!$Q$6:$U$6,_xlfn.XLOOKUP(X81,'BBM Costs'!$P$7:$P$37,'BBM Costs'!$Q$7:$U$37))*_xlfn.XLOOKUP(X81,'Control panel'!$L$7:$L$37,'Control panel'!$M$7:$M$37) -> 0 | AB81: =_xlfn.XLOOKUP(W81,'BBM Costs'!$X$6:$AB$6,_xlfn.XLOOKUP(X81,'BBM Costs'!$W$7:$W$37,'BBM Costs'!$X$7:$AB$37))*_xlfn.XLOOKUP(X81,'Control panel'!$S$7:$S$37,'Control panel'!$T$7:$T$37) -> 0 | AC81: 2.9588389
W82: 2027-28 | X82: ='PTRM Data'!B18 -> Metering | Y82: =_xlfn.XLOOKUP(X82,'Control panel'!$L$7:$L$37,'Control panel'!$P$7:$P$37) -> 1 | Z82: 0 | AA82: =_xlfn.XLOOKUP(W82,'BBM Costs'!$Q$6:$U$6,_xlfn.XLOOKUP(X82,'BBM Costs'!$P$7:$P$37,'BBM Costs'!$Q$7:$U$37))*_xlfn.XLOOKUP(X82,'Control panel'!$L$7:$L$37,'Control panel'!$M$7:$M$37) -> 0 | AB82: =_xlfn.XLOOKUP(W82,'BBM Costs'!$X$6:$AB$6,_xlfn.XLOOKUP(X82,'BBM Costs'!$W$7:$W$37,'BBM Costs'!$X$7:$AB$37))*_xlfn.XLOOKUP(X82,'Control panel'!$S$7:$S$37,'Control panel'!$T$7:$T$37) -> 0 | AC82: 0
W83: 2027-28 | X83: ='PTRM Data'!B19 -> Communications – Pilot Wires | Y83: =_xlfn.XLOOKUP(X83,'Control panel'!$L$7:$L$37,'Control panel'!$P$7:$P$37) -> 0 | Z83: 1.043013053 | AA83: =_xlfn.XLOOKUP(W83,'BBM Costs'!$Q$6:$U$6,_xlfn.XLOOKUP(X83,'BBM Costs'!$P$7:$P$37,'BBM Costs'!$Q$7:$U$37))*_xlfn.XLOOKUP(X83,'Control panel'!$L$7:$L$37,'Control panel'!$M$7:$M$37) -> 0 | AB83: =_xlfn.XLOOKUP(W83,'BBM Costs'!$X$6:$AB$6,_xlfn.XLOOKUP(X83,'BBM Costs'!$W$7:$W$37,'BBM Costs'!$X$7:$AB$37))*_xlfn.XLOOKUP(X83,'Control panel'!$S$7:$S$37,'Control panel'!$T$7:$T$37) -> 0 | AC83: 1.043013053
W85: 2027-28 | X85: ='PTRM Data'!B21 -> Land & Easements (System) - combined | Y85: =_xlfn.XLOOKUP(X85,'Control panel'!$L$7:$L$37,'Control panel'!$P$7:$P$37) -> 1 | Z85: 0.2983802152 | AA85: =_xlfn.XLOOKUP(W85,'BBM Costs'!$Q$6:$U$6,_xlfn.XLOOKUP(X85,'BBM Costs'!$P$7:$P$37,'BBM Costs'!$Q$7:$U$37))*_xlfn.XLOOKUP(X85,'Control panel'!$L$7:$L$37,'Control panel'!$M$7:$M$37) -> 0 | AB85: =_xlfn.XLOOKUP(W85,'BBM Costs'!$X$6:$AB$6,_xlfn.XLOOKUP(X85,'BBM Costs'!$W$7:$W$37,'BBM Costs'!$X$7:$AB$37))*_xlfn.XLOOKUP(X85,'Control panel'!$S$7:$S$37,'Control panel'!$T$7:$T$37) -> 0 | AC85: 0.2983802152
W86: 2027-28 | X86: ='PTRM Data'!B22 -> Land Improvements | Y86: =_xlfn.XLOOKUP(X86,'Control panel'!$L$7:$L$37,'Control panel'!$P$7:$P$37) -> 1 | Z86: 0 | AA86: =_xlfn.XLOOKUP(W86,'BBM Costs'!$Q$6:$U$6,_xlfn.XLOOKUP(X86,'BBM Costs'!$P$7:$P$37,'BBM Costs'!$Q$7:$U$37))*_xlfn.XLOOKUP(X86,'Control panel'!$L$7:$L$37,'Control panel'!$M$7:$M$37) -> 0 | AB86: =_xlfn.XLOOKUP(W86,'BBM Costs'!$X$6:$AB$6,_xlfn.XLOOKUP(X86,'BBM Costs'!$W$7:$W$37,'BBM Costs'!$X$7:$AB$37))*_xlfn.XLOOKUP(X86,'Control panel'!$S$7:$S$37,'Control panel'!$T$7:$T$37) -> 0 | AC86: 0
W87: 2027-28 | X87: ='PTRM Data'!B23 -> Control Centre - SCADA | Y87: =_xlfn.XLOOKUP(X87,'Control panel'!$L$7:$L$37,'Control panel'!$P$7:$P$37) -> 1 | Z87: 0.117564621 | AA87: =_xlfn.XLOOKUP(W87,'BBM Costs'!$Q$6:$U$6,_xlfn.XLOOKUP(X87,'BBM Costs'!$P$7:$P$37,'BBM Costs'!$Q$7:$U$37))*_xlfn.XLOOKUP(X87,'Control panel'!$L$7:$L$37,'Control panel'!$M$7:$M$37) -> 0 | AB87: =_xlfn.XLOOKUP(W87,'BBM Costs'!$X$6:$AB$6,_xlfn.XLOOKUP(X87,'BBM Costs'!$W$7:$W$37,'BBM Costs'!$X$7:$AB$37))*_xlfn.XLOOKUP(X87,'Control panel'!$S$7:$S$37,'Control panel'!$T$7:$T$37) -> 0 | AC87: 0.117564621
W88: 2027-28 | X88: ='PTRM Data'!B24 -> Other Equipment | Y88: =_xlfn.XLOOKUP(X88,'Control panel'!$L$7:$L$37,'Control panel'!$P$7:$P$37) -> 1 | Z88: 0.008709030893 | AA88: =_xlfn.XLOOKUP(W88,'BBM Costs'!$Q$6:$U$6,_xlfn.XLOOKUP(X88,'BBM Costs'!$P$7:$P$37,'BBM Costs'!$Q$7:$U$37))*_xlfn.XLOOKUP(X88,'Control panel'!$L$7:$L$37,'Control panel'!$M$7:$M$37) -> 0 | AB88: =_xlfn.XLOOKUP(W88,'BBM Costs'!$X$6:$AB$6,_xlfn.XLOOKUP(X88,'BBM Costs'!$W$7:$W$37,'BBM Costs'!$X$7:$AB$37))*_xlfn.XLOOKUP(X88,'Control panel'!$S$7:$S$37,'Control panel'!$T$7:$T$37) -> 0 | AC88: 0.008709030893
W89: 2027-28 | X89: ='PTRM Data'!B25 -> Generation Assets | Y89: =_xlfn.XLOOKUP(X89,'Control panel'!$L$7:$L$37,'Control panel'!$P$7:$P$37) -> 1 | Z89: 0.1098338418 | AA89: =_xlfn.XLOOKUP(W89,'BBM Costs'!$Q$6:$U$6,_xlfn.XLOOKUP(X89,'BBM Costs'!$P$7:$P$37,'BBM Costs'!$Q$7:$U$37))*_xlfn.XLOOKUP(X89,'Control panel'!$L$7:$L$37,'Control panel'!$M$7:$M$37) -> 0 | AB89: =_xlfn.XLOOKUP(W89,'BBM Costs'!$X$6:$AB$6,_xlfn.XLOOKUP(X89,'BBM Costs'!$W$7:$W$37,'BBM Costs'!$X$7:$AB$37))*_xlfn.XLOOKUP(X89,'Control panel'!$S$7:$S$37,'Control panel'!$T$7:$T$37) -> 0 | AC89: 0.1098338418
W90: 2027-28 | X90: ='PTRM Data'!B26 -> Motor Vehicles | Y90: =_xlfn.XLOOKUP(X90,'Control panel'!$L$7:$L$37,'Control panel'!$P$7:$P$37) -> 1 | Z90: 0 | AA90: =_xlfn.XLOOKUP(W90,'BBM Costs'!$Q$6:$U$6,_xlfn.XLOOKUP(X90,'BBM Costs'!$P$7:$P$37,'BBM Costs'!$Q$7:$U$37))*_xlfn.XLOOKUP(X90,'Control panel'!$L$7:$L$37,'Control panel'!$M$7:$M$37) -> 0 | AB90: =_xlfn.XLOOKUP(W90,'BBM Costs'!$X$6:$AB$6,_xlfn.XLOOKUP(X90,'BBM Costs'!$W$7:$W$37,'BBM Costs'!$X$7:$AB$37))*_xlfn.XLOOKUP(X90,'Control panel'!$S$7:$S$37,'Control panel'!$T$7:$T$37) -> 0 | AC90: 0
W91: 2027-28 | X91: ='PTRM Data'!B27 -> Plant & Equipment | Y91: =_xlfn.XLOOKUP(X91,'Control panel'!$L$7:$L$37,'Control panel'!$P$7:$P$37) -> 1 | Z91: 0 | AA91: =_xlfn.XLOOKUP(W91,'BBM Costs'!$Q$6:$U$6,_xlfn.XLOOKUP(X91,'BBM Costs'!$P$7:$P$37,'BBM Costs'!$Q$7:$U$37))*_xlfn.XLOOKUP(X91,'Control panel'!$L$7:$L$37,'Control panel'!$M$7:$M$37) -> 0 | AB91: =_xlfn.XLOOKUP(W91,'BBM Costs'!$X$6:$AB$6,_xlfn.XLOOKUP(X91,'BBM Costs'!$W$7:$W$37,'BBM Costs'!$X$7:$AB$37))*_xlfn.XLOOKUP(X91,'Control panel'!$S$7:$S$37,'Control panel'!$T$7:$T$37) -> 0 | AC91: 0
W92: 2027-28 | X92: ='PTRM Data'!B28 -> Buildings | Y92: =_xlfn.XLOOKUP(X92,'Control panel'!$L$7:$L$37,'Control panel'!$P$7:$P$37) -> 1 | Z92: 0 | AA92: =_xlfn.XLOOKUP(W92,'BBM Costs'!$Q$6:$U$6,_xlfn.XLOOKUP(X92,'BBM Costs'!$P$7:$P$37,'BBM Costs'!$Q$7:$U$37))*_xlfn.XLOOKUP(X92,'Control panel'!$L$7:$L$37,'Control panel'!$M$7:$M$37) -> 0 | AB92: =_xlfn.XLOOKUP(W92,'BBM Costs'!$X$6:$AB$6,_xlfn.XLOOKUP(X92,'BBM Costs'!$W$7:$W$37,'BBM Costs'!$X$7:$AB$37))*_xlfn.XLOOKUP(X92,'Control panel'!$S$7:$S$37,'Control panel'!$T$7:$T$37) -> 0 | AC92: 0
W93: 2027-28 | X93: ='PTRM Data'!B29 -> Office Equipment & Furniture | Y93: =_xlfn.XLOOKUP(X93,'Control panel'!$L$7:$L$37,'Control panel'!$P$7:$P$37) -> 1 | Z93: -0.01815365097 | AA93: =_xlfn.XLOOKUP(W93,'BBM Costs'!$Q$6:$U$6,_xlfn.XLOOKUP(X93,'BBM Costs'!$P$7:$P$37,'BBM Costs'!$Q$7:$U$37))*_xlfn.XLOOKUP(X93,'Control panel'!$L$7:$L$37,'Control panel'!$M$7:$M$37) -> 0 | AB93: =_xlfn.XLOOKUP(W93,'BBM Costs'!$X$6:$AB$6,_xlfn.XLOOKUP(X93,'BBM Costs'!$W$7:$W$37,'BBM Costs'!$X$7:$AB$37))*_xlfn.XLOOKUP(X93,'Control panel'!$S$7:$S$37,'Control panel'!$T$7:$T$37) -> 0 | AC93: -0.01815365097
W94: 2027-28 | X94: ='PTRM Data'!B30 -> Initial Leases (10 yr life) | Y94: =_xlfn.XLOOKUP(X94,'Control panel'!$L$7:$L$37,'Control panel'!$P$7:$P$37) -> 1 | Z94: 0 | AA94: =_xlfn.XLOOKUP(W94,'BBM Costs'!$Q$6:$U$6,_xlfn.XLOOKUP(X94,'BBM Costs'!$P$7:$P$37,'BBM Costs'!$Q$7:$U$37))*_xlfn.XLOOKUP(X94,'Control panel'!$L$7:$L$37,'Control panel'!$M$7:$M$37) -> 0 | AB94: =_xlfn.XLOOKUP(W94,'BBM Costs'!$X$6:$AB$6,_xlfn.XLOOKUP(X94,'BBM Costs'!$W$7:$W$37,'BBM Costs'!$X$7:$AB$37))*_xlfn.XLOOKUP(X94,'Control panel'!$S$7:$S$37,'Control panel'!$T$7:$T$37) -> 0 | AC94: 0
W95: 2027-28 | X95: ='PTRM Data'!B31 -> Lease Extensions (5yr Life) | Y95: =_xlfn.XLOOKUP(X95,'Control panel'!$L$7:$L$37,'Control panel'!$P$7:$P$37) -> 1 | Z95: 0 | AA95: =_xlfn.XLOOKUP(W95,'BBM Costs'!$Q$6:$U$6,_xlfn.XLOOKUP(X95,'BBM Costs'!$P$7:$P$37,'BBM Costs'!$Q$7:$U$37))*_xlfn.XLOOKUP(X95,'Control panel'!$L$7:$L$37,'Control panel'!$M$7:$M$37) -> 0 | AB95: =_xlfn.XLOOKUP(W95,'BBM Costs'!$X$6:$AB$6,_xlfn.XLOOKUP(X95,'BBM Costs'!$W$7:$W$37,'BBM Costs'!$X$7:$AB$37))*_xlfn.XLOOKUP(X95,'Control panel'!$S$7:$S$37,'Control panel'!$T$7:$T$37) -> 0 | AC95: 0
W96: 2027-28 | X96: ='PTRM Data'!B32 -> Land & Easements - combined | Y96: =_xlfn.XLOOKUP(X96,'Control panel'!$L$7:$L$37,'Control panel'!$P$7:$P$37) -> 1 | Z96: 0 | AA96: =_xlfn.XLOOKUP(W96,'BBM Costs'!$Q$6:$U$6,_xlfn.XLOOKUP(X96,'BBM Costs'!$P$7:$P$37,'BBM Costs'!$Q$7:$U$37))*_xlfn.XLOOKUP(X96,'Control panel'!$L$7:$L$37,'Control panel'!$M$7:$M$37) -> 0 | AB96: =_xlfn.XLOOKUP(W96,'BBM Costs'!$X$6:$AB$6,_xlfn.XLOOKUP(X96,'BBM Costs'!$W$7:$W$37,'BBM Costs'!$X$7:$AB$37))*_xlfn.XLOOKUP(X96,'Control panel'!$S$7:$S$37,'Control panel'!$T$7:$T$37) -> 0 | AC96: 0
W97: 2027-28 | X97: ='PTRM Data'!B33 -> Communications | Y97: =_xlfn.XLOOKUP(X97,'Control panel'!$L$7:$L$37,'Control panel'!$P$7:$P$37) -> 1 | Z97: 0 | AA97: =_xlfn.XLOOKUP(W97,'BBM Costs'!$Q$6:$U$6,_xlfn.XLOOKUP(X97,'BBM Costs'!$P$7:$P$37,'BBM Costs'!$Q$7:$U$37))*_xlfn.XLOOKUP(X97,'Control panel'!$L$7:$L$37,'Control panel'!$M$7:$M$37) -> 0 | AB97: =_xlfn.XLOOKUP(W97,'BBM Costs'!$X$6:$AB$6,_xlfn.XLOOKUP(X97,'BBM Costs'!$W$7:$W$37,'BBM Costs'!$X$7:$AB$37))*_xlfn.XLOOKUP(X97,'Control panel'!$S$7:$S$37,'Control panel'!$T$7:$T$37) -> 0 | AC97: 0
W98: 2027-28 | X98: ='PTRM Data'!B34 -> In-house software | Y98: =_xlfn.XLOOKUP(X98,'Control panel'!$L$7:$L$37,'Control panel'!$P$7:$P$37) -> 1 | Z98: 0 | AA98: =_xlfn.XLOOKUP(W98,'BBM Costs'!$Q$6:$U$6,_xlfn.XLOOKUP(X98,'BBM Costs'!$P$7:$P$37,'BBM Costs'!$Q$7:$U$37))*_xlfn.XLOOKUP(X98,'Control panel'!$L$7:$L$37,'Control panel'!$M$7:$M$37) -> 0 | AB98: =_xlfn.XLOOKUP(W98,'BBM Costs'!$X$6:$AB$6,_xlfn.XLOOKUP(X98,'BBM Costs'!$W$7:$W$37,'BBM Costs'!$X$7:$AB$37))*_xlfn.XLOOKUP(X98,'Control panel'!$S$7:$S$37,'Control panel'!$T$7:$T$37) -> 0 | AC98: 0
W99: 2027-28 | X99: ='PTRM Data'!B35 -> IT Systems | Y99: =_xlfn.XLOOKUP(X99,'Control panel'!$L$7:$L$37,'Control panel'!$P$7:$P$37) -> 1 | Z99: 0 | AA99: =_xlfn.XLOOKUP(W99,'BBM Costs'!$Q$6:$U$6,_xlfn.XLOOKUP(X99,'BBM Costs'!$P$7:$P$37,'BBM Costs'!$Q$7:$U$37))*_xlfn.XLOOKUP(X99,'Control panel'!$L$7:$L$37,'Control panel'!$M$7:$M$37) -> 0 | AB99: =_xlfn.XLOOKUP(W99,'BBM Costs'!$X$6:$AB$6,_xlfn.XLOOKUP(X99,'BBM Costs'!$W$7:$W$37,'BBM Costs'!$X$7:$AB$37))*_xlfn.XLOOKUP(X99,'Control panel'!$S$7:$S$37,'Control panel'!$T$7:$T$37) -> 0 | AC99: 0
W100: 2027-28 | X100: ='PTRM Data'!B36 -> Legacy ICT Assets | Y100: =_xlfn.XLOOKUP(X100,'Control panel'!$L$7:$L$37,'Control panel'!$P$7:$P$37) -> 1 | Z100: 0 | AA100: =_xlfn.XLOOKUP(W100,'BBM Costs'!$Q$6:$U$6,_xlfn.XLOOKUP(X100,'BBM Costs'!$P$7:$P$37,'BBM Costs'!$Q$7:$U$37))*_xlfn.XLOOKUP(X100,'Control panel'!$L$7:$L$37,'Control panel'!$M$7:$M$37) -> 0 | AB100: =_xlfn.XLOOKUP(W100,'BBM Costs'!$X$6:$AB$6,_xlfn.XLOOKUP(X100,'BBM Costs'!$W$7:$W$37,'BBM Costs'!$X$7:$AB$37))*_xlfn.XLOOKUP(X100,'Control panel'!$S$7:$S$37,'Control panel'!$T$7:$T$37) -> 0 | AC100: 0
W101: 2027-28 | X101: ='PTRM Data'!B37 -> Buildings - capital works | Y101: =_xlfn.XLOOKUP(X101,'Control panel'!$L$7:$L$37,'Control panel'!$P$7:$P$37) -> 1 | Z101: 0 | AA101: =_xlfn.XLOOKUP(W101,'BBM Costs'!$Q$6:$U$6,_xlfn.XLOOKUP(X101,'BBM Costs'!$P$7:$P$37,'BBM Costs'!$Q$7:$U$37))*_xlfn.XLOOKUP(X101,'Control panel'!$L$7:$L$37,'Control panel'!$M$7:$M$37) -> 0 | AB101: =_xlfn.XLOOKUP(W101,'BBM Costs'!$X$6:$AB$6,_xlfn.XLOOKUP(X101,'BBM Costs'!$W$7:$W$37,'BBM Costs'!$X$7:$AB$37))*_xlfn.XLOOKUP(X101,'Control panel'!$S$7:$S$37,'Control panel'!$T$7:$T$37) -> 0 | AC101: 0
W102: 2028-29 | X102: ='PTRM Data'!B7 -> Overhead Sub-Transmission Lines | Y102: =_xlfn.XLOOKUP(X102,'Control panel'!$L$7:$L$37,'Control panel'!$P$7:$P$37) -> 1 | Z102: 8.505003817 | AA102: =_xlfn.XLOOKUP(W102,'BBM Costs'!$Q$6:$U$6,_xlfn.XLOOKUP(X102,'BBM Costs'!$P$7:$P$37,'BBM Costs'!$Q$7:$U$37))*_xlfn.XLOOKUP(X102,'Control panel'!$L$7:$L$37,'Control panel'!$M$7:$M$37) -> 0 | AB102: =_xlfn.XLOOKUP(W102,'BBM Costs'!$X$6:$AB$6,_xlfn.XLOOKUP(X102,'BBM Costs'!$W$7:$W$37,'BBM Costs'!$X$7:$AB$37))*_xlfn.XLOOKUP(X102,'Control panel'!$S$7:$S$37,'Control panel'!$T$7:$T$37) -> 0 | AC102: 8.505003817
W103: 2028-29 | X103: ='PTRM Data'!B8 -> Underground Sub-Transmission Cables | Y103: =_xlfn.XLOOKUP(X103,'Control panel'!$L$7:$L$37,'Control panel'!$P$7:$P$37) -> 1 | Z103: 0.3750031578 | AA103: =_xlfn.XLOOKUP(W103,'BBM Costs'!$Q$6:$U$6,_xlfn.XLOOKUP(X103,'BBM Costs'!$P$7:$P$37,'BBM Costs'!$Q$7:$U$37))*_xlfn.XLOOKUP(X103,'Control panel'!$L$7:$L$37,'Control panel'!$M$7:$M$37) -> 0 | AB103: =_xlfn.XLOOKUP(W103,'BBM Costs'!$X$6:$AB$6,_xlfn.XLOOKUP(X103,'BBM Costs'!$W$7:$W$37,'BBM Costs'!$X$7:$AB$37))*_xlfn.XLOOKUP(X103,'Control panel'!$S$7:$S$37,'Control panel'!$T$7:$T$37) -> 0 | AC103: 0.3750031578
W104: 2028-29 | X104: ='PTRM Data'!B9 -> Overhead Distribution Lines | Y104: =_xlfn.XLOOKUP(X104,'Control panel'!$L$7:$L$37,'Control panel'!$P$7:$P$37) -> 0.57 | Z104: 34.87037351 | AA104: =_xlfn.XLOOKUP(W104,'BBM Costs'!$Q$6:$U$6,_xlfn.XLOOKUP(X104,'BBM Costs'!$P$7:$P$37,'BBM Costs'!$Q$7:$U$37))*_xlfn.XLOOKUP(X104,'Control panel'!$L$7:$L$37,'Control panel'!$M$7:$M$37) -> 5.988057203 | AB104: =_xlfn.XLOOKUP(W104,'BBM Costs'!$X$6:$AB$6,_xlfn.XLOOKUP(X104,'BBM Costs'!$W$7:$W$37,'BBM Costs'!$X$7:$AB$37))*_xlfn.XLOOKUP(X104,'Control panel'!$S$7:$S$37,'Control panel'!$T$7:$T$37) -> 214.0224243 | AC104: 254.880855
W105: 2028-29 | X105: ='PTRM Data'!B10 -> Underground Distribution Cables | Y105: =_xlfn.XLOOKUP(X105,'Control panel'!$L$7:$L$37,'Control panel'!$P$7:$P$37) -> 0.57 | Z105: 6.165933568 | AA105: =_xlfn.XLOOKUP(W105,'BBM Costs'!$Q$6:$U$6,_xlfn.XLOOKUP(X105,'BBM Costs'!$P$7:$P$37,'BBM Costs'!$Q$7:$U$37))*_xlfn.XLOOKUP(X105,'Control panel'!$L$7:$L$37,'Control panel'!$M$7:$M$37) -> -0.8720516499 | AB105: =_xlfn.XLOOKUP(W105,'BBM Costs'!$X$6:$AB$6,_xlfn.XLOOKUP(X105,'BBM Costs'!$W$7:$W$37,'BBM Costs'!$X$7:$AB$37))*_xlfn.XLOOKUP(X105,'Control panel'!$S$7:$S$37,'Control panel'!$T$7:$T$37) -> 33.53513705 | AC105: 38.82901897
W106: 2028-29 | X106: ='PTRM Data'!B11 -> Distribution Equipment | Y106: =_xlfn.XLOOKUP(X106,'Control panel'!$L$7:$L$37,'Control panel'!$P$7:$P$37) -> 0.57 | Z106: 0.1304269553 | AA106: =_xlfn.XLOOKUP(W106,'BBM Costs'!$Q$6:$U$6,_xlfn.XLOOKUP(X106,'BBM Costs'!$P$7:$P$37,'BBM Costs'!$Q$7:$U$37))*_xlfn.XLOOKUP(X106,'Control panel'!$L$7:$L$37,'Control panel'!$M$7:$M$37) -> 0.6969425077 | AB106: =_xlfn.XLOOKUP(W106,'BBM Costs'!$X$6:$AB$6,_xlfn.XLOOKUP(X106,'BBM Costs'!$W$7:$W$37,'BBM Costs'!$X$7:$AB$37))*_xlfn.XLOOKUP(X106,'Control panel'!$S$7:$S$37,'Control panel'!$T$7:$T$37) -> 0.8242584019 | AC106: 1.651627865
W107: 2028-29 | X107: ='PTRM Data'!B12 -> Substation Bays | Y107: =_xlfn.XLOOKUP(X107,'Control panel'!$L$7:$L$37,'Control panel'!$P$7:$P$37) -> 1 | Z107: 9.490437323 | AA107: =_xlfn.XLOOKUP(W107,'BBM Costs'!$Q$6:$U$6,_xlfn.XLOOKUP(X107,'BBM Costs'!$P$7:$P$37,'BBM Costs'!$Q$7:$U$37))*_xlfn.XLOOKUP(X107,'Control panel'!$L$7:$L$37,'Control panel'!$M$7:$M$37) -> 0 | AB107: =_xlfn.XLOOKUP(W107,'BBM Costs'!$X$6:$AB$6,_xlfn.XLOOKUP(X107,'BBM Costs'!$W$7:$W$37,'BBM Costs'!$X$7:$AB$37))*_xlfn.XLOOKUP(X107,'Control panel'!$S$7:$S$37,'Control panel'!$T$7:$T$37) -> 0 | AC107: 9.490437323
W108: 2028-29 | X108: ='PTRM Data'!B13 -> Substation Establishment | Y108: =_xlfn.XLOOKUP(X108,'Control panel'!$L$7:$L$37,'Control panel'!$P$7:$P$37) -> 1 | Z108: 2.395546175 | AA108: =_xlfn.XLOOKUP(W108,'BBM Costs'!$Q$6:$U$6,_xlfn.XLOOKUP(X108,'BBM Costs'!$P$7:$P$37,'BBM Costs'!$Q$7:$U$37))*_xlfn.XLOOKUP(X108,'Control panel'!$L$7:$L$37,'Control panel'!$M$7:$M$37) -> 0 | AB108: =_xlfn.XLOOKUP(W108,'BBM Costs'!$X$6:$AB$6,_xlfn.XLOOKUP(X108,'BBM Costs'!$W$7:$W$37,'BBM Costs'!$X$7:$AB$37))*_xlfn.XLOOKUP(X108,'Control panel'!$S$7:$S$37,'Control panel'!$T$7:$T$37) -> 0 | AC108: 2.395546175
W109: 2028-29 | X109: ='PTRM Data'!B14 -> Distribution Substation Switchgear | Y109: =_xlfn.XLOOKUP(X109,'Control panel'!$L$7:$L$37,'Control panel'!$P$7:$P$37) -> 0.57 | Z109: 3.605916682 | AA109: =_xlfn.XLOOKUP(W109,'BBM Costs'!$Q$6:$U$6,_xlfn.XLOOKUP(X109,'BBM Costs'!$P$7:$P$37,'BBM Costs'!$Q$7:$U$37))*_xlfn.XLOOKUP(X109,'Control panel'!$L$7:$L$37,'Control panel'!$M$7:$M$37) -> 0.9500980432 | AB109: =_xlfn.XLOOKUP(W109,'BBM Costs'!$X$6:$AB$6,_xlfn.XLOOKUP(X109,'BBM Costs'!$W$7:$W$37,'BBM Costs'!$X$7:$AB$37))*_xlfn.XLOOKUP(X109,'Control panel'!$S$7:$S$37,'Control panel'!$T$7:$T$37) -> 22.39941311 | AC109: 26.95542783
W110: 2028-29 | X110: ='PTRM Data'!B15 -> Zone Transformers | Y110: =_xlfn.XLOOKUP(X110,'Control panel'!$L$7:$L$37,'Control panel'!$P$7:$P$37) -> 1 | Z110: 1.933250664 | AA110: =_xlfn.XLOOKUP(W110,'BBM Costs'!$Q$6:$U$6,_xlfn.XLOOKUP(X110,'BBM Costs'!$P$7:$P$37,'BBM Costs'!$Q$7:$U$37))*_xlfn.XLOOKUP(X110,'Control panel'!$L$7:$L$37,'Control panel'!$M$7:$M$37) -> 0 | AB110: =_xlfn.XLOOKUP(W110,'BBM Costs'!$X$6:$AB$6,_xlfn.XLOOKUP(X110,'BBM Costs'!$W$7:$W$37,'BBM Costs'!$X$7:$AB$37))*_xlfn.XLOOKUP(X110,'Control panel'!$S$7:$S$37,'Control panel'!$T$7:$T$37) -> 0 | AC110: 1.933250664
W111: 2028-29 | X111: ='PTRM Data'!B16 -> Distribution Transformers | Y111: =_xlfn.XLOOKUP(X111,'Control panel'!$L$7:$L$37,'Control panel'!$P$7:$P$37) -> 0.57 | Z111: 9.220746093 | AA111: =_xlfn.XLOOKUP(W111,'BBM Costs'!$Q$6:$U$6,_xlfn.XLOOKUP(X111,'BBM Costs'!$P$7:$P$37,'BBM Costs'!$Q$7:$U$37))*_xlfn.XLOOKUP(X111,'Control panel'!$L$7:$L$37,'Control panel'!$M$7:$M$37) -> 12.36152353 | AB111: =_xlfn.XLOOKUP(W111,'BBM Costs'!$X$6:$AB$6,_xlfn.XLOOKUP(X111,'BBM Costs'!$W$7:$W$37,'BBM Costs'!$X$7:$AB$37))*_xlfn.XLOOKUP(X111,'Control panel'!$S$7:$S$37,'Control panel'!$T$7:$T$37) -> 52.72583958 | AC111: 74.3081092
W112: 2028-29 | X112: ='PTRM Data'!B17 -> Low Voltage Services | Y112: =_xlfn.XLOOKUP(X112,'Control panel'!$L$7:$L$37,'Control panel'!$P$7:$P$37) -> 0 | Z112: 3.006667317 | AA112: =_xlfn.XLOOKUP(W112,'BBM Costs'!$Q$6:$U$6,_xlfn.XLOOKUP(X112,'BBM Costs'!$P$7:$P$37,'BBM Costs'!$Q$7:$U$37))*_xlfn.XLOOKUP(X112,'Control panel'!$L$7:$L$37,'Control panel'!$M$7:$M$37) -> 0 | AB112: =_xlfn.XLOOKUP(W112,'BBM Costs'!$X$6:$AB$6,_xlfn.XLOOKUP(X112,'BBM Costs'!$W$7:$W$37,'BBM Costs'!$X$7:$AB$37))*_xlfn.XLOOKUP(X112,'Control panel'!$S$7:$S$37,'Control panel'!$T$7:$T$37) -> 0 | AC112: 3.006667317
W113: 2028-29 | X113: ='PTRM Data'!B18 -> Metering | Y113: =_xlfn.XLOOKUP(X113,'Control panel'!$L$7:$L$37,'Control panel'!$P$7:$P$37) -> 1 | Z113: 0 | AA113: =_xlfn.XLOOKUP(W113,'BBM Costs'!$Q$6:$U$6,_xlfn.XLOOKUP(X113,'BBM Costs'!$P$7:$P$37,'BBM Costs'!$Q$7:$U$37))*_xlfn.XLOOKUP(X113,'Control panel'!$L$7:$L$37,'Control panel'!$M$7:$M$37) -> 0 | AB113: =_xlfn.XLOOKUP(W113,'BBM Costs'!$X$6:$AB$6,_xlfn.XLOOKUP(X113,'BBM Costs'!$W$7:$W$37,'BBM Costs'!$X$7:$AB$37))*_xlfn.XLOOKUP(X113,'Control panel'!$S$7:$S$37,'Control panel'!$T$7:$T$37) -> 0 | AC113: 0
W114: 2028-29 | X114: ='PTRM Data'!B19 -> Communications – Pilot Wires | Y114: =_xlfn.XLOOKUP(X114,'Control panel'!$L$7:$L$37,'Control panel'!$P$7:$P$37) -> 0 | Z114: 1.059872931 | AA114: =_xlfn.XLOOKUP(W114,'BBM Costs'!$Q$6:$U$6,_xlfn.XLOOKUP(X114,'BBM Costs'!$P$7:$P$37,'BBM Costs'!$Q$7:$U$37))*_xlfn.XLOOKUP(X114,'Control panel'!$L$7:$L$37,'Control panel'!$M$7:$M$37) -> 0 | AB114: =_xlfn.XLOOKUP(W114,'BBM Costs'!$X$6:$AB$6,_xlfn.XLOOKUP(X114,'BBM Costs'!$W$7:$W$37,'BBM Costs'!$X$7:$AB$37))*_xlfn.XLOOKUP(X114,'Control panel'!$S$7:$S$37,'Control panel'!$T$7:$T$37) -> 0 | AC114: 1.059872931
W116: 2028-29 | X116: ='PTRM Data'!B21 -> Land & Easements (System) - combined | Y116: =_xlfn.XLOOKUP(X116,'Control panel'!$L$7:$L$37,'Control panel'!$P$7:$P$37) -> 1 | Z116: 0.3032034089 | AA116: =_xlfn.XLOOKUP(W116,'BBM Costs'!$Q$6:$U$6,_xlfn.XLOOKUP(X116,'BBM Costs'!$P$7:$P$37,'BBM Costs'!$Q$7:$U$37))*_xlfn.XLOOKUP(X116,'Control panel'!$L$7:$L$37,'Control panel'!$M$7:$M$37) -> 0 | AB116: =_xlfn.XLOOKUP(W116,'BBM Costs'!$X$6:$AB$6,_xlfn.XLOOKUP(X116,'BBM Costs'!$W$7:$W$37,'BBM Costs'!$X$7:$AB$37))*_xlfn.XLOOKUP(X116,'Control panel'!$S$7:$S$37,'Control panel'!$T$7:$T$37) -> 0 | AC116: 0.3032034089
W117: 2028-29 | X117: ='PTRM Data'!B22 -> Land Improvements | Y117: =_xlfn.XLOOKUP(X117,'Control panel'!$L$7:$L$37,'Control panel'!$P$7:$P$37) -> 1 | Z117: 0 | AA117: =_xlfn.XLOOKUP(W117,'BBM Costs'!$Q$6:$U$6,_xlfn.XLOOKUP(X117,'BBM Costs'!$P$7:$P$37,'BBM Costs'!$Q$7:$U$37))*_xlfn.XLOOKUP(X117,'Control panel'!$L$7:$L$37,'Control panel'!$M$7:$M$37) -> 0 | AB117: =_xlfn.XLOOKUP(W117,'BBM Costs'!$X$6:$AB$6,_xlfn.XLOOKUP(X117,'BBM Costs'!$W$7:$W$37,'BBM Costs'!$X$7:$AB$37))*_xlfn.XLOOKUP(X117,'Control panel'!$S$7:$S$37,'Control panel'!$T$7:$T$37) -> 0 | AC117: 0
W118: 2028-29 | X118: ='PTRM Data'!B23 -> Control Centre - SCADA | Y118: =_xlfn.XLOOKUP(X118,'Control panel'!$L$7:$L$37,'Control panel'!$P$7:$P$37) -> 1 | Z118: 0.1194650048 | AA118: =_xlfn.XLOOKUP(W118,'BBM Costs'!$Q$6:$U$6,_xlfn.XLOOKUP(X118,'BBM Costs'!$P$7:$P$37,'BBM Costs'!$Q$7:$U$37))*_xlfn.XLOOKUP(X118,'Control panel'!$L$7:$L$37,'Control panel'!$M$7:$M$37) -> 0 | AB118: =_xlfn.XLOOKUP(W118,'BBM Costs'!$X$6:$AB$6,_xlfn.XLOOKUP(X118,'BBM Costs'!$W$7:$W$37,'BBM Costs'!$X$7:$AB$37))*_xlfn.XLOOKUP(X118,'Control panel'!$S$7:$S$37,'Control panel'!$T$7:$T$37) -> 0 | AC118: 0.1194650048
W119: 2028-29 | X119: ='PTRM Data'!B24 -> Other Equipment | Y119: =_xlfn.XLOOKUP(X119,'Control panel'!$L$7:$L$37,'Control panel'!$P$7:$P$37) -> 1 | Z119: 0.008849808803 | AA119: =_xlfn.XLOOKUP(W119,'BBM Costs'!$Q$6:$U$6,_xlfn.XLOOKUP(X119,'BBM Costs'!$P$7:$P$37,'BBM Costs'!$Q$7:$U$37))*_xlfn.XLOOKUP(X119,'Control panel'!$L$7:$L$37,'Control panel'!$M$7:$M$37) -> 0 | AB119: =_xlfn.XLOOKUP(W119,'BBM Costs'!$X$6:$AB$6,_xlfn.XLOOKUP(X119,'BBM Costs'!$W$7:$W$37,'BBM Costs'!$X$7:$AB$37))*_xlfn.XLOOKUP(X119,'Control panel'!$S$7:$S$37,'Control panel'!$T$7:$T$37) -> 0 | AC119: 0.008849808803
W120: 2028-29 | X120: ='PTRM Data'!B25 -> Generation Assets | Y120: =_xlfn.XLOOKUP(X120,'Control panel'!$L$7:$L$37,'Control panel'!$P$7:$P$37) -> 1 | Z120: 0.1116092608 | AA120: =_xlfn.XLOOKUP(W120,'BBM Costs'!$Q$6:$U$6,_xlfn.XLOOKUP(X120,'BBM Costs'!$P$7:$P$37,'BBM Costs'!$Q$7:$U$37))*_xlfn.XLOOKUP(X120,'Control panel'!$L$7:$L$37,'Control panel'!$M$7:$M$37) -> 0 | AB120: =_xlfn.XLOOKUP(W120,'BBM Costs'!$X$6:$AB$6,_xlfn.XLOOKUP(X120,'BBM Costs'!$W$7:$W$37,'BBM Costs'!$X$7:$AB$37))*_xlfn.XLOOKUP(X120,'Control panel'!$S$7:$S$37,'Control panel'!$T$7:$T$37) -> 0 | AC120: 0.1116092608
W121: 2028-29 | X121: ='PTRM Data'!B26 -> Motor Vehicles | Y121: =_xlfn.XLOOKUP(X121,'Control panel'!$L$7:$L$37,'Control panel'!$P$7:$P$37) -> 1 | Z121: 0 | AA121: =_xlfn.XLOOKUP(W121,'BBM Costs'!$Q$6:$U$6,_xlfn.XLOOKUP(X121,'BBM Costs'!$P$7:$P$37,'BBM Costs'!$Q$7:$U$37))*_xlfn.XLOOKUP(X121,'Control panel'!$L$7:$L$37,'Control panel'!$M$7:$M$37) -> 0 | AB121: =_xlfn.XLOOKUP(W121,'BBM Costs'!$X$6:$AB$6,_xlfn.XLOOKUP(X121,'BBM Costs'!$W$7:$W$37,'BBM Costs'!$X$7:$AB$37))*_xlfn.XLOOKUP(X121,'Control panel'!$S$7:$S$37,'Control panel'!$T$7:$T$37) -> 0 | AC121: 0
W122: 2028-29 | X122: ='PTRM Data'!B27 -> Plant & Equipment | Y122: =_xlfn.XLOOKUP(X122,'Control panel'!$L$7:$L$37,'Control panel'!$P$7:$P$37) -> 1 | Z122: 0 | AA122: =_xlfn.XLOOKUP(W122,'BBM Costs'!$Q$6:$U$6,_xlfn.XLOOKUP(X122,'BBM Costs'!$P$7:$P$37,'BBM Costs'!$Q$7:$U$37))*_xlfn.XLOOKUP(X122,'Control panel'!$L$7:$L$37,'Control panel'!$M$7:$M$37) -> 0 | AB122: =_xlfn.XLOOKUP(W122,'BBM Costs'!$X$6:$AB$6,_xlfn.XLOOKUP(X122,'BBM Costs'!$W$7:$W$37,'BBM Costs'!$X$7:$AB$37))*_xlfn.XLOOKUP(X122,'Control panel'!$S$7:$S$37,'Control panel'!$T$7:$T$37) -> 0 | AC122: 0
W123: 2028-29 | X123: ='PTRM Data'!B28 -> Buildings | Y123: =_xlfn.XLOOKUP(X123,'Control panel'!$L$7:$L$37,'Control panel'!$P$7:$P$37) -> 1 | Z123: 0 | AA123: =_xlfn.XLOOKUP(W123,'BBM Costs'!$Q$6:$U$6,_xlfn.XLOOKUP(X123,'BBM Costs'!$P$7:$P$37,'BBM Costs'!$Q$7:$U$37))*_xlfn.XLOOKUP(X123,'Control panel'!$L$7:$L$37,'Control panel'!$M$7:$M$37) -> 0 | AB123: =_xlfn.XLOOKUP(W123,'BBM Costs'!$X$6:$AB$6,_xlfn.XLOOKUP(X123,'BBM Costs'!$W$7:$W$37,'BBM Costs'!$X$7:$AB$37))*_xlfn.XLOOKUP(X123,'Control panel'!$S$7:$S$37,'Control panel'!$T$7:$T$37) -> 0 | AC123: 0
W124: 2028-29 | X124: ='PTRM Data'!B29 -> Office Equipment & Furniture | Y124: =_xlfn.XLOOKUP(X124,'Control panel'!$L$7:$L$37,'Control panel'!$P$7:$P$37) -> 1 | Z124: -0.01844709728 | AA124: =_xlfn.XLOOKUP(W124,'BBM Costs'!$Q$6:$U$6,_xlfn.XLOOKUP(X124,'BBM Costs'!$P$7:$P$37,'BBM Costs'!$Q$7:$U$37))*_xlfn.XLOOKUP(X124,'Control panel'!$L$7:$L$37,'Control panel'!$M$7:$M$37) -> 0 | AB124: =_xlfn.XLOOKUP(W124,'BBM Costs'!$X$6:$AB$6,_xlfn.XLOOKUP(X124,'BBM Costs'!$W$7:$W$37,'BBM Costs'!$X$7:$AB$37))*_xlfn.XLOOKUP(X124,'Control panel'!$S$7:$S$37,'Control panel'!$T$7:$T$37) -> 0 | AC124: -0.01844709728
W125: 2028-29 | X125: ='PTRM Data'!B30 -> Initial Leases (10 yr life) | Y125: =_xlfn.XLOOKUP(X125,'Control panel'!$L$7:$L$37,'Control panel'!$P$7:$P$37) -> 1 | Z125: 0 | AA125: =_xlfn.XLOOKUP(W125,'BBM Costs'!$Q$6:$U$6,_xlfn.XLOOKUP(X125,'BBM Costs'!$P$7:$P$37,'BBM Costs'!$Q$7:$U$37))*_xlfn.XLOOKUP(X125,'Control panel'!$L$7:$L$37,'Control panel'!$M$7:$M$37) -> 0 | AB125: =_xlfn.XLOOKUP(W125,'BBM Costs'!$X$6:$AB$6,_xlfn.XLOOKUP(X125,'BBM Costs'!$W$7:$W$37,'BBM Costs'!$X$7:$AB$37))*_xlfn.XLOOKUP(X125,'Control panel'!$S$7:$S$37,'Control panel'!$T$7:$T$37) -> 0 | AC125: 0
W126: 2028-29 | X126: ='PTRM Data'!B31 -> Lease Extensions (5yr Life) | Y126: =_xlfn.XLOOKUP(X126,'Control panel'!$L$7:$L$37,'Control panel'!$P$7:$P$37) -> 1 | Z126: 0 | AA126: =_xlfn.XLOOKUP(W126,'BBM Costs'!$Q$6:$U$6,_xlfn.XLOOKUP(X126,'BBM Costs'!$P$7:$P$37,'BBM Costs'!$Q$7:$U$37))*_xlfn.XLOOKUP(X126,'Control panel'!$L$7:$L$37,'Control panel'!$M$7:$M$37) -> 0 | AB126: =_xlfn.XLOOKUP(W126,'BBM Costs'!$X$6:$AB$6,_xlfn.XLOOKUP(X126,'BBM Costs'!$W$7:$W$37,'BBM Costs'!$X$7:$AB$37))*_xlfn.XLOOKUP(X126,'Control panel'!$S$7:$S$37,'Control panel'!$T$7:$T$37) -> 0 | AC126: 0
W127: 2028-29 | X127: ='PTRM Data'!B32 -> Land & Easements - combined | Y127: =_xlfn.XLOOKUP(X127,'Control panel'!$L$7:$L$37,'Control panel'!$P$7:$P$37) -> 1 | Z127: 0 | AA127: =_xlfn.XLOOKUP(W127,'BBM Costs'!$Q$6:$U$6,_xlfn.XLOOKUP(X127,'BBM Costs'!$P$7:$P$37,'BBM Costs'!$Q$7:$U$37))*_xlfn.XLOOKUP(X127,'Control panel'!$L$7:$L$37,'Control panel'!$M$7:$M$37) -> 0 | AB127: =_xlfn.XLOOKUP(W127,'BBM Costs'!$X$6:$AB$6,_xlfn.XLOOKUP(X127,'BBM Costs'!$W$7:$W$37,'BBM Costs'!$X$7:$AB$37))*_xlfn.XLOOKUP(X127,'Control panel'!$S$7:$S$37,'Control panel'!$T$7:$T$37) -> 0 | AC127: 0
W128: 2028-29 | X128: ='PTRM Data'!B33 -> Communications | Y128: =_xlfn.XLOOKUP(X128,'Control panel'!$L$7:$L$37,'Control panel'!$P$7:$P$37) -> 1 | Z128: 0 | AA128: =_xlfn.XLOOKUP(W128,'BBM Costs'!$Q$6:$U$6,_xlfn.XLOOKUP(X128,'BBM Costs'!$P$7:$P$37,'BBM Costs'!$Q$7:$U$37))*_xlfn.XLOOKUP(X128,'Control panel'!$L$7:$L$37,'Control panel'!$M$7:$M$37) -> 0 | AB128: =_xlfn.XLOOKUP(W128,'BBM Costs'!$X$6:$AB$6,_xlfn.XLOOKUP(X128,'BBM Costs'!$W$7:$W$37,'BBM Costs'!$X$7:$AB$37))*_xlfn.XLOOKUP(X128,'Control panel'!$S$7:$S$37,'Control panel'!$T$7:$T$37) -> 0 | AC128: 0
W129: 2028-29 | X129: ='PTRM Data'!B34 -> In-house software | Y129: =_xlfn.XLOOKUP(X129,'Control panel'!$L$7:$L$37,'Control panel'!$P$7:$P$37) -> 1 | Z129: 0 | AA129: =_xlfn.XLOOKUP(W129,'BBM Costs'!$Q$6:$U$6,_xlfn.XLOOKUP(X129,'BBM Costs'!$P$7:$P$37,'BBM Costs'!$Q$7:$U$37))*_xlfn.XLOOKUP(X129,'Control panel'!$L$7:$L$37,'Control panel'!$M$7:$M$37) -> 0 | AB129: =_xlfn.XLOOKUP(W129,'BBM Costs'!$X$6:$AB$6,_xlfn.XLOOKUP(X129,'BBM Costs'!$W$7:$W$37,'BBM Costs'!$X$7:$AB$37))*_xlfn.XLOOKUP(X129,'Control panel'!$S$7:$S$37,'Control panel'!$T$7:$T$37) -> 0 | AC129: 0
W130: 2028-29 | X130: ='PTRM Data'!B35 -> IT Systems | Y130: =_xlfn.XLOOKUP(X130,'Control panel'!$L$7:$L$37,'Control panel'!$P$7:$P$37) -> 1 | Z130: 0 | AA130: =_xlfn.XLOOKUP(W130,'BBM Costs'!$Q$6:$U$6,_xlfn.XLOOKUP(X130,'BBM Costs'!$P$7:$P$37,'BBM Costs'!$Q$7:$U$37))*_xlfn.XLOOKUP(X130,'Control panel'!$L$7:$L$37,'Control panel'!$M$7:$M$37) -> 0 | AB130: =_xlfn.XLOOKUP(W130,'BBM Costs'!$X$6:$AB$6,_xlfn.XLOOKUP(X130,'BBM Costs'!$W$7:$W$37,'BBM Costs'!$X$7:$AB$37))*_xlfn.XLOOKUP(X130,'Control panel'!$S$7:$S$37,'Control panel'!$T$7:$T$37) -> 0 | AC130: 0
W131: 2028-29 | X131: ='PTRM Data'!B36 -> Legacy ICT Assets | Y131: =_xlfn.XLOOKUP(X131,'Control panel'!$L$7:$L$37,'Control panel'!$P$7:$P$37) -> 1 | Z131: 0 | AA131: =_xlfn.XLOOKUP(W131,'BBM Costs'!$Q$6:$U$6,_xlfn.XLOOKUP(X131,'BBM Costs'!$P$7:$P$37,'BBM Costs'!$Q$7:$U$37))*_xlfn.XLOOKUP(X131,'Control panel'!$L$7:$L$37,'Control panel'!$M$7:$M$37) -> 0 | AB131: =_xlfn.XLOOKUP(W131,'BBM Costs'!$X$6:$AB$6,_xlfn.XLOOKUP(X131,'BBM Costs'!$W$7:$W$37,'BBM Costs'!$X$7:$AB$37))*_xlfn.XLOOKUP(X131,'Control panel'!$S$7:$S$37,'Control panel'!$T$7:$T$37) -> 0 | AC131: 0
W132: 2028-29 | X132: ='PTRM Data'!B37 -> Buildings - capital works | Y132: =_xlfn.XLOOKUP(X132,'Control panel'!$L$7:$L$37,'Control panel'!$P$7:$P$37) -> 1 | Z132: 0 | AA132: =_xlfn.XLOOKUP(W132,'BBM Costs'!$Q$6:$U$6,_xlfn.XLOOKUP(X132,'BBM Costs'!$P$7:$P$37,'BBM Costs'!$Q$7:$U$37))*_xlfn.XLOOKUP(X132,'Control panel'!$L$7:$L$37,'Control panel'!$M$7:$M$37) -> 0 | AB132: =_xlfn.XLOOKUP(W132,'BBM Costs'!$X$6:$AB$6,_xlfn.XLOOKUP(X132,'BBM Costs'!$W$7:$W$37,'BBM Costs'!$X$7:$AB$37))*_xlfn.XLOOKUP(X132,'Control panel'!$S$7:$S$37,'Control panel'!$T$7:$T$37) -> 0 | AC132: 0
W133: 2029-30 | X133: ='PTRM Data'!B7 -> Overhead Sub-Transmission Lines | Y133: =_xlfn.XLOOKUP(X133,'Control panel'!$L$7:$L$37,'Control panel'!$P$7:$P$37) -> 1 | Z133: 8.842782494 | AA133: =_xlfn.XLOOKUP(W133,'BBM Costs'!$Q$6:$U$6,_xlfn.XLOOKUP(X133,'BBM Costs'!$P$7:$P$37,'BBM Costs'!$Q$7:$U$37))*_xlfn.XLOOKUP(X133,'Control panel'!$L$7:$L$37,'Control panel'!$M$7:$M$37) -> 0 | AB133: =_xlfn.XLOOKUP(W133,'BBM Costs'!$X$6:$AB$6,_xlfn.XLOOKUP(X133,'BBM Costs'!$W$7:$W$37,'BBM Costs'!$X$7:$AB$37))*_xlfn.XLOOKUP(X133,'Control panel'!$S$7:$S$37,'Control panel'!$T$7:$T$37) -> 0 | AC133: 8.842782494
W134: 2029-30 | X134: ='PTRM Data'!B8 -> Underground Sub-Transmission Cables | Y134: =_xlfn.XLOOKUP(X134,'Control panel'!$L$7:$L$37,'Control panel'!$P$7:$P$37) -> 1 | Z134: 0.3898965163 | AA134: =_xlfn.XLOOKUP(W134,'BBM Costs'!$Q$6:$U$6,_xlfn.XLOOKUP(X134,'BBM Costs'!$P$7:$P$37,'BBM Costs'!$Q$7:$U$37))*_xlfn.XLOOKUP(X134,'Control panel'!$L$7:$L$37,'Control panel'!$M$7:$M$37) -> 0 | AB134: =_xlfn.XLOOKUP(W134,'BBM Costs'!$X$6:$AB$6,_xlfn.XLOOKUP(X134,'BBM Costs'!$W$7:$W$37,'BBM Costs'!$X$7:$AB$37))*_xlfn.XLOOKUP(X134,'Control panel'!$S$7:$S$37,'Control panel'!$T$7:$T$37) -> 0 | AC134: 0.3898965163
W135: 2029-30 | X135: ='PTRM Data'!B9 -> Overhead Distribution Lines | Y135: =_xlfn.XLOOKUP(X135,'Control panel'!$L$7:$L$37,'Control panel'!$P$7:$P$37) -> 0.57 | Z135: 36.25526044 | AA135: =_xlfn.XLOOKUP(W135,'BBM Costs'!$Q$6:$U$6,_xlfn.XLOOKUP(X135,'BBM Costs'!$P$7:$P$37,'BBM Costs'!$Q$7:$U$37))*_xlfn.XLOOKUP(X135,'Control panel'!$L$7:$L$37,'Control panel'!$M$7:$M$37) -> 6.872642478 | AB135: =_xlfn.XLOOKUP(W135,'BBM Costs'!$X$6:$AB$6,_xlfn.XLOOKUP(X135,'BBM Costs'!$W$7:$W$37,'BBM Costs'!$X$7:$AB$37))*_xlfn.XLOOKUP(X135,'Control panel'!$S$7:$S$37,'Control panel'!$T$7:$T$37) -> 235.2734216 | AC135: 278.4013245
W136: 2029-30 | X136: ='PTRM Data'!B10 -> Underground Distribution Cables | Y136: =_xlfn.XLOOKUP(X136,'Control panel'!$L$7:$L$37,'Control panel'!$P$7:$P$37) -> 0.57 | Z136: 6.410815397 | AA136: =_xlfn.XLOOKUP(W136,'BBM Costs'!$Q$6:$U$6,_xlfn.XLOOKUP(X136,'BBM Costs'!$P$7:$P$37,'BBM Costs'!$Q$7:$U$37))*_xlfn.XLOOKUP(X136,'Control panel'!$L$7:$L$37,'Control panel'!$M$7:$M$37) -> -0.6601801451 | AB136: =_xlfn.XLOOKUP(W136,'BBM Costs'!$X$6:$AB$6,_xlfn.XLOOKUP(X136,'BBM Costs'!$W$7:$W$37,'BBM Costs'!$X$7:$AB$37))*_xlfn.XLOOKUP(X136,'Control panel'!$S$7:$S$37,'Control panel'!$T$7:$T$37) -> 35.48916346 | AC136: 41.23979872
W137: 2029-30 | X137: ='PTRM Data'!B11 -> Distribution Equipment | Y137: =_xlfn.XLOOKUP(X137,'Control panel'!$L$7:$L$37,'Control panel'!$P$7:$P$37) -> 0.57 | Z137: 0.1356068994 | AA137: =_xlfn.XLOOKUP(W137,'BBM Costs'!$Q$6:$U$6,_xlfn.XLOOKUP(X137,'BBM Costs'!$P$7:$P$37,'BBM Costs'!$Q$7:$U$37))*_xlfn.XLOOKUP(X137,'Control panel'!$L$7:$L$37,'Control panel'!$M$7:$M$37) -> 0.7270265146 | AB137: =_xlfn.XLOOKUP(W137,'BBM Costs'!$X$6:$AB$6,_xlfn.XLOOKUP(X137,'BBM Costs'!$W$7:$W$37,'BBM Costs'!$X$7:$AB$37))*_xlfn.XLOOKUP(X137,'Control panel'!$S$7:$S$37,'Control panel'!$T$7:$T$37) -> 0.9119469479 | AC137: 1.774580362
W138: 2029-30 | X138: ='PTRM Data'!B12 -> Substation Bays | Y138: =_xlfn.XLOOKUP(X138,'Control panel'!$L$7:$L$37,'Control panel'!$P$7:$P$37) -> 1 | Z138: =SUMPRODUCT(_xlfn.XLOOKUP(W138,$AZ$9:$AZ$13,$BA$9:$BS$13),_xlfn.XLOOKUP(X138,$AE$9:$AE$39,$AF$9:$AX$39)) -> 9.867352776 | AA138: =_xlfn.XLOOKUP(W138,'BBM Costs'!$Q$6:$U$6,_xlfn.XLOOKUP(X138,'BBM Costs'!$P$7:$P$37,'BBM Costs'!$Q$7:$U$37))*_xlfn.XLOOKUP(X138,'Control panel'!$L$7:$L$37,'Control panel'!$M$7:$M$37) -> 0 | AB138: =_xlfn.XLOOKUP(W138,'BBM Costs'!$X$6:$AB$6,_xlfn.XLOOKUP(X138,'BBM Costs'!$W$7:$W$37,'BBM Costs'!$X$7:$AB$37))*_xlfn.XLOOKUP(X138,'Control panel'!$S$7:$S$37,'Control panel'!$T$7:$T$37) -> 0 | AC138: =SUM(Z138:AB138) -> 9.867352776
W139: 2029-30 | X139: ='PTRM Data'!B13 -> Substation Establishment | Y139: =_xlfn.XLOOKUP(X139,'Control panel'!$L$7:$L$37,'Control panel'!$P$7:$P$37) -> 1 | Z139: 2.490685982 | AA139: =_xlfn.XLOOKUP(W139,'BBM Costs'!$Q$6:$U$6,_xlfn.XLOOKUP(X139,'BBM Costs'!$P$7:$P$37,'BBM Costs'!$Q$7:$U$37))*_xlfn.XLOOKUP(X139,'Control panel'!$L$7:$L$37,'Control panel'!$M$7:$M$37) -> 0 | AB139: =_xlfn.XLOOKUP(W139,'BBM Costs'!$X$6:$AB$6,_xlfn.XLOOKUP(X139,'BBM Costs'!$W$7:$W$37,'BBM Costs'!$X$7:$AB$37))*_xlfn.XLOOKUP(X139,'Control panel'!$S$7:$S$37,'Control panel'!$T$7:$T$37) -> 0 | AC139: 2.490685982
W140: 2029-30 | X140: ='PTRM Data'!B14 -> Distribution Substation Switchgear | Y140: =_xlfn.XLOOKUP(X140,'Control panel'!$L$7:$L$37,'Control panel'!$P$7:$P$37) -> 0.57 | Z140: 3.749126702 | AA140: =_xlfn.XLOOKUP(W140,'BBM Costs'!$Q$6:$U$6,_xlfn.XLOOKUP(X140,'BBM Costs'!$P$7:$P$37,'BBM Costs'!$Q$7:$U$37))*_xlfn.XLOOKUP(X140,'Control panel'!$L$7:$L$37,'Control panel'!$M$7:$M$37) -> 1.096214544 | AB140: =_xlfn.XLOOKUP(W140,'BBM Costs'!$X$6:$AB$6,_xlfn.XLOOKUP(X140,'BBM Costs'!$W$7:$W$37,'BBM Costs'!$X$7:$AB$37))*_xlfn.XLOOKUP(X140,'Control panel'!$S$7:$S$37,'Control panel'!$T$7:$T$37) -> 24.69240806 | AC140: 29.53774931
W141: 2029-30 | X141: ='PTRM Data'!B15 -> Zone Transformers | Y141: =_xlfn.XLOOKUP(X141,'Control panel'!$L$7:$L$37,'Control panel'!$P$7:$P$37) -> 1 | Z141: 2.010030272 | AA141: =_xlfn.XLOOKUP(W141,'BBM Costs'!$Q$6:$U$6,_xlfn.XLOOKUP(X141,'BBM Costs'!$P$7:$P$37,'BBM Costs'!$Q$7:$U$37))*_xlfn.XLOOKUP(X141,'Control panel'!$L$7:$L$37,'Control panel'!$M$7:$M$37) -> 0 | AB141: =_xlfn.XLOOKUP(W141,'BBM Costs'!$X$6:$AB$6,_xlfn.XLOOKUP(X141,'BBM Costs'!$W$7:$W$37,'BBM Costs'!$X$7:$AB$37))*_xlfn.XLOOKUP(X141,'Control panel'!$S$7:$S$37,'Control panel'!$T$7:$T$37) -> 0 | AC141: 2.010030272
W142: 2029-30 | X142: ='PTRM Data'!B16 -> Distribution Transformers | Y142: =_xlfn.XLOOKUP(X142,'Control panel'!$L$7:$L$37,'Control panel'!$P$7:$P$37) -> 0.57 | Z142: 9.586950681 | AA142: =_xlfn.XLOOKUP(W142,'BBM Costs'!$Q$6:$U$6,_xlfn.XLOOKUP(X142,'BBM Costs'!$P$7:$P$37,'BBM Costs'!$Q$7:$U$37))*_xlfn.XLOOKUP(X142,'Control panel'!$L$7:$L$37,'Control panel'!$M$7:$M$37) -> 13.0446671 | AB142: =_xlfn.XLOOKUP(W142,'BBM Costs'!$X$6:$AB$6,_xlfn.XLOOKUP(X142,'BBM Costs'!$W$7:$W$37,'BBM Costs'!$X$7:$AB$37))*_xlfn.XLOOKUP(X142,'Control panel'!$S$7:$S$37,'Control panel'!$T$7:$T$37) -> 56.72312342 | AC142: 79.3547412
W143: 2029-30 | X143: ='PTRM Data'!B17 -> Low Voltage Services | Y143: =_xlfn.XLOOKUP(X143,'Control panel'!$L$7:$L$37,'Control panel'!$P$7:$P$37) -> 0 | Z143: 3.126077976 | AA143: =_xlfn.XLOOKUP(W143,'BBM Costs'!$Q$6:$U$6,_xlfn.XLOOKUP(X143,'BBM Costs'!$P$7:$P$37,'BBM Costs'!$Q$7:$U$37))*_xlfn.XLOOKUP(X143,'Control panel'!$L$7:$L$37,'Control panel'!$M$7:$M$37) -> 0 | AB143: =_xlfn.XLOOKUP(W143,'BBM Costs'!$X$6:$AB$6,_xlfn.XLOOKUP(X143,'BBM Costs'!$W$7:$W$37,'BBM Costs'!$X$7:$AB$37))*_xlfn.XLOOKUP(X143,'Control panel'!$S$7:$S$37,'Control panel'!$T$7:$T$37) -> 0 | AC143: 3.126077976
W144: 2029-30 | X144: ='PTRM Data'!B18 -> Metering | Y144: =_xlfn.XLOOKUP(X144,'Control panel'!$L$7:$L$37,'Control panel'!$P$7:$P$37) -> 1 | Z144: 0 | AA144: =_xlfn.XLOOKUP(W144,'BBM Costs'!$Q$6:$U$6,_xlfn.XLOOKUP(X144,'BBM Costs'!$P$7:$P$37,'BBM Costs'!$Q$7:$U$37))*_xlfn.XLOOKUP(X144,'Control panel'!$L$7:$L$37,'Control panel'!$M$7:$M$37) -> 0 | AB144: =_xlfn.XLOOKUP(W144,'BBM Costs'!$X$6:$AB$6,_xlfn.XLOOKUP(X144,'BBM Costs'!$W$7:$W$37,'BBM Costs'!$X$7:$AB$37))*_xlfn.XLOOKUP(X144,'Control panel'!$S$7:$S$37,'Control panel'!$T$7:$T$37) -> 0 | AC144: 0
W145: 2029-30 | X145: ='PTRM Data'!B19 -> Communications – Pilot Wires | Y145: =_xlfn.XLOOKUP(X145,'Control panel'!$L$7:$L$37,'Control panel'!$P$7:$P$37) -> 0 | Z145: 1.10196609 | AA145: =_xlfn.XLOOKUP(W145,'BBM Costs'!$Q$6:$U$6,_xlfn.XLOOKUP(X145,'BBM Costs'!$P$7:$P$37,'BBM Costs'!$Q$7:$U$37))*_xlfn.XLOOKUP(X145,'Control panel'!$L$7:$L$37,'Control panel'!$M$7:$M$37) -> 0 | AB145: =_xlfn.XLOOKUP(W145,'BBM Costs'!$X$6:$AB$6,_xlfn.XLOOKUP(X145,'BBM Costs'!$W$7:$W$37,'BBM Costs'!$X$7:$AB$37))*_xlfn.XLOOKUP(X145,'Control panel'!$S$7:$S$37,'Control panel'!$T$7:$T$37) -> 0 | AC145: 1.10196609
W147: 2029-30 | X147: ='PTRM Data'!B21 -> Land & Easements (System) - combined | Y147: =_xlfn.XLOOKUP(X147,'Control panel'!$L$7:$L$37,'Control panel'!$P$7:$P$37) -> 1 | Z147: 0.3152452196 | AA147: =_xlfn.XLOOKUP(W147,'BBM Costs'!$Q$6:$U$6,_xlfn.XLOOKUP(X147,'BBM Costs'!$P$7:$P$37,'BBM Costs'!$Q$7:$U$37))*_xlfn.XLOOKUP(X147,'Control panel'!$L$7:$L$37,'Control panel'!$M$7:$M$37) -> 0 | AB147: =_xlfn.XLOOKUP(W147,'BBM Costs'!$X$6:$AB$6,_xlfn.XLOOKUP(X147,'BBM Costs'!$W$7:$W$37,'BBM Costs'!$X$7:$AB$37))*_xlfn.XLOOKUP(X147,'Control panel'!$S$7:$S$37,'Control panel'!$T$7:$T$37) -> 0 | AC147: 0.3152452196
W148: 2029-30 | X148: ='PTRM Data'!B22 -> Land Improvements | Y148: =_xlfn.XLOOKUP(X148,'Control panel'!$L$7:$L$37,'Control panel'!$P$7:$P$37) -> 1 | Z148: 0 | AA148: =_xlfn.XLOOKUP(W148,'BBM Costs'!$Q$6:$U$6,_xlfn.XLOOKUP(X148,'BBM Costs'!$P$7:$P$37,'BBM Costs'!$Q$7:$U$37))*_xlfn.XLOOKUP(X148,'Control panel'!$L$7:$L$37,'Control panel'!$M$7:$M$37) -> 0 | AB148: =_xlfn.XLOOKUP(W148,'BBM Costs'!$X$6:$AB$6,_xlfn.XLOOKUP(X148,'BBM Costs'!$W$7:$W$37,'BBM Costs'!$X$7:$AB$37))*_xlfn.XLOOKUP(X148,'Control panel'!$S$7:$S$37,'Control panel'!$T$7:$T$37) -> 0 | AC148: 0
W149: 2029-30 | X149: ='PTRM Data'!B23 -> Control Centre - SCADA | Y149: =_xlfn.XLOOKUP(X149,'Control panel'!$L$7:$L$37,'Control panel'!$P$7:$P$37) -> 1 | Z149: 0.1242095919 | AA149: =_xlfn.XLOOKUP(W149,'BBM Costs'!$Q$6:$U$6,_xlfn.XLOOKUP(X149,'BBM Costs'!$P$7:$P$37,'BBM Costs'!$Q$7:$U$37))*_xlfn.XLOOKUP(X149,'Control panel'!$L$7:$L$37,'Control panel'!$M$7:$M$37) -> 0 | AB149: =_xlfn.XLOOKUP(W149,'BBM Costs'!$X$6:$AB$6,_xlfn.XLOOKUP(X149,'BBM Costs'!$W$7:$W$37,'BBM Costs'!$X$7:$AB$37))*_xlfn.XLOOKUP(X149,'Control panel'!$S$7:$S$37,'Control panel'!$T$7:$T$37) -> 0 | AC149: 0.1242095919
W150: 2029-30 | X150: ='PTRM Data'!B24 -> Other Equipment | Y150: =_xlfn.XLOOKUP(X150,'Control panel'!$L$7:$L$37,'Control panel'!$P$7:$P$37) -> 1 | Z150: 0.00920128151 | AA150: =_xlfn.XLOOKUP(W150,'BBM Costs'!$Q$6:$U$6,_xlfn.XLOOKUP(X150,'BBM Costs'!$P$7:$P$37,'BBM Costs'!$Q$7:$U$37))*_xlfn.XLOOKUP(X150,'Control panel'!$L$7:$L$37,'Control panel'!$M$7:$M$37) -> 0 | AB150: =_xlfn.XLOOKUP(W150,'BBM Costs'!$X$6:$AB$6,_xlfn.XLOOKUP(X150,'BBM Costs'!$W$7:$W$37,'BBM Costs'!$X$7:$AB$37))*_xlfn.XLOOKUP(X150,'Control panel'!$S$7:$S$37,'Control panel'!$T$7:$T$37) -> 0 | AC150: 0.00920128151
W151: 2029-30 | X151: ='PTRM Data'!B25 -> Generation Assets | Y151: =_xlfn.XLOOKUP(X151,'Control panel'!$L$7:$L$37,'Control panel'!$P$7:$P$37) -> 1 | Z151: 0.1160418547 | AA151: =_xlfn.XLOOKUP(W151,'BBM Costs'!$Q$6:$U$6,_xlfn.XLOOKUP(X151,'BBM Costs'!$P$7:$P$37,'BBM Costs'!$Q$7:$U$37))*_xlfn.XLOOKUP(X151,'Control panel'!$L$7:$L$37,'Control panel'!$M$7:$M$37) -> 0 | AB151: =_xlfn.XLOOKUP(W151,'BBM Costs'!$X$6:$AB$6,_xlfn.XLOOKUP(X151,'BBM Costs'!$W$7:$W$37,'BBM Costs'!$X$7:$AB$37))*_xlfn.XLOOKUP(X151,'Control panel'!$S$7:$S$37,'Control panel'!$T$7:$T$37) -> 0 | AC151: 0.1160418547
W152: 2029-30 | X152: ='PTRM Data'!B26 -> Motor Vehicles | Y152: =_xlfn.XLOOKUP(X152,'Control panel'!$L$7:$L$37,'Control panel'!$P$7:$P$37) -> 1 | Z152: 0 | AA152: =_xlfn.XLOOKUP(W152,'BBM Costs'!$Q$6:$U$6,_xlfn.XLOOKUP(X152,'BBM Costs'!$P$7:$P$37,'BBM Costs'!$Q$7:$U$37))*_xlfn.XLOOKUP(X152,'Control panel'!$L$7:$L$37,'Control panel'!$M$7:$M$37) -> 0 | AB152: =_xlfn.XLOOKUP(W152,'BBM Costs'!$X$6:$AB$6,_xlfn.XLOOKUP(X152,'BBM Costs'!$W$7:$W$37,'BBM Costs'!$X$7:$AB$37))*_xlfn.XLOOKUP(X152,'Control panel'!$S$7:$S$37,'Control panel'!$T$7:$T$37) -> 0 | AC152: 0
W153: 2029-30 | X153: ='PTRM Data'!B27 -> Plant & Equipment | Y153: =_xlfn.XLOOKUP(X153,'Control panel'!$L$7:$L$37,'Control panel'!$P$7:$P$37) -> 1 | Z153: 0 | AA153: =_xlfn.XLOOKUP(W153,'BBM Costs'!$Q$6:$U$6,_xlfn.XLOOKUP(X153,'BBM Costs'!$P$7:$P$37,'BBM Costs'!$Q$7:$U$37))*_xlfn.XLOOKUP(X153,'Control panel'!$L$7:$L$37,'Control panel'!$M$7:$M$37) -> 0 | AB153: =_xlfn.XLOOKUP(W153,'BBM Costs'!$X$6:$AB$6,_xlfn.XLOOKUP(X153,'BBM Costs'!$W$7:$W$37,'BBM Costs'!$X$7:$AB$37))*_xlfn.XLOOKUP(X153,'Control panel'!$S$7:$S$37,'Control panel'!$T$7:$T$37) -> 0 | AC153: 0
W154: 2029-30 | X154: ='PTRM Data'!B28 -> Buildings | Y154: =_xlfn.XLOOKUP(X154,'Control panel'!$L$7:$L$37,'Control panel'!$P$7:$P$37) -> 1 | Z154: 0 | AA154: =_xlfn.XLOOKUP(W154,'BBM Costs'!$Q$6:$U$6,_xlfn.XLOOKUP(X154,'BBM Costs'!$P$7:$P$37,'BBM Costs'!$Q$7:$U$37))*_xlfn.XLOOKUP(X154,'Control panel'!$L$7:$L$37,'Control panel'!$M$7:$M$37) -> 0 | AB154: =_xlfn.XLOOKUP(W154,'BBM Costs'!$X$6:$AB$6,_xlfn.XLOOKUP(X154,'BBM Costs'!$W$7:$W$37,'BBM Costs'!$X$7:$AB$37))*_xlfn.XLOOKUP(X154,'Control panel'!$S$7:$S$37,'Control panel'!$T$7:$T$37) -> 0 | AC154: 0
W155: 2029-30 | X155: ='PTRM Data'!B29 -> Office Equipment & Furniture | Y155: =_xlfn.XLOOKUP(X155,'Control panel'!$L$7:$L$37,'Control panel'!$P$7:$P$37) -> 1 | Z155: -0.01917972907 | AA155: =_xlfn.XLOOKUP(W155,'BBM Costs'!$Q$6:$U$6,_xlfn.XLOOKUP(X155,'BBM Costs'!$P$7:$P$37,'BBM Costs'!$Q$7:$U$37))*_xlfn.XLOOKUP(X155,'Control panel'!$L$7:$L$37,'Control panel'!$M$7:$M$37) -> 0 | AB155: =_xlfn.XLOOKUP(W155,'BBM Costs'!$X$6:$AB$6,_xlfn.XLOOKUP(X155,'BBM Costs'!$W$7:$W$37,'BBM Costs'!$X$7:$AB$37))*_xlfn.XLOOKUP(X155,'Control panel'!$S$7:$S$37,'Control panel'!$T$7:$T$37) -> 0 | AC155: -0.01917972907
W156: 2029-30 | X156: ='PTRM Data'!B30 -> Initial Leases (10 yr life) | Y156: =_xlfn.XLOOKUP(X156,'Control panel'!$L$7:$L$37,'Control panel'!$P$7:$P$37) -> 1 | Z156: 0 | AA156: =_xlfn.XLOOKUP(W156,'BBM Costs'!$Q$6:$U$6,_xlfn.XLOOKUP(X156,'BBM Costs'!$P$7:$P$37,'BBM Costs'!$Q$7:$U$37))*_xlfn.XLOOKUP(X156,'Control panel'!$L$7:$L$37,'Control panel'!$M$7:$M$37) -> 0 | AB156: =_xlfn.XLOOKUP(W156,'BBM Costs'!$X$6:$AB$6,_xlfn.XLOOKUP(X156,'BBM Costs'!$W$7:$W$37,'BBM Costs'!$X$7:$AB$37))*_xlfn.XLOOKUP(X156,'Control panel'!$S$7:$S$37,'Control panel'!$T$7:$T$37) -> 0 | AC156: 0
W157: 2029-30 | X157: ='PTRM Data'!B31 -> Lease Extensions (5yr Life) | Y157: =_xlfn.XLOOKUP(X157,'Control panel'!$L$7:$L$37,'Control panel'!$P$7:$P$37) -> 1 | Z157: 0 | AA157: =_xlfn.XLOOKUP(W157,'BBM Costs'!$Q$6:$U$6,_xlfn.XLOOKUP(X157,'BBM Costs'!$P$7:$P$37,'BBM Costs'!$Q$7:$U$37))*_xlfn.XLOOKUP(X157,'Control panel'!$L$7:$L$37,'Control panel'!$M$7:$M$37) -> 0 | AB157: =_xlfn.XLOOKUP(W157,'BBM Costs'!$X$6:$AB$6,_xlfn.XLOOKUP(X157,'BBM Costs'!$W$7:$W$37,'BBM Costs'!$X$7:$AB$37))*_xlfn.XLOOKUP(X157,'Control panel'!$S$7:$S$37,'Control panel'!$T$7:$T$37) -> 0 | AC157: 0
W158: 2029-30 | X158: ='PTRM Data'!B32 -> Land & Easements - combined | Y158: =_xlfn.XLOOKUP(X158,'Control panel'!$L$7:$L$37,'Control panel'!$P$7:$P$37) -> 1 | Z158: 0 | AA158: =_xlfn.XLOOKUP(W158,'BBM Costs'!$Q$6:$U$6,_xlfn.XLOOKUP(X158,'BBM Costs'!$P$7:$P$37,'BBM Costs'!$Q$7:$U$37))*_xlfn.XLOOKUP(X158,'Control panel'!$L$7:$L$37,'Control panel'!$M$7:$M$37) -> 0 | AB158: =_xlfn.XLOOKUP(W158,'BBM Costs'!$X$6:$AB$6,_xlfn.XLOOKUP(X158,'BBM Costs'!$W$7:$W$37,'BBM Costs'!$X$7:$AB$37))*_xlfn.XLOOKUP(X158,'Control panel'!$S$7:$S$37,'Control panel'!$T$7:$T$37) -> 0 | AC158: 0
W159: 2029-30 | X159: ='PTRM Data'!B33 -> Communications | Y159: =_xlfn.XLOOKUP(X159,'Control panel'!$L$7:$L$37,'Control panel'!$P$7:$P$37) -> 1 | Z159: 0 | AA159: =_xlfn.XLOOKUP(W159,'BBM Costs'!$Q$6:$U$6,_xlfn.XLOOKUP(X159,'BBM Costs'!$P$7:$P$37,'BBM Costs'!$Q$7:$U$37))*_xlfn.XLOOKUP(X159,'Control panel'!$L$7:$L$37,'Control panel'!$M$7:$M$37) -> 0 | AB159: =_xlfn.XLOOKUP(W159,'BBM Costs'!$X$6:$AB$6,_xlfn.XLOOKUP(X159,'BBM Costs'!$W$7:$W$37,'BBM Costs'!$X$7:$AB$37))*_xlfn.XLOOKUP(X159,'Control panel'!$S$7:$S$37,'Control panel'!$T$7:$T$37) -> 0 | AC159: 0
W160: 2029-30 | X160: ='PTRM Data'!B34 -> In-house software | Y160: =_xlfn.XLOOKUP(X160,'Control panel'!$L$7:$L$37,'Control panel'!$P$7:$P$37) -> 1 | Z160: 0 | AA160: =_xlfn.XLOOKUP(W160,'BBM Costs'!$Q$6:$U$6,_xlfn.XLOOKUP(X160,'BBM Costs'!$P$7:$P$37,'BBM Costs'!$Q$7:$U$37))*_xlfn.XLOOKUP(X160,'Control panel'!$L$7:$L$37,'Control panel'!$M$7:$M$37) -> 0 | AB160: =_xlfn.XLOOKUP(W160,'BBM Costs'!$X$6:$AB$6,_xlfn.XLOOKUP(X160,'BBM Costs'!$W$7:$W$37,'BBM Costs'!$X$7:$AB$37))*_xlfn.XLOOKUP(X160,'Control panel'!$S$7:$S$37,'Control panel'!$T$7:$T$37) -> 0 | AC160: 0
W161: 2029-30 | X161: ='PTRM Data'!B35 -> IT Systems | Y161: =_xlfn.XLOOKUP(X161,'Control panel'!$L$7:$L$37,'Control panel'!$P$7:$P$37) -> 1 | Z161: 0 | AA161: =_xlfn.XLOOKUP(W161,'BBM Costs'!$Q$6:$U$6,_xlfn.XLOOKUP(X161,'BBM Costs'!$P$7:$P$37,'BBM Costs'!$Q$7:$U$37))*_xlfn.XLOOKUP(X161,'Control panel'!$L$7:$L$37,'Control panel'!$M$7:$M$37) -> 0 | AB161: =_xlfn.XLOOKUP(W161,'BBM Costs'!$X$6:$AB$6,_xlfn.XLOOKUP(X161,'BBM Costs'!$W$7:$W$37,'BBM Costs'!$X$7:$AB$37))*_xlfn.XLOOKUP(X161,'Control panel'!$S$7:$S$37,'Control panel'!$T$7:$T$37) -> 0 | AC161: 0
W162: 2029-30 | X162: ='PTRM Data'!B36 -> Legacy ICT Assets | Y162: =_xlfn.XLOOKUP(X162,'Control panel'!$L$7:$L$37,'Control panel'!$P$7:$P$37) -> 1 | Z162: 0 | AA162: =_xlfn.XLOOKUP(W162,'BBM Costs'!$Q$6:$U$6,_xlfn.XLOOKUP(X162,'BBM Costs'!$P$7:$P$37,'BBM Costs'!$Q$7:$U$37))*_xlfn.XLOOKUP(X162,'Control panel'!$L$7:$L$37,'Control panel'!$M$7:$M$37) -> 0 | AB162: =_xlfn.XLOOKUP(W162,'BBM Costs'!$X$6:$AB$6,_xlfn.XLOOKUP(X162,'BBM Costs'!$W$7:$W$37,'BBM Costs'!$X$7:$AB$37))*_xlfn.XLOOKUP(X162,'Control panel'!$S$7:$S$37,'Control panel'!$T$7:$T$37) -> 0 | AC162: 0
W163: 2029-30 | X163: ='PTRM Data'!B37 -> Buildings - capital works | Y163: =_xlfn.XLOOKUP(X163,'Control panel'!$L$7:$L$37,'Control panel'!$P$7:$P$37) -> 1 | Z163: 0 | AA163: =_xlfn.XLOOKUP(W163,'BBM Costs'!$Q$6:$U$6,_xlfn.XLOOKUP(X163,'BBM Costs'!$P$7:$P$37,'BBM Costs'!$Q$7:$U$37))*_xlfn.XLOOKUP(X163,'Control panel'!$L$7:$L$37,'Control panel'!$M$7:$M$37) -> 0 | AB163: =_xlfn.XLOOKUP(W163,'BBM Costs'!$X$6:$AB$6,_xlfn.XLOOKUP(X163,'BBM Costs'!$W$7:$W$37,'BBM Costs'!$X$7:$AB$37))*_xlfn.XLOOKUP(X163,'Control panel'!$S$7:$S$37,'Control panel'!$T$7:$T$37) -> 0 | AC163: 0

Sheet PTRM Revenue data
B2: PTRM Revenue Data
B4: Building Block Components | I4: Forecast inflation | P4: Other PTRM Components
B6: Asset class | C6: 2025-26 | D6: 2026-27 | E6: 2027-28 | F6: 2028-29 | G6: 2029-30 | I6: Asset class | J6: 2025-26 | K6: 2026-27 | L6: 2027-28 | M6: 2028-29 | N6: 2029-30 | P6: Asset class | Q6: 2025-26 | R6: 2026-27 | S6: 2027-28 | T6: 2028-29 | U6: 2029-30
B7: Return on Capital | C7: =C17*C$24 -> 955.4406025 | D7: =D17*D$24 -> 1044.862809 | E7: 1139.825305 | F7: 1197.99007 | G7: 1302.480766 | I7: Forecast inflation | J7: ='X-factors'!G10 -> 0.02799781128 | K7: ='X-factors'!H10 -> 0.02799781128 | L7: ='X-factors'!I10 -> 0.02799781128 | M7: ='X-factors'!J10 -> 0.02799781128 | N7: ='X-factors'!K10 -> 0.02799781128 | P7: EBSS | Q7: ='PTRM Input'!G345 -> -44.02964478 | R7: ='PTRM Input'!H345 -> -57.61798492 | S7: ='PTRM Input'!I345 -> -62.21669995 | T7: ='PTRM Input'!J345 -> -15.2059593 | U7: ='PTRM Input'!K345 -> 0
B8: Return of Capital (regulatory depreciation) | C8: =C18*C$24 -> 213.7739336 | D8: 236.2485978 | E8: 256.9084952 | F8: 275.8675272 | G8: 285.7478186 | I8: Inflation index | J8: =1+J7 -> 1.027997811 | K8: =1+K7 -> 1.027997811 | L8: 1.027997811 | M8: 1.027997811 | N8: 1.027997811 | P8: CESS | Q8: ='PTRM Input'!G346 -> -125.1589848 | R8: ='PTRM Input'!H346 -> -125.1589848 | S8: ='PTRM Input'!I346 -> -125.1589848 | T8: ='PTRM Input'!J346 -> -125.1589848 | U8: ='PTRM Input'!K346 -> -125.1589848
B9: Operating Expenditure | C9: =C19*C$24 -> 470.52156 | D9: 498.9132007 | E9: 526.7235488 | F9: 532.1921316 | G9: 557.3437302 | P9: Control period carryover | Q9: ='PTRM Input'!G347 -> 0 | R9: ='PTRM Input'!H347 -> 0 | S9: ='PTRM Input'!I347 -> 0 | T9: ='PTRM Input'!J347 -> 0 | U9: ='PTRM Input'!K347 -> 0
B10: Revenue Adjustments | C10: =C20*C$24 -> -185.4584769 | D10: -209.819675 | E10: -225.2651521 | F10: -174.4006153 | G10: -164.0096003 | P10: Shared asset decrements | Q10: ='PTRM Input'!G348 -> 0 | R10: ='PTRM Input'!H348 -> 0 | S10: ='PTRM Input'!I348 -> 0 | T10: ='PTRM Input'!J348 -> 0 | U10: ='PTRM Input'!K348 -> 0
B11: Net Tax Allowance | C11: =C21*C$24 -> 13.20445426 | D11: 14.08020002 | E11: 12.19283955 | F11: 14.87264821 | G11: 11.93146577 | P11: DMIA | Q11: ='PTRM Input'!G349 -> 1.501860035 | R11: ='PTRM Input'!H349 -> 1.535854831 | S11: ='PTRM Input'!I349 -> 1.575201324 | T11: ='PTRM Input'!J349 -> 1.619708191 | U11: ='PTRM Input'!K349 -> 1.655256982
B12: Total vaildation | C12: =SUM(C7:C11) -> 1467.482073 | D12: =SUM(D7:D11) -> 1584.285132 | E12: 1710.385036 | F12: 1846.521761 | G12: 1993.49418
B14: Unsmoothed building block components
B16: Asset class | C16: 2025-26 | D16: 2026-27 | E16: 2027-28 | F16: 2028-29 | G16: 2029-30
B17: Return on Capital | C17: ='X-factors'!G30 -> 981.8656079 | D17: ='X-factors'!H30 -> 1046.99465 | E17: ='X-factors'!I30 -> 1118.686166 | F17: ='X-factors'!J30 -> 1200.231129 | G17: ='X-factors'!K30 -> 1287.480986
B18: Return of Capital (regulatory depreciation) | C18: ='X-factors'!G31 -> 219.6863653 | D18: ='X-factors'!H31 -> 236.7306175 | E18: ='X-factors'!I31 -> 252.143884 | F18: ='X-factors'!J31 -> 276.3835877 | G18: ='X-factors'!K31 -> 282.4570565
B19: Operating Expenditure | C19: ='X-factors'!G32 -> 483.5349642 | D19: ='X-factors'!H32 -> 499.9311369 | E19: ='X-factors'!I32 -> 516.954962 | F19: ='X-factors'!J32 -> 533.187694 | G19: ='X-factors'!K32 -> 550.9251839
B20: Revenue Adjustments | C20: ='X-factors'!G33 -> -190.5877767 | D20: ='X-factors'!H33 -> -210.2477716 | E20: ='X-factors'!I33 -> -221.0873966 | F20: ='X-factors'!J33 -> -174.7268635 | G20: ='X-factors'!K33 -> -162.1208139
B21: Net Tax Allowance | C21: ='X-factors'!G34 -> 13.56965517 | D21: ='X-factors'!H34 -> 14.10892795 | E21: ='X-factors'!I34 -> 11.9667118 | F21: ='X-factors'!J34 -> 14.90047021 | G21: ='X-factors'!K34 -> 11.79405925
B22: Total unsmoothed | C22: =SUM(C17:C21) -> 1508.068816 | D22: =SUM(D17:D21) -> 1587.517561 | E22: 1678.664327 | F22: 1849.976017 | G22: 1970.536472
B23: Total smoothed | C23: ='X-factors'!G60 -> 1467.482073 | D23: ='X-factors'!H60 -> 1584.285132 | E23: ='X-factors'!I60 -> 1710.385036 | F23: ='X-factors'!J60 -> 1846.521761 | G23: ='X-factors'!K60 -> 1993.49418
B24: Percentage difference | C24: =C23/C22 -> 0.9730869426 | D24: =D23/D22 -> 0.997963847 | E24: 1.018896398 | F24: 0.9981328105 | G24: 1.011650486

Sheet PTRM Data
B2: PTRM Data
B4: Opening RAB | E4: Capital expenditure | L4: Depreciation | S4: ORAB | Z4: ORAB Split | AG4: Indexation split | AN4: Depreciation split | AU4: Regulatory depreciation Split ($m, nominal)
B6: Asset class | C6: RAB 2025-2026 | E6: Asset class | F6: 2025-26 | G6: 2026-27 | H6: 2027-28 | I6: 2028-29 | J6: 2029-30 | L6: Asset class | M6: 2025-26 | N6: 2026-27 | O6: 2027-28 | P6: 2028-29 | Q6: 2029-30 | S6: Asset class | T6: 2025-26 | U6: 2026-27 | V6: 2027-28 | W6: 2028-29 | X6: 2029-30 | Z6: Asset class | AA6: 2025-26 | AB6: 2026-27 | AC6: 2027-28 | AD6: 2028-29 | AE6: 2029-30 | AG6: Asset class | AH6: 2025-26 | AI6: 2026-27 | AJ6: 2027-28 | AK6: 2028-29 | AL6: 2029-30 | AN6: Asset class | AO6: 2025-26 | AP6: 2026-27 | AQ6: 2027-28 | AR6: 2028-29 | AS6: 2029-30 | AU6: Asset class | AV6: 2025-26 | AW6: 2026-27 | AX6: 2027-28 | AY6: 2028-29 | AZ6: 2029-30
B7: Overhead Sub-Transmission Lines | C7: =_xlfn.XLOOKUP(B7,'PTRM Input'!$G$6:$G$58,'PTRM Input'!$J$6:$J$58) -> 1558.971983 | E7: =B7 -> Overhead Sub-Transmission Lines | F7: =_xlfn.XLOOKUP($E7,Assets!$C$11:$C$60,Assets!G$11:G$60) -> 79.52658532 | G7: =_xlfn.XLOOKUP($E7,Assets!$C$11:$C$60,Assets!H$11:H$60) -> 81.7081325 | H7: =_xlfn.XLOOKUP($E7,Assets!$C$11:$C$60,Assets!I$11:I$60) -> 84.56236839 | I7: =_xlfn.XLOOKUP($E7,Assets!$C$11:$C$60,Assets!J$11:J$60) -> 86.96575966 | J7: =_xlfn.XLOOKUP($E7,Assets!$C$11:$C$60,Assets!K$11:K$60) -> 90.61710397 | L7: =B7 -> Overhead Sub-Transmission Lines | M7: =_xlfn.XLOOKUP($L7,Assets!$C$128:$C$765,Assets!G$128:G$765) -> 55.50665526 | N7: =_xlfn.XLOOKUP($L7,Assets!$C$128:$C$765,Assets!H$128:H$765) -> 56.95259317 | O7: =_xlfn.XLOOKUP($L7,Assets!$C$128:$C$765,Assets!I$128:I$765) -> 58.43819558 | P7: =_xlfn.XLOOKUP($L7,Assets!$C$128:$C$765,Assets!J$128:J$765) -> 59.97569319 | Q7: =_xlfn.XLOOKUP($L7,Assets!$C$128:$C$765,Assets!K$128:K$765) -> 61.55688882 | S7: =B7 -> Overhead Sub-Transmission Lines | T7: =_xlfn.XLOOKUP(S7,$B$7:$B$37,C$7:C$37) -> 1558.971983 | U7: =T7+F7-M7 -> 1582.991913 | V7: =U7+G7-N7 -> 1607.747452 | W7: 1633.871625 | X7: =W7+I7-P7 -> 1660.861691 | Z7: =B7 -> Overhead Sub-Transmission Lines | AA7: =T7/T$40 -> 0.09598162753 | AB7: =U7/U$40 -> 0.09469635365 | AC7: =V7/V$40 -> 0.09363775817 | AD7: =W7/W$40 -> 0.09278334349 | AE7: =X7/X$40 -> 0.0919842939 | AG7: =B7 -> Overhead Sub-Transmission Lines | AH7: =T7*'PTRM Revenue data'!J$7 -> 43.64780336 | AI7: =U7*'PTRM Revenue data'!K$7*'PTRM Revenue data'!J$8 -> 45.56118047 | AJ7: =V7*'PTRM Revenue data'!L$7*'PTRM Revenue data'!K$8 -> 46.2736867 | AK7: =W7*'PTRM Revenue data'!M$7*'PTRM Revenue data'!L$8 -> 47.02558451 | AL7: =X7*'PTRM Revenue data'!N$7*'PTRM Revenue data'!M$8 -> 47.8024042 | AN7: =B7 -> Overhead Sub-Transmission Lines | AO7: =M7*'PTRM Revenue data'!J$8 -> 57.06072012 | AP7: =N7*'PTRM Revenue data'!K$8 -> 58.54714113 | AQ7: =O7*'PTRM Revenue data'!L$8 -> 60.07433715 | AR7: =P7*'PTRM Revenue data'!M$8 -> 61.65488133 | AS7: =Q7*'PTRM Revenue data'!N$8 -> 63.28034698 | AU7: =B7 -> Overhead Sub-Transmission Lines | AV7: =AO7-AH7 -> 13.41291676 | AW7: =AP7-AI7 -> 12.98596066 | AX7: 13.80065046 | AY7: 14.62929682 | AZ7: 15.47794278
B8: Underground Sub-Transmission Cables | C8: =_xlfn.XLOOKUP(B8,'PTRM Input'!$G$6:$G$58,'PTRM Input'!$J$6:$J$58) -> 68.73828972 | E8: =B8 -> Underground Sub-Transmission Cables | F8: =_xlfn.XLOOKUP($E8,Assets!$C$11:$C$60,Assets!G$11:G$60) -> 4.81980628 | G8: =_xlfn.XLOOKUP($E8,Assets!$C$11:$C$60,Assets!H$11:H$60) -> 4.99449621 | H8: =_xlfn.XLOOKUP($E8,Assets!$C$11:$C$60,Assets!I$11:I$60) -> 5.162823596 | I8: =_xlfn.XLOOKUP($E8,Assets!$C$11:$C$60,Assets!J$11:J$60) -> 5.274157288 | J8: =_xlfn.XLOOKUP($E8,Assets!$C$11:$C$60,Assets!K$11:K$60) -> 5.480867383 | L8: =B8 -> Underground Sub-Transmission Cables | M8: =_xlfn.XLOOKUP($L8,Assets!$C$128:$C$765,Assets!G$128:G$765) -> 2.692033765 | N8: =_xlfn.XLOOKUP($L8,Assets!$C$128:$C$765,Assets!H$128:H$765) -> 2.799140572 | O8: =_xlfn.XLOOKUP($L8,Assets!$C$128:$C$765,Assets!I$128:I$765) -> 2.910129376 | P8: =_xlfn.XLOOKUP($L8,Assets!$C$128:$C$765,Assets!J$128:J$765) -> 3.02485879 | Q8: =_xlfn.XLOOKUP($L8,Assets!$C$128:$C$765,Assets!K$128:K$765) -> 3.142062285 | S8: =B8 -> Underground Sub-Transmission Cables | T8: 68.73828972 | U8: =T8+F8-M8 -> 70.86606224 | V8: 73.06141788 | W8: 75.31411209 | X8: =W8+I8-P8 -> 77.56341059 | Z8: =B8 -> Underground Sub-Transmission Cables | AA8: 0.004232027897 | AB8: 0.004239287414 | AC8: 0.004255212702 | AD8: 0.004276893623 | AE8: 0.004295731302 | AG8: =B8 -> Underground Sub-Transmission Cables | AH8: =T8*'PTRM Revenue data'!J$7 -> 1.924521663 | AI8: =U8*'PTRM Revenue data'!K$7*'PTRM Revenue data'!J$8 -> 2.039644944 | AJ8: =V8*'PTRM Revenue data'!L$7*'PTRM Revenue data'!K$8 -> 2.102830986 | AK8: =W8*'PTRM Revenue data'!M$7*'PTRM Revenue data'!L$8 -> 2.16766733 | AL8: =X8*'PTRM Revenue data'!N$7*'PTRM Revenue data'!M$8 -> 2.232405939 | AN8: =B8 -> Underground Sub-Transmission Cables | AO8: =M8*'PTRM Revenue data'!J$8 -> 2.767404819 | AP8: =N8*'PTRM Revenue data'!K$8 -> 2.877510381 | AQ8: =O8*'PTRM Revenue data'!L$8 -> 2.991606629 | AR8: =P8*'PTRM Revenue data'!M$8 -> 3.109548215 | AS8: =Q8*'PTRM Revenue data'!N$8 -> 3.230033152 | AU8: =B8 -> Underground Sub-Transmission Cables | AV8: =AO8-AH8 -> 0.8428831555 | AW8: =AP8-AI8 -> 0.8378654374 | AX8: =AQ8-AJ8 -> 0.8887756431 | AY8: =AR8-AK8 -> 0.941880885 | AZ8: =AS8-AL8 -> 0.9976272124
B9: Overhead Distribution Lines | C9: =_xlfn.XLOOKUP(B9,'PTRM Input'!$G$6:$G$58,'PTRM Input'!$J$6:$J$58) -> 6391.759074 | E9: Overhead Distribution Lines | F9: =_xlfn.XLOOKUP($E9,Assets!$C$11:$C$60,Assets!G$11:G$60) -> 462.4246114 | G9: =_xlfn.XLOOKUP($E9,Assets!$C$11:$C$60,Assets!H$11:H$60) -> 472.7638759 | H9: =_xlfn.XLOOKUP($E9,Assets!$C$11:$C$60,Assets!I$11:I$60) -> 489.6176552 | I9: =_xlfn.XLOOKUP($E9,Assets!$C$11:$C$60,Assets!J$11:J$60) -> 505.4885192 | J9: =_xlfn.XLOOKUP($E9,Assets!$C$11:$C$60,Assets!K$11:K$60) -> 527.5255152 | L9: Overhead Distribution Lines | M9: =_xlfn.XLOOKUP($L9,Assets!$C$128:$C$765,Assets!G$128:G$765) -> 187.3760764 | N9: =_xlfn.XLOOKUP($L9,Assets!$C$128:$C$765,Assets!H$128:H$765) -> 196.6245686 | O9: =_xlfn.XLOOKUP($L9,Assets!$C$128:$C$765,Assets!I$128:I$765) -> 206.0798461 | P9: =_xlfn.XLOOKUP($L9,Assets!$C$128:$C$765,Assets!J$128:J$765) -> 215.8721992 | Q9: =_xlfn.XLOOKUP($L9,Assets!$C$128:$C$765,Assets!K$128:K$765) -> 225.9819696 | S9: Overhead Distribution Lines | T9: 6391.759074 | U9: 6666.807609 | V9: 6942.946917 | W9: 7226.484726 | X9: 7516.101046 | Z9: Overhead Distribution Lines | AA9: 0.3935230688 | AB9: 0.3988159169 | AC9: 0.4043682256 | AD9: 0.4103733759 | AE9: 0.4162678032 | AG9: Overhead Distribution Lines | AH9: =T9*'PTRM Revenue data'!J$7 -> 178.9552643 | AI9: =U9*'PTRM Revenue data'!K$7*'PTRM Revenue data'!J$8 -> 191.8819813 | AJ9: =V9*'PTRM Revenue data'!L$7*'PTRM Revenue data'!K$8 -> 199.8297369 | AK9: =W9*'PTRM Revenue data'!M$7*'PTRM Revenue data'!L$8 -> 207.9904339 | AL9: =X9*'PTRM Revenue data'!N$7*'PTRM Revenue data'!M$8 -> 216.3260806 | AN9: Overhead Distribution Lines | AO9: =M9*'PTRM Revenue data'!J$8 -> 192.6221964 | AP9: =N9*'PTRM Revenue data'!K$8 -> 202.1296261 | AQ9: =O9*'PTRM Revenue data'!L$8 -> 211.8496307 | AR9: =P9*'PTRM Revenue data'!M$8 -> 221.9161483 | AS9: =Q9*'PTRM Revenue data'!N$8 -> 232.3089701 | AU9: Overhead Distribution Lines | AV9: 13.66693208 | AW9: 10.24764482 | AX9: 12.01989383 | AY9: 13.92571442 | AZ9: 15.98288948
B10: Underground Distribution Cables | C10: =_xlfn.XLOOKUP(B10,'PTRM Input'!$G$6:$G$58,'PTRM Input'!$J$6:$J$58) -> 1130.219091 | E10: Underground Distribution Cables | F10: =_xlfn.XLOOKUP($E10,Assets!$C$11:$C$60,Assets!G$11:G$60) -> 28.4817895 | G10: =_xlfn.XLOOKUP($E10,Assets!$C$11:$C$60,Assets!H$11:H$60) -> 29.41132656 | H10: =_xlfn.XLOOKUP($E10,Assets!$C$11:$C$60,Assets!I$11:I$60) -> 30.4172946 | I10: =_xlfn.XLOOKUP($E10,Assets!$C$11:$C$60,Assets!J$11:J$60) -> 31.15825075 | J10: =_xlfn.XLOOKUP($E10,Assets!$C$11:$C$60,Assets!K$11:K$60) -> 32.41505182 | L10: Underground Distribution Cables | M10: =_xlfn.XLOOKUP($L10,Assets!$C$128:$C$765,Assets!G$128:G$765) -> 28.25775465 | N10: =_xlfn.XLOOKUP($L10,Assets!$C$128:$C$765,Assets!H$128:H$765) -> 28.73245114 | O10: =_xlfn.XLOOKUP($L10,Assets!$C$128:$C$765,Assets!I$128:I$765) -> 29.22263992 | P10: =_xlfn.XLOOKUP($L10,Assets!$C$128:$C$765,Assets!J$128:J$765) -> 29.72959483 | Q10: =_xlfn.XLOOKUP($L10,Assets!$C$128:$C$765,Assets!K$128:K$765) -> 30.24889901 | S10: Underground Distribution Cables | T10: 1130.219091 | U10: 1130.443126 | V10: 1131.122001 | W10: 1132.316656 | X10: 1133.745312 | Z10: Underground Distribution Cables | AA10: 0.06958448837 | AB10: 0.06762437706 | AC10: 0.06587833696 | AD10: 0.06430133408 | AE10: 0.06279075644 | AG10: Underground Distribution Cables | AH10: =T10*'PTRM Revenue data'!J$7 -> 31.6436608 | AI10: =U10*'PTRM Revenue data'!K$7*'PTRM Revenue data'!J$8 -> 32.53606215 | AJ10: =V10*'PTRM Revenue data'!L$7*'PTRM Revenue data'!K$8 -> 32.55560133 | AK10: =W10*'PTRM Revenue data'!M$7*'PTRM Revenue data'!L$8 -> 32.58998551 | AL10: =X10*'PTRM Revenue data'!N$7*'PTRM Revenue data'!M$8 -> 32.63110464 | AN10: Underground Distribution Cables | AO10: =M10*'PTRM Revenue data'!J$8 -> 29.04890993 | AP10: =N10*'PTRM Revenue data'!K$8 -> 29.53689689 | AQ10: =O10*'PTRM Revenue data'!L$8 -> 30.04080988 | AR10: =P10*'PTRM Revenue data'!M$8 -> 30.56195842 | AS10: =Q10*'PTRM Revenue data'!N$8 -> 31.09580197 | AU10: Underground Distribution Cables | AV10: -2.594750869 | AW10: -2.999165259 | AX10: -2.514791451 | AY10: -2.028027093 | AZ10: -1.535302663
B11: Distribution Equipment | C11: =_xlfn.XLOOKUP(B11,'PTRM Input'!$G$6:$G$58,'PTRM Input'!$J$6:$J$58) -> 23.90733426 | E11: Distribution Equipment | F11: =_xlfn.XLOOKUP($E11,Assets!$C$11:$C$60,Assets!G$11:G$60) -> 3.342721784 | G11: =_xlfn.XLOOKUP($E11,Assets!$C$11:$C$60,Assets!H$11:H$60) -> 3.465776345 | H11: =_xlfn.XLOOKUP($E11,Assets!$C$11:$C$60,Assets!I$11:I$60) -> 3.582309525 | I11: =_xlfn.XLOOKUP($E11,Assets!$C$11:$C$60,Assets!J$11:J$60) -> 3.657987931 | J11: =_xlfn.XLOOKUP($E11,Assets!$C$11:$C$60,Assets!K$11:K$60) -> 3.80069686 | L11: Distribution Equipment | M11: =_xlfn.XLOOKUP($L11,Assets!$C$128:$C$765,Assets!G$128:G$765) -> 2.058984817 | N11: =_xlfn.XLOOKUP($L11,Assets!$C$128:$C$765,Assets!H$128:H$765) -> 2.154491154 | O11: =_xlfn.XLOOKUP($L11,Assets!$C$128:$C$765,Assets!I$128:I$765) -> 2.253513335 | P11: =_xlfn.XLOOKUP($L11,Assets!$C$128:$C$765,Assets!J$128:J$765) -> 2.355865036 | Q11: =_xlfn.XLOOKUP($L11,Assets!$C$128:$C$765,Assets!K$128:K$765) -> 2.460378977 | S11: Distribution Equipment | T11: 23.90733426 | U11: 25.19107122 | V11: 26.50235642 | W11: 27.83115261 | X11: 29.1332755 | Z11: Distribution Equipment | AA11: 0.001471908974 | AB11: 0.001506958166 | AC11: 0.001543539216 | AD11: 0.00158045917 | AE11: 0.00161350207 | AG11: Distribution Equipment | AH11: =T11*'PTRM Revenue data'!J$7 -> 0.6693530327 | AI11: =U11*'PTRM Revenue data'!K$7*'PTRM Revenue data'!J$8 -> 0.7250415704 | AJ11: =V11*'PTRM Revenue data'!L$7*'PTRM Revenue data'!K$8 -> 0.7627825726 | AK11: =W11*'PTRM Revenue data'!M$7*'PTRM Revenue data'!L$8 -> 0.8010275709 | AL11: =X11*'PTRM Revenue data'!N$7*'PTRM Revenue data'!M$8 -> 0.8385048667 | AN11: Distribution Equipment | AO11: =M11*'PTRM Revenue data'!J$8 -> 2.116631886 | AP11: =N11*'PTRM Revenue data'!K$8 -> 2.214812191 | AQ11: =O11*'PTRM Revenue data'!L$8 -> 2.316606776 | AR11: =P11*'PTRM Revenue data'!M$8 -> 2.421824101 | AS11: =Q11*'PTRM Revenue data'!N$8 -> 2.529264203 | AU11: Distribution Equipment | AV11: 1.447278853 | AW11: 1.48977062 | AX11: 1.553824204 | AY11: 1.62079653 | AZ11: 1.690759336
B12: Substation Bays | C12: =_xlfn.XLOOKUP(B12,'PTRM Input'!$G$6:$G$58,'PTRM Input'!$J$6:$J$58) -> 1739.602499 | E12: Substation Bays | F12: =_xlfn.XLOOKUP($E12,Assets!$C$11:$C$60,Assets!G$11:G$60) -> 102.8514217 | G12: =_xlfn.XLOOKUP($E12,Assets!$C$11:$C$60,Assets!H$11:H$60) -> 105.6374441 | H12: =_xlfn.XLOOKUP($E12,Assets!$C$11:$C$60,Assets!I$11:I$60) -> 109.3326937 | I12: =_xlfn.XLOOKUP($E12,Assets!$C$11:$C$60,Assets!J$11:J$60) -> 112.4695704 | J12: =_xlfn.XLOOKUP($E12,Assets!$C$11:$C$60,Assets!K$11:K$60) -> 117.2039824 | L12: Substation Bays | M12: =_xlfn.XLOOKUP($L12,Assets!$C$128:$C$765,Assets!G$128:G$765) -> 63.77934784 | N12: =_xlfn.XLOOKUP($L12,Assets!$C$128:$C$765,Assets!H$128:H$765) -> 66.06493499 | O12: =_xlfn.XLOOKUP($L12,Assets!$C$128:$C$765,Assets!I$128:I$765) -> 68.41243375 | P12: =_xlfn.XLOOKUP($L12,Assets!$C$128:$C$765,Assets!J$128:J$765) -> 70.84204916 | Q12: =_xlfn.XLOOKUP($L12,Assets!$C$128:$C$765,Assets!K$128:K$765) -> 73.34137295 | S12: Substation Bays | T12: 1739.602499 | U12: 1778.674572 | V12: 1818.247082 | W12: 1859.167341 | X12: 1900.794863 | Z12: Substation Bays | AA12: 0.1071025528 | AB12: 0.1064023101 | AC12: 0.10589759 | AD12: 0.1055773045 | AE12: 0.105272627 | AG12: Substation Bays | AH12: =T12*'PTRM Revenue data'!J$7 -> 48.70506245 | AI12: =U12*'PTRM Revenue data'!K$7*'PTRM Revenue data'!J$8 -> 51.19325787 | AJ12: =V12*'PTRM Revenue data'!L$7*'PTRM Revenue data'!K$8 -> 52.33222151 | AK12: =W12*'PTRM Revenue data'!M$7*'PTRM Revenue data'!L$8 -> 53.50997569 | AL12: =X12*'PTRM Revenue data'!N$7*'PTRM Revenue data'!M$8 -> 54.70808605 | AN12: Substation Bays | AO12: =M12*'PTRM Revenue data'!J$8 -> 65.56502999 | AP12: =N12*'PTRM Revenue data'!K$8 -> 67.91460857 | AQ12: =O12*'PTRM Revenue data'!L$8 -> 70.32783216 | AR12: =P12*'PTRM Revenue data'!M$8 -> 72.82547149 | AS12: =Q12*'PTRM Revenue data'!N$8 -> 75.39477087 | AU12: Substation Bays | AV12: 16.85996753 | AW12: 16.72135071 | AX12: 17.99561065 | AY12: 19.3154958 | AZ12: 20.68668482
B13: Substation Establishment | C13: =_xlfn.XLOOKUP(B13,'PTRM Input'!$G$6:$G$58,'PTRM Input'!$J$6:$J$58) -> 439.1049611 | E13: Substation Establishment | F13: =_xlfn.XLOOKUP($E13,Assets!$C$11:$C$60,Assets!G$11:G$60) -> 45.62112889 | G13: =_xlfn.XLOOKUP($E13,Assets!$C$11:$C$60,Assets!H$11:H$60) -> 47.21562492 | H13: =_xlfn.XLOOKUP($E13,Assets!$C$11:$C$60,Assets!I$11:I$60) -> 48.8977384 | I13: =_xlfn.XLOOKUP($E13,Assets!$C$11:$C$60,Assets!J$11:J$60) -> 50.10905538 | J13: =_xlfn.XLOOKUP($E13,Assets!$C$11:$C$60,Assets!K$11:K$60) -> 52.20164237 | L13: Substation Establishment | M13: =_xlfn.XLOOKUP($L13,Assets!$C$128:$C$765,Assets!G$128:G$765) -> 15.38949211 | N13: =_xlfn.XLOOKUP($L13,Assets!$C$128:$C$765,Assets!H$128:H$765) -> 16.14984426 | O13: =_xlfn.XLOOKUP($L13,Assets!$C$128:$C$765,Assets!I$128:I$765) -> 16.93677134 | P13: =_xlfn.XLOOKUP($L13,Assets!$C$128:$C$765,Assets!J$128:J$765) -> 17.75173365 | Q13: =_xlfn.XLOOKUP($L13,Assets!$C$128:$C$765,Assets!K$128:K$765) -> 18.58688457 | S13: Substation Establishment | T13: 439.1049611 | U13: 469.3365979 | V13: 500.4023786 | W13: 532.3633456 | X13: 564.7206674 | Z13: Substation Establishment | AA13: 0.02703448766 | AB13: 0.02807624227 | AC13: 0.02914422713 | AD13: 0.03023153742 | AE13: 0.03127619362 | AG13: Substation Establishment | AH13: =T13*'PTRM Revenue data'!J$7 -> 12.29397783 | AI13: =U13*'PTRM Revenue data'!K$7*'PTRM Revenue data'!J$8 -> 13.50829986 | AJ13: =V13*'PTRM Revenue data'!L$7*'PTRM Revenue data'!K$8 -> 14.40242549 | AK13: =W13*'PTRM Revenue data'!M$7*'PTRM Revenue data'!L$8 -> 15.3223161 | AL13: =X13*'PTRM Revenue data'!N$7*'PTRM Revenue data'!M$8 -> 16.25361446 | AN13: Substation Establishment | AO13: =M13*'PTRM Revenue data'!J$8 -> 15.82036421 | AP13: =N13*'PTRM Revenue data'!K$8 -> 16.60200455 | AQ13: =O13*'PTRM Revenue data'!L$8 -> 17.41096387 | AR13: =P13*'PTRM Revenue data'!M$8 -> 18.24874334 | AS13: =Q13*'PTRM Revenue data'!N$8 -> 19.10727666 | AU13: Substation Establishment | AV13: 3.526386374 | AW13: 3.093704688 | AX13: 3.008538377 | AY13: 2.92642724 | AZ13: 2.853662199
B14: Distribution Substation Switchgear | C14: =_xlfn.XLOOKUP(B14,'PTRM Input'!$G$6:$G$58,'PTRM Input'!$J$6:$J$58) -> 660.9665556 | E14: Distribution Substation Switchgear | F14: =_xlfn.XLOOKUP($E14,Assets!$C$11:$C$60,Assets!G$11:G$60) -> 51.04157266 | G14: =_xlfn.XLOOKUP($E14,Assets!$C$11:$C$60,Assets!H$11:H$60) -> 52.68499046 | H14: =_xlfn.XLOOKUP($E14,Assets!$C$11:$C$60,Assets!I$11:I$60) -> 54.49021744 | I14: =_xlfn.XLOOKUP($E14,Assets!$C$11:$C$60,Assets!J$11:J$60) -> 55.83615886 | J14: =_xlfn.XLOOKUP($E14,Assets!$C$11:$C$60,Assets!K$11:K$60) -> 58.09612971 | L14: Distribution Substation Switchgear | M14: =_xlfn.XLOOKUP($L14,Assets!$C$128:$C$765,Assets!G$128:G$765) -> 19.80867395 | N14: =_xlfn.XLOOKUP($L14,Assets!$C$128:$C$765,Assets!H$128:H$765) -> 20.94293112 | O14: =_xlfn.XLOOKUP($L14,Assets!$C$128:$C$765,Assets!I$128:I$765) -> 22.11370869 | P14: =_xlfn.XLOOKUP($L14,Assets!$C$128:$C$765,Assets!J$128:J$765) -> 23.32460241 | Q14: =_xlfn.XLOOKUP($L14,Assets!$C$128:$C$765,Assets!K$128:K$765) -> 24.56540594 | S14: Distribution Substation Switchgear | T14: 660.9665556 | U14: 692.1994543 | V14: 723.9415137 | W14: 756.3180224 | X14: 788.8295789 | Z14: Distribution Substation Switchgear | AA14: 0.0406938973 | AB14: 0.04140814858 | AC14: 0.04216350043 | AD14: 0.04294934424 | AE14: 0.04368812419 | AG14: Distribution Substation Switchgear | AH14: =T14*'PTRM Revenue data'!J$7 -> 18.50561689 | AI14: =U14*'PTRM Revenue data'!K$7*'PTRM Revenue data'!J$8 -> 19.92266922 | AJ14: =V14*'PTRM Revenue data'!L$7*'PTRM Revenue data'!K$8 -> 20.83625929 | AK14: =W14*'PTRM Revenue data'!M$7*'PTRM Revenue data'!L$8 -> 21.76810989 | AL14: =X14*'PTRM Revenue data'!N$7*'PTRM Revenue data'!M$8 -> 22.70384739 | AN14: Distribution Substation Switchgear | AO14: =M14*'PTRM Revenue data'!J$8 -> 20.36327347 | AP14: =N14*'PTRM Revenue data'!K$8 -> 21.52928735 | AQ14: =O14*'PTRM Revenue data'!L$8 -> 22.73284413 | AR14: =P14*'PTRM Revenue data'!M$8 -> 23.97764022 | AS14: =Q14*'PTRM Revenue data'!N$8 -> 25.25318354 | AU14: Distribution Substation Switchgear | AV14: 1.85765658 | AW14: 1.606618131 | AX14: 1.896584835 | AY14: 2.209530333 | AZ14: 2.549336149
B15: Zone Transformers | C15: =_xlfn.XLOOKUP(B15,'PTRM Input'!$G$6:$G$58,'PTRM Input'!$J$6:$J$58) -> 354.365934 | E15: Zone Transformers | F15: =_xlfn.XLOOKUP($E15,Assets!$C$11:$C$60,Assets!G$11:G$60) -> 15.46268183 | G15: =_xlfn.XLOOKUP($E15,Assets!$C$11:$C$60,Assets!H$11:H$60) -> 15.90855777 | H15: =_xlfn.XLOOKUP($E15,Assets!$C$11:$C$60,Assets!I$11:I$60) -> 16.46113839 | I15: =_xlfn.XLOOKUP($E15,Assets!$C$11:$C$60,Assets!J$11:J$60) -> 16.91089527 | J15: =_xlfn.XLOOKUP($E15,Assets!$C$11:$C$60,Assets!K$11:K$60) -> 17.61338727 | L15: Zone Transformers | M15: =_xlfn.XLOOKUP($L15,Assets!$C$128:$C$765,Assets!G$128:G$765) -> 15.61591107 | N15: =_xlfn.XLOOKUP($L15,Assets!$C$128:$C$765,Assets!H$128:H$765) -> 15.92516471 | O15: =_xlfn.XLOOKUP($L15,Assets!$C$128:$C$765,Assets!I$128:I$765) -> 16.24333586 | P15: =_xlfn.XLOOKUP($L15,Assets!$C$128:$C$765,Assets!J$128:J$765) -> 16.57255863 | Q15: =_xlfn.XLOOKUP($L15,Assets!$C$128:$C$765,Assets!K$128:K$765) -> 16.91077654 | S15: Zone Transformers | T15: 354.365934 | U15: 354.2127048 | V15: 354.1960978 | W15: 354.4139003 | X15: 354.752237 | Z15: Zone Transformers | AA15: 0.02181733826 | AB15: 0.02118940172 | AC15: 0.02062894176 | AD15: 0.02012624869 | AE15: 0.01964741206 | AG15: Zone Transformers | AH15: =T15*'PTRM Revenue data'!J$7 -> 9.921470544 | AI15: =U15*'PTRM Revenue data'!K$7*'PTRM Revenue data'!J$8 -> 10.19483981 | AJ15: =V15*'PTRM Revenue data'!L$7*'PTRM Revenue data'!K$8 -> 10.19436183 | AK15: =W15*'PTRM Revenue data'!M$7*'PTRM Revenue data'!L$8 -> 10.20063056 | AL15: =X15*'PTRM Revenue data'!N$7*'PTRM Revenue data'!M$8 -> 10.21036846 | AN15: Zone Transformers | AO15: =M15*'PTRM Revenue data'!J$8 -> 16.0531224 | AP15: =N15*'PTRM Revenue data'!K$8 -> 16.37103447 | AQ15: =O15*'PTRM Revenue data'!L$8 -> 16.69811372 | AR15: =P15*'PTRM Revenue data'!M$8 -> 17.036554 | AS15: =Q15*'PTRM Revenue data'!N$8 -> 17.38424127 | AU15: Zone Transformers | AV15: 6.13165186 | AW15: 6.176194658 | AX15: 6.503751885 | AY15: 6.835923446 | AZ15: 7.173872812
B16: Distribution Transformers | C16: =_xlfn.XLOOKUP(B16,'PTRM Input'!$G$6:$G$58,'PTRM Input'!$J$6:$J$58) -> 1690.167944 | E16: Distribution Transformers | F16: =_xlfn.XLOOKUP($E16,Assets!$C$11:$C$60,Assets!G$11:G$60) -> 100.2376404 | G16: =_xlfn.XLOOKUP($E16,Assets!$C$11:$C$60,Assets!H$11:H$60) -> 102.9027383 | H16: =_xlfn.XLOOKUP($E16,Assets!$C$11:$C$60,Assets!I$11:I$60) -> 106.5095755 | I16: =_xlfn.XLOOKUP($E16,Assets!$C$11:$C$60,Assets!J$11:J$60) -> 109.6072422 | J16: =_xlfn.XLOOKUP($E16,Assets!$C$11:$C$60,Assets!K$11:K$60) -> 114.2385479 | L16: Distribution Transformers | M16: =_xlfn.XLOOKUP($L16,Assets!$C$128:$C$765,Assets!G$128:G$765) -> 70.92795439 | N16: =_xlfn.XLOOKUP($L16,Assets!$C$128:$C$765,Assets!H$128:H$765) -> 73.15545752 | O16: =_xlfn.XLOOKUP($L16,Assets!$C$128:$C$765,Assets!I$128:I$765) -> 75.44218503 | P16: =_xlfn.XLOOKUP($L16,Assets!$C$128:$C$765,Assets!J$128:J$765) -> 77.80906449 | Q16: =_xlfn.XLOOKUP($L16,Assets!$C$128:$C$765,Assets!K$128:K$765) -> 80.24478098 | S16: Distribution Transformers | T16: 1690.167944 | U16: 1719.47763 | V16: 1749.224911 | W16: 1780.292302 | X16: 1812.090479 | Z16: Distribution Transformers | AA16: 0.1040590029 | AB16: 0.1028610825 | AC16: 0.1018776295 | AD16: 0.101098195 | AE16: 0.1003598699 | AG16: Distribution Transformers | AH16: =T16*'PTRM Revenue data'!J$7 -> 47.32100313 | AI16: =U16*'PTRM Revenue data'!K$7*'PTRM Revenue data'!J$8 -> 49.48946991 | AJ16: =V16*'PTRM Revenue data'!L$7*'PTRM Revenue data'!K$8 -> 50.34564689 | AK16: =W16*'PTRM Revenue data'!M$7*'PTRM Revenue data'!L$8 -> 51.23981885 | AL16: =X16*'PTRM Revenue data'!N$7*'PTRM Revenue data'!M$8 -> 52.1550241 | AN16: Distribution Transformers | AO16: =M16*'PTRM Revenue data'!J$8 -> 72.91378188 | AP16: =N16*'PTRM Revenue data'!K$8 -> 75.20365021 | AQ16: =O16*'PTRM Revenue data'!L$8 -> 77.55440109 | AR16: =P16*'PTRM Revenue data'!M$8 -> 79.98754799 | AS16: =Q16*'PTRM Revenue data'!N$8 -> 82.49145922 | AU16: Distribution Transformers | AV16: 25.59277874 | AW16: 25.7141803 | AX16: 27.20875421 | AY16: 28.74772915 | AZ16: 30.33643512
B17: Low Voltage Services | C17: =_xlfn.XLOOKUP(B17,'PTRM Input'!$G$6:$G$58,'PTRM Input'!$J$6:$J$58) -> 387.9423918 | E17: Low Voltage Services | F17: =_xlfn.XLOOKUP($E17,Assets!$C$11:$C$60,Assets!G$11:G$60) -> 36.52973041 | G17: =_xlfn.XLOOKUP($E17,Assets!$C$11:$C$60,Assets!H$11:H$60) -> 37.26045 | H17: =_xlfn.XLOOKUP($E17,Assets!$C$11:$C$60,Assets!I$11:I$60) -> 38.60126642 | I17: =_xlfn.XLOOKUP($E17,Assets!$C$11:$C$60,Assets!J$11:J$60) -> 39.92453899 | J17: =_xlfn.XLOOKUP($E17,Assets!$C$11:$C$60,Assets!K$11:K$60) -> 41.69491859 | L17: Low Voltage Services | M17: =_xlfn.XLOOKUP($L17,Assets!$C$128:$C$765,Assets!G$128:G$765) -> 13.64515556 | N17: =_xlfn.XLOOKUP($L17,Assets!$C$128:$C$765,Assets!H$128:H$765) -> 14.68886214 | O17: =_xlfn.XLOOKUP($L17,Assets!$C$128:$C$765,Assets!I$128:I$765) -> 15.75344643 | P17: =_xlfn.XLOOKUP($L17,Assets!$C$128:$C$765,Assets!J$128:J$765) -> 16.85633976 | Q17: =_xlfn.XLOOKUP($L17,Assets!$C$128:$C$765,Assets!K$128:K$765) -> 17.99704087 | S17: Low Voltage Services | T17: 387.9423918 | U17: 410.8269667 | V17: 433.3985545 | W17: 456.2463745 | X17: 479.3145737 | Z17: Low Voltage Services | AA17: 0.02388454864 | AB17: 0.02457613044 | AC17: 0.02524181829 | AD17: 0.02590905151 | AE17: 0.02654610727 | AG17: Low Voltage Services | AH17: =T17*'PTRM Revenue data'!J$7 -> 10.86153787 | AI17: =U17*'PTRM Revenue data'!K$7*'PTRM Revenue data'!J$8 -> 11.82429387 | AJ17: =V17*'PTRM Revenue data'!L$7*'PTRM Revenue data'!K$8 -> 12.47394229 | AK17: =W17*'PTRM Revenue data'!M$7*'PTRM Revenue data'!L$8 -> 13.13154113 | AL17: =X17*'PTRM Revenue data'!N$7*'PTRM Revenue data'!M$8 -> 13.79548286 | AN17: Low Voltage Services | AO17: =M17*'PTRM Revenue data'!J$8 -> 14.02719005 | AP17: =N17*'PTRM Revenue data'!K$8 -> 15.10011813 | AQ17: =O17*'PTRM Revenue data'!L$8 -> 16.19450845 | AR17: =P17*'PTRM Revenue data'!M$8 -> 17.32828038 | AS17: =Q17*'PTRM Revenue data'!N$8 -> 18.50091862 | AU17: Low Voltage Services | AV17: 3.165652179 | AW17: 3.275824264 | AX17: 3.720566165 | AY17: 4.196739247 | AZ17: 4.705435766
B18: Metering | C18: =_xlfn.XLOOKUP(B18,'PTRM Input'!$G$6:$G$58,'PTRM Input'!$J$6:$J$58) -> 68.94085438 | E18: Metering | F18: =_xlfn.XLOOKUP($E18,Assets!$C$11:$C$60,Assets!G$11:G$60) -> 2.293239988 | G18: =_xlfn.XLOOKUP($E18,Assets!$C$11:$C$60,Assets!H$11:H$60) -> 2.378573665 | H18: =_xlfn.XLOOKUP($E18,Assets!$C$11:$C$60,Assets!I$11:I$60) -> 2.458419914 | I18: =_xlfn.XLOOKUP($E18,Assets!$C$11:$C$60,Assets!J$11:J$60) -> 2.509600157 | J18: =_xlfn.XLOOKUP($E18,Assets!$C$11:$C$60,Assets!K$11:K$60) -> 2.607190542 | L18: Metering | M18: =_xlfn.XLOOKUP($L18,Assets!$C$128:$C$765,Assets!G$128:G$765) -> 4.809166149 | N18: =_xlfn.XLOOKUP($L18,Assets!$C$128:$C$765,Assets!H$128:H$765) -> 4.900895749 | O18: =_xlfn.XLOOKUP($L18,Assets!$C$128:$C$765,Assets!I$128:I$765) -> 4.996038695 | P18: =_xlfn.XLOOKUP($L18,Assets!$C$128:$C$765,Assets!J$128:J$765) -> 5.094375492 | Q18: =_xlfn.XLOOKUP($L18,Assets!$C$128:$C$765,Assets!K$128:K$765) -> 5.194759498 | S18: Metering | T18: 68.94085438 | U18: 66.42492822 | V18: 63.90260614 | W18: 61.36498735 | X18: 58.78021202 | Z18: Metering | AA18: 0.004244499247 | AB18: 0.00397361379 | AC18: 0.003721788999 | AD18: 0.003484758909 | AE18: 0.003255452472 | AG18: Metering | AH18: =T18*'PTRM Revenue data'!J$7 -> 1.93019303 | AI18: =U18*'PTRM Revenue data'!K$7*'PTRM Revenue data'!J$8 -> 1.911821607 | AJ18: =V18*'PTRM Revenue data'!L$7*'PTRM Revenue data'!K$8 -> 1.839224918 | AK18: =W18*'PTRM Revenue data'!M$7*'PTRM Revenue data'!L$8 -> 1.766187964 | AL18: =X18*'PTRM Revenue data'!N$7*'PTRM Revenue data'!M$8 -> 1.691793765 | AN18: Metering | AO18: =M18*'PTRM Revenue data'!J$8 -> 4.943812275 | AP18: =N18*'PTRM Revenue data'!K$8 -> 5.038110103 | AQ18: =O18*'PTRM Revenue data'!L$8 -> 5.135916844 | AR18: =P18*'PTRM Revenue data'!M$8 -> 5.237006855 | AS18: =Q18*'PTRM Revenue data'!N$8 -> 5.340201394 | AU18: Metering | AV18: 3.013619245 | AW18: 3.126288496 | AX18: 3.296691926 | AY18: 3.470818891 | AZ18: 3.648407629
B19: Communications – Pilot Wires | C19: =_xlfn.XLOOKUP(B19,'PTRM Input'!$G$6:$G$58,'PTRM Input'!$J$6:$J$58) -> 194.2753043 | E19: Communications – Pilot Wires | F19: =_xlfn.XLOOKUP($E19,Assets!$C$11:$C$60,Assets!G$11:G$60) -> 13.4369346 | G19: =_xlfn.XLOOKUP($E19,Assets!$C$11:$C$60,Assets!H$11:H$60) -> 13.76844102 | H19: =_xlfn.XLOOKUP($E19,Assets!$C$11:$C$60,Assets!I$11:I$60) -> 14.25476394 | I19: =_xlfn.XLOOKUP($E19,Assets!$C$11:$C$60,Assets!J$11:J$60) -> 14.69082069 | J19: =_xlfn.XLOOKUP($E19,Assets!$C$11:$C$60,Assets!K$11:K$60) -> 15.32049311 | L19: Communications – Pilot Wires | M19: =_xlfn.XLOOKUP($L19,Assets!$C$128:$C$765,Assets!G$128:G$765) -> 9.231558768 | N19: =_xlfn.XLOOKUP($L19,Assets!$C$128:$C$765,Assets!H$128:H$765) -> 9.615471185 | O19: =_xlfn.XLOOKUP($L19,Assets!$C$128:$C$765,Assets!I$128:I$765) -> 10.00885521 | P19: =_xlfn.XLOOKUP($L19,Assets!$C$128:$C$765,Assets!J$128:J$765) -> 10.41613418 | Q19: =_xlfn.XLOOKUP($L19,Assets!$C$128:$C$765,Assets!K$128:K$765) -> 10.83587192 | S19: Communications – Pilot Wires | T19: 194.2753043 | U19: 198.4806801 | V19: 202.63365 | W19: 206.8795587 | X19: 211.1542452 | Z19: Communications – Pilot Wires | AA19: 0.01196099744 | AB19: 0.01187333715 | AC19: 0.01180170473 | AD19: 0.01174815504 | AE19: 0.01169445611 | AG19: Communications – Pilot Wires | AH19: =T19*'PTRM Revenue data'!J$7 -> 5.439283306 | AI19: =U19*'PTRM Revenue data'!K$7*'PTRM Revenue data'!J$8 -> 5.712609152 | AJ19: =V19*'PTRM Revenue data'!L$7*'PTRM Revenue data'!K$8 -> 5.832138637 | AK19: =W19*'PTRM Revenue data'!M$7*'PTRM Revenue data'!L$8 -> 5.95434306 | AL19: =X19*'PTRM Revenue data'!N$7*'PTRM Revenue data'!M$8 -> 6.077375756 | AN19: Communications – Pilot Wires | AO19: =M19*'PTRM Revenue data'!J$8 -> 9.490022208 | AP19: =N19*'PTRM Revenue data'!K$8 -> 9.884683333 | AQ19: =O19*'PTRM Revenue data'!L$8 -> 10.28908125 | AR19: =P19*'PTRM Revenue data'!M$8 -> 10.70776314 | AS19: =Q19*'PTRM Revenue data'!N$8 -> 11.13925261 | AU19: Communications – Pilot Wires | AV19: 4.050738902 | AW19: 4.172074181 | AX19: 4.456942617 | AY19: 4.753420083 | AZ19: 5.061876858
B21: Land & Easements (System) - combined | C21: =_xlfn.XLOOKUP(B21,'PTRM Input'!$G$6:$G$58,'PTRM Input'!$J$6:$J$58) -> 119.9815764 | E21: Land & Easements (System) - combined | F21: =_xlfn.XLOOKUP($E21,Assets!$C$11:$C$60,Assets!G$11:G$60) -> 0.4738126445 | G21: =_xlfn.XLOOKUP($E21,Assets!$C$11:$C$60,Assets!H$11:H$60) -> 0.4919508518 | H21: =_xlfn.XLOOKUP($E21,Assets!$C$11:$C$60,Assets!I$11:I$60) -> 0.5083924964 | I21: =_xlfn.XLOOKUP($E21,Assets!$C$11:$C$60,Assets!J$11:J$60) -> 0.5185570983 | J21: =_xlfn.XLOOKUP($E21,Assets!$C$11:$C$60,Assets!K$11:K$60) -> 0.5385463713 | L21: Land & Easements (System) - combined | M21: =_xlfn.XLOOKUP($L21,Assets!$C$128:$C$765,Assets!G$128:G$765) -> 0 | N21: =_xlfn.XLOOKUP($L21,Assets!$C$128:$C$765,Assets!H$128:H$765) -> 0 | O21: =_xlfn.XLOOKUP($L21,Assets!$C$128:$C$765,Assets!I$128:I$765) -> 0 | P21: =_xlfn.XLOOKUP($L21,Assets!$C$128:$C$765,Assets!J$128:J$765) -> 0 | Q21: =_xlfn.XLOOKUP($L21,Assets!$C$128:$C$765,Assets!K$128:K$765) -> 0 | S21: Land & Easements (System) - combined | T21: 119.9815764 | U21: 120.455389 | V21: 120.9473399 | W21: 121.4557324 | X21: 121.9742895 | Z21: Land & Easements (System) - combined | AA21: 0.007386936459 | AB21: 0.007205776624 | AC21: 0.007044164648 | AD21: 0.006897156892 | AE21: 0.006755360156 | AG21: Land & Easements (System) - combined | AH21: =T21*'PTRM Revenue data'!J$7 -> 3.359221533 | AI21: =U21*'PTRM Revenue data'!K$7*'PTRM Revenue data'!J$8 -> 3.466909512 | AJ21: =V21*'PTRM Revenue data'!L$7*'PTRM Revenue data'!K$8 -> 3.481068688 | AK21: =W21*'PTRM Revenue data'!M$7*'PTRM Revenue data'!L$8 -> 3.495701082 | AL21: =X21*'PTRM Revenue data'!N$7*'PTRM Revenue data'!M$8 -> 3.510626031 | AN21: Land & Easements (System) - combined | AO21: =M21*'PTRM Revenue data'!J$8 -> 0 | AP21: =N21*'PTRM Revenue data'!K$8 -> 0 | AQ21: =O21*'PTRM Revenue data'!L$8 -> 0 | AR21: =P21*'PTRM Revenue data'!M$8 -> 0 | AS21: =Q21*'PTRM Revenue data'!N$8 -> 0 | AU21: Land & Easements (System) - combined | AV21: -3.359221533 | AW21: -3.466909512 | AX21: -3.481068688 | AY21: -3.495701082 | AZ21: -3.510626031
B22: Land Improvements | C22: =_xlfn.XLOOKUP(B22,'PTRM Input'!$G$6:$G$58,'PTRM Input'!$J$6:$J$58) -> 137.6943541 | E22: Land Improvements | F22: =_xlfn.XLOOKUP($E22,Assets!$C$11:$C$60,Assets!G$11:G$60) -> 0.4738126445 | G22: =_xlfn.XLOOKUP($E22,Assets!$C$11:$C$60,Assets!H$11:H$60) -> 0.4919508518 | H22: =_xlfn.XLOOKUP($E22,Assets!$C$11:$C$60,Assets!I$11:I$60) -> 0.5083924964 | I22: =_xlfn.XLOOKUP($E22,Assets!$C$11:$C$60,Assets!J$11:J$60) -> 0.5185570983 | J22: =_xlfn.XLOOKUP($E22,Assets!$C$11:$C$60,Assets!K$11:K$60) -> 0.5385463713 | L22: Land Improvements | M22: =_xlfn.XLOOKUP($L22,Assets!$C$128:$C$765,Assets!G$128:G$765) -> 4.9034375 | N22: =_xlfn.XLOOKUP($L22,Assets!$C$128:$C$765,Assets!H$128:H$765) -> 4.915282816 | O22: =_xlfn.XLOOKUP($L22,Assets!$C$128:$C$765,Assets!I$128:I$765) -> 4.927581587 | P22: =_xlfn.XLOOKUP($L22,Assets!$C$128:$C$765,Assets!J$128:J$765) -> 4.940291399 | Q22: =_xlfn.XLOOKUP($L22,Assets!$C$128:$C$765,Assets!K$128:K$765) -> 4.953255327 | S22: Land Improvements | T22: 137.6943541 | U22: 133.2647292 | V22: 128.8413973 | W22: 124.4222082 | X22: 120.0004739 | Z22: Land Improvements | AA22: 0.008477463581 | AB22: 0.007972045736 | AC22: 0.007503927053 | AD22: 0.007065615379 | AE22: 0.006646043385 | AG22: Land Improvements | AH22: =T22*'PTRM Revenue data'!J$7 -> 3.85514054 | AI22: =U22*'PTRM Revenue data'!K$7*'PTRM Revenue data'!J$8 -> 3.835583953 | AJ22: =V22*'PTRM Revenue data'!L$7*'PTRM Revenue data'!K$8 -> 3.70827299 | AK22: =W22*'PTRM Revenue data'!M$7*'PTRM Revenue data'!L$8 -> 3.581081265 | AL22: =X22*'PTRM Revenue data'!N$7*'PTRM Revenue data'!M$8 -> 3.453816285 | AN22: Land Improvements | AO22: =M22*'PTRM Revenue data'!J$8 -> 5.040723017 | AP22: =N22*'PTRM Revenue data'!K$8 -> 5.052899976 | AQ22: =O22*'PTRM Revenue data'!L$8 -> 5.065543086 | AR22: =P22*'PTRM Revenue data'!M$8 -> 5.078608746 | AS22: =Q22*'PTRM Revenue data'!N$8 -> 5.091935635 | AU22: Land Improvements | AV22: 1.185582478 | AW22: 1.217316023 | AX22: 1.357270097 | AY22: 1.497527481 | AZ22: 1.63811935
B23: Control Centre - SCADA | C23: =_xlfn.XLOOKUP(B23,'PTRM Input'!$G$6:$G$58,'PTRM Input'!$J$6:$J$58) -> 26.98549862 | E23: Control Centre - SCADA | F23: =_xlfn.XLOOKUP($E23,Assets!$C$11:$C$60,Assets!G$11:G$60) -> 4.356081971 | G23: =_xlfn.XLOOKUP($E23,Assets!$C$11:$C$60,Assets!H$11:H$60) -> 4.516702 | H23: =_xlfn.XLOOKUP($E23,Assets!$C$11:$C$60,Assets!I$11:I$60) -> 4.668534092 | I23: =_xlfn.XLOOKUP($E23,Assets!$C$11:$C$60,Assets!J$11:J$60) -> 4.766943826 | J23: =_xlfn.XLOOKUP($E23,Assets!$C$11:$C$60,Assets!K$11:K$60) -> 4.952825965 | L23: Control Centre - SCADA | M23: =_xlfn.XLOOKUP($L23,Assets!$C$128:$C$765,Assets!G$128:G$765) -> 7.366103308 | N23: =_xlfn.XLOOKUP($L23,Assets!$C$128:$C$765,Assets!H$128:H$765) -> 7.796851128 | O23: =_xlfn.XLOOKUP($L23,Assets!$C$128:$C$765,Assets!I$128:I$765) -> 5.392198922 | P23: =_xlfn.XLOOKUP($L23,Assets!$C$128:$C$765,Assets!J$128:J$765) -> 5.454898532 | Q23: =_xlfn.XLOOKUP($L23,Assets!$C$128:$C$765,Assets!K$128:K$765) -> 5.3221694 | S23: Control Centre - SCADA | T23: 26.98549862 | U23: 23.97547728 | V23: 20.69532815 | W23: 19.97166332 | X23: 19.28370862 | Z23: Control Centre - SCADA | AA23: 0.001661423108 | AB23: 0.001434239971 | AC23: 0.001205328692 | AD23: 0.001134139102 | AE23: 0.001067998817 | AG23: Control Centre - SCADA | AH23: =T23*'PTRM Revenue data'!J$7 -> 0.7555348975 | AI23: =U23*'PTRM Revenue data'!K$7*'PTRM Revenue data'!J$8 -> 0.6900547239 | AJ23: =V23*'PTRM Revenue data'!L$7*'PTRM Revenue data'!K$8 -> 0.5956464927 | AK23: =W23*'PTRM Revenue data'!M$7*'PTRM Revenue data'!L$8 -> 0.5748181969 | AL23: =X23*'PTRM Revenue data'!N$7*'PTRM Revenue data'!M$8 -> 0.5550176987 | AN23: Control Centre - SCADA | AO23: =M23*'PTRM Revenue data'!J$8 -> 7.572338078 | AP23: =N23*'PTRM Revenue data'!K$8 -> 8.015145895 | AQ23: =O23*'PTRM Revenue data'!L$8 -> 5.543168689 | AR23: =P23*'PTRM Revenue data'!M$8 -> 5.607623751 | AS23: =Q23*'PTRM Revenue data'!N$8 -> 5.471178495 | AU23: Control Centre - SCADA | AV23: 6.81680318 | AW23: 7.325091171 | AX23: 4.947522197 | AY23: 5.032805554 | AZ23: 4.916160796
B24: Other Equipment | C24: =_xlfn.XLOOKUP(B24,'PTRM Input'!$G$6:$G$58,'PTRM Input'!$J$6:$J$58) -> 1.316587064 | E24: Other Equipment | F24: =_xlfn.XLOOKUP($E24,Assets!$C$11:$C$60,Assets!G$11:G$60) -> 0 | G24: =_xlfn.XLOOKUP($E24,Assets!$C$11:$C$60,Assets!H$11:H$60) -> 0 | H24: =_xlfn.XLOOKUP($E24,Assets!$C$11:$C$60,Assets!I$11:I$60) -> 0 | I24: =_xlfn.XLOOKUP($E24,Assets!$C$11:$C$60,Assets!J$11:J$60) -> 0 | J24: =_xlfn.XLOOKUP($E24,Assets!$C$11:$C$60,Assets!K$11:K$60) -> 0 | L24: Other Equipment | M24: =_xlfn.XLOOKUP($L24,Assets!$C$128:$C$765,Assets!G$128:G$765) -> 0.03731502151 | N24: =_xlfn.XLOOKUP($L24,Assets!$C$128:$C$765,Assets!H$128:H$765) -> 0.03731502151 | O24: =_xlfn.XLOOKUP($L24,Assets!$C$128:$C$765,Assets!I$128:I$765) -> 0.03731502151 | P24: =_xlfn.XLOOKUP($L24,Assets!$C$128:$C$765,Assets!J$128:J$765) -> 0.03731502151 | Q24: =_xlfn.XLOOKUP($L24,Assets!$C$128:$C$765,Assets!K$128:K$765) -> 0.03731502151 | S24: Other Equipment | T24: 1.316587064 | U24: 1.279272042 | V24: 1.241957021 | W24: 1.204641999 | X24: 1.167326978 | Z24: Other Equipment | AA24: 8.105865311e-05 | AB24: 7.652748997e-05 | AC24: 7.233354406e-05 | AD24: 6.840850327e-05 | AE24: 6.465062585e-05 | AG24: Other Equipment | AH24: =T24*'PTRM Revenue data'!J$7 -> 0.03686155614 | AI24: =U24*'PTRM Revenue data'!K$7*'PTRM Revenue data'!J$8 -> 0.0368196097 | AJ24: =V24*'PTRM Revenue data'!L$7*'PTRM Revenue data'!K$8 -> 0.03574562037 | AK24: =W24*'PTRM Revenue data'!M$7*'PTRM Revenue data'!L$8 -> 0.03467163103 | AL24: =X24*'PTRM Revenue data'!N$7*'PTRM Revenue data'!M$8 -> 0.0335976417 | AN24: Other Equipment | AO24: =M24*'PTRM Revenue data'!J$8 -> 0.03835976044 | AP24: =N24*'PTRM Revenue data'!K$8 -> 0.03835976044 | AQ24: =O24*'PTRM Revenue data'!L$8 -> 0.03835976044 | AR24: =P24*'PTRM Revenue data'!M$8 -> 0.03835976044 | AS24: =Q24*'PTRM Revenue data'!N$8 -> 0.03835976044 | AU24: Other Equipment | AV24: 0.001498204299 | AW24: 0.00154015074 | AX24: 0.002614140073 | AY24: 0.003688129407 | AZ24: 0.00476211874
B25: Generation Assets | C25: =_xlfn.XLOOKUP(B25,'PTRM Input'!$G$6:$G$58,'PTRM Input'!$J$6:$J$58) -> 14.40064996 | E25: Generation Assets | F25: =_xlfn.XLOOKUP($E25,Assets!$C$11:$C$60,Assets!G$11:G$60) -> 0 | G25: =_xlfn.XLOOKUP($E25,Assets!$C$11:$C$60,Assets!H$11:H$60) -> 0 | H25: =_xlfn.XLOOKUP($E25,Assets!$C$11:$C$60,Assets!I$11:I$60) -> 0 | I25: =_xlfn.XLOOKUP($E25,Assets!$C$11:$C$60,Assets!J$11:J$60) -> 0 | J25: =_xlfn.XLOOKUP($E25,Assets!$C$11:$C$60,Assets!K$11:K$60) -> 0 | L25: Generation Assets | M25: =_xlfn.XLOOKUP($L25,Assets!$C$128:$C$765,Assets!G$128:G$765) -> 0.6980512379 | N25: =_xlfn.XLOOKUP($L25,Assets!$C$128:$C$765,Assets!H$128:H$765) -> 0.6980512379 | O25: =_xlfn.XLOOKUP($L25,Assets!$C$128:$C$765,Assets!I$128:I$765) -> 0.6980512379 | P25: =_xlfn.XLOOKUP($L25,Assets!$C$128:$C$765,Assets!J$128:J$765) -> 0.6980512379 | Q25: =_xlfn.XLOOKUP($L25,Assets!$C$128:$C$765,Assets!K$128:K$765) -> 0.6980512379 | S25: Generation Assets | T25: 14.40064996 | U25: 13.70259872 | V25: 13.00454748 | W25: 12.30649624 | X25: 11.60844501 | Z25: Generation Assets | AA25: 0.000886608506 | AB25: 0.0008197048411 | AC25: 0.0007574054437 | AD25: 0.0006988540904 | AE25: 0.0006429160374 | AG25: Generation Assets | AH25: =T25*'PTRM Revenue data'!J$7 -> 0.4031866798 | AI25: =U25*'PTRM Revenue data'!K$7*'PTRM Revenue data'!J$8 -> 0.3943839309 | AJ25: =V25*'PTRM Revenue data'!L$7*'PTRM Revenue data'!K$8 -> 0.3742928375 | AK25: =W25*'PTRM Revenue data'!M$7*'PTRM Revenue data'!L$8 -> 0.3542017441 | AL25: =X25*'PTRM Revenue data'!N$7*'PTRM Revenue data'!M$8 -> 0.3341106506 | AN25: Generation Assets | AO25: =M25*'PTRM Revenue data'!J$8 -> 0.7175951447 | AP25: =N25*'PTRM Revenue data'!K$8 -> 0.7175951447 | AQ25: =O25*'PTRM Revenue data'!L$8 -> 0.7175951447 | AR25: =P25*'PTRM Revenue data'!M$8 -> 0.7175951447 | AS25: =Q25*'PTRM Revenue data'!N$8 -> 0.7175951447 | AU25: Generation Assets | AV25: 0.3144084649 | AW25: 0.3232112137 | AX25: 0.3433023072 | AY25: 0.3633934006 | AZ25: 0.383484494
B26: Motor Vehicles | C26: =_xlfn.XLOOKUP(B26,'PTRM Input'!$G$6:$G$58,'PTRM Input'!$J$6:$J$58) -> 172.3454918 | E26: Motor Vehicles | F26: =_xlfn.XLOOKUP($E26,Assets!$C$11:$C$60,Assets!G$11:G$60) -> 57.66631894 | G26: =_xlfn.XLOOKUP($E26,Assets!$C$11:$C$60,Assets!H$11:H$60) -> 56.57557998 | H26: =_xlfn.XLOOKUP($E26,Assets!$C$11:$C$60,Assets!I$11:I$60) -> 43.96819587 | I26: =_xlfn.XLOOKUP($E26,Assets!$C$11:$C$60,Assets!J$11:J$60) -> 35.82197759 | J26: =_xlfn.XLOOKUP($E26,Assets!$C$11:$C$60,Assets!K$11:K$60) -> 48.80665565 | L26: Motor Vehicles | M26: =_xlfn.XLOOKUP($L26,Assets!$C$128:$C$765,Assets!G$128:G$765) -> 27.34774224 | N26: =_xlfn.XLOOKUP($L26,Assets!$C$128:$C$765,Assets!H$128:H$765) -> 30.33710646 | O26: =_xlfn.XLOOKUP($L26,Assets!$C$128:$C$765,Assets!I$128:I$765) -> 34.09177172 | P26: =_xlfn.XLOOKUP($L26,Assets!$C$128:$C$765,Assets!J$128:J$765) -> 37.19994039 | Q26: =_xlfn.XLOOKUP($L26,Assets!$C$128:$C$765,Assets!K$128:K$765) -> 38.27949095 | S26: Motor Vehicles | T26: 172.3454918 | U26: 202.6640685 | V26: 228.902542 | W26: 238.7789661 | X26: 237.4010033 | Z26: Motor Vehicles | AA26: 0.01061083905 | AB26: 0.01212359213 | AC26: 0.01333164661 | AD26: 0.01355963987 | AE26: 0.01314809281 | AG26: Motor Vehicles | AH26: =T26*'PTRM Revenue data'!J$7 -> 4.825296553 | AI26: =U26*'PTRM Revenue data'!K$7*'PTRM Revenue data'!J$8 -> 5.833014132 | AJ26: =V26*'PTRM Revenue data'!L$7*'PTRM Revenue data'!K$8 -> 6.588201709 | AK26: =W26*'PTRM Revenue data'!M$7*'PTRM Revenue data'!L$8 -> 6.872461875 | AL26: =X26*'PTRM Revenue data'!N$7*'PTRM Revenue data'!M$8 -> 6.832801778 | AN26: Motor Vehicles | AO26: =M26*'PTRM Revenue data'!J$8 -> 28.11341917 | AP26: =N26*'PTRM Revenue data'!K$8 -> 31.18647905 | AQ26: =O26*'PTRM Revenue data'!L$8 -> 35.04626671 | AR26: =P26*'PTRM Revenue data'!M$8 -> 38.2414573 | AS26: =Q26*'PTRM Revenue data'!N$8 -> 39.35123291 | AU26: Motor Vehicles | AV26: 23.28812262 | AW26: 25.35346491 | AX26: 28.458065 | AY26: 31.36899542 | AZ26: 32.51843113
B27: Plant & Equipment | C27: =_xlfn.XLOOKUP(B27,'PTRM Input'!$G$6:$G$58,'PTRM Input'!$J$6:$J$58) -> 41.38490215 | E27: Plant & Equipment | F27: =_xlfn.XLOOKUP($E27,Assets!$C$11:$C$60,Assets!G$11:G$60) -> 6.807602802 | G27: =_xlfn.XLOOKUP($E27,Assets!$C$11:$C$60,Assets!H$11:H$60) -> 6.401634613 | H27: =_xlfn.XLOOKUP($E27,Assets!$C$11:$C$60,Assets!I$11:I$60) -> 6.548019545 | I27: =_xlfn.XLOOKUP($E27,Assets!$C$11:$C$60,Assets!J$11:J$60) -> 6.294353067 | J27: =_xlfn.XLOOKUP($E27,Assets!$C$11:$C$60,Assets!K$11:K$60) -> 6.142393876 | L27: Plant & Equipment | M27: =_xlfn.XLOOKUP($L27,Assets!$C$128:$C$765,Assets!G$128:G$765) -> 9.294705439 | N27: =_xlfn.XLOOKUP($L27,Assets!$C$128:$C$765,Assets!H$128:H$765) -> 8.118860961 | O27: =_xlfn.XLOOKUP($L27,Assets!$C$128:$C$765,Assets!I$128:I$765) -> 7.154995867 | P27: =_xlfn.XLOOKUP($L27,Assets!$C$128:$C$765,Assets!J$128:J$765) -> 7.163736243 | Q27: =_xlfn.XLOOKUP($L27,Assets!$C$128:$C$765,Assets!K$128:K$765) -> 6.995361774 | S27: Plant & Equipment | T27: 41.38490215 | U27: 38.89779951 | V27: 37.18057317 | W27: 36.57359684 | X27: 35.70421367 | Z27: Plant & Equipment | AA27: 0.002547954875 | AB27: 0.002326910043 | AC27: 0.002165455473 | AD27: 0.002076919965 | AE27: 0.001977423467 | AG27: Plant & Equipment | AH27: =T27*'PTRM Revenue data'!J$7 -> 1.15868668 | AI27: =U27*'PTRM Revenue data'!K$7*'PTRM Revenue data'!J$8 -> 1.119544357 | AJ27: =V27*'PTRM Revenue data'!L$7*'PTRM Revenue data'!K$8 -> 1.070119683 | AK27: =W27*'PTRM Revenue data'!M$7*'PTRM Revenue data'!L$8 -> 1.05264988 | AL27: =X27*'PTRM Revenue data'!N$7*'PTRM Revenue data'!M$8 -> 1.027627564 | AN27: Plant & Equipment | AO27: =M27*'PTRM Revenue data'!J$8 -> 9.554936848 | AP27: =N27*'PTRM Revenue data'!K$8 -> 8.346171298 | AQ27: =O27*'PTRM Revenue data'!L$8 -> 7.355320091 | AR27: =P27*'PTRM Revenue data'!M$8 -> 7.364305178 | AS27: =Q27*'PTRM Revenue data'!N$8 -> 7.191216592 | AU27: Plant & Equipment | AV27: 8.396250168 | AW27: 7.226626941 | AX27: 6.285200408 | AY27: 6.311655299 | AZ27: 6.163589029
B28: Buildings | C28: =_xlfn.XLOOKUP(B28,'PTRM Input'!$G$6:$G$58,'PTRM Input'!$J$6:$J$58) -> 411.7505714 | E28: Buildings | F28: =_xlfn.XLOOKUP($E28,Assets!$C$11:$C$60,Assets!G$11:G$60) -> 30.50847816 | G28: =_xlfn.XLOOKUP($E28,Assets!$C$11:$C$60,Assets!H$11:H$60) -> 24.8145041 | H28: =_xlfn.XLOOKUP($E28,Assets!$C$11:$C$60,Assets!I$11:I$60) -> 29.85127242 | I28: =_xlfn.XLOOKUP($E28,Assets!$C$11:$C$60,Assets!J$11:J$60) -> 33.72344742 | J28: =_xlfn.XLOOKUP($E28,Assets!$C$11:$C$60,Assets!K$11:K$60) -> 31.58045048 | L28: Buildings | M28: =_xlfn.XLOOKUP($L28,Assets!$C$128:$C$765,Assets!G$128:G$765) -> 13.03696527 | N28: =_xlfn.XLOOKUP($L28,Assets!$C$128:$C$765,Assets!H$128:H$765) -> 13.79967723 | O28: =_xlfn.XLOOKUP($L28,Assets!$C$128:$C$765,Assets!I$128:I$765) -> 14.42003983 | P28: =_xlfn.XLOOKUP($L28,Assets!$C$128:$C$765,Assets!J$128:J$765) -> 15.16632164 | Q28: =_xlfn.XLOOKUP($L28,Assets!$C$128:$C$765,Assets!K$128:K$765) -> 16.00940782 | S28: Buildings | T28: 411.7505714 | U28: 429.2220843 | V28: 440.2369112 | W28: 455.6681438 | X28: 474.2252696 | Z28: Buildings | AA28: 0.02535035294 | AB28: 0.02567654703 | AC28: 0.02564009501 | AD28: 0.02587621528 | AE28: 0.02626424392 | AG28: Buildings | AH28: =T28*'PTRM Revenue data'!J$7 -> 11.52811479 | AI28: =U28*'PTRM Revenue data'!K$7*'PTRM Revenue data'!J$8 -> 12.35373642 | AJ28: =V28*'PTRM Revenue data'!L$7*'PTRM Revenue data'!K$8 -> 12.67076174 | AK28: =W28*'PTRM Revenue data'!M$7*'PTRM Revenue data'!L$8 -> 13.11489867 | AL28: =X28*'PTRM Revenue data'!N$7*'PTRM Revenue data'!M$8 -> 13.64900409 | AN28: Buildings | AO28: =M28*'PTRM Revenue data'!J$8 -> 13.40197177 | AP28: =N28*'PTRM Revenue data'!K$8 -> 14.18603799 | AQ28: =O28*'PTRM Revenue data'!L$8 -> 14.82376938 | AR28: =P28*'PTRM Revenue data'!M$8 -> 15.59094545 | AS28: =Q28*'PTRM Revenue data'!N$8 -> 16.4576362 | AU28: Buildings | AV28: 1.873856973 | AW28: 1.832301564 | AX28: 2.153007644 | AY28: 2.476046778 | AZ28: 2.808632114
B29: Office Equipment & Furniture | C29: =_xlfn.XLOOKUP(B29,'PTRM Input'!$G$6:$G$58,'PTRM Input'!$J$6:$J$58) -> -9.781935127 | E29: Office Equipment & Furniture | F29: =_xlfn.XLOOKUP($E29,Assets!$C$11:$C$60,Assets!G$11:G$60) -> 1.878441331 | G29: =_xlfn.XLOOKUP($E29,Assets!$C$11:$C$60,Assets!H$11:H$60) -> 1.52785694 | H29: =_xlfn.XLOOKUP($E29,Assets!$C$11:$C$60,Assets!I$11:I$60) -> 1.837976434 | I29: =_xlfn.XLOOKUP($E29,Assets!$C$11:$C$60,Assets!J$11:J$60) -> 2.076390605 | J29: =_xlfn.XLOOKUP($E29,Assets!$C$11:$C$60,Assets!K$11:K$60) -> 1.944443873 | L29: Office Equipment & Furniture | M29: =_xlfn.XLOOKUP($L29,Assets!$C$128:$C$765,Assets!G$128:G$765) -> -2.404109031 | N29: =_xlfn.XLOOKUP($L29,Assets!$C$128:$C$765,Assets!H$128:H$765) -> -1.379341259 | O29: =_xlfn.XLOOKUP($L29,Assets!$C$128:$C$765,Assets!I$128:I$765) -> -0.7810390889 | P29: =_xlfn.XLOOKUP($L29,Assets!$C$128:$C$765,Assets!J$128:J$765) -> -0.5184710269 | Q29: =_xlfn.XLOOKUP($L29,Assets!$C$128:$C$765,Assets!K$128:K$765) -> -0.2218437976 | S29: Office Equipment & Furniture | T29: -9.781935127 | U29: -5.499384766 | V29: -2.592186567 | W29: 0.02682895544 | X29: 2.621690588 | Z29: Office Equipment & Furniture | AA29: -0.0006022469065 | AB29: -0.0003289793716 | AC29: -0.0001509730515 | AD29: 1.523546985e-06 | AE29: 0.0001451983382 | AG29: Office Equipment & Furniture | AH29: =T29*'PTRM Revenue data'!J$7 -> -0.2738727736 | AI29: =U29*'PTRM Revenue data'!K$7*'PTRM Revenue data'!J$8 -> -0.1582815805 | AJ29: =V29*'PTRM Revenue data'!L$7*'PTRM Revenue data'!K$8 -> -0.07460750687 | AK29: =W29*'PTRM Revenue data'!M$7*'PTRM Revenue data'!L$8 -> 0.000772182644 | AL29: =X29*'PTRM Revenue data'!N$7*'PTRM Revenue data'!M$8 -> 0.0754566824 | AN29: =B29 -> Office Equipment & Furniture | AO29: =M29*'PTRM Revenue data'!J$8 -> -2.471418822 | AP29: =N29*'PTRM Revenue data'!K$8 -> -1.417959795 | AQ29: =O29*'PTRM Revenue data'!L$8 -> -0.8029064739 | AR29: =P29*'PTRM Revenue data'!M$8 -> -0.5329870809 | AS29: =Q29*'PTRM Revenue data'!N$8 -> -0.2280549383 | AU29: =B29 -> Office Equipment & Furniture | AV29: =AO29-AH29 -> -2.197546048 | AW29: =AP29-AI29 -> -1.259678215 | AX29: =AQ29-AJ29 -> -0.728298967 | AY29: =AR29-AK29 -> -0.5337592635 | AZ29: =AS29-AL29 -> -0.3035116207
B30: Initial Leases (10 yr life) | C30: =_xlfn.XLOOKUP(B30,'PTRM Input'!$G$6:$G$58,'PTRM Input'!$J$6:$J$58) -> 53.60192605 | E30: Initial Leases (10 yr life) | F30: =_xlfn.XLOOKUP($E30,Assets!$C$11:$C$60,Assets!G$11:G$60) -> 0 | G30: =_xlfn.XLOOKUP($E30,Assets!$C$11:$C$60,Assets!H$11:H$60) -> 0 | H30: =_xlfn.XLOOKUP($E30,Assets!$C$11:$C$60,Assets!I$11:I$60) -> 0 | I30: =_xlfn.XLOOKUP($E30,Assets!$C$11:$C$60,Assets!J$11:J$60) -> 0 | J30: =_xlfn.XLOOKUP($E30,Assets!$C$11:$C$60,Assets!K$11:K$60) -> 0 | L30: Initial Leases (10 yr life) | M30: =_xlfn.XLOOKUP($L30,Assets!$C$128:$C$765,Assets!G$128:G$765) -> 12.37101966 | N30: =_xlfn.XLOOKUP($L30,Assets!$C$128:$C$765,Assets!H$128:H$765) -> 12.37101966 | O30: =_xlfn.XLOOKUP($L30,Assets!$C$128:$C$765,Assets!I$128:I$765) -> 12.37101966 | P30: =_xlfn.XLOOKUP($L30,Assets!$C$128:$C$765,Assets!J$128:J$765) -> 12.37101966 | Q30: =_xlfn.XLOOKUP($L30,Assets!$C$128:$C$765,Assets!K$128:K$765) -> 4.117847427 | S30: Initial Leases (10 yr life) | T30: 53.60192605 | U30: 41.2309064 | V30: 28.85988674 | W30: 16.48886708 | X30: 4.117847427 | Z30: Initial Leases (10 yr life) | AA30: 0.003300123517 | AB30: 0.002466479116 | AC30: 0.001680845516 | AD30: 0.0009363601125 | AE30: 0.0002280607048 | AG30: Initial Leases (10 yr life) | AH30: =T30*'PTRM Revenue data'!J$7 -> 1.50073661 | AI30: =U30*'PTRM Revenue data'!K$7*'PTRM Revenue data'!J$8 -> 1.186695113 | AJ30: =V30*'PTRM Revenue data'!L$7*'PTRM Revenue data'!K$8 -> 0.8306362765 | AK30: =W30*'PTRM Revenue data'!M$7*'PTRM Revenue data'!L$8 -> 0.4745774397 | AL30: =X30*'PTRM Revenue data'!N$7*'PTRM Revenue data'!M$8 -> 0.1185186028 | AN30: Initial Leases (10 yr life) | AO30: =M30*'PTRM Revenue data'!J$8 -> 12.71738113 | AP30: =N30*'PTRM Revenue data'!K$8 -> 12.71738113 | AQ30: =O30*'PTRM Revenue data'!L$8 -> 12.71738113 | AR30: =P30*'PTRM Revenue data'!M$8 -> 12.71738113 | AS30: =Q30*'PTRM Revenue data'!N$8 -> 4.233138142 | AU30: Initial Leases (10 yr life) | AV30: 11.21664452 | AW30: 11.53068602 | AX30: 11.88674485 | AY30: 12.24280369 | AZ30: 4.114619539
B31: Lease Extensions (5yr Life) | C31: =_xlfn.XLOOKUP(B31,'PTRM Input'!$G$6:$G$58,'PTRM Input'!$J$6:$J$58) -> 0 | E31: Lease Extensions (5yr Life) | F31: =_xlfn.XLOOKUP($E31,Assets!$C$11:$C$60,Assets!G$11:G$60) -> 0 | G31: =_xlfn.XLOOKUP($E31,Assets!$C$11:$C$60,Assets!H$11:H$60) -> 0 | H31: =_xlfn.XLOOKUP($E31,Assets!$C$11:$C$60,Assets!I$11:I$60) -> 0 | I31: =_xlfn.XLOOKUP($E31,Assets!$C$11:$C$60,Assets!J$11:J$60) -> 14.97270912 | J31: =_xlfn.XLOOKUP($E31,Assets!$C$11:$C$60,Assets!K$11:K$60) -> 2.585173722 | L31: Lease Extensions (5yr Life) | M31: =_xlfn.XLOOKUP($L31,Assets!$C$128:$C$765,Assets!G$128:G$765) -> 0 | N31: =_xlfn.XLOOKUP($L31,Assets!$C$128:$C$765,Assets!H$128:H$765) -> 0 | O31: =_xlfn.XLOOKUP($L31,Assets!$C$128:$C$765,Assets!I$128:I$765) -> 0 | P31: =_xlfn.XLOOKUP($L31,Assets!$C$128:$C$765,Assets!J$128:J$765) -> 0 | Q31: =_xlfn.XLOOKUP($L31,Assets!$C$128:$C$765,Assets!K$128:K$765) -> 2.994541824 | S31: Lease Extensions (5yr Life) | T31: =_xlfn.XLOOKUP(S31,$B$7:$B$37,C$7:C$37) -> 0 | U31: 0 | V31: 0 | W31: 0 | X31: 14.97270912 | Z31: Lease Extensions (5yr Life) | AA31: =T31/T$40 -> 0 | AB31: 0 | AC31: 0 | AD31: 0 | AE31: 0.0008292406788 | AG31: Lease Extensions (5yr Life) | AH31: =T31*'PTRM Revenue data'!J$7 -> 0 | AI31: =U31*'PTRM Revenue data'!K$7*'PTRM Revenue data'!J$8 -> 0 | AJ31: =V31*'PTRM Revenue data'!L$7*'PTRM Revenue data'!K$8 -> 0 | AK31: =W31*'PTRM Revenue data'!M$7*'PTRM Revenue data'!L$8 -> 0 | AL31: =X31*'PTRM Revenue data'!N$7*'PTRM Revenue data'!M$8 -> 0.4309398531 | AN31: Lease Extensions (5yr Life) | AO31: =M31*'PTRM Revenue data'!J$8 -> 0 | AP31: =N31*'PTRM Revenue data'!K$8 -> 0 | AQ31: =O31*'PTRM Revenue data'!L$8 -> 0 | AR31: =P31*'PTRM Revenue data'!M$8 -> 0 | AS31: =Q31*'PTRM Revenue data'!N$8 -> 3.078382441 | AU31: Lease Extensions (5yr Life) | AV31: 0 | AW31: 0 | AX31: 0 | AY31: 0 | AZ31: 2.647442588
B32: Land & Easements - combined | C32: =_xlfn.XLOOKUP(B32,'PTRM Input'!$G$6:$G$58,'PTRM Input'!$J$6:$J$58) -> 33.8504323 | E32: Land & Easements - combined | F32: =_xlfn.XLOOKUP($E32,Assets!$C$11:$C$60,Assets!G$11:G$60) -> 0 | G32: =_xlfn.XLOOKUP($E32,Assets!$C$11:$C$60,Assets!H$11:H$60) -> 0 | H32: =_xlfn.XLOOKUP($E32,Assets!$C$11:$C$60,Assets!I$11:I$60) -> -4.350896784 | I32: =_xlfn.XLOOKUP($E32,Assets!$C$11:$C$60,Assets!J$11:J$60) -> 0 | J32: =_xlfn.XLOOKUP($E32,Assets!$C$11:$C$60,Assets!K$11:K$60) -> -2.430025257 | L32: Land & Easements - combined | M32: =_xlfn.XLOOKUP($L32,Assets!$C$128:$C$765,Assets!G$128:G$765) -> 0 | N32: =_xlfn.XLOOKUP($L32,Assets!$C$128:$C$765,Assets!H$128:H$765) -> 0 | O32: =_xlfn.XLOOKUP($L32,Assets!$C$128:$C$765,Assets!I$128:I$765) -> 0 | P32: =_xlfn.XLOOKUP($L32,Assets!$C$128:$C$765,Assets!J$128:J$765) -> 0 | Q32: =_xlfn.XLOOKUP($L32,Assets!$C$128:$C$765,Assets!K$128:K$765) -> 0 | S32: Land & Easements - combined | T32: 33.8504323 | U32: 33.8504323 | V32: 33.8504323 | W32: 29.49953551 | X32: 29.49953551 | Z32: Land & Easements - combined | AA32: 0.002084078239 | AB32: 0.002024970868 | AC32: 0.001971502794 | AD32: 0.00167520232 | AE32: 0.001633786822 | AG32: Land & Easements - combined | AH32: =T32*'PTRM Revenue data'!J$7 -> 0.9477380152 | AI32: =U32*'PTRM Revenue data'!K$7*'PTRM Revenue data'!J$8 -> 0.9742726053 | AJ32: =V32*'PTRM Revenue data'!L$7*'PTRM Revenue data'!K$8 -> 0.9742726053 | AK32: =W32*'PTRM Revenue data'!M$7*'PTRM Revenue data'!L$8 -> 0.8490464484 | AL32: =X32*'PTRM Revenue data'!N$7*'PTRM Revenue data'!M$8 -> 0.8490464484 | AN32: Land & Easements - combined | AO32: =M32*'PTRM Revenue data'!J$8 -> 0 | AP32: =N32*'PTRM Revenue data'!K$8 -> 0 | AQ32: =O32*'PTRM Revenue data'!L$8 -> 0 | AR32: =P32*'PTRM Revenue data'!M$8 -> 0 | AS32: =Q32*'PTRM Revenue data'!N$8 -> 0 | AU32: Land & Easements - combined | AV32: -0.9477380152 | AW32: -0.9742726053 | AX32: -0.9742726053 | AY32: -0.8490464484 | AZ32: -0.8490464484
B33: Communications | C33: =_xlfn.XLOOKUP(B33,'PTRM Input'!$G$6:$G$58,'PTRM Input'!$J$6:$J$58) -> 168.7162641 | E33: Communications | F33: =_xlfn.XLOOKUP($E33,Assets!$C$11:$C$60,Assets!G$11:G$60) -> 0 | G33: =_xlfn.XLOOKUP($E33,Assets!$C$11:$C$60,Assets!H$11:H$60) -> 0 | H33: =_xlfn.XLOOKUP($E33,Assets!$C$11:$C$60,Assets!I$11:I$60) -> 0 | I33: =_xlfn.XLOOKUP($E33,Assets!$C$11:$C$60,Assets!J$11:J$60) -> 0 | J33: =_xlfn.XLOOKUP($E33,Assets!$C$11:$C$60,Assets!K$11:K$60) -> 0 | L33: Communications | M33: =_xlfn.XLOOKUP($L33,Assets!$C$128:$C$765,Assets!G$128:G$765) -> 8.032275171 | N33: =_xlfn.XLOOKUP($L33,Assets!$C$128:$C$765,Assets!H$128:H$765) -> 8.032275171 | O33: =_xlfn.XLOOKUP($L33,Assets!$C$128:$C$765,Assets!I$128:I$765) -> 8.032275171 | P33: =_xlfn.XLOOKUP($L33,Assets!$C$128:$C$765,Assets!J$128:J$765) -> 8.032275171 | Q33: =_xlfn.XLOOKUP($L33,Assets!$C$128:$C$765,Assets!K$128:K$765) -> 8.032275171 | S33: Communications | T33: 168.7162641 | U33: 160.6839889 | V33: 152.6517138 | W33: 144.6194386 | X33: 136.5871634 | Z33: Communications | AA33: 0.01038739747 | AB33: 0.00961229664 | AC33: 0.0088906776 | AD33: 0.008212563854 | AE33: 0.007564671911 | AG33: Communications | AH33: =T33*'PTRM Revenue data'!J$7 -> 4.723686122 | AI33: =U33*'PTRM Revenue data'!K$7*'PTRM Revenue data'!J$8 -> 4.624756551 | AJ33: =V33*'PTRM Revenue data'!L$7*'PTRM Revenue data'!K$8 -> 4.393574108 | AK33: =W33*'PTRM Revenue data'!M$7*'PTRM Revenue data'!L$8 -> 4.162391664 | AL33: =X33*'PTRM Revenue data'!N$7*'PTRM Revenue data'!M$8 -> 3.93120922 | AN33: Communications | AO33: =M33*'PTRM Revenue data'!J$8 -> 8.257161296 | AP33: =N33*'PTRM Revenue data'!K$8 -> 8.257161296 | AQ33: =O33*'PTRM Revenue data'!L$8 -> 8.257161296 | AR33: =P33*'PTRM Revenue data'!M$8 -> 8.257161296 | AS33: =Q33*'PTRM Revenue data'!N$8 -> 8.257161296 | AU33: Communications | AV33: 3.533475174 | AW33: 3.632404745 | AX33: 3.863587188 | AY33: 4.094769632 | AZ33: 4.325952076
B34: In-house software | C34: =_xlfn.XLOOKUP(B34,'PTRM Input'!$G$6:$G$58,'PTRM Input'!$J$6:$J$58) -> 188.8794004 | E34: In-house software | F34: =_xlfn.XLOOKUP($E34,Assets!$C$11:$C$60,Assets!G$11:G$60) -> 78.58194291 | G34: =_xlfn.XLOOKUP($E34,Assets!$C$11:$C$60,Assets!H$11:H$60) -> 64.54642997 | H34: =_xlfn.XLOOKUP($E34,Assets!$C$11:$C$60,Assets!I$11:I$60) -> 49.02602834 | I34: =_xlfn.XLOOKUP($E34,Assets!$C$11:$C$60,Assets!J$11:J$60) -> 38.28867284 | J34: =_xlfn.XLOOKUP($E34,Assets!$C$11:$C$60,Assets!K$11:K$60) -> 48.09914327 | L34: In-house software | M34: =_xlfn.XLOOKUP($L34,Assets!$C$128:$C$765,Assets!G$128:G$765) -> 65.79480124 | N34: =_xlfn.XLOOKUP($L34,Assets!$C$128:$C$765,Assets!H$128:H$765) -> 64.49936924 | O34: =_xlfn.XLOOKUP($L34,Assets!$C$128:$C$765,Assets!I$128:I$765) -> 62.57407338 | P34: =_xlfn.XLOOKUP($L34,Assets!$C$128:$C$765,Assets!J$128:J$765) -> 66.07297536 | Q34: =_xlfn.XLOOKUP($L34,Assets!$C$128:$C$765,Assets!K$128:K$765) -> 58.79973944 | S34: In-house software | T34: 188.8794004 | U34: 201.6665421 | V34: 201.7136028 | W34: 188.1655578 | X34: 160.3812553 | Z34: In-house software | AA34: 0.01162878645 | AB34: 0.01206391899 | AC34: 0.01174811973 | AD34: 0.01068543533 | AE34: 0.008882471431 | AG34: In-house software | AH34: =T34*'PTRM Revenue data'!J$7 -> 5.288209808 | AI34: =U34*'PTRM Revenue data'!K$7*'PTRM Revenue data'!J$8 -> 5.804303639 | AJ34: =V34*'PTRM Revenue data'!L$7*'PTRM Revenue data'!K$8 -> 5.805658127 | AK34: =W34*'PTRM Revenue data'!M$7*'PTRM Revenue data'!L$8 -> 5.415722512 | AL34: =X34*'PTRM Revenue data'!N$7*'PTRM Revenue data'!M$8 -> 4.616043366 | AN34: In-house software | AO34: =M34*'PTRM Revenue data'!J$8 -> 67.63691167 | AP34: =N34*'PTRM Revenue data'!K$8 -> 66.30521041 | AQ34: =O34*'PTRM Revenue data'!L$8 -> 64.32601048 | AR34: =P34*'PTRM Revenue data'!M$8 -> 67.92287405 | AS34: =Q34*'PTRM Revenue data'!N$8 -> 60.44600345 | AU34: In-house software | AV34: 62.34870186 | AW34: 60.50090677 | AX34: 58.52035235 | AY34: 62.50715154 | AZ34: 55.82996009
B35: IT Systems | C35: =_xlfn.XLOOKUP(B35,'PTRM Input'!$G$6:$G$58,'PTRM Input'!$J$6:$J$58) -> 7.400741319 | E35: IT Systems | F35: =_xlfn.XLOOKUP($E35,Assets!$C$11:$C$60,Assets!G$11:G$60) -> 3.338379695 | G35: =_xlfn.XLOOKUP($E35,Assets!$C$11:$C$60,Assets!H$11:H$60) -> 3.157597241 | H35: =_xlfn.XLOOKUP($E35,Assets!$C$11:$C$60,Assets!I$11:I$60) -> 2.451986583 | I35: =_xlfn.XLOOKUP($E35,Assets!$C$11:$C$60,Assets!J$11:J$60) -> 1.851387438 | J35: =_xlfn.XLOOKUP($E35,Assets!$C$11:$C$60,Assets!K$11:K$60) -> 2.327209277 | L35: IT Systems | M35: =_xlfn.XLOOKUP($L35,Assets!$C$128:$C$765,Assets!G$128:G$765) -> 2.091332131 | N35: =_xlfn.XLOOKUP($L35,Assets!$C$128:$C$765,Assets!H$128:H$765) -> 2.949059875 | O35: =_xlfn.XLOOKUP($L35,Assets!$C$128:$C$765,Assets!I$128:I$765) -> 3.580579323 | P35: =_xlfn.XLOOKUP($L35,Assets!$C$128:$C$765,Assets!J$128:J$765) -> 2.418212295 | Q35: =_xlfn.XLOOKUP($L35,Assets!$C$128:$C$765,Assets!K$128:K$765) -> 2.277891917 | S35: IT Systems | T35: 7.400741319 | U35: 8.647788884 | V35: 8.85632625 | W35: 7.72773351 | X35: 7.160908652 | Z35: IT Systems | AA35: 0.0004556433372 | AB35: 0.0005173204411 | AC35: 0.0005158064687 | AD35: 0.0004388379979 | AE35: 0.0003965960137 | AG35: IT Systems | AH35: =T35*'PTRM Revenue data'!J$7 -> 0.2072045588 | AI35: =U35*'PTRM Revenue data'!K$7*'PTRM Revenue data'!J$8 -> 0.2488979677 | AJ35: =V35*'PTRM Revenue data'!L$7*'PTRM Revenue data'!K$8 -> 0.2549000253 | AK35: =W35*'PTRM Revenue data'!M$7*'PTRM Revenue data'!L$8 -> 0.2224172204 | AL35: =X35*'PTRM Revenue data'!N$7*'PTRM Revenue data'!M$8 -> 0.2061030437 | AN35: IT Systems | AO35: =M35*'PTRM Revenue data'!J$8 -> 2.149884853 | AP35: =N35*'PTRM Revenue data'!K$8 -> 3.031627097 | AQ35: =O35*'PTRM Revenue data'!L$8 -> 3.680827707 | AR35: =P35*'PTRM Revenue data'!M$8 -> 2.485916947 | AS35: =Q35*'PTRM Revenue data'!N$8 -> 2.341667905 | AU35: IT Systems | AV35: 1.942680294 | AW35: 2.782729129 | AX35: 3.425927682 | AY35: 2.263499726 | AZ35: 2.135564861
B36: Legacy ICT Assets | C36: =_xlfn.XLOOKUP(B36,'PTRM Input'!$G$6:$G$58,'PTRM Input'!$J$6:$J$58) -> 80.31701707 | E36: Legacy ICT Assets | F36: =_xlfn.XLOOKUP($E36,Assets!$C$11:$C$60,Assets!G$11:G$60) -> 0 | G36: =_xlfn.XLOOKUP($E36,Assets!$C$11:$C$60,Assets!H$11:H$60) -> 0 | H36: =_xlfn.XLOOKUP($E36,Assets!$C$11:$C$60,Assets!I$11:I$60) -> 0 | I36: =_xlfn.XLOOKUP($E36,Assets!$C$11:$C$60,Assets!J$11:J$60) -> 0 | J36: =_xlfn.XLOOKUP($E36,Assets!$C$11:$C$60,Assets!K$11:K$60) -> 0 | L36: Legacy ICT Assets | M36: =_xlfn.XLOOKUP($L36,Assets!$C$128:$C$765,Assets!G$128:G$765) -> 16.06340341 | N36: =_xlfn.XLOOKUP($L36,Assets!$C$128:$C$765,Assets!H$128:H$765) -> 16.06340341 | O36: =_xlfn.XLOOKUP($L36,Assets!$C$128:$C$765,Assets!I$128:I$765) -> 16.06340341 | P36: =_xlfn.XLOOKUP($L36,Assets!$C$128:$C$765,Assets!J$128:J$765) -> 16.06340341 | Q36: =_xlfn.XLOOKUP($L36,Assets!$C$128:$C$765,Assets!K$128:K$765) -> 16.06340341 | S36: Legacy ICT Assets | T36: 80.31701707 | U36: 64.25361366 | V36: 48.19021024 | W36: 32.12680683 | X36: 16.06340341 | Z36: Legacy ICT Assets | AA36: 0.004944898371 | AB36: 0.003843723315 | AC36: 0.002806674175 | AD36: 0.001824398262 | AE36: 0.0008896471203 | AG36: Legacy ICT Assets | AH36: =T36*'PTRM Revenue data'!J$7 -> 2.248700686 | AI36: =U36*'PTRM Revenue data'!K$7*'PTRM Revenue data'!J$8 -> 1.849327507 | AJ36: =V36*'PTRM Revenue data'!L$7*'PTRM Revenue data'!K$8 -> 1.38699563 | AK36: =W36*'PTRM Revenue data'!M$7*'PTRM Revenue data'!L$8 -> 0.9246637536 | AL36: =X36*'PTRM Revenue data'!N$7*'PTRM Revenue data'!M$8 -> 0.4623318768 | AN36: Legacy ICT Assets | AO36: =M36*'PTRM Revenue data'!J$8 -> 16.51314355 | AP36: =N36*'PTRM Revenue data'!K$8 -> 16.51314355 | AQ36: =O36*'PTRM Revenue data'!L$8 -> 16.51314355 | AR36: =P36*'PTRM Revenue data'!M$8 -> 16.51314355 | AS36: =Q36*'PTRM Revenue data'!N$8 -> 16.51314355 | AU36: Legacy ICT Assets | AV36: 14.26444287 | AW36: 14.66381605 | AX36: 15.12614792 | AY36: 15.5884798 | AZ36: 16.05081168
B37: Buildings - capital works | C37: =_xlfn.XLOOKUP(B37,'PTRM Input'!$G$6:$G$58,'PTRM Input'!$J$6:$J$58) -> 84.59426118 | E37: Buildings - capital works | F37: =_xlfn.XLOOKUP($E37,Assets!$C$11:$C$60,Assets!G$11:G$60) -> 0 | G37: =_xlfn.XLOOKUP($E37,Assets!$C$11:$C$60,Assets!H$11:H$60) -> 0 | H37: =_xlfn.XLOOKUP($E37,Assets!$C$11:$C$60,Assets!I$11:I$60) -> 0 | I37: =_xlfn.XLOOKUP($E37,Assets!$C$11:$C$60,Assets!J$11:J$60) -> 0 | J37: =_xlfn.XLOOKUP($E37,Assets!$C$11:$C$60,Assets!K$11:K$60) -> 0 | L37: Buildings - capital works | M37: =_xlfn.XLOOKUP($L37,Assets!$C$128:$C$765,Assets!G$128:G$765) -> 2.319536437 | N37: =_xlfn.XLOOKUP($L37,Assets!$C$128:$C$765,Assets!H$128:H$765) -> 2.319536437 | O37: =_xlfn.XLOOKUP($L37,Assets!$C$128:$C$765,Assets!I$128:I$765) -> 2.319536437 | P37: =_xlfn.XLOOKUP($L37,Assets!$C$128:$C$765,Assets!J$128:J$765) -> 2.319536437 | Q37: =_xlfn.XLOOKUP($L37,Assets!$C$128:$C$765,Assets!K$128:K$765) -> 2.319536437 | S37: Buildings - capital works | T37: 84.59426118 | U37: 82.27472474 | V37: 79.95518831 | W37: 77.63565187 | X37: 75.31611543 | Z37: Buildings - capital works | AA37: 0.005208236555 | AB37: 0.004921766415 | AC37: 0.004656716811 | AD37: 0.004408727862 | AE37: 0.004171268284 | AG37: Buildings - capital works | AH37: =T37*'PTRM Revenue data'!J$7 -> 2.36845416 | AI37: =U37*'PTRM Revenue data'!K$7*'PTRM Revenue data'!J$8 -> 2.368005517 | AJ37: =V37*'PTRM Revenue data'!L$7*'PTRM Revenue data'!K$8 -> 2.301245341 | AK37: =W37*'PTRM Revenue data'!M$7*'PTRM Revenue data'!L$8 -> 2.234485165 | AL37: =X37*'PTRM Revenue data'!N$7*'PTRM Revenue data'!M$8 -> 2.16772499 | AN37: Buildings - capital works | AO37: =M37*'PTRM Revenue data'!J$8 -> 2.38447838 | AP37: =N37*'PTRM Revenue data'!K$8 -> 2.38447838 | AQ37: =O37*'PTRM Revenue data'!L$8 -> 2.38447838 | AR37: =P37*'PTRM Revenue data'!M$8 -> 2.38447838 | AS37: =Q37*'PTRM Revenue data'!N$8 -> 2.38447838 | AU37: Buildings - capital works | AV37: 0.01602422046 | AW37: 0.01647286356 | AX37: 0.08323303925 | AY37: 0.1499932149 | AZ37: 0.2167533906
B40: Total | C40: =SUM(C7:C37) -> 16242.39995 | S40: Total | T40: =SUM(T7:T37) -> 16242.39995 | U40: =SUM(U7:U37) -> 16716.50335 | V40: =SUM(V7:V37) -> 17169.86271 | W40: =SUM(W7:W37) -> 17609.53597 | X40: =SUM(X7:X37) -> 18055.92695 | Z40: Total | AA40: =SUM(AA7:AA37) -> 1 | AB40: =SUM(AB7:AB37) -> 1 | AC40: 1 | AD40: 1 | AE40: 1

Sheet BBM Costs
B2: BBM Costs
B4: Building block costs by year (000s) | I4: Operational costs | P4: Return of capex (Regulatory depreciation split) | W4: Return on capex | AD4: Replacement cost (ORAB)
C6: 2025-26 | D6: 2026-27 | E6: 2027-28 | F6: 2028-29 | G6: 2029-30 | I6: Category | J6: 2025-26 | K6: 2026-27 | L6: 2027-28 | M6: 2028-29 | N6: 2029-30 | P6: Category | Q6: 2025-26 | R6: 2026-27 | S6: 2027-28 | T6: 2028-29 | U6: 2029-30 | W6: Category | X6: 2025-26 | Y6: 2026-27 | Z6: 2027-28 | AA6: 2028-29 | AB6: 2029-30 | AD6: Category | AE6: 2025-26
B7: Return on Capital | C7: =_xlfn.XLOOKUP($B7,'PTRM Revenue data'!$B$7:$B$11,'PTRM Revenue data'!C$7:C$11) -> 955.4406025 | D7: =_xlfn.XLOOKUP($B7,'PTRM Revenue data'!$B$7:$B$11,'PTRM Revenue data'!D$7:D$11) -> 1044.862809 | E7: =_xlfn.XLOOKUP($B7,'PTRM Revenue data'!$B$7:$B$11,'PTRM Revenue data'!E$7:E$11) -> 1139.825305 | F7: =_xlfn.XLOOKUP($B7,'PTRM Revenue data'!$B$7:$B$11,'PTRM Revenue data'!F$7:F$11) -> 1197.99007 | G7: =_xlfn.XLOOKUP($B7,'PTRM Revenue data'!$B$7:$B$11,'PTRM Revenue data'!G$7:G$11) -> 1302.480766 | I7: ='Opex costs'!B7 -> Preventative Maintenance | J7: =_xlfn.XLOOKUP($I7,'Opex costs'!$B$7:$B$20,'Opex costs'!C$7:C$20) -> 79.89088095 | K7: =_xlfn.XLOOKUP($I7,'Opex costs'!$B$7:$B$20,'Opex costs'!D$7:D$20) -> 83.02827025 | L7: =_xlfn.XLOOKUP($I7,'Opex costs'!$B$7:$B$20,'Opex costs'!E$7:E$20) -> 86.00631463 | M7: =_xlfn.XLOOKUP($I7,'Opex costs'!$B$7:$B$20,'Opex costs'!F$7:F$20) -> 87.3965714 | N7: =_xlfn.XLOOKUP($I7,'Opex costs'!$B$7:$B$20,'Opex costs'!G$7:G$20) -> 90.86755142 | P7: ='PTRM Data'!B7 -> Overhead Sub-Transmission Lines | Q7: =_xlfn.XLOOKUP($P7,'PTRM Data'!$AU$7:$AU$37,'PTRM Data'!AV$7:AV$37) -> 13.41291676 | R7: =_xlfn.XLOOKUP($P7,'PTRM Data'!$AU$7:$AU$37,'PTRM Data'!AW$7:AW$37) -> 12.98596066 | S7: =_xlfn.XLOOKUP($P7,'PTRM Data'!$AU$7:$AU$37,'PTRM Data'!AX$7:AX$37) -> 13.80065046 | T7: =_xlfn.XLOOKUP($P7,'PTRM Data'!$AU$7:$AU$37,'PTRM Data'!AY$7:AY$37) -> 14.62929682 | U7: =_xlfn.XLOOKUP($P7,'PTRM Data'!$AU$7:$AU$37,'PTRM Data'!AZ$7:AZ$37) -> 15.47794278 | W7: ='PTRM Data'!B7 -> Overhead Sub-Transmission Lines | X7: =_xlfn.XLOOKUP($W7,'PTRM Data'!$Z$7:$Z$37,'PTRM Data'!AA$7:AA$37)*('BBM Costs'!C$7+'BBM Costs'!C$11) -> 92.97212905 | Y7: =_xlfn.XLOOKUP($W7,'PTRM Data'!$Z$7:$Z$37,'PTRM Data'!AB$7:AB$37)*('BBM Costs'!D$7+'BBM Costs'!D$11) -> 100.2780416 | Z7: =_xlfn.XLOOKUP($W7,'PTRM Data'!$Z$7:$Z$37,'PTRM Data'!AC$7:AC$37)*('BBM Costs'!E$7+'BBM Costs'!E$11) -> 107.8723964 | AA7: =_xlfn.XLOOKUP($W7,'PTRM Data'!$Z$7:$Z$37,'PTRM Data'!AD$7:AD$37)*('BBM Costs'!F$7+'BBM Costs'!F$11) -> 112.5334582 | AB7: =_xlfn.XLOOKUP($W7,'PTRM Data'!$Z$7:$Z$37,'PTRM Data'!AE$7:AE$37)*('BBM Costs'!G$7+'BBM Costs'!G$11) -> 120.905281 | AD7: ='PTRM Data'!B7 -> Overhead Sub-Transmission Lines | AE7: =_xlfn.XLOOKUP(AD7,'PTRM Data'!$B$7:$B$37,'PTRM Data'!$C$7:$C$37) -> 1558.971983
B8: Return of Capital (regulatory depreciation) | C8: =_xlfn.XLOOKUP($B8,'PTRM Revenue data'!$B$7:$B$11,'PTRM Revenue data'!C$7:C$11) -> 213.7739336 | D8: =_xlfn.XLOOKUP($B8,'PTRM Revenue data'!$B$7:$B$11,'PTRM Revenue data'!D$7:D$11) -> 236.2485978 | E8: =_xlfn.XLOOKUP($B8,'PTRM Revenue data'!$B$7:$B$11,'PTRM Revenue data'!E$7:E$11) -> 256.9084952 | F8: =_xlfn.XLOOKUP($B8,'PTRM Revenue data'!$B$7:$B$11,'PTRM Revenue data'!F$7:F$11) -> 275.8675272 | G8: =_xlfn.XLOOKUP($B8,'PTRM Revenue data'!$B$7:$B$11,'PTRM Revenue data'!G$7:G$11) -> 285.7478186 | I8: ='Opex costs'!B8 -> Corrective Maintenance | J8: =_xlfn.XLOOKUP($I8,'Opex costs'!$B$7:$B$20,'Opex costs'!C$7:C$20) -> 43.16368026 | K8: =_xlfn.XLOOKUP($I8,'Opex costs'!$B$7:$B$20,'Opex costs'!D$7:D$20) -> 44.85875819 | L8: =_xlfn.XLOOKUP($I8,'Opex costs'!$B$7:$B$20,'Opex costs'!E$7:E$20) -> 46.46774477 | M8: =_xlfn.XLOOKUP($I8,'Opex costs'!$B$7:$B$20,'Opex costs'!F$7:F$20) -> 47.21887679 | N8: =_xlfn.XLOOKUP($I8,'Opex costs'!$B$7:$B$20,'Opex costs'!G$7:G$20) -> 49.09418809 | P8: ='PTRM Data'!B8 -> Underground Sub-Transmission Cables | Q8: =_xlfn.XLOOKUP($P8,'PTRM Data'!$AU$7:$AU$37,'PTRM Data'!AV$7:AV$37) -> 0.8428831555 | R8: =_xlfn.XLOOKUP($P8,'PTRM Data'!$AU$7:$AU$37,'PTRM Data'!AW$7:AW$37) -> 0.8378654374 | S8: =_xlfn.XLOOKUP($P8,'PTRM Data'!$AU$7:$AU$37,'PTRM Data'!AX$7:AX$37) -> 0.8887756431 | T8: =_xlfn.XLOOKUP($P8,'PTRM Data'!$AU$7:$AU$37,'PTRM Data'!AY$7:AY$37) -> 0.941880885 | U8: =_xlfn.XLOOKUP($P8,'PTRM Data'!$AU$7:$AU$37,'PTRM Data'!AZ$7:AZ$37) -> 0.9976272124 | W8: ='PTRM Data'!B8 -> Underground Sub-Transmission Cables | X8: =_xlfn.XLOOKUP($W8,'PTRM Data'!$Z$7:$Z$37,'PTRM Data'!AA$7:AA$37)*('BBM Costs'!C$7+'BBM Costs'!C$11) -> 4.099332903 | Y8: =_xlfn.XLOOKUP($W8,'PTRM Data'!$Z$7:$Z$37,'PTRM Data'!AB$7:AB$37)*('BBM Costs'!D$7+'BBM Costs'!D$11) -> 4.489163768 | Z8: =_xlfn.XLOOKUP($W8,'PTRM Data'!$Z$7:$Z$37,'PTRM Data'!AC$7:AC$37)*('BBM Costs'!E$7+'BBM Costs'!E$11) -> 4.902082241 | AA8: =_xlfn.XLOOKUP($W8,'PTRM Data'!$Z$7:$Z$37,'PTRM Data'!AD$7:AD$37)*('BBM Costs'!F$7+'BBM Costs'!F$11) -> 5.187284823 | AB8: =_xlfn.XLOOKUP($W8,'PTRM Data'!$Z$7:$Z$37,'PTRM Data'!AE$7:AE$37)*('BBM Costs'!G$7+'BBM Costs'!G$11) -> 5.646361767 | AD8: ='PTRM Data'!B8 -> Underground Sub-Transmission Cables | AE8: =_xlfn.XLOOKUP(AD8,'PTRM Data'!$B$7:$B$37,'PTRM Data'!$C$7:$C$37) -> 68.73828972
B9: Operating Expenditure | C9: =_xlfn.XLOOKUP($B9,'PTRM Revenue data'!$B$7:$B$11,'PTRM Revenue data'!C$7:C$11) -> 470.52156 | D9: =_xlfn.XLOOKUP($B9,'PTRM Revenue data'!$B$7:$B$11,'PTRM Revenue data'!D$7:D$11) -> 498.9132007 | E9: =_xlfn.XLOOKUP($B9,'PTRM Revenue data'!$B$7:$B$11,'PTRM Revenue data'!E$7:E$11) -> 526.7235488 | F9: =_xlfn.XLOOKUP($B9,'PTRM Revenue data'!$B$7:$B$11,'PTRM Revenue data'!F$7:F$11) -> 532.1921316 | G9: =_xlfn.XLOOKUP($B9,'PTRM Revenue data'!$B$7:$B$11,'PTRM Revenue data'!G$7:G$11) -> 557.3437302 | I9: ='Opex costs'!B9 -> Forced Maintenance | J9: =_xlfn.XLOOKUP($I9,'Opex costs'!$B$7:$B$20,'Opex costs'!C$7:C$20) -> 83.57791385 | K9: =_xlfn.XLOOKUP($I9,'Opex costs'!$B$7:$B$20,'Opex costs'!D$7:D$20) -> 86.86009636 | L9: =_xlfn.XLOOKUP($I9,'Opex costs'!$B$7:$B$20,'Opex costs'!E$7:E$20) -> 89.97558005 | M9: =_xlfn.XLOOKUP($I9,'Opex costs'!$B$7:$B$20,'Opex costs'!F$7:F$20) -> 91.42999837 | N9: =_xlfn.XLOOKUP($I9,'Opex costs'!$B$7:$B$20,'Opex costs'!G$7:G$20) -> 95.06116711 | P9: ='PTRM Data'!B9 -> Overhead Distribution Lines | Q9: =_xlfn.XLOOKUP($P9,'PTRM Data'!$AU$7:$AU$37,'PTRM Data'!AV$7:AV$37) -> 13.66693208 | R9: =_xlfn.XLOOKUP($P9,'PTRM Data'!$AU$7:$AU$37,'PTRM Data'!AW$7:AW$37) -> 10.24764482 | S9: =_xlfn.XLOOKUP($P9,'PTRM Data'!$AU$7:$AU$37,'PTRM Data'!AX$7:AX$37) -> 12.01989383 | T9: =_xlfn.XLOOKUP($P9,'PTRM Data'!$AU$7:$AU$37,'PTRM Data'!AY$7:AY$37) -> 13.92571442 | U9: =_xlfn.XLOOKUP($P9,'PTRM Data'!$AU$7:$AU$37,'PTRM Data'!AZ$7:AZ$37) -> 15.98288948 | W9: ='PTRM Data'!B9 -> Overhead Distribution Lines | X9: =_xlfn.XLOOKUP($W9,'PTRM Data'!$Z$7:$Z$37,'PTRM Data'!AA$7:AA$37)*('BBM Costs'!C$7+'BBM Costs'!C$11) -> 381.1841753 | Y9: =_xlfn.XLOOKUP($W9,'PTRM Data'!$Z$7:$Z$37,'PTRM Data'!AB$7:AB$37)*('BBM Costs'!D$7+'BBM Costs'!D$11) -> 422.3233269 | Z9: =_xlfn.XLOOKUP($W9,'PTRM Data'!$Z$7:$Z$37,'PTRM Data'!AC$7:AC$37)*('BBM Costs'!E$7+'BBM Costs'!E$11) -> 465.8395329 | AA9: =_xlfn.XLOOKUP($W9,'PTRM Data'!$Z$7:$Z$37,'PTRM Data'!AD$7:AD$37)*('BBM Costs'!F$7+'BBM Costs'!F$11) -> 497.7265681 | AB9: =_xlfn.XLOOKUP($W9,'PTRM Data'!$Z$7:$Z$37,'PTRM Data'!AE$7:AE$37)*('BBM Costs'!G$7+'BBM Costs'!G$11) -> 547.147492 | AD9: ='PTRM Data'!B9 -> Overhead Distribution Lines | AE9: =_xlfn.XLOOKUP(AD9,'PTRM Data'!$B$7:$B$37,'PTRM Data'!$C$7:$C$37) -> 6391.759074
